Workbook

Sheet Control
A1: Sheets | B1: Text File Names | C1: Description | E1: Notes: 50 sheets maximum
A2: Contain2E | B2: Contain_to_Pond2E.txt | C2: Untreated water from the containment system to the pond in 2E | E2: Referenced text files must be in same root folder as this spreadsheet
A3: Contain1E | B3: Contain_to_Pond1E.txt | C3: Untreated water from the containment system to the combined pond
A4: Mine2E | B4: Mine_Pond2E.txt | C4: Mine Site CPS water to the pond in 2E
A5: Mine1E | B5: Mine_Pond1E.txt | C5: Mine Site CPS water to the combined pond
A6: Natural2E | B6: Natural_Pond2E.txt | C6: Watershed/Beach loading to the pond in 2E
A7: Natural1E | B7: Natural_Pond1E.txt | C7: Watershed/Beach loading to the combined pond
A8: Plant2E | B8: Plant_to_Pond2E.txt | C8: Beneficiation Plant loading to the pond in 2E
A9: Plant1E | B9: Plant_to_Pond1E.txt | C9: Beneficiation Plant loading to the combined pond
A10: WWTP1E | B10: WWTP_Pond1E.txt | C10: Loading from the WWTP to the pond in 1E

Sheet PlotControl
A2: Model Name: | B2: Plant Site Version 6.0 | C2: =B2 & " Model " & IF(B4="P50", "Median", IF(B4="P10", "10th Percentile", "90th Percentile")) & " Loading Rates " & B6 & " to the FTB Pond" -> Plant Site Version 6.0 Model Median Loading Rates Ag to the FTB Pond
A4: Plot: | B4: P50 | C4: =(MATCH(B4,$B$27:$B$29,0))+1 -> 3 | W4: Directory to save PDFs to: | X4: C:\Users\jem4\Desktop\temp
W5: Starting figure caption | X5: Figure A-1-0001
A6: Constituent to Plot (dropdown): | B6: Ag | C6: =MATCH(B6,$A$27:$A$54,0) -> 1
A8: Location to Plot (dropdown): | B8: Pond1E/2E | C8: =MATCH(B8,$A$12:$A$17,0) -> 1
A11: Locations | B11: Sources | C11: Start Loc.
A12: Pond1E/2E | B12: Watershed Loading | D12: =(E12-1)*(4*27) -> 0 | E12: 1
B13: Mine Site Loading | D13: =(E13-1)*(4*27) -> 108 | E13: 2
B14: Beach Weathering | D14: 216 | E14: 3
B15: Ore / Reagent | D15: 324 | E15: 4
B16: Colby Lake | D16: 432 | E16: 5
B17: Untreated Toe Water | D17: 540 | E17: 6
B18: Blended Water | D18: 648 | E18: 7
B19: Filter Backwash (to 1E) | D19: =(E19-1)*(4*27) -> 756 | E19: 8
B20: Sewage Treatment Plant | D20: 864 | E20: 9
E25: Annual Project Results (mton/yr loading)
A26: Constituent | B26: Percentile | D26: Time | E26: =$B12 -> Watershed Loading | F26: =$B13 -> Mine Site Loading | G26: =$B14 -> Beach Weathering | H26: =$B15 -> Ore / Reagent | I26: =$B16 -> Colby Lake | J26: =$B17 -> Untreated Toe Water | K26: =$B18 -> Blended Water | L26: =B20 -> Sewage Treatment Plant | M26: =$B19 -> Filter Backwash (to 1E)
A27: Ag | B27: P10 | D27: 0 | E27: =VLOOKUP($D27,Background_All!$A$5:$D$206,$C$4,)/1000*365.25 -> 8.120588031e-06 | F27: =VLOOKUP($D27,Point_Sources_All!$A$6:$V$207,3*($E$13-2)+$C$4)/1000*365.25 -> 0.0009533025 | G27: =VLOOKUP($D27,Point_Sources_All!$A$6:$V$207,3*($E$14-2)+$C$4)/1000*365.25 -> 1.27844805e-05 | H27: =VLOOKUP($D27,Point_Sources_All!$A$6:$V$207,3*($E$15-2)+$C$4)/1000*365.25 -> 0.0010679423 | I27: =VLOOKUP($D27,Point_Sources_All!$A$6:$V$207,3*($E$16-2)+$C$4)/1000*365.25 -> 0.0003122994031 | J27: =VLOOKUP($D27,Point_Sources_All!$A$6:$V$207,3*($E$17-2)+$C$4)/1000*365.25 -> 0.0001980357949 | K27: =VLOOKUP($D27,Point_Sources_All!$A$6:$V$207,3*($E$18-2)+$C$4)/1000*365.25 -> 0 | L27: =VLOOKUP($D27,Point_Sources_All!$A$6:$Y$207,3*($E$20-2)+$C$4)/1000*365.25 -> 2.8355575e-06 | M27: =VLOOKUP($D27,Point_Sources_All!$A$6:$V$207,3*($E$19-2)+$C$4)/1000*365.25 -> 1.8812323e-05
A28: Al | B28: P50 | D28: 1 | E28: =VLOOKUP($D28,Background_All!$A$5:$D$206,$C$4,)/1000*365.25 -> 7.546369375e-06 | F28: =VLOOKUP($D28,Point_Sources_All!$A$6:$V$207,3*($E$13-2)+$C$4)/1000*365.25 -> 0.001178323894 | G28: =VLOOKUP($D28,Point_Sources_All!$A$6:$V$207,3*($E$14-2)+$C$4)/1000*365.25 -> 1.385378031e-05 | H28: =VLOOKUP($D28,Point_Sources_All!$A$6:$V$207,3*($E$15-2)+$C$4)/1000*365.25 -> 0.001075694731 | I28: =VLOOKUP($D28,Point_Sources_All!$A$6:$V$207,3*($E$16-2)+$C$4)/1000*365.25 -> 0.0001603164431 | J28: =VLOOKUP($D28,Point_Sources_All!$A$6:$V$207,3*($E$17-2)+$C$4)/1000*365.25 -> 0.0002189043034 | K28: =VLOOKUP($D28,Point_Sources_All!$A$6:$V$207,3*($E$18-2)+$C$4)/1000*365.25 -> 0 | L28: =VLOOKUP($D28,Point_Sources_All!$A$6:$Y$207,3*($E$20-2)+$C$4)/1000*365.25 -> 3.544446875e-06 | M28: =VLOOKUP($D28,Point_Sources_All!$A$6:$V$207,3*($E$19-2)+$C$4)/1000*365.25 -> 2.281430638e-05
A29: Alkalinity | B29: P90 | D29: 2 | E29: =VLOOKUP($D29,Background_All!$A$5:$D$206,$C$4,)/1000*365.25 -> 6.805815869e-06 | F29: =VLOOKUP($D29,Point_Sources_All!$A$6:$V$207,3*($E$13-2)+$C$4)/1000*365.25 -> 0.0014983529 | G29: =VLOOKUP($D29,Point_Sources_All!$A$6:$V$207,3*($E$14-2)+$C$4)/1000*365.25 -> 1.371212419e-05 | H29: =VLOOKUP($D29,Point_Sources_All!$A$6:$V$207,3*($E$15-2)+$C$4)/1000*365.25 -> 0.001065224231 | I29: =VLOOKUP($D29,Point_Sources_All!$A$6:$V$207,3*($E$16-2)+$C$4)/1000*365.25 -> 0.0001522081975 | J29: =VLOOKUP($D29,Point_Sources_All!$A$6:$V$207,3*($E$17-2)+$C$4)/1000*365.25 -> 0.0002206912789 | K29: =VLOOKUP($D29,Point_Sources_All!$A$6:$V$207,3*($E$18-2)+$C$4)/1000*365.25 -> 0 | L29: =VLOOKUP($D29,Point_Sources_All!$A$6:$Y$207,3*($E$20-2)+$C$4)/1000*365.25 -> 3.544446875e-06 | M29: =VLOOKUP($D29,Point_Sources_All!$A$6:$V$207,3*($E$19-2)+$C$4)/1000*365.25 -> 2.272314606e-05
A30: As | D30: 3 | E30: =VLOOKUP($D30,Background_All!$A$5:$D$206,$C$4,)/1000*365.25 -> 5.905632894e-06 | F30: =VLOOKUP($D30,Point_Sources_All!$A$6:$V$207,3*($E$13-2)+$C$4)/1000*365.25 -> 0.00180650215 | G30: =VLOOKUP($D30,Point_Sources_All!$A$6:$V$207,3*($E$14-2)+$C$4)/1000*365.25 -> 1.351832863e-05 | H30: =VLOOKUP($D30,Point_Sources_All!$A$6:$V$207,3*($E$15-2)+$C$4)/1000*365.25 -> 0.00107872935 | I30: =VLOOKUP($D30,Point_Sources_All!$A$6:$V$207,3*($E$16-2)+$C$4)/1000*365.25 -> 0.000139513325 | J30: =VLOOKUP($D30,Point_Sources_All!$A$6:$V$207,3*($E$17-2)+$C$4)/1000*365.25 -> 0.0002226901295 | K30: =VLOOKUP($D30,Point_Sources_All!$A$6:$V$207,3*($E$18-2)+$C$4)/1000*365.25 -> 0 | L30: =VLOOKUP($D30,Point_Sources_All!$A$6:$Y$207,3*($E$20-2)+$C$4)/1000*365.25 -> 3.544446875e-06 | M30: =VLOOKUP($D30,Point_Sources_All!$A$6:$V$207,3*($E$19-2)+$C$4)/1000*365.25 -> 2.267761156e-05
A31: B | D31: 4 | E31: =VLOOKUP($D31,Background_All!$A$5:$D$206,$C$4,)/1000*365.25 -> 5.048786831e-06 | F31: =VLOOKUP($D31,Point_Sources_All!$A$6:$V$207,3*($E$13-2)+$C$4)/1000*365.25 -> 0.002067056281 | G31: =VLOOKUP($D31,Point_Sources_All!$A$6:$V$207,3*($E$14-2)+$C$4)/1000*365.25 -> 1.331321031e-05 | H31: =VLOOKUP($D31,Point_Sources_All!$A$6:$V$207,3*($E$15-2)+$C$4)/1000*365.25 -> 0.001087181844 | I31: =VLOOKUP($D31,Point_Sources_All!$A$6:$V$207,3*($E$16-2)+$C$4)/1000*365.25 -> 0.000134399825 | J31: =VLOOKUP($D31,Point_Sources_All!$A$6:$V$207,3*($E$17-2)+$C$4)/1000*365.25 -> 0.0002102161665 | K31: =VLOOKUP($D31,Point_Sources_All!$A$6:$V$207,3*($E$18-2)+$C$4)/1000*365.25 -> 0 | L31: =VLOOKUP($D31,Point_Sources_All!$A$6:$Y$207,3*($E$20-2)+$C$4)/1000*365.25 -> 3.721654e-06 | M31: =VLOOKUP($D31,Point_Sources_All!$A$6:$V$207,3*($E$19-2)+$C$4)/1000*365.25 -> 2.692047731e-05
A32: Ba | D32: 5 | E32: =VLOOKUP($D32,Background_All!$A$5:$D$206,$C$4,)/1000*365.25 -> 4.706249294e-06 | F32: =VLOOKUP($D32,Point_Sources_All!$A$6:$V$207,3*($E$13-2)+$C$4)/1000*365.25 -> 0.00220525775 | G32: =VLOOKUP($D32,Point_Sources_All!$A$6:$V$207,3*($E$14-2)+$C$4)/1000*365.25 -> 1.309472994e-05 | H32: =VLOOKUP($D32,Point_Sources_All!$A$6:$V$207,3*($E$15-2)+$C$4)/1000*365.25 -> 0.001083167137 | I32: =VLOOKUP($D32,Point_Sources_All!$A$6:$V$207,3*($E$16-2)+$C$4)/1000*365.25 -> 0.000118052209 | J32: =VLOOKUP($D32,Point_Sources_All!$A$6:$V$207,3*($E$17-2)+$C$4)/1000*365.25 -> 0.0001995883967 | K32: =VLOOKUP($D32,Point_Sources_All!$A$6:$V$207,3*($E$18-2)+$C$4)/1000*365.25 -> 0 | L32: =VLOOKUP($D32,Point_Sources_All!$A$6:$Y$207,3*($E$20-2)+$C$4)/1000*365.25 -> 3.898861125e-06 | M32: =VLOOKUP($D32,Point_Sources_All!$A$6:$V$207,3*($E$19-2)+$C$4)/1000*365.25 -> 4.042227837e-05
A33: Be | D33: 6 | E33: =VLOOKUP($D33,Background_All!$A$5:$D$206,$C$4,)/1000*365.25 -> 4.250283369e-06 | F33: =VLOOKUP($D33,Point_Sources_All!$A$6:$V$207,3*($E$13-2)+$C$4)/1000*365.25 -> 0.002618568563 | G33: =VLOOKUP($D33,Point_Sources_All!$A$6:$V$207,3*($E$14-2)+$C$4)/1000*365.25 -> 1.282608856e-05 | H33: =VLOOKUP($D33,Point_Sources_All!$A$6:$V$207,3*($E$15-2)+$C$4)/1000*365.25 -> 0.001058071419 | I33: =VLOOKUP($D33,Point_Sources_All!$A$6:$V$207,3*($E$16-2)+$C$4)/1000*365.25 -> 7.324239848e-05 | J33: =VLOOKUP($D33,Point_Sources_All!$A$6:$V$207,3*($E$17-2)+$C$4)/1000*365.25 -> 0.000263822149 | K33: =VLOOKUP($D33,Point_Sources_All!$A$6:$V$207,3*($E$18-2)+$C$4)/1000*365.25 -> 0 | L33: =VLOOKUP($D33,Point_Sources_All!$A$6:$Y$207,3*($E$20-2)+$C$4)/1000*365.25 -> 3.721654e-06 | M33: =VLOOKUP($D33,Point_Sources_All!$A$6:$V$207,3*($E$19-2)+$C$4)/1000*365.25 -> 5.566318688e-05
A34: Ca | D34: 7 | E34: =VLOOKUP($D34,Background_All!$A$5:$D$206,$C$4,)/1000*365.25 -> 1.993343657e-05 | F34: =VLOOKUP($D34,Point_Sources_All!$A$6:$V$207,3*($E$13-2)+$C$4)/1000*365.25 -> 0.002288696069 | G34: =VLOOKUP($D34,Point_Sources_All!$A$6:$V$207,3*($E$14-2)+$C$4)/1000*365.25 -> 2.762260956e-05 | H34: =VLOOKUP($D34,Point_Sources_All!$A$6:$V$207,3*($E$15-2)+$C$4)/1000*365.25 -> 0.0010000058 | I34: =VLOOKUP($D34,Point_Sources_All!$A$6:$V$207,3*($E$16-2)+$C$4)/1000*365.25 -> 2.154087138e-05 | J34: =VLOOKUP($D34,Point_Sources_All!$A$6:$V$207,3*($E$17-2)+$C$4)/1000*365.25 -> 0.0002998511623 | K34: =VLOOKUP($D34,Point_Sources_All!$A$6:$V$207,3*($E$18-2)+$C$4)/1000*365.25 -> 0 | L34: =VLOOKUP($D34,Point_Sources_All!$A$6:$Y$207,3*($E$20-2)+$C$4)/1000*365.25 -> 3.721654e-06 | M34: =VLOOKUP($D34,Point_Sources_All!$A$6:$V$207,3*($E$19-2)+$C$4)/1000*365.25 -> 6.118698437e-05
A35: Cd | D35: 8 | E35: =VLOOKUP($D35,Background_All!$A$5:$D$206,$C$4,)/1000*365.25 -> 2.004332203e-05 | F35: =VLOOKUP($D35,Point_Sources_All!$A$6:$V$207,3*($E$13-2)+$C$4)/1000*365.25 -> 0.003139722481 | G35: =VLOOKUP($D35,Point_Sources_All!$A$6:$V$207,3*($E$14-2)+$C$4)/1000*365.25 -> 2.982299731e-05 | H35: =VLOOKUP($D35,Point_Sources_All!$A$6:$V$207,3*($E$15-2)+$C$4)/1000*365.25 -> 0.0010559134 | I35: =VLOOKUP($D35,Point_Sources_All!$A$6:$V$207,3*($E$16-2)+$C$4)/1000*365.25 -> 5.4161705e-07 | J35: =VLOOKUP($D35,Point_Sources_All!$A$6:$V$207,3*($E$17-2)+$C$4)/1000*365.25 -> 0.0002993712661 | K35: =VLOOKUP($D35,Point_Sources_All!$A$6:$V$207,3*($E$18-2)+$C$4)/1000*365.25 -> 0 | L35: =VLOOKUP($D35,Point_Sources_All!$A$6:$Y$207,3*($E$20-2)+$C$4)/1000*365.25 -> 3.898861125e-06 | M35: =VLOOKUP($D35,Point_Sources_All!$A$6:$V$207,3*($E$19-2)+$C$4)/1000*365.25 -> 6.414459625e-05
A36: Cl | D36: 9 | E36: =VLOOKUP($D36,Background_All!$A$5:$D$206,$C$4,)/1000*365.25 -> 1.945158051e-05 | F36: =VLOOKUP($D36,Point_Sources_All!$A$6:$V$207,3*($E$13-2)+$C$4)/1000*365.25 -> 0.003460284144 | G36: =VLOOKUP($D36,Point_Sources_All!$A$6:$V$207,3*($E$14-2)+$C$4)/1000*365.25 -> 3.044666169e-05 | H36: =VLOOKUP($D36,Point_Sources_All!$A$6:$V$207,3*($E$15-2)+$C$4)/1000*365.25 -> 0.001064852894 | I36: =VLOOKUP($D36,Point_Sources_All!$A$6:$V$207,3*($E$16-2)+$C$4)/1000*365.25 -> 5.402595375e-07 | J36: =VLOOKUP($D36,Point_Sources_All!$A$6:$V$207,3*($E$17-2)+$C$4)/1000*365.25 -> 0.000281715444 | K36: =VLOOKUP($D36,Point_Sources_All!$A$6:$V$207,3*($E$18-2)+$C$4)/1000*365.25 -> 0 | L36: =VLOOKUP($D36,Point_Sources_All!$A$6:$Y$207,3*($E$20-2)+$C$4)/1000*365.25 -> 3.898861125e-06 | M36: =VLOOKUP($D36,Point_Sources_All!$A$6:$V$207,3*($E$19-2)+$C$4)/1000*365.25 -> 6.161737062e-05
A37: Co | D37: 10 | E37: =VLOOKUP($D37,Background_All!$A$5:$D$206,$C$4,)/1000*365.25 -> 1.811657958e-05 | F37: =VLOOKUP($D37,Point_Sources_All!$A$6:$V$207,3*($E$13-2)+$C$4)/1000*365.25 -> 0.0029232175 | G37: =VLOOKUP($D37,Point_Sources_All!$A$6:$V$207,3*($E$14-2)+$C$4)/1000*365.25 -> 3.080232388e-05 | H37: =VLOOKUP($D37,Point_Sources_All!$A$6:$V$207,3*($E$15-2)+$C$4)/1000*365.25 -> 0.001076839181 | I37: =VLOOKUP($D37,Point_Sources_All!$A$6:$V$207,3*($E$16-2)+$C$4)/1000*365.25 -> 5.399399437e-07 | J37: =VLOOKUP($D37,Point_Sources_All!$A$6:$V$207,3*($E$17-2)+$C$4)/1000*365.25 -> 0.0003665084917 | K37: =VLOOKUP($D37,Point_Sources_All!$A$6:$V$207,3*($E$18-2)+$C$4)/1000*365.25 -> 0 | L37: =VLOOKUP($D37,Point_Sources_All!$A$6:$Y$207,3*($E$20-2)+$C$4)/1000*365.25 -> 3.544446875e-06 | M37: =VLOOKUP($D37,Point_Sources_All!$A$6:$V$207,3*($E$19-2)+$C$4)/1000*365.25 -> 5.471505875e-05
A38: Cr | D38: 11 | E38: =VLOOKUP($D38,Background_All!$A$5:$D$206,$C$4,)/1000*365.25 -> 1.703508042e-05 | F38: =VLOOKUP($D38,Point_Sources_All!$A$6:$V$207,3*($E$13-2)+$C$4)/1000*365.25 -> 0.002989543856 | G38: =VLOOKUP($D38,Point_Sources_All!$A$6:$V$207,3*($E$14-2)+$C$4)/1000*365.25 -> 3.084381019e-05 | H38: =VLOOKUP($D38,Point_Sources_All!$A$6:$V$207,3*($E$15-2)+$C$4)/1000*365.25 -> 0.001057094375 | I38: =VLOOKUP($D38,Point_Sources_All!$A$6:$V$207,3*($E$16-2)+$C$4)/1000*365.25 -> 5.41726625e-07 | J38: =VLOOKUP($D38,Point_Sources_All!$A$6:$V$207,3*($E$17-2)+$C$4)/1000*365.25 -> 0.0003623501402 | K38: =VLOOKUP($D38,Point_Sources_All!$A$6:$V$207,3*($E$18-2)+$C$4)/1000*365.25 -> 0 | L38: =VLOOKUP($D38,Point_Sources_All!$A$6:$Y$207,3*($E$20-2)+$C$4)/1000*365.25 -> 3.898861125e-06 | M38: =VLOOKUP($D38,Point_Sources_All!$A$6:$V$207,3*($E$19-2)+$C$4)/1000*365.25 -> 5.330488938e-05
A39: Cu | D39: 12 | E39: =VLOOKUP($D39,Background_All!$A$5:$D$206,$C$4,)/1000*365.25 -> 1.54261633e-05 | F39: =VLOOKUP($D39,Point_Sources_All!$A$6:$V$207,3*($E$13-2)+$C$4)/1000*365.25 -> 0.00308960105 | G39: =VLOOKUP($D39,Point_Sources_All!$A$6:$V$207,3*($E$14-2)+$C$4)/1000*365.25 -> 3.088401812e-05 | H39: =VLOOKUP($D39,Point_Sources_All!$A$6:$V$207,3*($E$15-2)+$C$4)/1000*365.25 -> 0.001073862394 | I39: =VLOOKUP($D39,Point_Sources_All!$A$6:$V$207,3*($E$16-2)+$C$4)/1000*365.25 -> 5.415166062e-07 | J39: =VLOOKUP($D39,Point_Sources_All!$A$6:$V$207,3*($E$17-2)+$C$4)/1000*365.25 -> 0.0003439846793 | K39: =VLOOKUP($D39,Point_Sources_All!$A$6:$V$207,3*($E$18-2)+$C$4)/1000*365.25 -> 0 | L39: =VLOOKUP($D39,Point_Sources_All!$A$6:$Y$207,3*($E$20-2)+$C$4)/1000*365.25 -> 3.721654e-06 | M39: =VLOOKUP($D39,Point_Sources_All!$A$6:$V$207,3*($E$19-2)+$C$4)/1000*365.25 -> 5.14162425e-05
A40: F | D40: 13 | E40: =VLOOKUP($D40,Background_All!$A$5:$D$206,$C$4,)/1000*365.25 -> 1.522659374e-05 | F40: =VLOOKUP($D40,Point_Sources_All!$A$6:$V$207,3*($E$13-2)+$C$4)/1000*365.25 -> 0.003553057644 | G40: =VLOOKUP($D40,Point_Sources_All!$A$6:$V$207,3*($E$14-2)+$C$4)/1000*365.25 -> 3.092322163e-05 | H40: =VLOOKUP($D40,Point_Sources_All!$A$6:$V$207,3*($E$15-2)+$C$4)/1000*365.25 -> 0.001068748894 | I40: =VLOOKUP($D40,Point_Sources_All!$A$6:$V$207,3*($E$16-2)+$C$4)/1000*365.25 -> 5.421984062e-07 | J40: =VLOOKUP($D40,Point_Sources_All!$A$6:$V$207,3*($E$17-2)+$C$4)/1000*365.25 -> 0.0002866704803 | K40: =VLOOKUP($D40,Point_Sources_All!$A$6:$V$207,3*($E$18-2)+$C$4)/1000*365.25 -> 0 | L40: =VLOOKUP($D40,Point_Sources_All!$A$6:$Y$207,3*($E$20-2)+$C$4)/1000*365.25 -> 3.721654e-06 | M40: =VLOOKUP($D40,Point_Sources_All!$A$6:$V$207,3*($E$19-2)+$C$4)/1000*365.25 -> 5.116909e-05
A41: Fe | D41: 14 | E41: =VLOOKUP($D41,Background_All!$A$5:$D$206,$C$4,)/1000*365.25 -> 1.409585279e-05 | F41: =VLOOKUP($D41,Point_Sources_All!$A$6:$V$207,3*($E$13-2)+$C$4)/1000*365.25 -> 0.003409593531 | G41: =VLOOKUP($D41,Point_Sources_All!$A$6:$V$207,3*($E$14-2)+$C$4)/1000*365.25 -> 3.11516855e-05 | H41: =VLOOKUP($D41,Point_Sources_All!$A$6:$V$207,3*($E$15-2)+$C$4)/1000*365.25 -> 0.001099119431 | I41: =VLOOKUP($D41,Point_Sources_All!$A$6:$V$207,3*($E$16-2)+$C$4)/1000*365.25 -> 7.435211625e-07 | J41: =VLOOKUP($D41,Point_Sources_All!$A$6:$V$207,3*($E$17-2)+$C$4)/1000*365.25 -> 0.0002936718358 | K41: =VLOOKUP($D41,Point_Sources_All!$A$6:$V$207,3*($E$18-2)+$C$4)/1000*365.25 -> 0 | L41: =VLOOKUP($D41,Point_Sources_All!$A$6:$Y$207,3*($E$20-2)+$C$4)/1000*365.25 -> 3.544446875e-06 | M41: =VLOOKUP($D41,Point_Sources_All!$A$6:$V$207,3*($E$19-2)+$C$4)/1000*365.25 -> 4.847324062e-05
A42: K | D42: 15 | E42: =VLOOKUP($D42,Background_All!$A$5:$D$206,$C$4,)/1000*365.25 -> 1.339578421e-05 | F42: =VLOOKUP($D42,Point_Sources_All!$A$6:$V$207,3*($E$13-2)+$C$4)/1000*365.25 -> 0.0005605093019 | G42: =VLOOKUP($D42,Point_Sources_All!$A$6:$V$207,3*($E$14-2)+$C$4)/1000*365.25 -> 3.160249531e-05 | H42: =VLOOKUP($D42,Point_Sources_All!$A$6:$V$207,3*($E$15-2)+$C$4)/1000*365.25 -> 0.001059623731 | I42: =VLOOKUP($D42,Point_Sources_All!$A$6:$V$207,3*($E$16-2)+$C$4)/1000*365.25 -> 0.0001605328537 | J42: =VLOOKUP($D42,Point_Sources_All!$A$6:$V$207,3*($E$17-2)+$C$4)/1000*365.25 -> 0.0004670691902 | K42: =VLOOKUP($D42,Point_Sources_All!$A$6:$V$207,3*($E$18-2)+$C$4)/1000*365.25 -> 0 | L42: =VLOOKUP($D42,Point_Sources_All!$A$6:$Y$207,3*($E$20-2)+$C$4)/1000*365.25 -> 3.544446875e-06 | M42: =VLOOKUP($D42,Point_Sources_All!$A$6:$V$207,3*($E$19-2)+$C$4)/1000*365.25 -> 3.778018163e-05
A43: Mg | D43: 16 | E43: =VLOOKUP($D43,Background_All!$A$5:$D$206,$C$4,)/1000*365.25 -> 1.247448369e-05 | F43: =VLOOKUP($D43,Point_Sources_All!$A$6:$V$207,3*($E$13-2)+$C$4)/1000*365.25 -> 2.501018937e-05 | G43: =VLOOKUP($D43,Point_Sources_All!$A$6:$V$207,3*($E$14-2)+$C$4)/1000*365.25 -> 3.205348775e-05 | H43: =VLOOKUP($D43,Point_Sources_All!$A$6:$V$207,3*($E$15-2)+$C$4)/1000*365.25 -> 0.001066204319 | I43: =VLOOKUP($D43,Point_Sources_All!$A$6:$V$207,3*($E$16-2)+$C$4)/1000*365.25 -> 0.000192942095 | J43: =VLOOKUP($D43,Point_Sources_All!$A$6:$V$207,3*($E$17-2)+$C$4)/1000*365.25 -> 0.0004967506531 | K43: =VLOOKUP($D43,Point_Sources_All!$A$6:$V$207,3*($E$18-2)+$C$4)/1000*365.25 -> 0 | L43: =VLOOKUP($D43,Point_Sources_All!$A$6:$Y$207,3*($E$20-2)+$C$4)/1000*365.25 -> 3.544446875e-06 | M43: =VLOOKUP($D43,Point_Sources_All!$A$6:$V$207,3*($E$19-2)+$C$4)/1000*365.25 -> 3.54479995e-05
A44: Mn | D44: 17 | E44: =VLOOKUP($D44,Background_All!$A$5:$D$206,$C$4,)/1000*365.25 -> 1.172482024e-05 | F44: =VLOOKUP($D44,Point_Sources_All!$A$6:$V$207,3*($E$13-2)+$C$4)/1000*365.25 -> 0.0002599907331 | G44: =VLOOKUP($D44,Point_Sources_All!$A$6:$V$207,3*($E$14-2)+$C$4)/1000*365.25 -> 3.250295831e-05 | H44: =VLOOKUP($D44,Point_Sources_All!$A$6:$V$207,3*($E$15-2)+$C$4)/1000*365.25 -> 0.001051563881 | I44: =VLOOKUP($D44,Point_Sources_All!$A$6:$V$207,3*($E$16-2)+$C$4)/1000*365.25 -> 0.0001523561237 | J44: =VLOOKUP($D44,Point_Sources_All!$A$6:$V$207,3*($E$17-2)+$C$4)/1000*365.25 -> 0.0005047727606 | K44: =VLOOKUP($D44,Point_Sources_All!$A$6:$V$207,3*($E$18-2)+$C$4)/1000*365.25 -> 0 | L44: =VLOOKUP($D44,Point_Sources_All!$A$6:$Y$207,3*($E$20-2)+$C$4)/1000*365.25 -> 3.544446875e-06 | M44: =VLOOKUP($D44,Point_Sources_All!$A$6:$V$207,3*($E$19-2)+$C$4)/1000*365.25 -> 3.471771256e-05
A45: Na | D45: 18 | E45: =VLOOKUP($D45,Background_All!$A$5:$D$206,$C$4,)/1000*365.25 -> 1.133714694e-05 | F45: =VLOOKUP($D45,Point_Sources_All!$A$6:$V$207,3*($E$13-2)+$C$4)/1000*365.25 -> 0.0005450111356 | G45: =VLOOKUP($D45,Point_Sources_All!$A$6:$V$207,3*($E$14-2)+$C$4)/1000*365.25 -> 5.5252098e-05 | H45: =VLOOKUP($D45,Point_Sources_All!$A$6:$V$207,3*($E$15-2)+$C$4)/1000*365.25 -> 0.001041300356 | I45: =VLOOKUP($D45,Point_Sources_All!$A$6:$V$207,3*($E$16-2)+$C$4)/1000*365.25 -> 1.938182993e-05 | J45: =VLOOKUP($D45,Point_Sources_All!$A$6:$V$207,3*($E$17-2)+$C$4)/1000*365.25 -> 0.0002844063564 | K45: =VLOOKUP($D45,Point_Sources_All!$A$6:$V$207,3*($E$18-2)+$C$4)/1000*365.25 -> 0 | L45: =VLOOKUP($D45,Point_Sources_All!$A$6:$Y$207,3*($E$20-2)+$C$4)/1000*365.25 -> 3.190002187e-06 | M45: =VLOOKUP($D45,Point_Sources_All!$A$6:$V$207,3*($E$19-2)+$C$4)/1000*365.25 -> 4.594403656e-05
A46: Ni | D46: 19 | E46: =VLOOKUP($D46,Background_All!$A$5:$D$206,$C$4,)/1000*365.25 -> 1.095802352e-05 | F46: =VLOOKUP($D46,Point_Sources_All!$A$6:$V$207,3*($E$13-2)+$C$4)/1000*365.25 -> 0.0003995804562 | G46: =VLOOKUP($D46,Point_Sources_All!$A$6:$V$207,3*($E$14-2)+$C$4)/1000*365.25 -> 6.173272875e-05 | H46: =VLOOKUP($D46,Point_Sources_All!$A$6:$V$207,3*($E$15-2)+$C$4)/1000*365.25 -> 0.001075996063 | I46: =VLOOKUP($D46,Point_Sources_All!$A$6:$V$207,3*($E$16-2)+$C$4)/1000*365.25 -> 5.541456424e-05 | J46: =VLOOKUP($D46,Point_Sources_All!$A$6:$V$207,3*($E$17-2)+$C$4)/1000*365.25 -> 0.0004936295919 | K46: =VLOOKUP($D46,Point_Sources_All!$A$6:$V$207,3*($E$18-2)+$C$4)/1000*365.25 -> 0 | L46: =VLOOKUP($D46,Point_Sources_All!$A$6:$Y$207,3*($E$20-2)+$C$4)/1000*365.25 -> 3.898861125e-06 | M46: =VLOOKUP($D46,Point_Sources_All!$A$6:$V$207,3*($E$19-2)+$C$4)/1000*365.25 -> 3.462703925e-05
A47: Pb | D47: 20 | E47: =VLOOKUP($D47,Background_All!$A$5:$D$206,$C$4,)/1000*365.25 -> 9.96243725e-06 | F47: =VLOOKUP($D47,Point_Sources_All!$A$6:$V$207,3*($E$13-2)+$C$4)/1000*365.25 -> 0 | G47: =VLOOKUP($D47,Point_Sources_All!$A$6:$V$207,3*($E$14-2)+$C$4)/1000*365.25 -> 6.244131375e-05 | H47: =VLOOKUP($D47,Point_Sources_All!$A$6:$V$207,3*($E$15-2)+$C$4)/1000*365.25 -> 0 | I47: =VLOOKUP($D47,Point_Sources_All!$A$6:$V$207,3*($E$16-2)+$C$4)/1000*365.25 -> 0 | J47: =VLOOKUP($D47,Point_Sources_All!$A$6:$V$207,3*($E$17-2)+$C$4)/1000*365.25 -> 0.0001045235925 | K47: =VLOOKUP($D47,Point_Sources_All!$A$6:$V$207,3*($E$18-2)+$C$4)/1000*365.25 -> 1.646516563e-06 | L47: =VLOOKUP($D47,Point_Sources_All!$A$6:$Y$207,3*($E$20-2)+$C$4)/1000*365.25 -> 0 | M47: =VLOOKUP($D47,Point_Sources_All!$A$6:$V$207,3*($E$19-2)+$C$4)/1000*365.25 -> 5.7144093e-05
A48: Sb | D48: 21 | E48: =VLOOKUP($D48,Background_All!$A$5:$D$206,$C$4,)/1000*365.25 -> 9.864251962e-06 | F48: =VLOOKUP($D48,Point_Sources_All!$A$6:$V$207,3*($E$13-2)+$C$4)/1000*365.25 -> 0 | G48: =VLOOKUP($D48,Point_Sources_All!$A$6:$V$207,3*($E$14-2)+$C$4)/1000*365.25 -> 6.277003875e-05 | H48: =VLOOKUP($D48,Point_Sources_All!$A$6:$V$207,3*($E$15-2)+$C$4)/1000*365.25 -> 0 | I48: =VLOOKUP($D48,Point_Sources_All!$A$6:$V$207,3*($E$16-2)+$C$4)/1000*365.25 -> 0 | J48: =VLOOKUP($D48,Point_Sources_All!$A$6:$V$207,3*($E$17-2)+$C$4)/1000*365.25 -> 8.189879e-05 | K48: =VLOOKUP($D48,Point_Sources_All!$A$6:$V$207,3*($E$18-2)+$C$4)/1000*365.25 -> 6.692901875e-07 | L48: =VLOOKUP($D48,Point_Sources_All!$A$6:$Y$207,3*($E$20-2)+$C$4)/1000*365.25 -> 0 | M48: =VLOOKUP($D48,Point_Sources_All!$A$6:$V$207,3*($E$19-2)+$C$4)/1000*365.25 -> 5.768058437e-05
A49: Se | D49: 22 | E49: =VLOOKUP($D49,Background_All!$A$5:$D$206,$C$4,)/1000*365.25 -> 9.933564238e-06 | F49: =VLOOKUP($D49,Point_Sources_All!$A$6:$V$207,3*($E$13-2)+$C$4)/1000*365.25 -> 0 | G49: =VLOOKUP($D49,Point_Sources_All!$A$6:$V$207,3*($E$14-2)+$C$4)/1000*365.25 -> 6.310028563e-05 | H49: =VLOOKUP($D49,Point_Sources_All!$A$6:$V$207,3*($E$15-2)+$C$4)/1000*365.25 -> 0 | I49: =VLOOKUP($D49,Point_Sources_All!$A$6:$V$207,3*($E$16-2)+$C$4)/1000*365.25 -> 0 | J49: =VLOOKUP($D49,Point_Sources_All!$A$6:$V$207,3*($E$17-2)+$C$4)/1000*365.25 -> 8.989472125e-05 | K49: =VLOOKUP($D49,Point_Sources_All!$A$6:$V$207,3*($E$18-2)+$C$4)/1000*365.25 -> 5.304343125e-07 | L49: =VLOOKUP($D49,Point_Sources_All!$A$6:$Y$207,3*($E$20-2)+$C$4)/1000*365.25 -> 0 | M49: =VLOOKUP($D49,Point_Sources_All!$A$6:$V$207,3*($E$19-2)+$C$4)/1000*365.25 -> 5.663049062e-05
A50: SO4 | D50: 23 | E50: =VLOOKUP($D50,Background_All!$A$5:$D$206,$C$4,)/1000*365.25 -> 1.058091507e-05 | F50: =VLOOKUP($D50,Point_Sources_All!$A$6:$V$207,3*($E$13-2)+$C$4)/1000*365.25 -> 0 | G50: =VLOOKUP($D50,Point_Sources_All!$A$6:$V$207,3*($E$14-2)+$C$4)/1000*365.25 -> 6.343083687e-05 | H50: =VLOOKUP($D50,Point_Sources_All!$A$6:$V$207,3*($E$15-2)+$C$4)/1000*365.25 -> 0 | I50: =VLOOKUP($D50,Point_Sources_All!$A$6:$V$207,3*($E$16-2)+$C$4)/1000*365.25 -> 0 | J50: =VLOOKUP($D50,Point_Sources_All!$A$6:$V$207,3*($E$17-2)+$C$4)/1000*365.25 -> 0.0001002145556 | K50: =VLOOKUP($D50,Point_Sources_All!$A$6:$V$207,3*($E$18-2)+$C$4)/1000*365.25 -> 4.58084375e-07 | L50: =VLOOKUP($D50,Point_Sources_All!$A$6:$Y$207,3*($E$20-2)+$C$4)/1000*365.25 -> 0 | M50: =VLOOKUP($D50,Point_Sources_All!$A$6:$V$207,3*($E$19-2)+$C$4)/1000*365.25 -> 5.535181125e-05
A51: Tl | D51: 24 | E51: =VLOOKUP($D51,Background_All!$A$5:$D$206,$C$4,)/1000*365.25 -> 1.010015781e-05 | F51: =VLOOKUP($D51,Point_Sources_All!$A$6:$V$207,3*($E$13-2)+$C$4)/1000*365.25 -> 0 | G51: =VLOOKUP($D51,Point_Sources_All!$A$6:$V$207,3*($E$14-2)+$C$4)/1000*365.25 -> 6.376260562e-05 | H51: =VLOOKUP($D51,Point_Sources_All!$A$6:$V$207,3*($E$15-2)+$C$4)/1000*365.25 -> 0 | I51: =VLOOKUP($D51,Point_Sources_All!$A$6:$V$207,3*($E$16-2)+$C$4)/1000*365.25 -> 0 | J51: =VLOOKUP($D51,Point_Sources_All!$A$6:$V$207,3*($E$17-2)+$C$4)/1000*365.25 -> 0.0001143746894 | K51: =VLOOKUP($D51,Point_Sources_All!$A$6:$V$207,3*($E$18-2)+$C$4)/1000*365.25 -> 6.845698125e-07 | L51: =VLOOKUP($D51,Point_Sources_All!$A$6:$Y$207,3*($E$20-2)+$C$4)/1000*365.25 -> 0 | M51: =VLOOKUP($D51,Point_Sources_All!$A$6:$V$207,3*($E$19-2)+$C$4)/1000*365.25 -> 5.395412125e-05
A52: V | D52: 25 | E52: =VLOOKUP($D52,Background_All!$A$5:$D$206,$C$4,)/1000*365.25 -> 1.010837289e-05 | F52: =VLOOKUP($D52,Point_Sources_All!$A$6:$V$207,3*($E$13-2)+$C$4)/1000*365.25 -> 0 | G52: =VLOOKUP($D52,Point_Sources_All!$A$6:$V$207,3*($E$14-2)+$C$4)/1000*365.25 -> 6.409467875e-05 | H52: =VLOOKUP($D52,Point_Sources_All!$A$6:$V$207,3*($E$15-2)+$C$4)/1000*365.25 -> 0 | I52: =VLOOKUP($D52,Point_Sources_All!$A$6:$V$207,3*($E$16-2)+$C$4)/1000*365.25 -> 0 | J52: =VLOOKUP($D52,Point_Sources_All!$A$6:$V$207,3*($E$17-2)+$C$4)/1000*365.25 -> 0.0001225946406 | K52: =VLOOKUP($D52,Point_Sources_All!$A$6:$V$207,3*($E$18-2)+$C$4)/1000*365.25 -> 4.067911e-06 | L52: =VLOOKUP($D52,Point_Sources_All!$A$6:$Y$207,3*($E$20-2)+$C$4)/1000*365.25 -> 0 | M52: =VLOOKUP($D52,Point_Sources_All!$A$6:$V$207,3*($E$19-2)+$C$4)/1000*365.25 -> 5.188650188e-05
A53: Zn | D53: 26 | E53: =VLOOKUP($D53,Background_All!$A$5:$D$206,$C$4,)/1000*365.25 -> 1.015584321e-05 | F53: =VLOOKUP($D53,Point_Sources_All!$A$6:$V$207,3*($E$13-2)+$C$4)/1000*365.25 -> 0 | G53: =VLOOKUP($D53,Point_Sources_All!$A$6:$V$207,3*($E$14-2)+$C$4)/1000*365.25 -> 6.442796938e-05 | H53: =VLOOKUP($D53,Point_Sources_All!$A$6:$V$207,3*($E$15-2)+$C$4)/1000*365.25 -> 0 | I53: =VLOOKUP($D53,Point_Sources_All!$A$6:$V$207,3*($E$16-2)+$C$4)/1000*365.25 -> 0 | J53: =VLOOKUP($D53,Point_Sources_All!$A$6:$V$207,3*($E$17-2)+$C$4)/1000*365.25 -> 0.0001101587912 | K53: =VLOOKUP($D53,Point_Sources_All!$A$6:$V$207,3*($E$18-2)+$C$4)/1000*365.25 -> 2.91135905e-05 | L53: =VLOOKUP($D53,Point_Sources_All!$A$6:$Y$207,3*($E$20-2)+$C$4)/1000*365.25 -> 0 | M53: =VLOOKUP($D53,Point_Sources_All!$A$6:$V$207,3*($E$19-2)+$C$4)/1000*365.25 -> 4.878979062e-05
D54: 27 | E54: =VLOOKUP($D54,Background_All!$A$5:$D$206,$C$4,)/1000*365.25 -> 9.736414463e-06 | F54: =VLOOKUP($D54,Point_Sources_All!$A$6:$V$207,3*($E$13-2)+$C$4)/1000*365.25 -> 0 | G54: =VLOOKUP($D54,Point_Sources_All!$A$6:$V$207,3*($E$14-2)+$C$4)/1000*365.25 -> 6.476126e-05 | H54: =VLOOKUP($D54,Point_Sources_All!$A$6:$V$207,3*($E$15-2)+$C$4)/1000*365.25 -> 0 | I54: =VLOOKUP($D54,Point_Sources_All!$A$6:$V$207,3*($E$16-2)+$C$4)/1000*365.25 -> 0 | J54: =VLOOKUP($D54,Point_Sources_All!$A$6:$V$207,3*($E$17-2)+$C$4)/1000*365.25 -> 8.324838875e-05 | K54: =VLOOKUP($D54,Point_Sources_All!$A$6:$V$207,3*($E$18-2)+$C$4)/1000*365.25 -> 8.885652856e-05 | L54: =VLOOKUP($D54,Point_Sources_All!$A$6:$Y$207,3*($E$20-2)+$C$4)/1000*365.25 -> 0 | M54: =VLOOKUP($D54,Point_Sources_All!$A$6:$V$207,3*($E$19-2)+$C$4)/1000*365.25 -> 4.517077188e-05
D55: 28 | E55: =VLOOKUP($D55,Background_All!$A$5:$D$206,$C$4,)/1000*365.25 -> 1.016416178e-05 | F55: =VLOOKUP($D55,Point_Sources_All!$A$6:$V$207,3*($E$13-2)+$C$4)/1000*365.25 -> 0 | G55: =VLOOKUP($D55,Point_Sources_All!$A$6:$V$207,3*($E$14-2)+$C$4)/1000*365.25 -> 6.509515937e-05 | H55: =VLOOKUP($D55,Point_Sources_All!$A$6:$V$207,3*($E$15-2)+$C$4)/1000*365.25 -> 0 | I55: =VLOOKUP($D55,Point_Sources_All!$A$6:$V$207,3*($E$16-2)+$C$4)/1000*365.25 -> 0 | J55: =VLOOKUP($D55,Point_Sources_All!$A$6:$V$207,3*($E$17-2)+$C$4)/1000*365.25 -> 5.945783e-05 | K55: =VLOOKUP($D55,Point_Sources_All!$A$6:$V$207,3*($E$18-2)+$C$4)/1000*365.25 -> 0.0001417148694 | L55: =VLOOKUP($D55,Point_Sources_All!$A$6:$Y$207,3*($E$20-2)+$C$4)/1000*365.25 -> 0 | M55: =VLOOKUP($D55,Point_Sources_All!$A$6:$V$207,3*($E$19-2)+$C$4)/1000*365.25 -> 4.204910188e-05
D56: 29 | E56: =VLOOKUP($D56,Background_All!$A$5:$D$206,$C$4,)/1000*365.25 -> 1.05860164e-05 | F56: =VLOOKUP($D56,Point_Sources_All!$A$6:$V$207,3*($E$13-2)+$C$4)/1000*365.25 -> 0 | G56: =VLOOKUP($D56,Point_Sources_All!$A$6:$V$207,3*($E$14-2)+$C$4)/1000*365.25 -> 6.543027625e-05 | H56: =VLOOKUP($D56,Point_Sources_All!$A$6:$V$207,3*($E$15-2)+$C$4)/1000*365.25 -> 0 | I56: =VLOOKUP($D56,Point_Sources_All!$A$6:$V$207,3*($E$16-2)+$C$4)/1000*365.25 -> 0 | J56: =VLOOKUP($D56,Point_Sources_All!$A$6:$V$207,3*($E$17-2)+$C$4)/1000*365.25 -> 4.596579937e-05 | K56: =VLOOKUP($D56,Point_Sources_All!$A$6:$V$207,3*($E$18-2)+$C$4)/1000*365.25 -> 0.0001644163439 | L56: =VLOOKUP($D56,Point_Sources_All!$A$6:$Y$207,3*($E$20-2)+$C$4)/1000*365.25 -> 0 | M56: =VLOOKUP($D56,Point_Sources_All!$A$6:$V$207,3*($E$19-2)+$C$4)/1000*365.25 -> 3.990264937e-05
D57: 30 | E57: =VLOOKUP($D57,Background_All!$A$5:$D$206,$C$4,)/1000*365.25 -> 1.041060813e-05 | F57: =VLOOKUP($D57,Point_Sources_All!$A$6:$V$207,3*($E$13-2)+$C$4)/1000*365.25 -> 0 | G57: =VLOOKUP($D57,Point_Sources_All!$A$6:$V$207,3*($E$14-2)+$C$4)/1000*365.25 -> 6.550971812e-05 | H57: =VLOOKUP($D57,Point_Sources_All!$A$6:$V$207,3*($E$15-2)+$C$4)/1000*365.25 -> 0 | I57: =VLOOKUP($D57,Point_Sources_All!$A$6:$V$207,3*($E$16-2)+$C$4)/1000*365.25 -> 0 | J57: =VLOOKUP($D57,Point_Sources_All!$A$6:$V$207,3*($E$17-2)+$C$4)/1000*365.25 -> 3.996474187e-05 | K57: =VLOOKUP($D57,Point_Sources_All!$A$6:$V$207,3*($E$18-2)+$C$4)/1000*365.25 -> 0.0001484981706 | L57: =VLOOKUP($D57,Point_Sources_All!$A$6:$Y$207,3*($E$20-2)+$C$4)/1000*365.25 -> 0 | M57: =VLOOKUP($D57,Point_Sources_All!$A$6:$V$207,3*($E$19-2)+$C$4)/1000*365.25 -> 3.843434438e-05
D58: 31 | E58: =VLOOKUP($D58,Background_All!$A$5:$D$206,$C$4,)/1000*365.25 -> 1.032841166e-05 | F58: =VLOOKUP($D58,Point_Sources_All!$A$6:$V$207,3*($E$13-2)+$C$4)/1000*365.25 -> 0 | G58: =VLOOKUP($D58,Point_Sources_All!$A$6:$V$207,3*($E$14-2)+$C$4)/1000*365.25 -> 6.51788625e-05 | H58: =VLOOKUP($D58,Point_Sources_All!$A$6:$V$207,3*($E$15-2)+$C$4)/1000*365.25 -> 0 | I58: =VLOOKUP($D58,Point_Sources_All!$A$6:$V$207,3*($E$16-2)+$C$4)/1000*365.25 -> 0 | J58: =VLOOKUP($D58,Point_Sources_All!$A$6:$V$207,3*($E$17-2)+$C$4)/1000*365.25 -> 3.769480444e-05 | K58: =VLOOKUP($D58,Point_Sources_All!$A$6:$V$207,3*($E$18-2)+$C$4)/1000*365.25 -> 0.0001431391313 | L58: =VLOOKUP($D58,Point_Sources_All!$A$6:$Y$207,3*($E$20-2)+$C$4)/1000*365.25 -> 0 | M58: =VLOOKUP($D58,Point_Sources_All!$A$6:$V$207,3*($E$19-2)+$C$4)/1000*365.25 -> 3.755168731e-05
D59: 32 | E59: =VLOOKUP($D59,Background_All!$A$5:$D$206,$C$4,)/1000*365.25 -> 1.00840655e-05 | F59: =VLOOKUP($D59,Point_Sources_All!$A$6:$V$207,3*($E$13-2)+$C$4)/1000*365.25 -> 0 | G59: =VLOOKUP($D59,Point_Sources_All!$A$6:$V$207,3*($E$14-2)+$C$4)/1000*365.25 -> 6.484465875e-05 | H59: =VLOOKUP($D59,Point_Sources_All!$A$6:$V$207,3*($E$15-2)+$C$4)/1000*365.25 -> 0 | I59: =VLOOKUP($D59,Point_Sources_All!$A$6:$V$207,3*($E$16-2)+$C$4)/1000*365.25 -> 0 | J59: =VLOOKUP($D59,Point_Sources_All!$A$6:$V$207,3*($E$17-2)+$C$4)/1000*365.25 -> 3.662218694e-05 | K59: =VLOOKUP($D59,Point_Sources_All!$A$6:$V$207,3*($E$18-2)+$C$4)/1000*365.25 -> 0.0001381923375 | L59: =VLOOKUP($D59,Point_Sources_All!$A$6:$Y$207,3*($E$20-2)+$C$4)/1000*365.25 -> 0 | M59: =VLOOKUP($D59,Point_Sources_All!$A$6:$V$207,3*($E$19-2)+$C$4)/1000*365.25 -> 3.6979858e-05
D60: 33 | E60: =VLOOKUP($D60,Background_All!$A$5:$D$206,$C$4,)/1000*365.25 -> 1.015871651e-05 | F60: =VLOOKUP($D60,Point_Sources_All!$A$6:$V$207,3*($E$13-2)+$C$4)/1000*365.25 -> 0 | G60: =VLOOKUP($D60,Point_Sources_All!$A$6:$V$207,3*($E$14-2)+$C$4)/1000*365.25 -> 6.451106375e-05 | H60: =VLOOKUP($D60,Point_Sources_All!$A$6:$V$207,3*($E$15-2)+$C$4)/1000*365.25 -> 0 | I60: =VLOOKUP($D60,Point_Sources_All!$A$6:$V$207,3*($E$16-2)+$C$4)/1000*365.25 -> 0 | J60: =VLOOKUP($D60,Point_Sources_All!$A$6:$V$207,3*($E$17-2)+$C$4)/1000*365.25 -> 3.53720275e-05 | K60: =VLOOKUP($D60,Point_Sources_All!$A$6:$V$207,3*($E$18-2)+$C$4)/1000*365.25 -> 0.0001453310574 | L60: =VLOOKUP($D60,Point_Sources_All!$A$6:$Y$207,3*($E$20-2)+$C$4)/1000*365.25 -> 0 | M60: =VLOOKUP($D60,Point_Sources_All!$A$6:$V$207,3*($E$19-2)+$C$4)/1000*365.25 -> 3.666017294e-05
D61: 34 | E61: =VLOOKUP($D61,Background_All!$A$5:$D$206,$C$4,)/1000*365.25 -> 1.015399261e-05 | F61: =VLOOKUP($D61,Point_Sources_All!$A$6:$V$207,3*($E$13-2)+$C$4)/1000*365.25 -> 0 | G61: =VLOOKUP($D61,Point_Sources_All!$A$6:$V$207,3*($E$14-2)+$C$4)/1000*365.25 -> 6.41780775e-05 | H61: =VLOOKUP($D61,Point_Sources_All!$A$6:$V$207,3*($E$15-2)+$C$4)/1000*365.25 -> 0 | I61: =VLOOKUP($D61,Point_Sources_All!$A$6:$V$207,3*($E$16-2)+$C$4)/1000*365.25 -> 0 | J61: =VLOOKUP($D61,Point_Sources_All!$A$6:$V$207,3*($E$17-2)+$C$4)/1000*365.25 -> 3.166422256e-05 | K61: =VLOOKUP($D61,Point_Sources_All!$A$6:$V$207,3*($E$18-2)+$C$4)/1000*365.25 -> 0.0001589419161 | L61: =VLOOKUP($D61,Point_Sources_All!$A$6:$Y$207,3*($E$20-2)+$C$4)/1000*365.25 -> 0 | M61: =VLOOKUP($D61,Point_Sources_All!$A$6:$V$207,3*($E$19-2)+$C$4)/1000*365.25 -> 3.5591421e-05
D62: 35 | E62: =VLOOKUP($D62,Background_All!$A$5:$D$206,$C$4,)/1000*365.25 -> 1.001020891e-05 | F62: =VLOOKUP($D62,Point_Sources_All!$A$6:$V$207,3*($E$13-2)+$C$4)/1000*365.25 -> 0 | G62: =VLOOKUP($D62,Point_Sources_All!$A$6:$V$207,3*($E$14-2)+$C$4)/1000*365.25 -> 6.384783062e-05 | H62: =VLOOKUP($D62,Point_Sources_All!$A$6:$V$207,3*($E$15-2)+$C$4)/1000*365.25 -> 0 | I62: =VLOOKUP($D62,Point_Sources_All!$A$6:$V$207,3*($E$16-2)+$C$4)/1000*365.25 -> 0 | J62: =VLOOKUP($D62,Point_Sources_All!$A$6:$V$207,3*($E$17-2)+$C$4)/1000*365.25 -> 2.559790706e-05 | K62: =VLOOKUP($D62,Point_Sources_All!$A$6:$V$207,3*($E$18-2)+$C$4)/1000*365.25 -> 0.0001763760899 | L62: =VLOOKUP($D62,Point_Sources_All!$A$6:$Y$207,3*($E$20-2)+$C$4)/1000*365.25 -> 0 | M62: =VLOOKUP($D62,Point_Sources_All!$A$6:$V$207,3*($E$19-2)+$C$4)/1000*365.25 -> 3.3835299e-05
D63: 36 | E63: =VLOOKUP($D63,Background_All!$A$5:$D$206,$C$4,)/1000*365.25 -> 1.045415202e-05 | F63: =VLOOKUP($D63,Point_Sources_All!$A$6:$V$207,3*($E$13-2)+$C$4)/1000*365.25 -> 0 | G63: =VLOOKUP($D63,Point_Sources_All!$A$6:$V$207,3*($E$14-2)+$C$4)/1000*365.25 -> 6.352975875e-05 | H63: =VLOOKUP($D63,Point_Sources_All!$A$6:$V$207,3*($E$15-2)+$C$4)/1000*365.25 -> 0 | I63: =VLOOKUP($D63,Point_Sources_All!$A$6:$V$207,3*($E$16-2)+$C$4)/1000*365.25 -> 0 | J63: =VLOOKUP($D63,Point_Sources_All!$A$6:$V$207,3*($E$17-2)+$C$4)/1000*365.25 -> 2.091178e-05 | K63: =VLOOKUP($D63,Point_Sources_All!$A$6:$V$207,3*($E$18-2)+$C$4)/1000*365.25 -> 0.0001857019269 | L63: =VLOOKUP($D63,Point_Sources_All!$A$6:$Y$207,3*($E$20-2)+$C$4)/1000*365.25 -> 0 | M63: =VLOOKUP($D63,Point_Sources_All!$A$6:$V$207,3*($E$19-2)+$C$4)/1000*365.25 -> 3.238772194e-05
D64: 37 | E64: =VLOOKUP($D64,Background_All!$A$5:$D$206,$C$4,)/1000*365.25 -> 1.007236533e-05 | F64: =VLOOKUP($D64,Point_Sources_All!$A$6:$V$207,3*($E$13-2)+$C$4)/1000*365.25 -> 0 | G64: =VLOOKUP($D64,Point_Sources_All!$A$6:$V$207,3*($E$14-2)+$C$4)/1000*365.25 -> 6.3210165e-05 | H64: =VLOOKUP($D64,Point_Sources_All!$A$6:$V$207,3*($E$15-2)+$C$4)/1000*365.25 -> 0 | I64: =VLOOKUP($D64,Point_Sources_All!$A$6:$V$207,3*($E$16-2)+$C$4)/1000*365.25 -> 0 | J64: =VLOOKUP($D64,Point_Sources_All!$A$6:$V$207,3*($E$17-2)+$C$4)/1000*365.25 -> 1.855357381e-05 | K64: =VLOOKUP($D64,Point_Sources_All!$A$6:$V$207,3*($E$18-2)+$C$4)/1000*365.25 -> 0.0001824291043 | L64: =VLOOKUP($D64,Point_Sources_All!$A$6:$Y$207,3*($E$20-2)+$C$4)/1000*365.25 -> 0 | M64: =VLOOKUP($D64,Point_Sources_All!$A$6:$V$207,3*($E$19-2)+$C$4)/1000*365.25 -> 3.132791863e-05
D65: 38 | E65: =VLOOKUP($D65,Background_All!$A$5:$D$206,$C$4,)/1000*365.25 -> 9.931394044e-06 | F65: =VLOOKUP($D65,Point_Sources_All!$A$6:$V$207,3*($E$13-2)+$C$4)/1000*365.25 -> 0 | G65: =VLOOKUP($D65,Point_Sources_All!$A$6:$V$207,3*($E$14-2)+$C$4)/1000*365.25 -> 6.288357063e-05 | H65: =VLOOKUP($D65,Point_Sources_All!$A$6:$V$207,3*($E$15-2)+$C$4)/1000*365.25 -> 0 | I65: =VLOOKUP($D65,Point_Sources_All!$A$6:$V$207,3*($E$16-2)+$C$4)/1000*365.25 -> 0 | J65: =VLOOKUP($D65,Point_Sources_All!$A$6:$V$207,3*($E$17-2)+$C$4)/1000*365.25 -> 1.726582406e-05 | K65: =VLOOKUP($D65,Point_Sources_All!$A$6:$V$207,3*($E$18-2)+$C$4)/1000*365.25 -> 0.0001810988638 | L65: =VLOOKUP($D65,Point_Sources_All!$A$6:$Y$207,3*($E$20-2)+$C$4)/1000*365.25 -> 0 | M65: =VLOOKUP($D65,Point_Sources_All!$A$6:$V$207,3*($E$19-2)+$C$4)/1000*365.25 -> 3.062456888e-05
D66: 39 | E66: =VLOOKUP($D66,Background_All!$A$5:$D$206,$C$4,)/1000*365.25 -> 1.018534324e-05 | F66: =VLOOKUP($D66,Point_Sources_All!$A$6:$V$207,3*($E$13-2)+$C$4)/1000*365.25 -> 0 | G66: =VLOOKUP($D66,Point_Sources_All!$A$6:$V$207,3*($E$14-2)+$C$4)/1000*365.25 -> 6.255819375e-05 | H66: =VLOOKUP($D66,Point_Sources_All!$A$6:$V$207,3*($E$15-2)+$C$4)/1000*365.25 -> 0 | I66: =VLOOKUP($D66,Point_Sources_All!$A$6:$V$207,3*($E$16-2)+$C$4)/1000*365.25 -> 0 | J66: =VLOOKUP($D66,Point_Sources_All!$A$6:$V$207,3*($E$17-2)+$C$4)/1000*365.25 -> 1.619369356e-05 | K66: =VLOOKUP($D66,Point_Sources_All!$A$6:$V$207,3*($E$18-2)+$C$4)/1000*365.25 -> 0.0001802463094 | L66: =VLOOKUP($D66,Point_Sources_All!$A$6:$Y$207,3*($E$20-2)+$C$4)/1000*365.25 -> 0 | M66: =VLOOKUP($D66,Point_Sources_All!$A$6:$V$207,3*($E$19-2)+$C$4)/1000*365.25 -> 3.026029288e-05
D67: 40 | E67: =VLOOKUP($D67,Background_All!$A$5:$D$206,$C$4,)/1000*365.25 -> 1.009174184e-05 | F67: =VLOOKUP($D67,Point_Sources_All!$A$6:$V$207,3*($E$13-2)+$C$4)/1000*365.25 -> 0 | G67: =VLOOKUP($D67,Point_Sources_All!$A$6:$V$207,3*($E$14-2)+$C$4)/1000*365.25 -> 6.232443375e-05 | H67: =VLOOKUP($D67,Point_Sources_All!$A$6:$V$207,3*($E$15-2)+$C$4)/1000*365.25 -> 0 | I67: =VLOOKUP($D67,Point_Sources_All!$A$6:$V$207,3*($E$16-2)+$C$4)/1000*365.25 -> 0 | J67: =VLOOKUP($D67,Point_Sources_All!$A$6:$V$207,3*($E$17-2)+$C$4)/1000*365.25 -> 1.511212744e-05 | K67: =VLOOKUP($D67,Point_Sources_All!$A$6:$V$207,3*($E$18-2)+$C$4)/1000*365.25 -> 0.00017271942 | L67: =VLOOKUP($D67,Point_Sources_All!$A$6:$Y$207,3*($E$20-2)+$C$4)/1000*365.25 -> 0 | M67: =VLOOKUP($D67,Point_Sources_All!$A$6:$V$207,3*($E$19-2)+$C$4)/1000*365.25 -> 2.532065188e-06
D68: 41 | E68: =VLOOKUP($D68,Background_All!$A$5:$D$206,$C$4,)/1000*365.25 -> 9.873495831e-06 | F68: =VLOOKUP($D68,Point_Sources_All!$A$6:$V$207,3*($E$13-2)+$C$4)/1000*365.25 -> 0 | G68: =VLOOKUP($D68,Point_Sources_All!$A$6:$V$207,3*($E$14-2)+$C$4)/1000*365.25 -> 6.230525813e-05 | H68: =VLOOKUP($D68,Point_Sources_All!$A$6:$V$207,3*($E$15-2)+$C$4)/1000*365.25 -> 0 | I68: =VLOOKUP($D68,Point_Sources_All!$A$6:$V$207,3*($E$16-2)+$C$4)/1000*365.25 -> 0 | J68: =VLOOKUP($D68,Point_Sources_All!$A$6:$V$207,3*($E$17-2)+$C$4)/1000*365.25 -> 1.411149462e-05 | K68: =VLOOKUP($D68,Point_Sources_All!$A$6:$V$207,3*($E$18-2)+$C$4)/1000*365.25 -> 0.0001643004988 | L68: =VLOOKUP($D68,Point_Sources_All!$A$6:$Y$207,3*($E$20-2)+$C$4)/1000*365.25 -> 0 | M68: =VLOOKUP($D68,Point_Sources_All!$A$6:$V$207,3*($E$19-2)+$C$4)/1000*365.25 -> 0
D69: 42 | E69: =VLOOKUP($D69,Background_All!$A$5:$D$206,$C$4,)/1000*365.25 -> 1.011624402e-05 | F69: =VLOOKUP($D69,Point_Sources_All!$A$6:$V$207,3*($E$13-2)+$C$4)/1000*365.25 -> 0 | G69: =VLOOKUP($D69,Point_Sources_All!$A$6:$V$207,3*($E$14-2)+$C$4)/1000*365.25 -> 6.230678e-05 | H69: =VLOOKUP($D69,Point_Sources_All!$A$6:$V$207,3*($E$15-2)+$C$4)/1000*365.25 -> 0 | I69: =VLOOKUP($D69,Point_Sources_All!$A$6:$V$207,3*($E$16-2)+$C$4)/1000*365.25 -> 0 | J69: =VLOOKUP($D69,Point_Sources_All!$A$6:$V$207,3*($E$17-2)+$C$4)/1000*365.25 -> 1.316135762e-05 | K69: =VLOOKUP($D69,Point_Sources_All!$A$6:$V$207,3*($E$18-2)+$C$4)/1000*365.25 -> 0.0001634447181 | L69: =VLOOKUP($D69,Point_Sources_All!$A$6:$Y$207,3*($E$20-2)+$C$4)/1000*365.25 -> 0 | M69: =VLOOKUP($D69,Point_Sources_All!$A$6:$V$207,3*($E$19-2)+$C$4)/1000*365.25 -> 0
D70: 43 | E70: =VLOOKUP($D70,Background_All!$A$5:$D$206,$C$4,)/1000*365.25 -> 9.771925894e-06 | F70: =VLOOKUP($D70,Point_Sources_All!$A$6:$V$207,3*($E$13-2)+$C$4)/1000*365.25 -> 0 | G70: =VLOOKUP($D70,Point_Sources_All!$A$6:$V$207,3*($E$14-2)+$C$4)/1000*365.25 -> 6.230373625e-05 | H70: =VLOOKUP($D70,Point_Sources_All!$A$6:$V$207,3*($E$15-2)+$C$4)/1000*365.25 -> 0 | I70: =VLOOKUP($D70,Point_Sources_All!$A$6:$V$207,3*($E$16-2)+$C$4)/1000*365.25 -> 0 | J70: =VLOOKUP($D70,Point_Sources_All!$A$6:$V$207,3*($E$17-2)+$C$4)/1000*365.25 -> 1.220391563e-05 | K70: =VLOOKUP($D70,Point_Sources_All!$A$6:$V$207,3*($E$18-2)+$C$4)/1000*365.25 -> 0.0001584277658 | L70: =VLOOKUP($D70,Point_Sources_All!$A$6:$Y$207,3*($E$20-2)+$C$4)/1000*365.25 -> 0 | M70: =VLOOKUP($D70,Point_Sources_All!$A$6:$V$207,3*($E$19-2)+$C$4)/1000*365.25 -> 0
D71: 44 | E71: =VLOOKUP($D71,Background_All!$A$5:$D$206,$C$4,)/1000*365.25 -> 1.034097626e-05 | F71: =VLOOKUP($D71,Point_Sources_All!$A$6:$V$207,3*($E$13-2)+$C$4)/1000*365.25 -> 0 | G71: =VLOOKUP($D71,Point_Sources_All!$A$6:$V$207,3*($E$14-2)+$C$4)/1000*365.25 -> 6.230525813e-05 | H71: =VLOOKUP($D71,Point_Sources_All!$A$6:$V$207,3*($E$15-2)+$C$4)/1000*365.25 -> 0 | I71: =VLOOKUP($D71,Point_Sources_All!$A$6:$V$207,3*($E$16-2)+$C$4)/1000*365.25 -> 0 | J71: =VLOOKUP($D71,Point_Sources_All!$A$6:$V$207,3*($E$17-2)+$C$4)/1000*365.25 -> 1.130387875e-05 | K71: =VLOOKUP($D71,Point_Sources_All!$A$6:$V$207,3*($E$18-2)+$C$4)/1000*365.25 -> 0.000156227652 | L71: =VLOOKUP($D71,Point_Sources_All!$A$6:$Y$207,3*($E$20-2)+$C$4)/1000*365.25 -> 0 | M71: =VLOOKUP($D71,Point_Sources_All!$A$6:$V$207,3*($E$19-2)+$C$4)/1000*365.25 -> 0
D72: 45 | E72: =VLOOKUP($D72,Background_All!$A$5:$D$206,$C$4,)/1000*365.25 -> 1.010090657e-05 | F72: =VLOOKUP($D72,Point_Sources_All!$A$6:$V$207,3*($E$13-2)+$C$4)/1000*365.25 -> 0 | G72: =VLOOKUP($D72,Point_Sources_All!$A$6:$V$207,3*($E$14-2)+$C$4)/1000*365.25 -> 6.230525813e-05 | H72: =VLOOKUP($D72,Point_Sources_All!$A$6:$V$207,3*($E$15-2)+$C$4)/1000*365.25 -> 0 | I72: =VLOOKUP($D72,Point_Sources_All!$A$6:$V$207,3*($E$16-2)+$C$4)/1000*365.25 -> 0 | J72: =VLOOKUP($D72,Point_Sources_All!$A$6:$V$207,3*($E$17-2)+$C$4)/1000*365.25 -> 1.031301637e-05 | K72: =VLOOKUP($D72,Point_Sources_All!$A$6:$V$207,3*($E$18-2)+$C$4)/1000*365.25 -> 0.0001509869537 | L72: =VLOOKUP($D72,Point_Sources_All!$A$6:$Y$207,3*($E$20-2)+$C$4)/1000*365.25 -> 0 | M72: =VLOOKUP($D72,Point_Sources_All!$A$6:$V$207,3*($E$19-2)+$C$4)/1000*365.25 -> 0
D73: 46 | E73: =VLOOKUP($D73,Background_All!$A$5:$D$206,$C$4,)/1000*365.25 -> 9.848254013e-06 | F73: =VLOOKUP($D73,Point_Sources_All!$A$6:$V$207,3*($E$13-2)+$C$4)/1000*365.25 -> 0 | G73: =VLOOKUP($D73,Point_Sources_All!$A$6:$V$207,3*($E$14-2)+$C$4)/1000*365.25 -> 6.230769312e-05 | H73: =VLOOKUP($D73,Point_Sources_All!$A$6:$V$207,3*($E$15-2)+$C$4)/1000*365.25 -> 0 | I73: =VLOOKUP($D73,Point_Sources_All!$A$6:$V$207,3*($E$16-2)+$C$4)/1000*365.25 -> 0 | J73: =VLOOKUP($D73,Point_Sources_All!$A$6:$V$207,3*($E$17-2)+$C$4)/1000*365.25 -> 9.371919312e-06 | K73: =VLOOKUP($D73,Point_Sources_All!$A$6:$V$207,3*($E$18-2)+$C$4)/1000*365.25 -> 0.0001510091426 | L73: =VLOOKUP($D73,Point_Sources_All!$A$6:$Y$207,3*($E$20-2)+$C$4)/1000*365.25 -> 0 | M73: =VLOOKUP($D73,Point_Sources_All!$A$6:$V$207,3*($E$19-2)+$C$4)/1000*365.25 -> 0
D74: 47 | E74: =VLOOKUP($D74,Background_All!$A$5:$D$206,$C$4,)/1000*365.25 -> 1.024076992e-05 | F74: =VLOOKUP($D74,Point_Sources_All!$A$6:$V$207,3*($E$13-2)+$C$4)/1000*365.25 -> 0 | G74: =VLOOKUP($D74,Point_Sources_All!$A$6:$V$207,3*($E$14-2)+$C$4)/1000*365.25 -> 6.230160562e-05 | H74: =VLOOKUP($D74,Point_Sources_All!$A$6:$V$207,3*($E$15-2)+$C$4)/1000*365.25 -> 0 | I74: =VLOOKUP($D74,Point_Sources_All!$A$6:$V$207,3*($E$16-2)+$C$4)/1000*365.25 -> 0 | J74: =VLOOKUP($D74,Point_Sources_All!$A$6:$V$207,3*($E$17-2)+$C$4)/1000*365.25 -> 8.4311875e-06 | K74: =VLOOKUP($D74,Point_Sources_All!$A$6:$V$207,3*($E$18-2)+$C$4)/1000*365.25 -> 0.0001448868221 | L74: =VLOOKUP($D74,Point_Sources_All!$A$6:$Y$207,3*($E$20-2)+$C$4)/1000*365.25 -> 0 | M74: =VLOOKUP($D74,Point_Sources_All!$A$6:$V$207,3*($E$19-2)+$C$4)/1000*365.25 -> 0
D75: 48 | E75: =VLOOKUP($D75,Background_All!$A$5:$D$206,$C$4,)/1000*365.25 -> 1.05150118e-05 | F75: =VLOOKUP($D75,Point_Sources_All!$A$6:$V$207,3*($E$13-2)+$C$4)/1000*365.25 -> 0 | G75: =VLOOKUP($D75,Point_Sources_All!$A$6:$V$207,3*($E$14-2)+$C$4)/1000*365.25 -> 6.230191e-05 | H75: =VLOOKUP($D75,Point_Sources_All!$A$6:$V$207,3*($E$15-2)+$C$4)/1000*365.25 -> 0 | I75: =VLOOKUP($D75,Point_Sources_All!$A$6:$V$207,3*($E$16-2)+$C$4)/1000*365.25 -> 0 | J75: =VLOOKUP($D75,Point_Sources_All!$A$6:$V$207,3*($E$17-2)+$C$4)/1000*365.25 -> 7.495569188e-06 | K75: =VLOOKUP($D75,Point_Sources_All!$A$6:$V$207,3*($E$18-2)+$C$4)/1000*365.25 -> 0.0001443464956 | L75: =VLOOKUP($D75,Point_Sources_All!$A$6:$Y$207,3*($E$20-2)+$C$4)/1000*365.25 -> 0 | M75: =VLOOKUP($D75,Point_Sources_All!$A$6:$V$207,3*($E$19-2)+$C$4)/1000*365.25 -> 0
D76: 49 | E76: =VLOOKUP($D76,Background_All!$A$5:$D$206,$C$4,)/1000*365.25 -> 9.962747713e-06 | F76: =VLOOKUP($D76,Point_Sources_All!$A$6:$V$207,3*($E$13-2)+$C$4)/1000*365.25 -> 0 | G76: =VLOOKUP($D76,Point_Sources_All!$A$6:$V$207,3*($E$14-2)+$C$4)/1000*365.25 -> 6.2299475e-05 | H76: =VLOOKUP($D76,Point_Sources_All!$A$6:$V$207,3*($E$15-2)+$C$4)/1000*365.25 -> 0 | I76: =VLOOKUP($D76,Point_Sources_All!$A$6:$V$207,3*($E$16-2)+$C$4)/1000*365.25 -> 0 | J76: =VLOOKUP($D76,Point_Sources_All!$A$6:$V$207,3*($E$17-2)+$C$4)/1000*365.25 -> 6.575687062e-06 | K76: =VLOOKUP($D76,Point_Sources_All!$A$6:$V$207,3*($E$18-2)+$C$4)/1000*365.25 -> 0.0001397207566 | L76: =VLOOKUP($D76,Point_Sources_All!$A$6:$Y$207,3*($E$20-2)+$C$4)/1000*365.25 -> 0 | M76: =VLOOKUP($D76,Point_Sources_All!$A$6:$V$207,3*($E$19-2)+$C$4)/1000*365.25 -> 0
D77: 50 | E77: =VLOOKUP($D77,Background_All!$A$5:$D$206,$C$4,)/1000*365.25 -> 1.041685391e-05 | F77: =VLOOKUP($D77,Point_Sources_All!$A$6:$V$207,3*($E$13-2)+$C$4)/1000*365.25 -> 0 | G77: =VLOOKUP($D77,Point_Sources_All!$A$6:$V$207,3*($E$14-2)+$C$4)/1000*365.25 -> 6.229917063e-05 | H77: =VLOOKUP($D77,Point_Sources_All!$A$6:$V$207,3*($E$15-2)+$C$4)/1000*365.25 -> 0 | I77: =VLOOKUP($D77,Point_Sources_All!$A$6:$V$207,3*($E$16-2)+$C$4)/1000*365.25 -> 0 | J77: =VLOOKUP($D77,Point_Sources_All!$A$6:$V$207,3*($E$17-2)+$C$4)/1000*365.25 -> 5.655196187e-06 | K77: =VLOOKUP($D77,Point_Sources_All!$A$6:$V$207,3*($E$18-2)+$C$4)/1000*365.25 -> 0.0001332818252 | L77: =VLOOKUP($D77,Point_Sources_All!$A$6:$Y$207,3*($E$20-2)+$C$4)/1000*365.25 -> 0 | M77: =VLOOKUP($D77,Point_Sources_All!$A$6:$V$207,3*($E$19-2)+$C$4)/1000*365.25 -> 0
D78: 51 | E78: =VLOOKUP($D78,Background_All!$A$5:$D$206,$C$4,)/1000*365.25 -> 1.055484231e-05 | F78: =VLOOKUP($D78,Point_Sources_All!$A$6:$V$207,3*($E$13-2)+$C$4)/1000*365.25 -> 0 | G78: =VLOOKUP($D78,Point_Sources_All!$A$6:$V$207,3*($E$14-2)+$C$4)/1000*365.25 -> 6.229673563e-05 | H78: =VLOOKUP($D78,Point_Sources_All!$A$6:$V$207,3*($E$15-2)+$C$4)/1000*365.25 -> 0 | I78: =VLOOKUP($D78,Point_Sources_All!$A$6:$V$207,3*($E$16-2)+$C$4)/1000*365.25 -> 0 | J78: =VLOOKUP($D78,Point_Sources_All!$A$6:$V$207,3*($E$17-2)+$C$4)/1000*365.25 -> 4.746892487e-06 | K78: =VLOOKUP($D78,Point_Sources_All!$A$6:$V$207,3*($E$18-2)+$C$4)/1000*365.25 -> 0.0001241316431 | L78: =VLOOKUP($D78,Point_Sources_All!$A$6:$Y$207,3*($E$20-2)+$C$4)/1000*365.25 -> 0 | M78: =VLOOKUP($D78,Point_Sources_All!$A$6:$V$207,3*($E$19-2)+$C$4)/1000*365.25 -> 0
D79: 52 | E79: =VLOOKUP($D79,Background_All!$A$5:$D$206,$C$4,)/1000*365.25 -> 1.051109754e-05 | F79: =VLOOKUP($D79,Point_Sources_All!$A$6:$V$207,3*($E$13-2)+$C$4)/1000*365.25 -> 0 | G79: =VLOOKUP($D79,Point_Sources_All!$A$6:$V$207,3*($E$14-2)+$C$4)/1000*365.25 -> 6.229521375e-05 | H79: =VLOOKUP($D79,Point_Sources_All!$A$6:$V$207,3*($E$15-2)+$C$4)/1000*365.25 -> 0 | I79: =VLOOKUP($D79,Point_Sources_All!$A$6:$V$207,3*($E$16-2)+$C$4)/1000*365.25 -> 0 | J79: =VLOOKUP($D79,Point_Sources_All!$A$6:$V$207,3*($E$17-2)+$C$4)/1000*365.25 -> 3.836656006e-06 | K79: =VLOOKUP($D79,Point_Sources_All!$A$6:$V$207,3*($E$18-2)+$C$4)/1000*365.25 -> 0.0001146854563 | L79: =VLOOKUP($D79,Point_Sources_All!$A$6:$Y$207,3*($E$20-2)+$C$4)/1000*365.25 -> 0 | M79: =VLOOKUP($D79,Point_Sources_All!$A$6:$V$207,3*($E$19-2)+$C$4)/1000*365.25 -> 0
D80: 53 | E80: =VLOOKUP($D80,Background_All!$A$5:$D$206,$C$4,)/1000*365.25 -> 1.037208339e-05 | F80: =VLOOKUP($D80,Point_Sources_All!$A$6:$V$207,3*($E$13-2)+$C$4)/1000*365.25 -> 0 | G80: =VLOOKUP($D80,Point_Sources_All!$A$6:$V$207,3*($E$14-2)+$C$4)/1000*365.25 -> 6.229217e-05 | H80: =VLOOKUP($D80,Point_Sources_All!$A$6:$V$207,3*($E$15-2)+$C$4)/1000*365.25 -> 0 | I80: =VLOOKUP($D80,Point_Sources_All!$A$6:$V$207,3*($E$16-2)+$C$4)/1000*365.25 -> 0 | J80: =VLOOKUP($D80,Point_Sources_All!$A$6:$V$207,3*($E$17-2)+$C$4)/1000*365.25 -> 2.928157506e-06 | K80: =VLOOKUP($D80,Point_Sources_All!$A$6:$V$207,3*($E$18-2)+$C$4)/1000*365.25 -> 9.698714575e-05 | L80: =VLOOKUP($D80,Point_Sources_All!$A$6:$Y$207,3*($E$20-2)+$C$4)/1000*365.25 -> 0 | M80: =VLOOKUP($D80,Point_Sources_All!$A$6:$V$207,3*($E$19-2)+$C$4)/1000*365.25 -> 0
D81: 54 | E81: =VLOOKUP($D81,Background_All!$A$5:$D$206,$C$4,)/1000*365.25 -> 1.006105475e-05 | F81: =VLOOKUP($D81,Point_Sources_All!$A$6:$V$207,3*($E$13-2)+$C$4)/1000*365.25 -> 0 | G81: =VLOOKUP($D81,Point_Sources_All!$A$6:$V$207,3*($E$14-2)+$C$4)/1000*365.25 -> 6.2289735e-05 | H81: =VLOOKUP($D81,Point_Sources_All!$A$6:$V$207,3*($E$15-2)+$C$4)/1000*365.25 -> 0 | I81: =VLOOKUP($D81,Point_Sources_All!$A$6:$V$207,3*($E$16-2)+$C$4)/1000*365.25 -> 0 | J81: =VLOOKUP($D81,Point_Sources_All!$A$6:$V$207,3*($E$17-2)+$C$4)/1000*365.25 -> 2.107949063e-06 | K81: =VLOOKUP($D81,Point_Sources_All!$A$6:$V$207,3*($E$18-2)+$C$4)/1000*365.25 -> 6.712984537e-05 | L81: =VLOOKUP($D81,Point_Sources_All!$A$6:$Y$207,3*($E$20-2)+$C$4)/1000*365.25 -> 0 | M81: =VLOOKUP($D81,Point_Sources_All!$A$6:$V$207,3*($E$19-2)+$C$4)/1000*365.25 -> 0
D82: 55 | E82: =VLOOKUP($D82,Background_All!$A$5:$D$206,$C$4,)/1000*365.25 -> 1.063807366e-05 | F82: =VLOOKUP($D82,Point_Sources_All!$A$6:$V$207,3*($E$13-2)+$C$4)/1000*365.25 -> 0 | G82: =VLOOKUP($D82,Point_Sources_All!$A$6:$V$207,3*($E$14-2)+$C$4)/1000*365.25 -> 6.2289735e-05 | H82: =VLOOKUP($D82,Point_Sources_All!$A$6:$V$207,3*($E$15-2)+$C$4)/1000*365.25 -> 0 | I82: =VLOOKUP($D82,Point_Sources_All!$A$6:$V$207,3*($E$16-2)+$C$4)/1000*365.25 -> 0 | J82: =VLOOKUP($D82,Point_Sources_All!$A$6:$V$207,3*($E$17-2)+$C$4)/1000*365.25 -> 1.478279369e-06 | K82: =VLOOKUP($D82,Point_Sources_All!$A$6:$V$207,3*($E$18-2)+$C$4)/1000*365.25 -> 1.890128268e-05 | L82: =VLOOKUP($D82,Point_Sources_All!$A$6:$Y$207,3*($E$20-2)+$C$4)/1000*365.25 -> 0 | M82: =VLOOKUP($D82,Point_Sources_All!$A$6:$V$207,3*($E$19-2)+$C$4)/1000*365.25 -> 0
D83: 56 | E83: =VLOOKUP($D83,Background_All!$A$5:$D$206,$C$4,)/1000*365.25 -> 9.774659181e-06 | F83: =VLOOKUP($D83,Point_Sources_All!$A$6:$V$207,3*($E$13-2)+$C$4)/1000*365.25 -> 0 | G83: =VLOOKUP($D83,Point_Sources_All!$A$6:$V$207,3*($E$14-2)+$C$4)/1000*365.25 -> 6.2289735e-05 | H83: =VLOOKUP($D83,Point_Sources_All!$A$6:$V$207,3*($E$15-2)+$C$4)/1000*365.25 -> 0 | I83: =VLOOKUP($D83,Point_Sources_All!$A$6:$V$207,3*($E$16-2)+$C$4)/1000*365.25 -> 0 | J83: =VLOOKUP($D83,Point_Sources_All!$A$6:$V$207,3*($E$17-2)+$C$4)/1000*365.25 -> 1.056303e-06 | K83: =VLOOKUP($D83,Point_Sources_All!$A$6:$V$207,3*($E$18-2)+$C$4)/1000*365.25 -> 1.476580956e-05 | L83: =VLOOKUP($D83,Point_Sources_All!$A$6:$Y$207,3*($E$20-2)+$C$4)/1000*365.25 -> 0 | M83: =VLOOKUP($D83,Point_Sources_All!$A$6:$V$207,3*($E$19-2)+$C$4)/1000*365.25 -> 0
D84: 57 | E84: =VLOOKUP($D84,Background_All!$A$5:$D$206,$C$4,)/1000*365.25 -> 1.018011407e-05 | F84: =VLOOKUP($D84,Point_Sources_All!$A$6:$V$207,3*($E$13-2)+$C$4)/1000*365.25 -> 0 | G84: =VLOOKUP($D84,Point_Sources_All!$A$6:$V$207,3*($E$14-2)+$C$4)/1000*365.25 -> 6.2289735e-05 | H84: =VLOOKUP($D84,Point_Sources_All!$A$6:$V$207,3*($E$15-2)+$C$4)/1000*365.25 -> 0 | I84: =VLOOKUP($D84,Point_Sources_All!$A$6:$V$207,3*($E$16-2)+$C$4)/1000*365.25 -> 0 | J84: =VLOOKUP($D84,Point_Sources_All!$A$6:$V$207,3*($E$17-2)+$C$4)/1000*365.25 -> 8.202611006e-07 | K84: =VLOOKUP($D84,Point_Sources_All!$A$6:$V$207,3*($E$18-2)+$C$4)/1000*365.25 -> 1.251806106e-05 | L84: =VLOOKUP($D84,Point_Sources_All!$A$6:$Y$207,3*($E$20-2)+$C$4)/1000*365.25 -> 0 | M84: =VLOOKUP($D84,Point_Sources_All!$A$6:$V$207,3*($E$19-2)+$C$4)/1000*365.25 -> 0
D85: 58 | E85: =VLOOKUP($D85,Background_All!$A$5:$D$206,$C$4,)/1000*365.25 -> 1.026201226e-05 | F85: =VLOOKUP($D85,Point_Sources_All!$A$6:$V$207,3*($E$13-2)+$C$4)/1000*365.25 -> 0 | G85: =VLOOKUP($D85,Point_Sources_All!$A$6:$V$207,3*($E$14-2)+$C$4)/1000*365.25 -> 6.2289735e-05 | H85: =VLOOKUP($D85,Point_Sources_All!$A$6:$V$207,3*($E$15-2)+$C$4)/1000*365.25 -> 0 | I85: =VLOOKUP($D85,Point_Sources_All!$A$6:$V$207,3*($E$16-2)+$C$4)/1000*365.25 -> 0 | J85: =VLOOKUP($D85,Point_Sources_All!$A$6:$V$207,3*($E$17-2)+$C$4)/1000*365.25 -> 7.050603375e-07 | K85: =VLOOKUP($D85,Point_Sources_All!$A$6:$V$207,3*($E$18-2)+$C$4)/1000*365.25 -> 8.445127875e-06 | L85: =VLOOKUP($D85,Point_Sources_All!$A$6:$Y$207,3*($E$20-2)+$C$4)/1000*365.25 -> 0 | M85: =VLOOKUP($D85,Point_Sources_All!$A$6:$V$207,3*($E$19-2)+$C$4)/1000*365.25 -> 0
D86: 59 | E86: =VLOOKUP($D86,Background_All!$A$5:$D$206,$C$4,)/1000*365.25 -> 9.921215744e-06 | F86: =VLOOKUP($D86,Point_Sources_All!$A$6:$V$207,3*($E$13-2)+$C$4)/1000*365.25 -> 0 | G86: =VLOOKUP($D86,Point_Sources_All!$A$6:$V$207,3*($E$14-2)+$C$4)/1000*365.25 -> 6.2289735e-05 | H86: =VLOOKUP($D86,Point_Sources_All!$A$6:$V$207,3*($E$15-2)+$C$4)/1000*365.25 -> 0 | I86: =VLOOKUP($D86,Point_Sources_All!$A$6:$V$207,3*($E$16-2)+$C$4)/1000*365.25 -> 0 | J86: =VLOOKUP($D86,Point_Sources_All!$A$6:$V$207,3*($E$17-2)+$C$4)/1000*365.25 -> 6.267318662e-07 | K86: =VLOOKUP($D86,Point_Sources_All!$A$6:$V$207,3*($E$18-2)+$C$4)/1000*365.25 -> 8.040634806e-06 | L86: =VLOOKUP($D86,Point_Sources_All!$A$6:$Y$207,3*($E$20-2)+$C$4)/1000*365.25 -> 0 | M86: =VLOOKUP($D86,Point_Sources_All!$A$6:$V$207,3*($E$19-2)+$C$4)/1000*365.25 -> 0
D87: 60 | E87: =VLOOKUP($D87,Background_All!$A$5:$D$206,$C$4,)/1000*365.25 -> 1.045212793e-05 | F87: =VLOOKUP($D87,Point_Sources_All!$A$6:$V$207,3*($E$13-2)+$C$4)/1000*365.25 -> 0 | G87: =VLOOKUP($D87,Point_Sources_All!$A$6:$V$207,3*($E$14-2)+$C$4)/1000*365.25 -> 6.2289735e-05 | H87: =VLOOKUP($D87,Point_Sources_All!$A$6:$V$207,3*($E$15-2)+$C$4)/1000*365.25 -> 0 | I87: =VLOOKUP($D87,Point_Sources_All!$A$6:$V$207,3*($E$16-2)+$C$4)/1000*365.25 -> 0 | J87: =VLOOKUP($D87,Point_Sources_All!$A$6:$V$207,3*($E$17-2)+$C$4)/1000*365.25 -> 6.0720621e-07 | K87: =VLOOKUP($D87,Point_Sources_All!$A$6:$V$207,3*($E$18-2)+$C$4)/1000*365.25 -> 7.0434323e-06 | L87: =VLOOKUP($D87,Point_Sources_All!$A$6:$Y$207,3*($E$20-2)+$C$4)/1000*365.25 -> 0 | M87: =VLOOKUP($D87,Point_Sources_All!$A$6:$V$207,3*($E$19-2)+$C$4)/1000*365.25 -> 0
D88: 61 | E88: =VLOOKUP($D88,Background_All!$A$5:$D$206,$C$4,)/1000*365.25 -> 1.023233874e-05 | F88: =VLOOKUP($D88,Point_Sources_All!$A$6:$V$207,3*($E$13-2)+$C$4)/1000*365.25 -> 0 | G88: =VLOOKUP($D88,Point_Sources_All!$A$6:$V$207,3*($E$14-2)+$C$4)/1000*365.25 -> 6.2289735e-05 | H88: =VLOOKUP($D88,Point_Sources_All!$A$6:$V$207,3*($E$15-2)+$C$4)/1000*365.25 -> 0 | I88: =VLOOKUP($D88,Point_Sources_All!$A$6:$V$207,3*($E$16-2)+$C$4)/1000*365.25 -> 0 | J88: =VLOOKUP($D88,Point_Sources_All!$A$6:$V$207,3*($E$17-2)+$C$4)/1000*365.25 -> 5.933154481e-07 | K88: =VLOOKUP($D88,Point_Sources_All!$A$6:$V$207,3*($E$18-2)+$C$4)/1000*365.25 -> 5.915033516e-06 | L88: =VLOOKUP($D88,Point_Sources_All!$A$6:$Y$207,3*($E$20-2)+$C$4)/1000*365.25 -> 0 | M88: =VLOOKUP($D88,Point_Sources_All!$A$6:$V$207,3*($E$19-2)+$C$4)/1000*365.25 -> 0
D89: 62 | E89: =VLOOKUP($D89,Background_All!$A$5:$D$206,$C$4,)/1000*365.25 -> 1.032678326e-05 | F89: =VLOOKUP($D89,Point_Sources_All!$A$6:$V$207,3*($E$13-2)+$C$4)/1000*365.25 -> 0 | G89: =VLOOKUP($D89,Point_Sources_All!$A$6:$V$207,3*($E$14-2)+$C$4)/1000*365.25 -> 6.2289735e-05 | H89: =VLOOKUP($D89,Point_Sources_All!$A$6:$V$207,3*($E$15-2)+$C$4)/1000*365.25 -> 0 | I89: =VLOOKUP($D89,Point_Sources_All!$A$6:$V$207,3*($E$16-2)+$C$4)/1000*365.25 -> 0 | J89: =VLOOKUP($D89,Point_Sources_All!$A$6:$V$207,3*($E$17-2)+$C$4)/1000*365.25 -> 5.867436875e-07 | K89: =VLOOKUP($D89,Point_Sources_All!$A$6:$V$207,3*($E$18-2)+$C$4)/1000*365.25 -> 6.262646506e-06 | L89: =VLOOKUP($D89,Point_Sources_All!$A$6:$Y$207,3*($E$20-2)+$C$4)/1000*365.25 -> 0 | M89: =VLOOKUP($D89,Point_Sources_All!$A$6:$V$207,3*($E$19-2)+$C$4)/1000*365.25 -> 0
D90: 63 | E90: =VLOOKUP($D90,Background_All!$A$5:$D$206,$C$4,)/1000*365.25 -> 1.037958623e-05 | F90: =VLOOKUP($D90,Point_Sources_All!$A$6:$V$207,3*($E$13-2)+$C$4)/1000*365.25 -> 0 | G90: =VLOOKUP($D90,Point_Sources_All!$A$6:$V$207,3*($E$14-2)+$C$4)/1000*365.25 -> 6.2289735e-05 | H90: =VLOOKUP($D90,Point_Sources_All!$A$6:$V$207,3*($E$15-2)+$C$4)/1000*365.25 -> 0 | I90: =VLOOKUP($D90,Point_Sources_All!$A$6:$V$207,3*($E$16-2)+$C$4)/1000*365.25 -> 0 | J90: =VLOOKUP($D90,Point_Sources_All!$A$6:$V$207,3*($E$17-2)+$C$4)/1000*365.25 -> 5.765206444e-07 | K90: =VLOOKUP($D90,Point_Sources_All!$A$6:$V$207,3*($E$18-2)+$C$4)/1000*365.25 -> 5.281728062e-06 | L90: =VLOOKUP($D90,Point_Sources_All!$A$6:$Y$207,3*($E$20-2)+$C$4)/1000*365.25 -> 0 | M90: =VLOOKUP($D90,Point_Sources_All!$A$6:$V$207,3*($E$19-2)+$C$4)/1000*365.25 -> 0
D91: 64 | E91: =VLOOKUP($D91,Background_All!$A$5:$D$206,$C$4,)/1000*365.25 -> 1.00142784e-05 | F91: =VLOOKUP($D91,Point_Sources_All!$A$6:$V$207,3*($E$13-2)+$C$4)/1000*365.25 -> 0 | G91: =VLOOKUP($D91,Point_Sources_All!$A$6:$V$207,3*($E$14-2)+$C$4)/1000*365.25 -> 6.2289735e-05 | H91: =VLOOKUP($D91,Point_Sources_All!$A$6:$V$207,3*($E$15-2)+$C$4)/1000*365.25 -> 0 | I91: =VLOOKUP($D91,Point_Sources_All!$A$6:$V$207,3*($E$16-2)+$C$4)/1000*365.25 -> 0 | J91: =VLOOKUP($D91,Point_Sources_All!$A$6:$V$207,3*($E$17-2)+$C$4)/1000*365.25 -> 5.908801438e-07 | K91: =VLOOKUP($D91,Point_Sources_All!$A$6:$V$207,3*($E$18-2)+$C$4)/1000*365.25 -> 5.018443688e-06 | L91: =VLOOKUP($D91,Point_Sources_All!$A$6:$Y$207,3*($E$20-2)+$C$4)/1000*365.25 -> 0 | M91: =VLOOKUP($D91,Point_Sources_All!$A$6:$V$207,3*($E$19-2)+$C$4)/1000*365.25 -> 0
D92: 65 | E92: =VLOOKUP($D92,Background_All!$A$5:$D$206,$C$4,)/1000*365.25 -> 9.888084525e-06 | F92: =VLOOKUP($D92,Point_Sources_All!$A$6:$V$207,3*($E$13-2)+$C$4)/1000*365.25 -> 0 | G92: =VLOOKUP($D92,Point_Sources_All!$A$6:$V$207,3*($E$14-2)+$C$4)/1000*365.25 -> 6.2289735e-05 | H92: =VLOOKUP($D92,Point_Sources_All!$A$6:$V$207,3*($E$15-2)+$C$4)/1000*365.25 -> 0 | I92: =VLOOKUP($D92,Point_Sources_All!$A$6:$V$207,3*($E$16-2)+$C$4)/1000*365.25 -> 0 | J92: =VLOOKUP($D92,Point_Sources_All!$A$6:$V$207,3*($E$17-2)+$C$4)/1000*365.25 -> 5.64825035e-07 | K92: =VLOOKUP($D92,Point_Sources_All!$A$6:$V$207,3*($E$18-2)+$C$4)/1000*365.25 -> 5.037558438e-06 | L92: =VLOOKUP($D92,Point_Sources_All!$A$6:$Y$207,3*($E$20-2)+$C$4)/1000*365.25 -> 0 | M92: =VLOOKUP($D92,Point_Sources_All!$A$6:$V$207,3*($E$19-2)+$C$4)/1000*365.25 -> 0
D93: 66 | E93: =VLOOKUP($D93,Background_All!$A$5:$D$206,$C$4,)/1000*365.25 -> 1.011961041e-05 | F93: =VLOOKUP($D93,Point_Sources_All!$A$6:$V$207,3*($E$13-2)+$C$4)/1000*365.25 -> 0 | G93: =VLOOKUP($D93,Point_Sources_All!$A$6:$V$207,3*($E$14-2)+$C$4)/1000*365.25 -> 6.2289735e-05 | H93: =VLOOKUP($D93,Point_Sources_All!$A$6:$V$207,3*($E$15-2)+$C$4)/1000*365.25 -> 0 | I93: =VLOOKUP($D93,Point_Sources_All!$A$6:$V$207,3*($E$16-2)+$C$4)/1000*365.25 -> 0 | J93: =VLOOKUP($D93,Point_Sources_All!$A$6:$V$207,3*($E$17-2)+$C$4)/1000*365.25 -> 5.777320569e-07 | K93: =VLOOKUP($D93,Point_Sources_All!$A$6:$V$207,3*($E$18-2)+$C$4)/1000*365.25 -> 4.873101581e-06 | L93: =VLOOKUP($D93,Point_Sources_All!$A$6:$Y$207,3*($E$20-2)+$C$4)/1000*365.25 -> 0 | M93: =VLOOKUP($D93,Point_Sources_All!$A$6:$V$207,3*($E$19-2)+$C$4)/1000*365.25 -> 0
D94: 67 | E94: =VLOOKUP($D94,Background_All!$A$5:$D$206,$C$4,)/1000*365.25 -> 9.951373219e-06 | F94: =VLOOKUP($D94,Point_Sources_All!$A$6:$V$207,3*($E$13-2)+$C$4)/1000*365.25 -> 0 | G94: =VLOOKUP($D94,Point_Sources_All!$A$6:$V$207,3*($E$14-2)+$C$4)/1000*365.25 -> 6.2289735e-05 | H94: =VLOOKUP($D94,Point_Sources_All!$A$6:$V$207,3*($E$15-2)+$C$4)/1000*365.25 -> 0 | I94: =VLOOKUP($D94,Point_Sources_All!$A$6:$V$207,3*($E$16-2)+$C$4)/1000*365.25 -> 0 | J94: =VLOOKUP($D94,Point_Sources_All!$A$6:$V$207,3*($E$17-2)+$C$4)/1000*365.25 -> 5.690193225e-07 | K94: =VLOOKUP($D94,Point_Sources_All!$A$6:$V$207,3*($E$18-2)+$C$4)/1000*365.25 -> 4.528065125e-06 | L94: =VLOOKUP($D94,Point_Sources_All!$A$6:$Y$207,3*($E$20-2)+$C$4)/1000*365.25 -> 0 | M94: =VLOOKUP($D94,Point_Sources_All!$A$6:$V$207,3*($E$19-2)+$C$4)/1000*365.25 -> 0
D95: 68 | E95: =VLOOKUP($D95,Background_All!$A$5:$D$206,$C$4,)/1000*365.25 -> 1.022322879e-05 | F95: =VLOOKUP($D95,Point_Sources_All!$A$6:$V$207,3*($E$13-2)+$C$4)/1000*365.25 -> 0 | G95: =VLOOKUP($D95,Point_Sources_All!$A$6:$V$207,3*($E$14-2)+$C$4)/1000*365.25 -> 6.2289735e-05 | H95: =VLOOKUP($D95,Point_Sources_All!$A$6:$V$207,3*($E$15-2)+$C$4)/1000*365.25 -> 0 | I95: =VLOOKUP($D95,Point_Sources_All!$A$6:$V$207,3*($E$16-2)+$C$4)/1000*365.25 -> 0 | J95: =VLOOKUP($D95,Point_Sources_All!$A$6:$V$207,3*($E$17-2)+$C$4)/1000*365.25 -> 5.869330087e-07 | K95: =VLOOKUP($D95,Point_Sources_All!$A$6:$V$207,3*($E$18-2)+$C$4)/1000*365.25 -> 5.263517306e-06 | L95: =VLOOKUP($D95,Point_Sources_All!$A$6:$Y$207,3*($E$20-2)+$C$4)/1000*365.25 -> 0 | M95: =VLOOKUP($D95,Point_Sources_All!$A$6:$V$207,3*($E$19-2)+$C$4)/1000*365.25 -> 0
D96: 69 | E96: =VLOOKUP($D96,Background_All!$A$5:$D$206,$C$4,)/1000*365.25 -> 9.999263581e-06 | F96: =VLOOKUP($D96,Point_Sources_All!$A$6:$V$207,3*($E$13-2)+$C$4)/1000*365.25 -> 0 | G96: =VLOOKUP($D96,Point_Sources_All!$A$6:$V$207,3*($E$14-2)+$C$4)/1000*365.25 -> 6.2289735e-05 | H96: =VLOOKUP($D96,Point_Sources_All!$A$6:$V$207,3*($E$15-2)+$C$4)/1000*365.25 -> 0 | I96: =VLOOKUP($D96,Point_Sources_All!$A$6:$V$207,3*($E$16-2)+$C$4)/1000*365.25 -> 0 | J96: =VLOOKUP($D96,Point_Sources_All!$A$6:$V$207,3*($E$17-2)+$C$4)/1000*365.25 -> 5.615998775e-07 | K96: =VLOOKUP($D96,Point_Sources_All!$A$6:$V$207,3*($E$18-2)+$C$4)/1000*365.25 -> 4.752480813e-06 | L96: =VLOOKUP($D96,Point_Sources_All!$A$6:$Y$207,3*($E$20-2)+$C$4)/1000*365.25 -> 0 | M96: =VLOOKUP($D96,Point_Sources_All!$A$6:$V$207,3*($E$19-2)+$C$4)/1000*365.25 -> 0
D97: 70 | E97: =VLOOKUP($D97,Background_All!$A$5:$D$206,$C$4,)/1000*365.25 -> 9.971723731e-06 | F97: =VLOOKUP($D97,Point_Sources_All!$A$6:$V$207,3*($E$13-2)+$C$4)/1000*365.25 -> 0 | G97: =VLOOKUP($D97,Point_Sources_All!$A$6:$V$207,3*($E$14-2)+$C$4)/1000*365.25 -> 6.2289735e-05 | H97: =VLOOKUP($D97,Point_Sources_All!$A$6:$V$207,3*($E$15-2)+$C$4)/1000*365.25 -> 0 | I97: =VLOOKUP($D97,Point_Sources_All!$A$6:$V$207,3*($E$16-2)+$C$4)/1000*365.25 -> 0 | J97: =VLOOKUP($D97,Point_Sources_All!$A$6:$V$207,3*($E$17-2)+$C$4)/1000*365.25 -> 5.779636863e-07 | K97: =VLOOKUP($D97,Point_Sources_All!$A$6:$V$207,3*($E$18-2)+$C$4)/1000*365.25 -> 4.631156937e-06 | L97: =VLOOKUP($D97,Point_Sources_All!$A$6:$Y$207,3*($E$20-2)+$C$4)/1000*365.25 -> 0 | M97: =VLOOKUP($D97,Point_Sources_All!$A$6:$V$207,3*($E$19-2)+$C$4)/1000*365.25 -> 0
D98: 71 | E98: =VLOOKUP($D98,Background_All!$A$5:$D$206,$C$4,)/1000*365.25 -> 1.004734874e-05 | F98: =VLOOKUP($D98,Point_Sources_All!$A$6:$V$207,3*($E$13-2)+$C$4)/1000*365.25 -> 0 | G98: =VLOOKUP($D98,Point_Sources_All!$A$6:$V$207,3*($E$14-2)+$C$4)/1000*365.25 -> 6.2289735e-05 | H98: =VLOOKUP($D98,Point_Sources_All!$A$6:$V$207,3*($E$15-2)+$C$4)/1000*365.25 -> 0 | I98: =VLOOKUP($D98,Point_Sources_All!$A$6:$V$207,3*($E$16-2)+$C$4)/1000*365.25 -> 0 | J98: =VLOOKUP($D98,Point_Sources_All!$A$6:$V$207,3*($E$17-2)+$C$4)/1000*365.25 -> 5.814767825e-07 | K98: =VLOOKUP($D98,Point_Sources_All!$A$6:$V$207,3*($E$18-2)+$C$4)/1000*365.25 -> 4.152329406e-06 | L98: =VLOOKUP($D98,Point_Sources_All!$A$6:$Y$207,3*($E$20-2)+$C$4)/1000*365.25 -> 0 | M98: =VLOOKUP($D98,Point_Sources_All!$A$6:$V$207,3*($E$19-2)+$C$4)/1000*365.25 -> 0
D99: 72 | E99: =VLOOKUP($D99,Background_All!$A$5:$D$206,$C$4,)/1000*365.25 -> 1.021606685e-05 | F99: =VLOOKUP($D99,Point_Sources_All!$A$6:$V$207,3*($E$13-2)+$C$4)/1000*365.25 -> 0 | G99: =VLOOKUP($D99,Point_Sources_All!$A$6:$V$207,3*($E$14-2)+$C$4)/1000*365.25 -> 6.2289735e-05 | H99: =VLOOKUP($D99,Point_Sources_All!$A$6:$V$207,3*($E$15-2)+$C$4)/1000*365.25 -> 0 | I99: =VLOOKUP($D99,Point_Sources_All!$A$6:$V$207,3*($E$16-2)+$C$4)/1000*365.25 -> 0 | J99: =VLOOKUP($D99,Point_Sources_All!$A$6:$V$207,3*($E$17-2)+$C$4)/1000*365.25 -> 5.747287887e-07 | K99: =VLOOKUP($D99,Point_Sources_All!$A$6:$V$207,3*($E$18-2)+$C$4)/1000*365.25 -> 4.240887313e-06 | L99: =VLOOKUP($D99,Point_Sources_All!$A$6:$Y$207,3*($E$20-2)+$C$4)/1000*365.25 -> 0 | M99: =VLOOKUP($D99,Point_Sources_All!$A$6:$V$207,3*($E$19-2)+$C$4)/1000*365.25 -> 0
D100: 73 | E100: =VLOOKUP($D100,Background_All!$A$5:$D$206,$C$4,)/1000*365.25 -> 9.667951394e-06 | F100: =VLOOKUP($D100,Point_Sources_All!$A$6:$V$207,3*($E$13-2)+$C$4)/1000*365.25 -> 0 | G100: =VLOOKUP($D100,Point_Sources_All!$A$6:$V$207,3*($E$14-2)+$C$4)/1000*365.25 -> 6.2289735e-05 | H100: =VLOOKUP($D100,Point_Sources_All!$A$6:$V$207,3*($E$15-2)+$C$4)/1000*365.25 -> 0 | I100: =VLOOKUP($D100,Point_Sources_All!$A$6:$V$207,3*($E$16-2)+$C$4)/1000*365.25 -> 0 | J100: =VLOOKUP($D100,Point_Sources_All!$A$6:$V$207,3*($E$17-2)+$C$4)/1000*365.25 -> 5.661314125e-07 | K100: =VLOOKUP($D100,Point_Sources_All!$A$6:$V$207,3*($E$18-2)+$C$4)/1000*365.25 -> 4.468559813e-06 | L100: =VLOOKUP($D100,Point_Sources_All!$A$6:$Y$207,3*($E$20-2)+$C$4)/1000*365.25 -> 0 | M100: =VLOOKUP($D100,Point_Sources_All!$A$6:$V$207,3*($E$19-2)+$C$4)/1000*365.25 -> 0
D101: 74 | E101: =VLOOKUP($D101,Background_All!$A$5:$D$206,$C$4,)/1000*365.25 -> 1.004145909e-05 | F101: =VLOOKUP($D101,Point_Sources_All!$A$6:$V$207,3*($E$13-2)+$C$4)/1000*365.25 -> 0 | G101: =VLOOKUP($D101,Point_Sources_All!$A$6:$V$207,3*($E$14-2)+$C$4)/1000*365.25 -> 6.2289735e-05 | H101: =VLOOKUP($D101,Point_Sources_All!$A$6:$V$207,3*($E$15-2)+$C$4)/1000*365.25 -> 0 | I101: =VLOOKUP($D101,Point_Sources_All!$A$6:$V$207,3*($E$16-2)+$C$4)/1000*365.25 -> 0 | J101: =VLOOKUP($D101,Point_Sources_All!$A$6:$V$207,3*($E$17-2)+$C$4)/1000*365.25 -> 5.786999694e-07 | K101: =VLOOKUP($D101,Point_Sources_All!$A$6:$V$207,3*($E$18-2)+$C$4)/1000*365.25 -> 4.80885715e-06 | L101: =VLOOKUP($D101,Point_Sources_All!$A$6:$Y$207,3*($E$20-2)+$C$4)/1000*365.25 -> 0 | M101: =VLOOKUP($D101,Point_Sources_All!$A$6:$V$207,3*($E$19-2)+$C$4)/1000*365.25 -> 0
D102: 75 | E102: =VLOOKUP($D102,Background_All!$A$5:$D$206,$C$4,)/1000*365.25 -> 1.006859412e-05 | F102: =VLOOKUP($D102,Point_Sources_All!$A$6:$V$207,3*($E$13-2)+$C$4)/1000*365.25 -> 0 | G102: =VLOOKUP($D102,Point_Sources_All!$A$6:$V$207,3*($E$14-2)+$C$4)/1000*365.25 -> 6.2289735e-05 | H102: =VLOOKUP($D102,Point_Sources_All!$A$6:$V$207,3*($E$15-2)+$C$4)/1000*365.25 -> 0 | I102: =VLOOKUP($D102,Point_Sources_All!$A$6:$V$207,3*($E$16-2)+$C$4)/1000*365.25 -> 0 | J102: =VLOOKUP($D102,Point_Sources_All!$A$6:$V$207,3*($E$17-2)+$C$4)/1000*365.25 -> 5.667012025e-07 | K102: =VLOOKUP($D102,Point_Sources_All!$A$6:$V$207,3*($E$18-2)+$C$4)/1000*365.25 -> 4.408780563e-06 | L102: =VLOOKUP($D102,Point_Sources_All!$A$6:$Y$207,3*($E$20-2)+$C$4)/1000*365.25 -> 0 | M102: =VLOOKUP($D102,Point_Sources_All!$A$6:$V$207,3*($E$19-2)+$C$4)/1000*365.25 -> 0
D103: 76 | E103: =VLOOKUP($D103,Background_All!$A$5:$D$206,$C$4,)/1000*365.25 -> 9.808377844e-06 | F103: =VLOOKUP($D103,Point_Sources_All!$A$6:$V$207,3*($E$13-2)+$C$4)/1000*365.25 -> 0 | G103: =VLOOKUP($D103,Point_Sources_All!$A$6:$V$207,3*($E$14-2)+$C$4)/1000*365.25 -> 6.2289735e-05 | H103: =VLOOKUP($D103,Point_Sources_All!$A$6:$V$207,3*($E$15-2)+$C$4)/1000*365.25 -> 0 | I103: =VLOOKUP($D103,Point_Sources_All!$A$6:$V$207,3*($E$16-2)+$C$4)/1000*365.25 -> 0 | J103: =VLOOKUP($D103,Point_Sources_All!$A$6:$V$207,3*($E$17-2)+$C$4)/1000*365.25 -> 5.514721037e-07 | K103: =VLOOKUP($D103,Point_Sources_All!$A$6:$V$207,3*($E$18-2)+$C$4)/1000*365.25 -> 4.671334438e-06 | L103: =VLOOKUP($D103,Point_Sources_All!$A$6:$Y$207,3*($E$20-2)+$C$4)/1000*365.25 -> 0 | M103: =VLOOKUP($D103,Point_Sources_All!$A$6:$V$207,3*($E$19-2)+$C$4)/1000*365.25 -> 0
D104: 77 | E104: =VLOOKUP($D104,Background_All!$A$5:$D$206,$C$4,)/1000*365.25 -> 1.001279609e-05 | F104: =VLOOKUP($D104,Point_Sources_All!$A$6:$V$207,3*($E$13-2)+$C$4)/1000*365.25 -> 0 | G104: =VLOOKUP($D104,Point_Sources_All!$A$6:$V$207,3*($E$14-2)+$C$4)/1000*365.25 -> 6.2289735e-05 | H104: =VLOOKUP($D104,Point_Sources_All!$A$6:$V$207,3*($E$15-2)+$C$4)/1000*365.25 -> 0 | I104: =VLOOKUP($D104,Point_Sources_All!$A$6:$V$207,3*($E$16-2)+$C$4)/1000*365.25 -> 0 | J104: =VLOOKUP($D104,Point_Sources_All!$A$6:$V$207,3*($E$17-2)+$C$4)/1000*365.25 -> 5.853752175e-07 | K104: =VLOOKUP($D104,Point_Sources_All!$A$6:$V$207,3*($E$18-2)+$C$4)/1000*365.25 -> 4.372590375e-06 | L104: =VLOOKUP($D104,Point_Sources_All!$A$6:$Y$207,3*($E$20-2)+$C$4)/1000*365.25 -> 0 | M104: =VLOOKUP($D104,Point_Sources_All!$A$6:$V$207,3*($E$19-2)+$C$4)/1000*365.25 -> 0
D105: 78 | E105: =VLOOKUP($D105,Background_All!$A$5:$D$206,$C$4,)/1000*365.25 -> 9.805227563e-06 | F105: =VLOOKUP($D105,Point_Sources_All!$A$6:$V$207,3*($E$13-2)+$C$4)/1000*365.25 -> 0 | G105: =VLOOKUP($D105,Point_Sources_All!$A$6:$V$207,3*($E$14-2)+$C$4)/1000*365.25 -> 6.2289735e-05 | H105: =VLOOKUP($D105,Point_Sources_All!$A$6:$V$207,3*($E$15-2)+$C$4)/1000*365.25 -> 0 | I105: =VLOOKUP($D105,Point_Sources_All!$A$6:$V$207,3*($E$16-2)+$C$4)/1000*365.25 -> 0 | J105: =VLOOKUP($D105,Point_Sources_All!$A$6:$V$207,3*($E$17-2)+$C$4)/1000*365.25 -> 5.628082462e-07 | K105: =VLOOKUP($D105,Point_Sources_All!$A$6:$V$207,3*($E$18-2)+$C$4)/1000*365.25 -> 4.32054225e-06 | L105: =VLOOKUP($D105,Point_Sources_All!$A$6:$Y$207,3*($E$20-2)+$C$4)/1000*365.25 -> 0 | M105: =VLOOKUP($D105,Point_Sources_All!$A$6:$V$207,3*($E$19-2)+$C$4)/1000*365.25 -> 0
D106: 79 | E106: =VLOOKUP($D106,Background_All!$A$5:$D$206,$C$4,)/1000*365.25 -> 1.006260706e-05 | F106: =VLOOKUP($D106,Point_Sources_All!$A$6:$V$207,3*($E$13-2)+$C$4)/1000*365.25 -> 0 | G106: =VLOOKUP($D106,Point_Sources_All!$A$6:$V$207,3*($E$14-2)+$C$4)/1000*365.25 -> 6.2289735e-05 | H106: =VLOOKUP($D106,Point_Sources_All!$A$6:$V$207,3*($E$15-2)+$C$4)/1000*365.25 -> 0 | I106: =VLOOKUP($D106,Point_Sources_All!$A$6:$V$207,3*($E$16-2)+$C$4)/1000*365.25 -> 0 | J106: =VLOOKUP($D106,Point_Sources_All!$A$6:$V$207,3*($E$17-2)+$C$4)/1000*365.25 -> 5.740917319e-07 | K106: =VLOOKUP($D106,Point_Sources_All!$A$6:$V$207,3*($E$18-2)+$C$4)/1000*365.25 -> 3.892317062e-06 | L106: =VLOOKUP($D106,Point_Sources_All!$A$6:$Y$207,3*($E$20-2)+$C$4)/1000*365.25 -> 0 | M106: =VLOOKUP($D106,Point_Sources_All!$A$6:$V$207,3*($E$19-2)+$C$4)/1000*365.25 -> 0
D107: 80 | E107: =VLOOKUP($D107,Background_All!$A$5:$D$206,$C$4,)/1000*365.25 -> 1.003298224e-05 | F107: =VLOOKUP($D107,Point_Sources_All!$A$6:$V$207,3*($E$13-2)+$C$4)/1000*365.25 -> 0 | G107: =VLOOKUP($D107,Point_Sources_All!$A$6:$V$207,3*($E$14-2)+$C$4)/1000*365.25 -> 6.2289735e-05 | H107: =VLOOKUP($D107,Point_Sources_All!$A$6:$V$207,3*($E$15-2)+$C$4)/1000*365.25 -> 0 | I107: =VLOOKUP($D107,Point_Sources_All!$A$6:$V$207,3*($E$16-2)+$C$4)/1000*365.25 -> 0 | J107: =VLOOKUP($D107,Point_Sources_All!$A$6:$V$207,3*($E$17-2)+$C$4)/1000*365.25 -> 5.763565862e-07 | K107: =VLOOKUP($D107,Point_Sources_All!$A$6:$V$207,3*($E$18-2)+$C$4)/1000*365.25 -> 4.099505125e-06 | L107: =VLOOKUP($D107,Point_Sources_All!$A$6:$Y$207,3*($E$20-2)+$C$4)/1000*365.25 -> 0 | M107: =VLOOKUP($D107,Point_Sources_All!$A$6:$V$207,3*($E$19-2)+$C$4)/1000*365.25 -> 0
D108: 81 | E108: =VLOOKUP($D108,Background_All!$A$5:$D$206,$C$4,)/1000*365.25 -> 1.011907776e-05 | F108: =VLOOKUP($D108,Point_Sources_All!$A$6:$V$207,3*($E$13-2)+$C$4)/1000*365.25 -> 0 | G108: =VLOOKUP($D108,Point_Sources_All!$A$6:$V$207,3*($E$14-2)+$C$4)/1000*365.25 -> 6.2289735e-05 | H108: =VLOOKUP($D108,Point_Sources_All!$A$6:$V$207,3*($E$15-2)+$C$4)/1000*365.25 -> 0 | I108: =VLOOKUP($D108,Point_Sources_All!$A$6:$V$207,3*($E$16-2)+$C$4)/1000*365.25 -> 0 | J108: =VLOOKUP($D108,Point_Sources_All!$A$6:$V$207,3*($E$17-2)+$C$4)/1000*365.25 -> 5.730121137e-07 | K108: =VLOOKUP($D108,Point_Sources_All!$A$6:$V$207,3*($E$18-2)+$C$4)/1000*365.25 -> 4.069585062e-06 | L108: =VLOOKUP($D108,Point_Sources_All!$A$6:$Y$207,3*($E$20-2)+$C$4)/1000*365.25 -> 0 | M108: =VLOOKUP($D108,Point_Sources_All!$A$6:$V$207,3*($E$19-2)+$C$4)/1000*365.25 -> 0
D109: 82 | E109: =VLOOKUP($D109,Background_All!$A$5:$D$206,$C$4,)/1000*365.25 -> 1.01891601e-05 | F109: =VLOOKUP($D109,Point_Sources_All!$A$6:$V$207,3*($E$13-2)+$C$4)/1000*365.25 -> 0 | G109: =VLOOKUP($D109,Point_Sources_All!$A$6:$V$207,3*($E$14-2)+$C$4)/1000*365.25 -> 6.2289735e-05 | H109: =VLOOKUP($D109,Point_Sources_All!$A$6:$V$207,3*($E$15-2)+$C$4)/1000*365.25 -> 0 | I109: =VLOOKUP($D109,Point_Sources_All!$A$6:$V$207,3*($E$16-2)+$C$4)/1000*365.25 -> 0 | J109: =VLOOKUP($D109,Point_Sources_All!$A$6:$V$207,3*($E$17-2)+$C$4)/1000*365.25 -> 5.685645862e-07 | K109: =VLOOKUP($D109,Point_Sources_All!$A$6:$V$207,3*($E$18-2)+$C$4)/1000*365.25 -> 4.170150562e-06 | L109: =VLOOKUP($D109,Point_Sources_All!$A$6:$Y$207,3*($E$20-2)+$C$4)/1000*365.25 -> 0 | M109: =VLOOKUP($D109,Point_Sources_All!$A$6:$V$207,3*($E$19-2)+$C$4)/1000*365.25 -> 0
D110: 83 | E110: =VLOOKUP($D110,Background_All!$A$5:$D$206,$C$4,)/1000*365.25 -> 1.004212263e-05 | F110: =VLOOKUP($D110,Point_Sources_All!$A$6:$V$207,3*($E$13-2)+$C$4)/1000*365.25 -> 0 | G110: =VLOOKUP($D110,Point_Sources_All!$A$6:$V$207,3*($E$14-2)+$C$4)/1000*365.25 -> 6.2289735e-05 | H110: =VLOOKUP($D110,Point_Sources_All!$A$6:$V$207,3*($E$15-2)+$C$4)/1000*365.25 -> 0 | I110: =VLOOKUP($D110,Point_Sources_All!$A$6:$V$207,3*($E$16-2)+$C$4)/1000*365.25 -> 0 | J110: =VLOOKUP($D110,Point_Sources_All!$A$6:$V$207,3*($E$17-2)+$C$4)/1000*365.25 -> 5.785989169e-07 | K110: =VLOOKUP($D110,Point_Sources_All!$A$6:$V$207,3*($E$18-2)+$C$4)/1000*365.25 -> 4.51047225e-06 | L110: =VLOOKUP($D110,Point_Sources_All!$A$6:$Y$207,3*($E$20-2)+$C$4)/1000*365.25 -> 0 | M110: =VLOOKUP($D110,Point_Sources_All!$A$6:$V$207,3*($E$19-2)+$C$4)/1000*365.25 -> 0
D111: 84 | E111: =VLOOKUP($D111,Background_All!$A$5:$D$206,$C$4,)/1000*365.25 -> 1.045786235e-05 | F111: =VLOOKUP($D111,Point_Sources_All!$A$6:$V$207,3*($E$13-2)+$C$4)/1000*365.25 -> 0 | G111: =VLOOKUP($D111,Point_Sources_All!$A$6:$V$207,3*($E$14-2)+$C$4)/1000*365.25 -> 6.2289735e-05 | H111: =VLOOKUP($D111,Point_Sources_All!$A$6:$V$207,3*($E$15-2)+$C$4)/1000*365.25 -> 0 | I111: =VLOOKUP($D111,Point_Sources_All!$A$6:$V$207,3*($E$16-2)+$C$4)/1000*365.25 -> 0 | J111: =VLOOKUP($D111,Point_Sources_All!$A$6:$V$207,3*($E$17-2)+$C$4)/1000*365.25 -> 5.864810119e-07 | K111: =VLOOKUP($D111,Point_Sources_All!$A$6:$V$207,3*($E$18-2)+$C$4)/1000*365.25 -> 4.540331438e-06 | L111: =VLOOKUP($D111,Point_Sources_All!$A$6:$Y$207,3*($E$20-2)+$C$4)/1000*365.25 -> 0 | M111: =VLOOKUP($D111,Point_Sources_All!$A$6:$V$207,3*($E$19-2)+$C$4)/1000*365.25 -> 0
D112: 85 | E112: =VLOOKUP($D112,Background_All!$A$5:$D$206,$C$4,)/1000*365.25 -> 1.047898598e-05 | F112: =VLOOKUP($D112,Point_Sources_All!$A$6:$V$207,3*($E$13-2)+$C$4)/1000*365.25 -> 0 | G112: =VLOOKUP($D112,Point_Sources_All!$A$6:$V$207,3*($E$14-2)+$C$4)/1000*365.25 -> 6.2289735e-05 | H112: =VLOOKUP($D112,Point_Sources_All!$A$6:$V$207,3*($E$15-2)+$C$4)/1000*365.25 -> 0 | I112: =VLOOKUP($D112,Point_Sources_All!$A$6:$V$207,3*($E$16-2)+$C$4)/1000*365.25 -> 0 | J112: =VLOOKUP($D112,Point_Sources_All!$A$6:$V$207,3*($E$17-2)+$C$4)/1000*365.25 -> 6.016723681e-07 | K112: =VLOOKUP($D112,Point_Sources_All!$A$6:$V$207,3*($E$18-2)+$C$4)/1000*365.25 -> 4.49074875e-06 | L112: =VLOOKUP($D112,Point_Sources_All!$A$6:$Y$207,3*($E$20-2)+$C$4)/1000*365.25 -> 0 | M112: =VLOOKUP($D112,Point_Sources_All!$A$6:$V$207,3*($E$19-2)+$C$4)/1000*365.25 -> 0
D113: 86 | E113: =VLOOKUP($D113,Background_All!$A$5:$D$206,$C$4,)/1000*365.25 -> 9.661102956e-06 | F113: =VLOOKUP($D113,Point_Sources_All!$A$6:$V$207,3*($E$13-2)+$C$4)/1000*365.25 -> 0 | G113: =VLOOKUP($D113,Point_Sources_All!$A$6:$V$207,3*($E$14-2)+$C$4)/1000*365.25 -> 6.2289735e-05 | H113: =VLOOKUP($D113,Point_Sources_All!$A$6:$V$207,3*($E$15-2)+$C$4)/1000*365.25 -> 0 | I113: =VLOOKUP($D113,Point_Sources_All!$A$6:$V$207,3*($E$16-2)+$C$4)/1000*365.25 -> 0 | J113: =VLOOKUP($D113,Point_Sources_All!$A$6:$V$207,3*($E$17-2)+$C$4)/1000*365.25 -> 5.6600114e-07 | K113: =VLOOKUP($D113,Point_Sources_All!$A$6:$V$207,3*($E$18-2)+$C$4)/1000*365.25 -> 4.129790438e-06 | L113: =VLOOKUP($D113,Point_Sources_All!$A$6:$Y$207,3*($E$20-2)+$C$4)/1000*365.25 -> 0 | M113: =VLOOKUP($D113,Point_Sources_All!$A$6:$V$207,3*($E$19-2)+$C$4)/1000*365.25 -> 0
D114: 87 | E114: =VLOOKUP($D114,Background_All!$A$5:$D$206,$C$4,)/1000*365.25 -> 9.922271925e-06 | F114: =VLOOKUP($D114,Point_Sources_All!$A$6:$V$207,3*($E$13-2)+$C$4)/1000*365.25 -> 0 | G114: =VLOOKUP($D114,Point_Sources_All!$A$6:$V$207,3*($E$14-2)+$C$4)/1000*365.25 -> 6.2289735e-05 | H114: =VLOOKUP($D114,Point_Sources_All!$A$6:$V$207,3*($E$15-2)+$C$4)/1000*365.25 -> 0 | I114: =VLOOKUP($D114,Point_Sources_All!$A$6:$V$207,3*($E$16-2)+$C$4)/1000*365.25 -> 0 | J114: =VLOOKUP($D114,Point_Sources_All!$A$6:$V$207,3*($E$17-2)+$C$4)/1000*365.25 -> 5.672792106e-07 | K114: =VLOOKUP($D114,Point_Sources_All!$A$6:$V$207,3*($E$18-2)+$C$4)/1000*365.25 -> 4.152709875e-06 | L114: =VLOOKUP($D114,Point_Sources_All!$A$6:$Y$207,3*($E$20-2)+$C$4)/1000*365.25 -> 0 | M114: =VLOOKUP($D114,Point_Sources_All!$A$6:$V$207,3*($E$19-2)+$C$4)/1000*365.25 -> 0
D115: 88 | E115: =VLOOKUP($D115,Background_All!$A$5:$D$206,$C$4,)/1000*365.25 -> 9.720790894e-06 | F115: =VLOOKUP($D115,Point_Sources_All!$A$6:$V$207,3*($E$13-2)+$C$4)/1000*365.25 -> 0 | G115: =VLOOKUP($D115,Point_Sources_All!$A$6:$V$207,3*($E$14-2)+$C$4)/1000*365.25 -> 6.2289735e-05 | H115: =VLOOKUP($D115,Point_Sources_All!$A$6:$V$207,3*($E$15-2)+$C$4)/1000*365.25 -> 0 | I115: =VLOOKUP($D115,Point_Sources_All!$A$6:$V$207,3*($E$16-2)+$C$4)/1000*365.25 -> 0 | J115: =VLOOKUP($D115,Point_Sources_All!$A$6:$V$207,3*($E$17-2)+$C$4)/1000*365.25 -> 5.766649181e-07 | K115: =VLOOKUP($D115,Point_Sources_All!$A$6:$V$207,3*($E$18-2)+$C$4)/1000*365.25 -> 4.3866525e-06 | L115: =VLOOKUP($D115,Point_Sources_All!$A$6:$Y$207,3*($E$20-2)+$C$4)/1000*365.25 -> 0 | M115: =VLOOKUP($D115,Point_Sources_All!$A$6:$V$207,3*($E$19-2)+$C$4)/1000*365.25 -> 0
D116: 89 | E116: =VLOOKUP($D116,Background_All!$A$5:$D$206,$C$4,)/1000*365.25 -> 1.029415121e-05 | F116: =VLOOKUP($D116,Point_Sources_All!$A$6:$V$207,3*($E$13-2)+$C$4)/1000*365.25 -> 0 | G116: =VLOOKUP($D116,Point_Sources_All!$A$6:$V$207,3*($E$14-2)+$C$4)/1000*365.25 -> 6.2289735e-05 | H116: =VLOOKUP($D116,Point_Sources_All!$A$6:$V$207,3*($E$15-2)+$C$4)/1000*365.25 -> 0 | I116: =VLOOKUP($D116,Point_Sources_All!$A$6:$V$207,3*($E$16-2)+$C$4)/1000*365.25 -> 0 | J116: =VLOOKUP($D116,Point_Sources_All!$A$6:$V$207,3*($E$17-2)+$C$4)/1000*365.25 -> 5.74151085e-07 | K116: =VLOOKUP($D116,Point_Sources_All!$A$6:$V$207,3*($E$18-2)+$C$4)/1000*365.25 -> 3.970998e-06 | L116: =VLOOKUP($D116,Point_Sources_All!$A$6:$Y$207,3*($E$20-2)+$C$4)/1000*365.25 -> 0 | M116: =VLOOKUP($D116,Point_Sources_All!$A$6:$V$207,3*($E$19-2)+$C$4)/1000*365.25 -> 0
D117: 90 | E117: =VLOOKUP($D117,Background_All!$A$5:$D$206,$C$4,)/1000*365.25 -> 1.027268669e-05 | F117: =VLOOKUP($D117,Point_Sources_All!$A$6:$V$207,3*($E$13-2)+$C$4)/1000*365.25 -> 0 | G117: =VLOOKUP($D117,Point_Sources_All!$A$6:$V$207,3*($E$14-2)+$C$4)/1000*365.25 -> 6.2289735e-05 | H117: =VLOOKUP($D117,Point_Sources_All!$A$6:$V$207,3*($E$15-2)+$C$4)/1000*365.25 -> 0 | I117: =VLOOKUP($D117,Point_Sources_All!$A$6:$V$207,3*($E$16-2)+$C$4)/1000*365.25 -> 0 | J117: =VLOOKUP($D117,Point_Sources_All!$A$6:$V$207,3*($E$17-2)+$C$4)/1000*365.25 -> 5.79878205e-07 | K117: =VLOOKUP($D117,Point_Sources_All!$A$6:$V$207,3*($E$18-2)+$C$4)/1000*365.25 -> 4.395966375e-06 | L117: =VLOOKUP($D117,Point_Sources_All!$A$6:$Y$207,3*($E$20-2)+$C$4)/1000*365.25 -> 0 | M117: =VLOOKUP($D117,Point_Sources_All!$A$6:$V$207,3*($E$19-2)+$C$4)/1000*365.25 -> 0
D118: 91 | E118: =VLOOKUP($D118,Background_All!$A$5:$D$206,$C$4,)/1000*365.25 -> 9.912531925e-06 | F118: =VLOOKUP($D118,Point_Sources_All!$A$6:$V$207,3*($E$13-2)+$C$4)/1000*365.25 -> 0 | G118: =VLOOKUP($D118,Point_Sources_All!$A$6:$V$207,3*($E$14-2)+$C$4)/1000*365.25 -> 6.2289735e-05 | H118: =VLOOKUP($D118,Point_Sources_All!$A$6:$V$207,3*($E$15-2)+$C$4)/1000*365.25 -> 0 | I118: =VLOOKUP($D118,Point_Sources_All!$A$6:$V$207,3*($E$16-2)+$C$4)/1000*365.25 -> 0 | J118: =VLOOKUP($D118,Point_Sources_All!$A$6:$V$207,3*($E$17-2)+$C$4)/1000*365.25 -> 5.671005425e-07 | K118: =VLOOKUP($D118,Point_Sources_All!$A$6:$V$207,3*($E$18-2)+$C$4)/1000*365.25 -> 4.045539437e-06 | L118: =VLOOKUP($D118,Point_Sources_All!$A$6:$Y$207,3*($E$20-2)+$C$4)/1000*365.25 -> 0 | M118: =VLOOKUP($D118,Point_Sources_All!$A$6:$V$207,3*($E$19-2)+$C$4)/1000*365.25 -> 0
D119: 92 | E119: =VLOOKUP($D119,Background_All!$A$5:$D$206,$C$4,)/1000*365.25 -> 1.013525529e-05 | F119: =VLOOKUP($D119,Point_Sources_All!$A$6:$V$207,3*($E$13-2)+$C$4)/1000*365.25 -> 0 | G119: =VLOOKUP($D119,Point_Sources_All!$A$6:$V$207,3*($E$14-2)+$C$4)/1000*365.25 -> 6.2289735e-05 | H119: =VLOOKUP($D119,Point_Sources_All!$A$6:$V$207,3*($E$15-2)+$C$4)/1000*365.25 -> 0 | I119: =VLOOKUP($D119,Point_Sources_All!$A$6:$V$207,3*($E$16-2)+$C$4)/1000*365.25 -> 0 | J119: =VLOOKUP($D119,Point_Sources_All!$A$6:$V$207,3*($E$17-2)+$C$4)/1000*365.25 -> 5.645909706e-07 | K119: =VLOOKUP($D119,Point_Sources_All!$A$6:$V$207,3*($E$18-2)+$C$4)/1000*365.25 -> 4.342487687e-06 | L119: =VLOOKUP($D119,Point_Sources_All!$A$6:$Y$207,3*($E$20-2)+$C$4)/1000*365.25 -> 0 | M119: =VLOOKUP($D119,Point_Sources_All!$A$6:$V$207,3*($E$19-2)+$C$4)/1000*365.25 -> 0
D120: 93 | E120: =VLOOKUP($D120,Background_All!$A$5:$D$206,$C$4,)/1000*365.25 -> 9.919602556e-06 | F120: =VLOOKUP($D120,Point_Sources_All!$A$6:$V$207,3*($E$13-2)+$C$4)/1000*365.25 -> 0 | G120: =VLOOKUP($D120,Point_Sources_All!$A$6:$V$207,3*($E$14-2)+$C$4)/1000*365.25 -> 6.2289735e-05 | H120: =VLOOKUP($D120,Point_Sources_All!$A$6:$V$207,3*($E$15-2)+$C$4)/1000*365.25 -> 0 | I120: =VLOOKUP($D120,Point_Sources_All!$A$6:$V$207,3*($E$16-2)+$C$4)/1000*365.25 -> 0 | J120: =VLOOKUP($D120,Point_Sources_All!$A$6:$V$207,3*($E$17-2)+$C$4)/1000*365.25 -> 5.839580475e-07 | K120: =VLOOKUP($D120,Point_Sources_All!$A$6:$V$207,3*($E$18-2)+$C$4)/1000*365.25 -> 4.242196125e-06 | L120: =VLOOKUP($D120,Point_Sources_All!$A$6:$Y$207,3*($E$20-2)+$C$4)/1000*365.25 -> 0 | M120: =VLOOKUP($D120,Point_Sources_All!$A$6:$V$207,3*($E$19-2)+$C$4)/1000*365.25 -> 0
D121: 94 | E121: =VLOOKUP($D121,Background_All!$A$5:$D$206,$C$4,)/1000*365.25 -> 9.952934663e-06 | F121: =VLOOKUP($D121,Point_Sources_All!$A$6:$V$207,3*($E$13-2)+$C$4)/1000*365.25 -> 0 | G121: =VLOOKUP($D121,Point_Sources_All!$A$6:$V$207,3*($E$14-2)+$C$4)/1000*365.25 -> 6.2289735e-05 | H121: =VLOOKUP($D121,Point_Sources_All!$A$6:$V$207,3*($E$15-2)+$C$4)/1000*365.25 -> 0 | I121: =VLOOKUP($D121,Point_Sources_All!$A$6:$V$207,3*($E$16-2)+$C$4)/1000*365.25 -> 0 | J121: =VLOOKUP($D121,Point_Sources_All!$A$6:$V$207,3*($E$17-2)+$C$4)/1000*365.25 -> 5.757615331e-07 | K121: =VLOOKUP($D121,Point_Sources_All!$A$6:$V$207,3*($E$18-2)+$C$4)/1000*365.25 -> 4.192065563e-06 | L121: =VLOOKUP($D121,Point_Sources_All!$A$6:$Y$207,3*($E$20-2)+$C$4)/1000*365.25 -> 0 | M121: =VLOOKUP($D121,Point_Sources_All!$A$6:$V$207,3*($E$19-2)+$C$4)/1000*365.25 -> 0
D122: 95 | E122: =VLOOKUP($D122,Background_All!$A$5:$D$206,$C$4,)/1000*365.25 -> 9.741902344e-06 | F122: =VLOOKUP($D122,Point_Sources_All!$A$6:$V$207,3*($E$13-2)+$C$4)/1000*365.25 -> 0 | G122: =VLOOKUP($D122,Point_Sources_All!$A$6:$V$207,3*($E$14-2)+$C$4)/1000*365.25 -> 6.2289735e-05 | H122: =VLOOKUP($D122,Point_Sources_All!$A$6:$V$207,3*($E$15-2)+$C$4)/1000*365.25 -> 0 | I122: =VLOOKUP($D122,Point_Sources_All!$A$6:$V$207,3*($E$16-2)+$C$4)/1000*365.25 -> 0 | J122: =VLOOKUP($D122,Point_Sources_All!$A$6:$V$207,3*($E$17-2)+$C$4)/1000*365.25 -> 5.698563537e-07 | K122: =VLOOKUP($D122,Point_Sources_All!$A$6:$V$207,3*($E$18-2)+$C$4)/1000*365.25 -> 3.975928875e-06 | L122: =VLOOKUP($D122,Point_Sources_All!$A$6:$Y$207,3*($E$20-2)+$C$4)/1000*365.25 -> 0 | M122: =VLOOKUP($D122,Point_Sources_All!$A$6:$V$207,3*($E$19-2)+$C$4)/1000*365.25 -> 0
D123: 96 | E123: =VLOOKUP($D123,Background_All!$A$5:$D$206,$C$4,)/1000*365.25 -> 9.985411475e-06 | F123: =VLOOKUP($D123,Point_Sources_All!$A$6:$V$207,3*($E$13-2)+$C$4)/1000*365.25 -> 0 | G123: =VLOOKUP($D123,Point_Sources_All!$A$6:$V$207,3*($E$14-2)+$C$4)/1000*365.25 -> 6.2289735e-05 | H123: =VLOOKUP($D123,Point_Sources_All!$A$6:$V$207,3*($E$15-2)+$C$4)/1000*365.25 -> 0 | I123: =VLOOKUP($D123,Point_Sources_All!$A$6:$V$207,3*($E$16-2)+$C$4)/1000*365.25 -> 0 | J123: =VLOOKUP($D123,Point_Sources_All!$A$6:$V$207,3*($E$17-2)+$C$4)/1000*365.25 -> 5.89603595e-07 | K123: =VLOOKUP($D123,Point_Sources_All!$A$6:$V$207,3*($E$18-2)+$C$4)/1000*365.25 -> 4.764330131e-06 | L123: =VLOOKUP($D123,Point_Sources_All!$A$6:$Y$207,3*($E$20-2)+$C$4)/1000*365.25 -> 0 | M123: =VLOOKUP($D123,Point_Sources_All!$A$6:$V$207,3*($E$19-2)+$C$4)/1000*365.25 -> 0
D124: 97 | E124: =VLOOKUP($D124,Background_All!$A$5:$D$206,$C$4,)/1000*365.25 -> 9.93053875e-06 | F124: =VLOOKUP($D124,Point_Sources_All!$A$6:$V$207,3*($E$13-2)+$C$4)/1000*365.25 -> 0 | G124: =VLOOKUP($D124,Point_Sources_All!$A$6:$V$207,3*($E$14-2)+$C$4)/1000*365.25 -> 6.2289735e-05 | H124: =VLOOKUP($D124,Point_Sources_All!$A$6:$V$207,3*($E$15-2)+$C$4)/1000*365.25 -> 0 | I124: =VLOOKUP($D124,Point_Sources_All!$A$6:$V$207,3*($E$16-2)+$C$4)/1000*365.25 -> 0 | J124: =VLOOKUP($D124,Point_Sources_All!$A$6:$V$207,3*($E$17-2)+$C$4)/1000*365.25 -> 5.585253856e-07 | K124: =VLOOKUP($D124,Point_Sources_All!$A$6:$V$207,3*($E$18-2)+$C$4)/1000*365.25 -> 5.438389875e-06 | L124: =VLOOKUP($D124,Point_Sources_All!$A$6:$Y$207,3*($E$20-2)+$C$4)/1000*365.25 -> 0 | M124: =VLOOKUP($D124,Point_Sources_All!$A$6:$V$207,3*($E$19-2)+$C$4)/1000*365.25 -> 0
D125: 98 | E125: =VLOOKUP($D125,Background_All!$A$5:$D$206,$C$4,)/1000*365.25 -> 1.030721803e-05 | F125: =VLOOKUP($D125,Point_Sources_All!$A$6:$V$207,3*($E$13-2)+$C$4)/1000*365.25 -> 0 | G125: =VLOOKUP($D125,Point_Sources_All!$A$6:$V$207,3*($E$14-2)+$C$4)/1000*365.25 -> 6.2289735e-05 | H125: =VLOOKUP($D125,Point_Sources_All!$A$6:$V$207,3*($E$15-2)+$C$4)/1000*365.25 -> 0 | I125: =VLOOKUP($D125,Point_Sources_All!$A$6:$V$207,3*($E$16-2)+$C$4)/1000*365.25 -> 0 | J125: =VLOOKUP($D125,Point_Sources_All!$A$6:$V$207,3*($E$17-2)+$C$4)/1000*365.25 -> 5.903620975e-07 | K125: =VLOOKUP($D125,Point_Sources_All!$A$6:$V$207,3*($E$18-2)+$C$4)/1000*365.25 -> 4.545231875e-06 | L125: =VLOOKUP($D125,Point_Sources_All!$A$6:$Y$207,3*($E$20-2)+$C$4)/1000*365.25 -> 0 | M125: =VLOOKUP($D125,Point_Sources_All!$A$6:$V$207,3*($E$19-2)+$C$4)/1000*365.25 -> 0
D126: 99 | E126: =VLOOKUP($D126,Background_All!$A$5:$D$206,$C$4,)/1000*365.25 -> 1.028763759e-05 | F126: =VLOOKUP($D126,Point_Sources_All!$A$6:$V$207,3*($E$13-2)+$C$4)/1000*365.25 -> 0 | G126: =VLOOKUP($D126,Point_Sources_All!$A$6:$V$207,3*($E$14-2)+$C$4)/1000*365.25 -> 6.2289735e-05 | H126: =VLOOKUP($D126,Point_Sources_All!$A$6:$V$207,3*($E$15-2)+$C$4)/1000*365.25 -> 0 | I126: =VLOOKUP($D126,Point_Sources_All!$A$6:$V$207,3*($E$16-2)+$C$4)/1000*365.25 -> 0 | J126: =VLOOKUP($D126,Point_Sources_All!$A$6:$V$207,3*($E$17-2)+$C$4)/1000*365.25 -> 5.908539675e-07 | K126: =VLOOKUP($D126,Point_Sources_All!$A$6:$V$207,3*($E$18-2)+$C$4)/1000*365.25 -> 4.249227187e-06 | L126: =VLOOKUP($D126,Point_Sources_All!$A$6:$Y$207,3*($E$20-2)+$C$4)/1000*365.25 -> 0 | M126: =VLOOKUP($D126,Point_Sources_All!$A$6:$V$207,3*($E$19-2)+$C$4)/1000*365.25 -> 0
D127: 100 | E127: =VLOOKUP($D127,Background_All!$A$5:$D$206,$C$4,)/1000*365.25 -> 1.011320332e-05 | F127: =VLOOKUP($D127,Point_Sources_All!$A$6:$V$207,3*($E$13-2)+$C$4)/1000*365.25 -> 0 | G127: =VLOOKUP($D127,Point_Sources_All!$A$6:$V$207,3*($E$14-2)+$C$4)/1000*365.25 -> 6.2289735e-05 | H127: =VLOOKUP($D127,Point_Sources_All!$A$6:$V$207,3*($E$15-2)+$C$4)/1000*365.25 -> 0 | I127: =VLOOKUP($D127,Point_Sources_All!$A$6:$V$207,3*($E$16-2)+$C$4)/1000*365.25 -> 0 | J127: =VLOOKUP($D127,Point_Sources_All!$A$6:$V$207,3*($E$17-2)+$C$4)/1000*365.25 -> 5.750021175e-07 | K127: =VLOOKUP($D127,Point_Sources_All!$A$6:$V$207,3*($E$18-2)+$C$4)/1000*365.25 -> 4.6871315e-06 | L127: =VLOOKUP($D127,Point_Sources_All!$A$6:$Y$207,3*($E$20-2)+$C$4)/1000*365.25 -> 0 | M127: =VLOOKUP($D127,Point_Sources_All!$A$6:$V$207,3*($E$19-2)+$C$4)/1000*365.25 -> 0
D128: 101 | E128: =VLOOKUP($D128,Background_All!$A$5:$D$206,$C$4,)/1000*365.25 -> 1.018515148e-05 | F128: =VLOOKUP($D128,Point_Sources_All!$A$6:$V$207,3*($E$13-2)+$C$4)/1000*365.25 -> 0 | G128: =VLOOKUP($D128,Point_Sources_All!$A$6:$V$207,3*($E$14-2)+$C$4)/1000*365.25 -> 6.2289735e-05 | H128: =VLOOKUP($D128,Point_Sources_All!$A$6:$V$207,3*($E$15-2)+$C$4)/1000*365.25 -> 0 | I128: =VLOOKUP($D128,Point_Sources_All!$A$6:$V$207,3*($E$16-2)+$C$4)/1000*365.25 -> 0 | J128: =VLOOKUP($D128,Point_Sources_All!$A$6:$V$207,3*($E$17-2)+$C$4)/1000*365.25 -> 5.829271294e-07 | K128: =VLOOKUP($D128,Point_Sources_All!$A$6:$V$207,3*($E$18-2)+$C$4)/1000*365.25 -> 4.5751215e-06 | L128: =VLOOKUP($D128,Point_Sources_All!$A$6:$Y$207,3*($E$20-2)+$C$4)/1000*365.25 -> 0 | M128: =VLOOKUP($D128,Point_Sources_All!$A$6:$V$207,3*($E$19-2)+$C$4)/1000*365.25 -> 0
D129: 102 | E129: =VLOOKUP($D129,Background_All!$A$5:$D$206,$C$4,)/1000*365.25 -> 1.005379541e-05 | F129: =VLOOKUP($D129,Point_Sources_All!$A$6:$V$207,3*($E$13-2)+$C$4)/1000*365.25 -> 0 | G129: =VLOOKUP($D129,Point_Sources_All!$A$6:$V$207,3*($E$14-2)+$C$4)/1000*365.25 -> 6.2289735e-05 | H129: =VLOOKUP($D129,Point_Sources_All!$A$6:$V$207,3*($E$15-2)+$C$4)/1000*365.25 -> 0 | I129: =VLOOKUP($D129,Point_Sources_All!$A$6:$V$207,3*($E$16-2)+$C$4)/1000*365.25 -> 0 | J129: =VLOOKUP($D129,Point_Sources_All!$A$6:$V$207,3*($E$17-2)+$C$4)/1000*365.25 -> 5.881982956e-07 | K129: =VLOOKUP($D129,Point_Sources_All!$A$6:$V$207,3*($E$18-2)+$C$4)/1000*365.25 -> 4.180499312e-06 | L129: =VLOOKUP($D129,Point_Sources_All!$A$6:$Y$207,3*($E$20-2)+$C$4)/1000*365.25 -> 0 | M129: =VLOOKUP($D129,Point_Sources_All!$A$6:$V$207,3*($E$19-2)+$C$4)/1000*365.25 -> 0
D130: 103 | E130: =VLOOKUP($D130,Background_All!$A$5:$D$206,$C$4,)/1000*365.25 -> 1.019747562e-05 | F130: =VLOOKUP($D130,Point_Sources_All!$A$6:$V$207,3*($E$13-2)+$C$4)/1000*365.25 -> 0 | G130: =VLOOKUP($D130,Point_Sources_All!$A$6:$V$207,3*($E$14-2)+$C$4)/1000*365.25 -> 6.2289735e-05 | H130: =VLOOKUP($D130,Point_Sources_All!$A$6:$V$207,3*($E$15-2)+$C$4)/1000*365.25 -> 0 | I130: =VLOOKUP($D130,Point_Sources_All!$A$6:$V$207,3*($E$16-2)+$C$4)/1000*365.25 -> 0 | J130: =VLOOKUP($D130,Point_Sources_All!$A$6:$V$207,3*($E$17-2)+$C$4)/1000*365.25 -> 5.766792237e-07 | K130: =VLOOKUP($D130,Point_Sources_All!$A$6:$V$207,3*($E$18-2)+$C$4)/1000*365.25 -> 4.447984062e-06 | L130: =VLOOKUP($D130,Point_Sources_All!$A$6:$Y$207,3*($E$20-2)+$C$4)/1000*365.25 -> 0 | M130: =VLOOKUP($D130,Point_Sources_All!$A$6:$V$207,3*($E$19-2)+$C$4)/1000*365.25 -> 0
D131: 104 | E131: =VLOOKUP($D131,Background_All!$A$5:$D$206,$C$4,)/1000*365.25 -> 1.055679031e-05 | F131: =VLOOKUP($D131,Point_Sources_All!$A$6:$V$207,3*($E$13-2)+$C$4)/1000*365.25 -> 0 | G131: =VLOOKUP($D131,Point_Sources_All!$A$6:$V$207,3*($E$14-2)+$C$4)/1000*365.25 -> 6.2289735e-05 | H131: =VLOOKUP($D131,Point_Sources_All!$A$6:$V$207,3*($E$15-2)+$C$4)/1000*365.25 -> 0 | I131: =VLOOKUP($D131,Point_Sources_All!$A$6:$V$207,3*($E$16-2)+$C$4)/1000*365.25 -> 0 | J131: =VLOOKUP($D131,Point_Sources_All!$A$6:$V$207,3*($E$17-2)+$C$4)/1000*365.25 -> 5.959355081e-07 | K131: =VLOOKUP($D131,Point_Sources_All!$A$6:$V$207,3*($E$18-2)+$C$4)/1000*365.25 -> 4.830400812e-06 | L131: =VLOOKUP($D131,Point_Sources_All!$A$6:$Y$207,3*($E$20-2)+$C$4)/1000*365.25 -> 0 | M131: =VLOOKUP($D131,Point_Sources_All!$A$6:$V$207,3*($E$19-2)+$C$4)/1000*365.25 -> 0
D132: 105 | E132: =VLOOKUP($D132,Background_All!$A$5:$D$206,$C$4,)/1000*365.25 -> 1.053472921e-05 | F132: =VLOOKUP($D132,Point_Sources_All!$A$6:$V$207,3*($E$13-2)+$C$4)/1000*365.25 -> 0 | G132: =VLOOKUP($D132,Point_Sources_All!$A$6:$V$207,3*($E$14-2)+$C$4)/1000*365.25 -> 6.2289735e-05 | H132: =VLOOKUP($D132,Point_Sources_All!$A$6:$V$207,3*($E$15-2)+$C$4)/1000*365.25 -> 0 | I132: =VLOOKUP($D132,Point_Sources_All!$A$6:$V$207,3*($E$16-2)+$C$4)/1000*365.25 -> 0 | J132: =VLOOKUP($D132,Point_Sources_All!$A$6:$V$207,3*($E$17-2)+$C$4)/1000*365.25 -> 5.945557763e-07 | K132: =VLOOKUP($D132,Point_Sources_All!$A$6:$V$207,3*($E$18-2)+$C$4)/1000*365.25 -> 4.15325775e-06 | L132: =VLOOKUP($D132,Point_Sources_All!$A$6:$Y$207,3*($E$20-2)+$C$4)/1000*365.25 -> 0 | M132: =VLOOKUP($D132,Point_Sources_All!$A$6:$V$207,3*($E$19-2)+$C$4)/1000*365.25 -> 0
D133: 106 | E133: =VLOOKUP($D133,Background_All!$A$5:$D$206,$C$4,)/1000*365.25 -> 1.012168929e-05 | F133: =VLOOKUP($D133,Point_Sources_All!$A$6:$V$207,3*($E$13-2)+$C$4)/1000*365.25 -> 0 | G133: =VLOOKUP($D133,Point_Sources_All!$A$6:$V$207,3*($E$14-2)+$C$4)/1000*365.25 -> 6.2289735e-05 | H133: =VLOOKUP($D133,Point_Sources_All!$A$6:$V$207,3*($E$15-2)+$C$4)/1000*365.25 -> 0 | I133: =VLOOKUP($D133,Point_Sources_All!$A$6:$V$207,3*($E$16-2)+$C$4)/1000*365.25 -> 0 | J133: =VLOOKUP($D133,Point_Sources_All!$A$6:$V$207,3*($E$17-2)+$C$4)/1000*365.25 -> 5.969652087e-07 | K133: =VLOOKUP($D133,Point_Sources_All!$A$6:$V$207,3*($E$18-2)+$C$4)/1000*365.25 -> 4.26940725e-06 | L133: =VLOOKUP($D133,Point_Sources_All!$A$6:$Y$207,3*($E$20-2)+$C$4)/1000*365.25 -> 0 | M133: =VLOOKUP($D133,Point_Sources_All!$A$6:$V$207,3*($E$19-2)+$C$4)/1000*365.25 -> 0
D134: 107 | E134: =VLOOKUP($D134,Background_All!$A$5:$D$206,$C$4,)/1000*365.25 -> 1.027141744e-05 | F134: =VLOOKUP($D134,Point_Sources_All!$A$6:$V$207,3*($E$13-2)+$C$4)/1000*365.25 -> 0 | G134: =VLOOKUP($D134,Point_Sources_All!$A$6:$V$207,3*($E$14-2)+$C$4)/1000*365.25 -> 6.2289735e-05 | H134: =VLOOKUP($D134,Point_Sources_All!$A$6:$V$207,3*($E$15-2)+$C$4)/1000*365.25 -> 0 | I134: =VLOOKUP($D134,Point_Sources_All!$A$6:$V$207,3*($E$16-2)+$C$4)/1000*365.25 -> 0 | J134: =VLOOKUP($D134,Point_Sources_All!$A$6:$V$207,3*($E$17-2)+$C$4)/1000*365.25 -> 5.685533244e-07 | K134: =VLOOKUP($D134,Point_Sources_All!$A$6:$V$207,3*($E$18-2)+$C$4)/1000*365.25 -> 4.199614063e-06 | L134: =VLOOKUP($D134,Point_Sources_All!$A$6:$Y$207,3*($E$20-2)+$C$4)/1000*365.25 -> 0 | M134: =VLOOKUP($D134,Point_Sources_All!$A$6:$V$207,3*($E$19-2)+$C$4)/1000*365.25 -> 0
D135: 108 | E135: =VLOOKUP($D135,Background_All!$A$5:$D$206,$C$4,)/1000*365.25 -> 1.022761484e-05 | F135: =VLOOKUP($D135,Point_Sources_All!$A$6:$V$207,3*($E$13-2)+$C$4)/1000*365.25 -> 0 | G135: =VLOOKUP($D135,Point_Sources_All!$A$6:$V$207,3*($E$14-2)+$C$4)/1000*365.25 -> 6.2289735e-05 | H135: =VLOOKUP($D135,Point_Sources_All!$A$6:$V$207,3*($E$15-2)+$C$4)/1000*365.25 -> 0 | I135: =VLOOKUP($D135,Point_Sources_All!$A$6:$V$207,3*($E$16-2)+$C$4)/1000*365.25 -> 0 | J135: =VLOOKUP($D135,Point_Sources_All!$A$6:$V$207,3*($E$17-2)+$C$4)/1000*365.25 -> 5.797141469e-07 | K135: =VLOOKUP($D135,Point_Sources_All!$A$6:$V$207,3*($E$18-2)+$C$4)/1000*365.25 -> 4.661168312e-06 | L135: =VLOOKUP($D135,Point_Sources_All!$A$6:$Y$207,3*($E$20-2)+$C$4)/1000*365.25 -> 0 | M135: =VLOOKUP($D135,Point_Sources_All!$A$6:$V$207,3*($E$19-2)+$C$4)/1000*365.25 -> 0
D136: 109 | E136: =VLOOKUP($D136,Background_All!$A$5:$D$206,$C$4,)/1000*365.25 -> 9.948493831e-06 | F136: =VLOOKUP($D136,Point_Sources_All!$A$6:$V$207,3*($E$13-2)+$C$4)/1000*365.25 -> 0 | G136: =VLOOKUP($D136,Point_Sources_All!$A$6:$V$207,3*($E$14-2)+$C$4)/1000*365.25 -> 6.2289735e-05 | H136: =VLOOKUP($D136,Point_Sources_All!$A$6:$V$207,3*($E$15-2)+$C$4)/1000*365.25 -> 0 | I136: =VLOOKUP($D136,Point_Sources_All!$A$6:$V$207,3*($E$16-2)+$C$4)/1000*365.25 -> 0 | J136: =VLOOKUP($D136,Point_Sources_All!$A$6:$V$207,3*($E$17-2)+$C$4)/1000*365.25 -> 5.668153431e-07 | K136: =VLOOKUP($D136,Point_Sources_All!$A$6:$V$207,3*($E$18-2)+$C$4)/1000*365.25 -> 4.586139875e-06 | L136: =VLOOKUP($D136,Point_Sources_All!$A$6:$Y$207,3*($E$20-2)+$C$4)/1000*365.25 -> 0 | M136: =VLOOKUP($D136,Point_Sources_All!$A$6:$V$207,3*($E$19-2)+$C$4)/1000*365.25 -> 0
D137: 110 | E137: =VLOOKUP($D137,Background_All!$A$5:$D$206,$C$4,)/1000*365.25 -> 1.002130033e-05 | F137: =VLOOKUP($D137,Point_Sources_All!$A$6:$V$207,3*($E$13-2)+$C$4)/1000*365.25 -> 0 | G137: =VLOOKUP($D137,Point_Sources_All!$A$6:$V$207,3*($E$14-2)+$C$4)/1000*365.25 -> 6.2289735e-05 | H137: =VLOOKUP($D137,Point_Sources_All!$A$6:$V$207,3*($E$15-2)+$C$4)/1000*365.25 -> 0 | I137: =VLOOKUP($D137,Point_Sources_All!$A$6:$V$207,3*($E$16-2)+$C$4)/1000*365.25 -> 0 | J137: =VLOOKUP($D137,Point_Sources_All!$A$6:$V$207,3*($E$17-2)+$C$4)/1000*365.25 -> 5.751381731e-07 | K137: =VLOOKUP($D137,Point_Sources_All!$A$6:$V$207,3*($E$18-2)+$C$4)/1000*365.25 -> 3.838320937e-06 | L137: =VLOOKUP($D137,Point_Sources_All!$A$6:$Y$207,3*($E$20-2)+$C$4)/1000*365.25 -> 0 | M137: =VLOOKUP($D137,Point_Sources_All!$A$6:$V$207,3*($E$19-2)+$C$4)/1000*365.25 -> 0
D138: 111 | E138: =VLOOKUP($D138,Background_All!$A$5:$D$206,$C$4,)/1000*365.25 -> 1.010211494e-05 | F138: =VLOOKUP($D138,Point_Sources_All!$A$6:$V$207,3*($E$13-2)+$C$4)/1000*365.25 -> 0 | G138: =VLOOKUP($D138,Point_Sources_All!$A$6:$V$207,3*($E$14-2)+$C$4)/1000*365.25 -> 6.2289735e-05 | H138: =VLOOKUP($D138,Point_Sources_All!$A$6:$V$207,3*($E$15-2)+$C$4)/1000*365.25 -> 0 | I138: =VLOOKUP($D138,Point_Sources_All!$A$6:$V$207,3*($E$16-2)+$C$4)/1000*365.25 -> 0 | J138: =VLOOKUP($D138,Point_Sources_All!$A$6:$V$207,3*($E$17-2)+$C$4)/1000*365.25 -> 5.751068225e-07 | K138: =VLOOKUP($D138,Point_Sources_All!$A$6:$V$207,3*($E$18-2)+$C$4)/1000*365.25 -> 4.331530188e-06 | L138: =VLOOKUP($D138,Point_Sources_All!$A$6:$Y$207,3*($E$20-2)+$C$4)/1000*365.25 -> 0 | M138: =VLOOKUP($D138,Point_Sources_All!$A$6:$V$207,3*($E$19-2)+$C$4)/1000*365.25 -> 0
D139: 112 | E139: =VLOOKUP($D139,Background_All!$A$5:$D$206,$C$4,)/1000*365.25 -> 9.869073262e-06 | F139: =VLOOKUP($D139,Point_Sources_All!$A$6:$V$207,3*($E$13-2)+$C$4)/1000*365.25 -> 0 | G139: =VLOOKUP($D139,Point_Sources_All!$A$6:$V$207,3*($E$14-2)+$C$4)/1000*365.25 -> 6.2289735e-05 | H139: =VLOOKUP($D139,Point_Sources_All!$A$6:$V$207,3*($E$15-2)+$C$4)/1000*365.25 -> 0 | I139: =VLOOKUP($D139,Point_Sources_All!$A$6:$V$207,3*($E$16-2)+$C$4)/1000*365.25 -> 0 | J139: =VLOOKUP($D139,Point_Sources_All!$A$6:$V$207,3*($E$17-2)+$C$4)/1000*365.25 -> 5.796636206e-07 | K139: =VLOOKUP($D139,Point_Sources_All!$A$6:$V$207,3*($E$18-2)+$C$4)/1000*365.25 -> 4.377156e-06 | L139: =VLOOKUP($D139,Point_Sources_All!$A$6:$Y$207,3*($E$20-2)+$C$4)/1000*365.25 -> 0 | M139: =VLOOKUP($D139,Point_Sources_All!$A$6:$V$207,3*($E$19-2)+$C$4)/1000*365.25 -> 0
D140: 113 | E140: =VLOOKUP($D140,Background_All!$A$5:$D$206,$C$4,)/1000*365.25 -> 1.031068182e-05 | F140: =VLOOKUP($D140,Point_Sources_All!$A$6:$V$207,3*($E$13-2)+$C$4)/1000*365.25 -> 0 | G140: =VLOOKUP($D140,Point_Sources_All!$A$6:$V$207,3*($E$14-2)+$C$4)/1000*365.25 -> 6.2289735e-05 | H140: =VLOOKUP($D140,Point_Sources_All!$A$6:$V$207,3*($E$15-2)+$C$4)/1000*365.25 -> 0 | I140: =VLOOKUP($D140,Point_Sources_All!$A$6:$V$207,3*($E$16-2)+$C$4)/1000*365.25 -> 0 | J140: =VLOOKUP($D140,Point_Sources_All!$A$6:$V$207,3*($E$17-2)+$C$4)/1000*365.25 -> 5.778799831e-07 | K140: =VLOOKUP($D140,Point_Sources_All!$A$6:$V$207,3*($E$18-2)+$C$4)/1000*365.25 -> 4.201014188e-06 | L140: =VLOOKUP($D140,Point_Sources_All!$A$6:$Y$207,3*($E$20-2)+$C$4)/1000*365.25 -> 0 | M140: =VLOOKUP($D140,Point_Sources_All!$A$6:$V$207,3*($E$19-2)+$C$4)/1000*365.25 -> 0
D141: 114 | E141: =VLOOKUP($D141,Background_All!$A$5:$D$206,$C$4,)/1000*365.25 -> 1.043385021e-05 | F141: =VLOOKUP($D141,Point_Sources_All!$A$6:$V$207,3*($E$13-2)+$C$4)/1000*365.25 -> 0 | G141: =VLOOKUP($D141,Point_Sources_All!$A$6:$V$207,3*($E$14-2)+$C$4)/1000*365.25 -> 6.2289735e-05 | H141: =VLOOKUP($D141,Point_Sources_All!$A$6:$V$207,3*($E$15-2)+$C$4)/1000*365.25 -> 0 | I141: =VLOOKUP($D141,Point_Sources_All!$A$6:$V$207,3*($E$16-2)+$C$4)/1000*365.25 -> 0 | J141: =VLOOKUP($D141,Point_Sources_All!$A$6:$V$207,3*($E$17-2)+$C$4)/1000*365.25 -> 5.797792831e-07 | K141: =VLOOKUP($D141,Point_Sources_All!$A$6:$V$207,3*($E$18-2)+$C$4)/1000*365.25 -> 4.214802375e-06 | L141: =VLOOKUP($D141,Point_Sources_All!$A$6:$Y$207,3*($E$20-2)+$C$4)/1000*365.25 -> 0 | M141: =VLOOKUP($D141,Point_Sources_All!$A$6:$V$207,3*($E$19-2)+$C$4)/1000*365.25 -> 0
D142: 115 | E142: =VLOOKUP($D142,Background_All!$A$5:$D$206,$C$4,)/1000*365.25 -> 9.6801964e-06 | F142: =VLOOKUP($D142,Point_Sources_All!$A$6:$V$207,3*($E$13-2)+$C$4)/1000*365.25 -> 0 | G142: =VLOOKUP($D142,Point_Sources_All!$A$6:$V$207,3*($E$14-2)+$C$4)/1000*365.25 -> 6.2289735e-05 | H142: =VLOOKUP($D142,Point_Sources_All!$A$6:$V$207,3*($E$15-2)+$C$4)/1000*365.25 -> 0 | I142: =VLOOKUP($D142,Point_Sources_All!$A$6:$V$207,3*($E$16-2)+$C$4)/1000*365.25 -> 0 | J142: =VLOOKUP($D142,Point_Sources_All!$A$6:$V$207,3*($E$17-2)+$C$4)/1000*365.25 -> 5.791854475e-07 | K142: =VLOOKUP($D142,Point_Sources_All!$A$6:$V$207,3*($E$18-2)+$C$4)/1000*365.25 -> 4.12647275e-06 | L142: =VLOOKUP($D142,Point_Sources_All!$A$6:$Y$207,3*($E$20-2)+$C$4)/1000*365.25 -> 0 | M142: =VLOOKUP($D142,Point_Sources_All!$A$6:$V$207,3*($E$19-2)+$C$4)/1000*365.25 -> 0
D143: 116 | E143: =VLOOKUP($D143,Background_All!$A$5:$D$206,$C$4,)/1000*365.25 -> 1.023467025e-05 | F143: =VLOOKUP($D143,Point_Sources_All!$A$6:$V$207,3*($E$13-2)+$C$4)/1000*365.25 -> 0 | G143: =VLOOKUP($D143,Point_Sources_All!$A$6:$V$207,3*($E$14-2)+$C$4)/1000*365.25 -> 6.2289735e-05 | H143: =VLOOKUP($D143,Point_Sources_All!$A$6:$V$207,3*($E$15-2)+$C$4)/1000*365.25 -> 0 | I143: =VLOOKUP($D143,Point_Sources_All!$A$6:$V$207,3*($E$16-2)+$C$4)/1000*365.25 -> 0 | J143: =VLOOKUP($D143,Point_Sources_All!$A$6:$V$207,3*($E$17-2)+$C$4)/1000*365.25 -> 5.8762394e-07 | K143: =VLOOKUP($D143,Point_Sources_All!$A$6:$V$207,3*($E$18-2)+$C$4)/1000*365.25 -> 4.279542938e-06 | L143: =VLOOKUP($D143,Point_Sources_All!$A$6:$Y$207,3*($E$20-2)+$C$4)/1000*365.25 -> 0 | M143: =VLOOKUP($D143,Point_Sources_All!$A$6:$V$207,3*($E$19-2)+$C$4)/1000*365.25 -> 0
D144: 117 | E144: =VLOOKUP($D144,Background_All!$A$5:$D$206,$C$4,)/1000*365.25 -> 9.817503006e-06 | F144: =VLOOKUP($D144,Point_Sources_All!$A$6:$V$207,3*($E$13-2)+$C$4)/1000*365.25 -> 0 | G144: =VLOOKUP($D144,Point_Sources_All!$A$6:$V$207,3*($E$14-2)+$C$4)/1000*365.25 -> 6.2289735e-05 | H144: =VLOOKUP($D144,Point_Sources_All!$A$6:$V$207,3*($E$15-2)+$C$4)/1000*365.25 -> 0 | I144: =VLOOKUP($D144,Point_Sources_All!$A$6:$V$207,3*($E$16-2)+$C$4)/1000*365.25 -> 0 | J144: =VLOOKUP($D144,Point_Sources_All!$A$6:$V$207,3*($E$17-2)+$C$4)/1000*365.25 -> 5.675141881e-07 | K144: =VLOOKUP($D144,Point_Sources_All!$A$6:$V$207,3*($E$18-2)+$C$4)/1000*365.25 -> 4.212123875e-06 | L144: =VLOOKUP($D144,Point_Sources_All!$A$6:$Y$207,3*($E$20-2)+$C$4)/1000*365.25 -> 0 | M144: =VLOOKUP($D144,Point_Sources_All!$A$6:$V$207,3*($E$19-2)+$C$4)/1000*365.25 -> 0
D145: 118 | E145: =VLOOKUP($D145,Background_All!$A$5:$D$206,$C$4,)/1000*365.25 -> 9.8543476e-06 | F145: =VLOOKUP($D145,Point_Sources_All!$A$6:$V$207,3*($E$13-2)+$C$4)/1000*365.25 -> 0 | G145: =VLOOKUP($D145,Point_Sources_All!$A$6:$V$207,3*($E$14-2)+$C$4)/1000*365.25 -> 6.2289735e-05 | H145: =VLOOKUP($D145,Point_Sources_All!$A$6:$V$207,3*($E$15-2)+$C$4)/1000*365.25 -> 0 | I145: =VLOOKUP($D145,Point_Sources_All!$A$6:$V$207,3*($E$16-2)+$C$4)/1000*365.25 -> 0 | J145: =VLOOKUP($D145,Point_Sources_All!$A$6:$V$207,3*($E$17-2)+$C$4)/1000*365.25 -> 5.798529419e-07 | K145: =VLOOKUP($D145,Point_Sources_All!$A$6:$V$207,3*($E$18-2)+$C$4)/1000*365.25 -> 3.973615625e-06 | L145: =VLOOKUP($D145,Point_Sources_All!$A$6:$Y$207,3*($E$20-2)+$C$4)/1000*365.25 -> 0 | M145: =VLOOKUP($D145,Point_Sources_All!$A$6:$V$207,3*($E$19-2)+$C$4)/1000*365.25 -> 0
D146: 119 | E146: =VLOOKUP($D146,Background_All!$A$5:$D$206,$C$4,)/1000*365.25 -> 1.03827426e-05 | F146: =VLOOKUP($D146,Point_Sources_All!$A$6:$V$207,3*($E$13-2)+$C$4)/1000*365.25 -> 0 | G146: =VLOOKUP($D146,Point_Sources_All!$A$6:$V$207,3*($E$14-2)+$C$4)/1000*365.25 -> 6.2289735e-05 | H146: =VLOOKUP($D146,Point_Sources_All!$A$6:$V$207,3*($E$15-2)+$C$4)/1000*365.25 -> 0 | I146: =VLOOKUP($D146,Point_Sources_All!$A$6:$V$207,3*($E$16-2)+$C$4)/1000*365.25 -> 0 | J146: =VLOOKUP($D146,Point_Sources_All!$A$6:$V$207,3*($E$17-2)+$C$4)/1000*365.25 -> 5.754203287e-07 | K146: =VLOOKUP($D146,Point_Sources_All!$A$6:$V$207,3*($E$18-2)+$C$4)/1000*365.25 -> 4.332260687e-06 | L146: =VLOOKUP($D146,Point_Sources_All!$A$6:$Y$207,3*($E$20-2)+$C$4)/1000*365.25 -> 0 | M146: =VLOOKUP($D146,Point_Sources_All!$A$6:$V$207,3*($E$19-2)+$C$4)/1000*365.25 -> 0
D147: 120 | E147: =VLOOKUP($D147,Background_All!$A$5:$D$206,$C$4,)/1000*365.25 -> 1.051086317e-05 | F147: =VLOOKUP($D147,Point_Sources_All!$A$6:$V$207,3*($E$13-2)+$C$4)/1000*365.25 -> 0 | G147: =VLOOKUP($D147,Point_Sources_All!$A$6:$V$207,3*($E$14-2)+$C$4)/1000*365.25 -> 6.2289735e-05 | H147: =VLOOKUP($D147,Point_Sources_All!$A$6:$V$207,3*($E$15-2)+$C$4)/1000*365.25 -> 0 | I147: =VLOOKUP($D147,Point_Sources_All!$A$6:$V$207,3*($E$16-2)+$C$4)/1000*365.25 -> 0 | J147: =VLOOKUP($D147,Point_Sources_All!$A$6:$V$207,3*($E$17-2)+$C$4)/1000*365.25 -> 5.96197575e-07 | K147: =VLOOKUP($D147,Point_Sources_All!$A$6:$V$207,3*($E$18-2)+$C$4)/1000*365.25 -> 4.611950875e-06 | L147: =VLOOKUP($D147,Point_Sources_All!$A$6:$Y$207,3*($E$20-2)+$C$4)/1000*365.25 -> 0 | M147: =VLOOKUP($D147,Point_Sources_All!$A$6:$V$207,3*($E$19-2)+$C$4)/1000*365.25 -> 0
D148: 121 | E148: =VLOOKUP($D148,Background_All!$A$5:$D$206,$C$4,)/1000*365.25 -> 9.778975219e-06 | F148: =VLOOKUP($D148,Point_Sources_All!$A$6:$V$207,3*($E$13-2)+$C$4)/1000*365.25 -> 0 | G148: =VLOOKUP($D148,Point_Sources_All!$A$6:$V$207,3*($E$14-2)+$C$4)/1000*365.25 -> 6.2289735e-05 | H148: =VLOOKUP($D148,Point_Sources_All!$A$6:$V$207,3*($E$15-2)+$C$4)/1000*365.25 -> 0 | I148: =VLOOKUP($D148,Point_Sources_All!$A$6:$V$207,3*($E$16-2)+$C$4)/1000*365.25 -> 0 | J148: =VLOOKUP($D148,Point_Sources_All!$A$6:$V$207,3*($E$17-2)+$C$4)/1000*365.25 -> 5.634093869e-07 | K148: =VLOOKUP($D148,Point_Sources_All!$A$6:$V$207,3*($E$18-2)+$C$4)/1000*365.25 -> 4.379195313e-06 | L148: =VLOOKUP($D148,Point_Sources_All!$A$6:$Y$207,3*($E$20-2)+$C$4)/1000*365.25 -> 0 | M148: =VLOOKUP($D148,Point_Sources_All!$A$6:$V$207,3*($E$19-2)+$C$4)/1000*365.25 -> 0
D149: 122 | E149: =VLOOKUP($D149,Background_All!$A$5:$D$206,$C$4,)/1000*365.25 -> 1.017355784e-05 | F149: =VLOOKUP($D149,Point_Sources_All!$A$6:$V$207,3*($E$13-2)+$C$4)/1000*365.25 -> 0 | G149: =VLOOKUP($D149,Point_Sources_All!$A$6:$V$207,3*($E$14-2)+$C$4)/1000*365.25 -> 6.2289735e-05 | H149: =VLOOKUP($D149,Point_Sources_All!$A$6:$V$207,3*($E$15-2)+$C$4)/1000*365.25 -> 0 | I149: =VLOOKUP($D149,Point_Sources_All!$A$6:$V$207,3*($E$16-2)+$C$4)/1000*365.25 -> 0 | J149: =VLOOKUP($D149,Point_Sources_All!$A$6:$V$207,3*($E$17-2)+$C$4)/1000*365.25 -> 5.768012781e-07 | K149: =VLOOKUP($D149,Point_Sources_All!$A$6:$V$207,3*($E$18-2)+$C$4)/1000*365.25 -> 4.126777125e-06 | L149: =VLOOKUP($D149,Point_Sources_All!$A$6:$Y$207,3*($E$20-2)+$C$4)/1000*365.25 -> 0 | M149: =VLOOKUP($D149,Point_Sources_All!$A$6:$V$207,3*($E$19-2)+$C$4)/1000*365.25 -> 0
D150: 123 | E150: =VLOOKUP($D150,Background_All!$A$5:$D$206,$C$4,)/1000*365.25 -> 9.8042353e-06 | F150: =VLOOKUP($D150,Point_Sources_All!$A$6:$V$207,3*($E$13-2)+$C$4)/1000*365.25 -> 0 | G150: =VLOOKUP($D150,Point_Sources_All!$A$6:$V$207,3*($E$14-2)+$C$4)/1000*365.25 -> 6.2289735e-05 | H150: =VLOOKUP($D150,Point_Sources_All!$A$6:$V$207,3*($E$15-2)+$C$4)/1000*365.25 -> 0 | I150: =VLOOKUP($D150,Point_Sources_All!$A$6:$V$207,3*($E$16-2)+$C$4)/1000*365.25 -> 0 | J150: =VLOOKUP($D150,Point_Sources_All!$A$6:$V$207,3*($E$17-2)+$C$4)/1000*365.25 -> 5.783828106e-07 | K150: =VLOOKUP($D150,Point_Sources_All!$A$6:$V$207,3*($E$18-2)+$C$4)/1000*365.25 -> 3.92534175e-06 | L150: =VLOOKUP($D150,Point_Sources_All!$A$6:$Y$207,3*($E$20-2)+$C$4)/1000*365.25 -> 0 | M150: =VLOOKUP($D150,Point_Sources_All!$A$6:$V$207,3*($E$19-2)+$C$4)/1000*365.25 -> 0
D151: 124 | E151: =VLOOKUP($D151,Background_All!$A$5:$D$206,$C$4,)/1000*365.25 -> 1.030987218e-05 | F151: =VLOOKUP($D151,Point_Sources_All!$A$6:$V$207,3*($E$13-2)+$C$4)/1000*365.25 -> 0 | G151: =VLOOKUP($D151,Point_Sources_All!$A$6:$V$207,3*($E$14-2)+$C$4)/1000*365.25 -> 6.2289735e-05 | H151: =VLOOKUP($D151,Point_Sources_All!$A$6:$V$207,3*($E$15-2)+$C$4)/1000*365.25 -> 0 | I151: =VLOOKUP($D151,Point_Sources_All!$A$6:$V$207,3*($E$16-2)+$C$4)/1000*365.25 -> 0 | J151: =VLOOKUP($D151,Point_Sources_All!$A$6:$V$207,3*($E$17-2)+$C$4)/1000*365.25 -> 5.859453119e-07 | K151: =VLOOKUP($D151,Point_Sources_All!$A$6:$V$207,3*($E$18-2)+$C$4)/1000*365.25 -> 3.89806975e-06 | L151: =VLOOKUP($D151,Point_Sources_All!$A$6:$Y$207,3*($E$20-2)+$C$4)/1000*365.25 -> 0 | M151: =VLOOKUP($D151,Point_Sources_All!$A$6:$V$207,3*($E$19-2)+$C$4)/1000*365.25 -> 0
D152: 125 | E152: =VLOOKUP($D152,Background_All!$A$5:$D$206,$C$4,)/1000*365.25 -> 9.764931356e-06 | F152: =VLOOKUP($D152,Point_Sources_All!$A$6:$V$207,3*($E$13-2)+$C$4)/1000*365.25 -> 0 | G152: =VLOOKUP($D152,Point_Sources_All!$A$6:$V$207,3*($E$14-2)+$C$4)/1000*365.25 -> 6.2289735e-05 | H152: =VLOOKUP($D152,Point_Sources_All!$A$6:$V$207,3*($E$15-2)+$C$4)/1000*365.25 -> 0 | I152: =VLOOKUP($D152,Point_Sources_All!$A$6:$V$207,3*($E$16-2)+$C$4)/1000*365.25 -> 0 | J152: =VLOOKUP($D152,Point_Sources_All!$A$6:$V$207,3*($E$17-2)+$C$4)/1000*365.25 -> 5.760220781e-07 | K152: =VLOOKUP($D152,Point_Sources_All!$A$6:$V$207,3*($E$18-2)+$C$4)/1000*365.25 -> 4.04368275e-06 | L152: =VLOOKUP($D152,Point_Sources_All!$A$6:$Y$207,3*($E$20-2)+$C$4)/1000*365.25 -> 0 | M152: =VLOOKUP($D152,Point_Sources_All!$A$6:$V$207,3*($E$19-2)+$C$4)/1000*365.25 -> 0
D153: 126 | E153: =VLOOKUP($D153,Background_All!$A$5:$D$206,$C$4,)/1000*365.25 -> 1.034816256e-05 | F153: =VLOOKUP($D153,Point_Sources_All!$A$6:$V$207,3*($E$13-2)+$C$4)/1000*365.25 -> 0 | G153: =VLOOKUP($D153,Point_Sources_All!$A$6:$V$207,3*($E$14-2)+$C$4)/1000*365.25 -> 6.2289735e-05 | H153: =VLOOKUP($D153,Point_Sources_All!$A$6:$V$207,3*($E$15-2)+$C$4)/1000*365.25 -> 0 | I153: =VLOOKUP($D153,Point_Sources_All!$A$6:$V$207,3*($E$16-2)+$C$4)/1000*365.25 -> 0 | J153: =VLOOKUP($D153,Point_Sources_All!$A$6:$V$207,3*($E$17-2)+$C$4)/1000*365.25 -> 5.8296822e-07 | K153: =VLOOKUP($D153,Point_Sources_All!$A$6:$V$207,3*($E$18-2)+$C$4)/1000*365.25 -> 3.972124187e-06 | L153: =VLOOKUP($D153,Point_Sources_All!$A$6:$Y$207,3*($E$20-2)+$C$4)/1000*365.25 -> 0 | M153: =VLOOKUP($D153,Point_Sources_All!$A$6:$V$207,3*($E$19-2)+$C$4)/1000*365.25 -> 0
D154: 127 | E154: =VLOOKUP($D154,Background_All!$A$5:$D$206,$C$4,)/1000*365.25 -> 1.051452784e-05 | F154: =VLOOKUP($D154,Point_Sources_All!$A$6:$V$207,3*($E$13-2)+$C$4)/1000*365.25 -> 0 | G154: =VLOOKUP($D154,Point_Sources_All!$A$6:$V$207,3*($E$14-2)+$C$4)/1000*365.25 -> 6.2289735e-05 | H154: =VLOOKUP($D154,Point_Sources_All!$A$6:$V$207,3*($E$15-2)+$C$4)/1000*365.25 -> 0 | I154: =VLOOKUP($D154,Point_Sources_All!$A$6:$V$207,3*($E$16-2)+$C$4)/1000*365.25 -> 0 | J154: =VLOOKUP($D154,Point_Sources_All!$A$6:$V$207,3*($E$17-2)+$C$4)/1000*365.25 -> 6.052916913e-07 | K154: =VLOOKUP($D154,Point_Sources_All!$A$6:$V$207,3*($E$18-2)+$C$4)/1000*365.25 -> 4.061640875e-06 | L154: =VLOOKUP($D154,Point_Sources_All!$A$6:$Y$207,3*($E$20-2)+$C$4)/1000*365.25 -> 0 | M154: =VLOOKUP($D154,Point_Sources_All!$A$6:$V$207,3*($E$19-2)+$C$4)/1000*365.25 -> 0
D155: 128 | E155: =VLOOKUP($D155,Background_All!$A$5:$D$206,$C$4,)/1000*365.25 -> 9.929853906e-06 | F155: =VLOOKUP($D155,Point_Sources_All!$A$6:$V$207,3*($E$13-2)+$C$4)/1000*365.25 -> 0 | G155: =VLOOKUP($D155,Point_Sources_All!$A$6:$V$207,3*($E$14-2)+$C$4)/1000*365.25 -> 6.2289735e-05 | H155: =VLOOKUP($D155,Point_Sources_All!$A$6:$V$207,3*($E$15-2)+$C$4)/1000*365.25 -> 0 | I155: =VLOOKUP($D155,Point_Sources_All!$A$6:$V$207,3*($E$16-2)+$C$4)/1000*365.25 -> 0 | J155: =VLOOKUP($D155,Point_Sources_All!$A$6:$V$207,3*($E$17-2)+$C$4)/1000*365.25 -> 5.686029375e-07 | K155: =VLOOKUP($D155,Point_Sources_All!$A$6:$V$207,3*($E$18-2)+$C$4)/1000*365.25 -> 4.636468281e-06 | L155: =VLOOKUP($D155,Point_Sources_All!$A$6:$Y$207,3*($E$20-2)+$C$4)/1000*365.25 -> 0 | M155: =VLOOKUP($D155,Point_Sources_All!$A$6:$V$207,3*($E$19-2)+$C$4)/1000*365.25 -> 0
D156: 129 | E156: =VLOOKUP($D156,Background_All!$A$5:$D$206,$C$4,)/1000*365.25 -> 1.028187577e-05 | F156: =VLOOKUP($D156,Point_Sources_All!$A$6:$V$207,3*($E$13-2)+$C$4)/1000*365.25 -> 0 | G156: =VLOOKUP($D156,Point_Sources_All!$A$6:$V$207,3*($E$14-2)+$C$4)/1000*365.25 -> 6.2289735e-05 | H156: =VLOOKUP($D156,Point_Sources_All!$A$6:$V$207,3*($E$15-2)+$C$4)/1000*365.25 -> 0 | I156: =VLOOKUP($D156,Point_Sources_All!$A$6:$V$207,3*($E$16-2)+$C$4)/1000*365.25 -> 0 | J156: =VLOOKUP($D156,Point_Sources_All!$A$6:$V$207,3*($E$17-2)+$C$4)/1000*365.25 -> 5.854363969e-07 | K156: =VLOOKUP($D156,Point_Sources_All!$A$6:$V$207,3*($E$18-2)+$C$4)/1000*365.25 -> 4.150000937e-06 | L156: =VLOOKUP($D156,Point_Sources_All!$A$6:$Y$207,3*($E$20-2)+$C$4)/1000*365.25 -> 0 | M156: =VLOOKUP($D156,Point_Sources_All!$A$6:$V$207,3*($E$19-2)+$C$4)/1000*365.25 -> 0
D157: 130 | E157: =VLOOKUP($D157,Background_All!$A$5:$D$206,$C$4,)/1000*365.25 -> 1.040481892e-05 | F157: =VLOOKUP($D157,Point_Sources_All!$A$6:$V$207,3*($E$13-2)+$C$4)/1000*365.25 -> 0 | G157: =VLOOKUP($D157,Point_Sources_All!$A$6:$V$207,3*($E$14-2)+$C$4)/1000*365.25 -> 6.2289735e-05 | H157: =VLOOKUP($D157,Point_Sources_All!$A$6:$V$207,3*($E$15-2)+$C$4)/1000*365.25 -> 0 | I157: =VLOOKUP($D157,Point_Sources_All!$A$6:$V$207,3*($E$16-2)+$C$4)/1000*365.25 -> 0 | J157: =VLOOKUP($D157,Point_Sources_All!$A$6:$V$207,3*($E$17-2)+$C$4)/1000*365.25 -> 5.824343462e-07 | K157: =VLOOKUP($D157,Point_Sources_All!$A$6:$V$207,3*($E$18-2)+$C$4)/1000*365.25 -> 4.3209075e-06 | L157: =VLOOKUP($D157,Point_Sources_All!$A$6:$Y$207,3*($E$20-2)+$C$4)/1000*365.25 -> 0 | M157: =VLOOKUP($D157,Point_Sources_All!$A$6:$V$207,3*($E$19-2)+$C$4)/1000*365.25 -> 0
D158: 131 | E158: =VLOOKUP($D158,Background_All!$A$5:$D$206,$C$4,)/1000*365.25 -> 9.934334306e-06 | F158: =VLOOKUP($D158,Point_Sources_All!$A$6:$V$207,3*($E$13-2)+$C$4)/1000*365.25 -> 0 | G158: =VLOOKUP($D158,Point_Sources_All!$A$6:$V$207,3*($E$14-2)+$C$4)/1000*365.25 -> 6.2289735e-05 | H158: =VLOOKUP($D158,Point_Sources_All!$A$6:$V$207,3*($E$15-2)+$C$4)/1000*365.25 -> 0 | I158: =VLOOKUP($D158,Point_Sources_All!$A$6:$V$207,3*($E$16-2)+$C$4)/1000*365.25 -> 0 | J158: =VLOOKUP($D158,Point_Sources_All!$A$6:$V$207,3*($E$17-2)+$C$4)/1000*365.25 -> 5.842158531e-07 | K158: =VLOOKUP($D158,Point_Sources_All!$A$6:$V$207,3*($E$18-2)+$C$4)/1000*365.25 -> 4.571529875e-06 | L158: =VLOOKUP($D158,Point_Sources_All!$A$6:$Y$207,3*($E$20-2)+$C$4)/1000*365.25 -> 0 | M158: =VLOOKUP($D158,Point_Sources_All!$A$6:$V$207,3*($E$19-2)+$C$4)/1000*365.25 -> 0
D159: 132 | E159: =VLOOKUP($D159,Background_All!$A$5:$D$206,$C$4,)/1000*365.25 -> 1.001265304e-05 | F159: =VLOOKUP($D159,Point_Sources_All!$A$6:$V$207,3*($E$13-2)+$C$4)/1000*365.25 -> 0 | G159: =VLOOKUP($D159,Point_Sources_All!$A$6:$V$207,3*($E$14-2)+$C$4)/1000*365.25 -> 6.2289735e-05 | H159: =VLOOKUP($D159,Point_Sources_All!$A$6:$V$207,3*($E$15-2)+$C$4)/1000*365.25 -> 0 | I159: =VLOOKUP($D159,Point_Sources_All!$A$6:$V$207,3*($E$16-2)+$C$4)/1000*365.25 -> 0 | J159: =VLOOKUP($D159,Point_Sources_All!$A$6:$V$207,3*($E$17-2)+$C$4)/1000*365.25 -> 5.756869613e-07 | K159: =VLOOKUP($D159,Point_Sources_All!$A$6:$V$207,3*($E$18-2)+$C$4)/1000*365.25 -> 4.660498688e-06 | L159: =VLOOKUP($D159,Point_Sources_All!$A$6:$Y$207,3*($E$20-2)+$C$4)/1000*365.25 -> 0 | M159: =VLOOKUP($D159,Point_Sources_All!$A$6:$V$207,3*($E$19-2)+$C$4)/1000*365.25 -> 0
D160: 133 | E160: =VLOOKUP($D160,Background_All!$A$5:$D$206,$C$4,)/1000*365.25 -> 1.033432567e-05 | F160: =VLOOKUP($D160,Point_Sources_All!$A$6:$V$207,3*($E$13-2)+$C$4)/1000*365.25 -> 0 | G160: =VLOOKUP($D160,Point_Sources_All!$A$6:$V$207,3*($E$14-2)+$C$4)/1000*365.25 -> 6.2289735e-05 | H160: =VLOOKUP($D160,Point_Sources_All!$A$6:$V$207,3*($E$15-2)+$C$4)/1000*365.25 -> 0 | I160: =VLOOKUP($D160,Point_Sources_All!$A$6:$V$207,3*($E$16-2)+$C$4)/1000*365.25 -> 0 | J160: =VLOOKUP($D160,Point_Sources_All!$A$6:$V$207,3*($E$17-2)+$C$4)/1000*365.25 -> 5.772380563e-07 | K160: =VLOOKUP($D160,Point_Sources_All!$A$6:$V$207,3*($E$18-2)+$C$4)/1000*365.25 -> 4.730718e-06 | L160: =VLOOKUP($D160,Point_Sources_All!$A$6:$Y$207,3*($E$20-2)+$C$4)/1000*365.25 -> 0 | M160: =VLOOKUP($D160,Point_Sources_All!$A$6:$V$207,3*($E$19-2)+$C$4)/1000*365.25 -> 0
D161: 134 | E161: =VLOOKUP($D161,Background_All!$A$5:$D$206,$C$4,)/1000*365.25 -> 1.025861239e-05 | F161: =VLOOKUP($D161,Point_Sources_All!$A$6:$V$207,3*($E$13-2)+$C$4)/1000*365.25 -> 0 | G161: =VLOOKUP($D161,Point_Sources_All!$A$6:$V$207,3*($E$14-2)+$C$4)/1000*365.25 -> 6.2289735e-05 | H161: =VLOOKUP($D161,Point_Sources_All!$A$6:$V$207,3*($E$15-2)+$C$4)/1000*365.25 -> 0 | I161: =VLOOKUP($D161,Point_Sources_All!$A$6:$V$207,3*($E$16-2)+$C$4)/1000*365.25 -> 0 | J161: =VLOOKUP($D161,Point_Sources_All!$A$6:$V$207,3*($E$17-2)+$C$4)/1000*365.25 -> 5.796620988e-07 | K161: =VLOOKUP($D161,Point_Sources_All!$A$6:$V$207,3*($E$18-2)+$C$4)/1000*365.25 -> 4.2634415e-06 | L161: =VLOOKUP($D161,Point_Sources_All!$A$6:$Y$207,3*($E$20-2)+$C$4)/1000*365.25 -> 0 | M161: =VLOOKUP($D161,Point_Sources_All!$A$6:$V$207,3*($E$19-2)+$C$4)/1000*365.25 -> 0
D162: 135 | E162: =VLOOKUP($D162,Background_All!$A$5:$D$206,$C$4,)/1000*365.25 -> 9.860289e-06 | F162: =VLOOKUP($D162,Point_Sources_All!$A$6:$V$207,3*($E$13-2)+$C$4)/1000*365.25 -> 0 | G162: =VLOOKUP($D162,Point_Sources_All!$A$6:$V$207,3*($E$14-2)+$C$4)/1000*365.25 -> 6.2289735e-05 | H162: =VLOOKUP($D162,Point_Sources_All!$A$6:$V$207,3*($E$15-2)+$C$4)/1000*365.25 -> 0 | I162: =VLOOKUP($D162,Point_Sources_All!$A$6:$V$207,3*($E$16-2)+$C$4)/1000*365.25 -> 0 | J162: =VLOOKUP($D162,Point_Sources_All!$A$6:$V$207,3*($E$17-2)+$C$4)/1000*365.25 -> 5.814758694e-07 | K162: =VLOOKUP($D162,Point_Sources_All!$A$6:$V$207,3*($E$18-2)+$C$4)/1000*365.25 -> 4.405919437e-06 | L162: =VLOOKUP($D162,Point_Sources_All!$A$6:$Y$207,3*($E$20-2)+$C$4)/1000*365.25 -> 0 | M162: =VLOOKUP($D162,Point_Sources_All!$A$6:$V$207,3*($E$19-2)+$C$4)/1000*365.25 -> 0
D163: 136 | E163: =VLOOKUP($D163,Background_All!$A$5:$D$206,$C$4,)/1000*365.25 -> 1.047499258e-05 | F163: =VLOOKUP($D163,Point_Sources_All!$A$6:$V$207,3*($E$13-2)+$C$4)/1000*365.25 -> 0 | G163: =VLOOKUP($D163,Point_Sources_All!$A$6:$V$207,3*($E$14-2)+$C$4)/1000*365.25 -> 6.2289735e-05 | H163: =VLOOKUP($D163,Point_Sources_All!$A$6:$V$207,3*($E$15-2)+$C$4)/1000*365.25 -> 0 | I163: =VLOOKUP($D163,Point_Sources_All!$A$6:$V$207,3*($E$16-2)+$C$4)/1000*365.25 -> 0 | J163: =VLOOKUP($D163,Point_Sources_All!$A$6:$V$207,3*($E$17-2)+$C$4)/1000*365.25 -> 5.843522131e-07 | K163: =VLOOKUP($D163,Point_Sources_All!$A$6:$V$207,3*($E$18-2)+$C$4)/1000*365.25 -> 4.8595295e-06 | L163: =VLOOKUP($D163,Point_Sources_All!$A$6:$Y$207,3*($E$20-2)+$C$4)/1000*365.25 -> 0 | M163: =VLOOKUP($D163,Point_Sources_All!$A$6:$V$207,3*($E$19-2)+$C$4)/1000*365.25 -> 0
D164: 137 | E164: =VLOOKUP($D164,Background_All!$A$5:$D$206,$C$4,)/1000*365.25 -> 1.028366549e-05 | F164: =VLOOKUP($D164,Point_Sources_All!$A$6:$V$207,3*($E$13-2)+$C$4)/1000*365.25 -> 0 | G164: =VLOOKUP($D164,Point_Sources_All!$A$6:$V$207,3*($E$14-2)+$C$4)/1000*365.25 -> 6.2289735e-05 | H164: =VLOOKUP($D164,Point_Sources_All!$A$6:$V$207,3*($E$15-2)+$C$4)/1000*365.25 -> 0 | I164: =VLOOKUP($D164,Point_Sources_All!$A$6:$V$207,3*($E$16-2)+$C$4)/1000*365.25 -> 0 | J164: =VLOOKUP($D164,Point_Sources_All!$A$6:$V$207,3*($E$17-2)+$C$4)/1000*365.25 -> 5.896093781e-07 | K164: =VLOOKUP($D164,Point_Sources_All!$A$6:$V$207,3*($E$18-2)+$C$4)/1000*365.25 -> 4.31810725e-06 | L164: =VLOOKUP($D164,Point_Sources_All!$A$6:$Y$207,3*($E$20-2)+$C$4)/1000*365.25 -> 0 | M164: =VLOOKUP($D164,Point_Sources_All!$A$6:$V$207,3*($E$19-2)+$C$4)/1000*365.25 -> 0
D165: 138 | E165: =VLOOKUP($D165,Background_All!$A$5:$D$206,$C$4,)/1000*365.25 -> 9.766383225e-06 | F165: =VLOOKUP($D165,Point_Sources_All!$A$6:$V$207,3*($E$13-2)+$C$4)/1000*365.25 -> 0 | G165: =VLOOKUP($D165,Point_Sources_All!$A$6:$V$207,3*($E$14-2)+$C$4)/1000*365.25 -> 6.2289735e-05 | H165: =VLOOKUP($D165,Point_Sources_All!$A$6:$V$207,3*($E$15-2)+$C$4)/1000*365.25 -> 0 | I165: =VLOOKUP($D165,Point_Sources_All!$A$6:$V$207,3*($E$16-2)+$C$4)/1000*365.25 -> 0 | J165: =VLOOKUP($D165,Point_Sources_All!$A$6:$V$207,3*($E$17-2)+$C$4)/1000*365.25 -> 5.669806187e-07 | K165: =VLOOKUP($D165,Point_Sources_All!$A$6:$V$207,3*($E$18-2)+$C$4)/1000*365.25 -> 4.330221375e-06 | L165: =VLOOKUP($D165,Point_Sources_All!$A$6:$Y$207,3*($E$20-2)+$C$4)/1000*365.25 -> 0 | M165: =VLOOKUP($D165,Point_Sources_All!$A$6:$V$207,3*($E$19-2)+$C$4)/1000*365.25 -> 0
D166: 139 | E166: =VLOOKUP($D166,Background_All!$A$5:$D$206,$C$4,)/1000*365.25 -> 1.002301396e-05 | F166: =VLOOKUP($D166,Point_Sources_All!$A$6:$V$207,3*($E$13-2)+$C$4)/1000*365.25 -> 0 | G166: =VLOOKUP($D166,Point_Sources_All!$A$6:$V$207,3*($E$14-2)+$C$4)/1000*365.25 -> 6.2289735e-05 | H166: =VLOOKUP($D166,Point_Sources_All!$A$6:$V$207,3*($E$15-2)+$C$4)/1000*365.25 -> 0 | I166: =VLOOKUP($D166,Point_Sources_All!$A$6:$V$207,3*($E$16-2)+$C$4)/1000*365.25 -> 0 | J166: =VLOOKUP($D166,Point_Sources_All!$A$6:$V$207,3*($E$17-2)+$C$4)/1000*365.25 -> 5.539302362e-07 | K166: =VLOOKUP($D166,Point_Sources_All!$A$6:$V$207,3*($E$18-2)+$C$4)/1000*365.25 -> 4.782248688e-06 | L166: =VLOOKUP($D166,Point_Sources_All!$A$6:$Y$207,3*($E$20-2)+$C$4)/1000*365.25 -> 0 | M166: =VLOOKUP($D166,Point_Sources_All!$A$6:$V$207,3*($E$19-2)+$C$4)/1000*365.25 -> 0
D167: 140 | E167: =VLOOKUP($D167,Background_All!$A$5:$D$206,$C$4,)/1000*365.25 -> 9.98688465e-06 | F167: =VLOOKUP($D167,Point_Sources_All!$A$6:$V$207,3*($E$13-2)+$C$4)/1000*365.25 -> 0 | G167: =VLOOKUP($D167,Point_Sources_All!$A$6:$V$207,3*($E$14-2)+$C$4)/1000*365.25 -> 6.2289735e-05 | H167: =VLOOKUP($D167,Point_Sources_All!$A$6:$V$207,3*($E$15-2)+$C$4)/1000*365.25 -> 0 | I167: =VLOOKUP($D167,Point_Sources_All!$A$6:$V$207,3*($E$16-2)+$C$4)/1000*365.25 -> 0 | J167: =VLOOKUP($D167,Point_Sources_All!$A$6:$V$207,3*($E$17-2)+$C$4)/1000*365.25 -> 5.925088544e-07 | K167: =VLOOKUP($D167,Point_Sources_All!$A$6:$V$207,3*($E$18-2)+$C$4)/1000*365.25 -> 4.4782085e-06 | L167: =VLOOKUP($D167,Point_Sources_All!$A$6:$Y$207,3*($E$20-2)+$C$4)/1000*365.25 -> 0 | M167: =VLOOKUP($D167,Point_Sources_All!$A$6:$V$207,3*($E$19-2)+$C$4)/1000*365.25 -> 0
D168: 141 | E168: =VLOOKUP($D168,Background_All!$A$5:$D$206,$C$4,)/1000*365.25 -> 9.971955056e-06 | F168: =VLOOKUP($D168,Point_Sources_All!$A$6:$V$207,3*($E$13-2)+$C$4)/1000*365.25 -> 0 | G168: =VLOOKUP($D168,Point_Sources_All!$A$6:$V$207,3*($E$14-2)+$C$4)/1000*365.25 -> 6.2289735e-05 | H168: =VLOOKUP($D168,Point_Sources_All!$A$6:$V$207,3*($E$15-2)+$C$4)/1000*365.25 -> 0 | I168: =VLOOKUP($D168,Point_Sources_All!$A$6:$V$207,3*($E$16-2)+$C$4)/1000*365.25 -> 0 | J168: =VLOOKUP($D168,Point_Sources_All!$A$6:$V$207,3*($E$17-2)+$C$4)/1000*365.25 -> 5.910079812e-07 | K168: =VLOOKUP($D168,Point_Sources_All!$A$6:$V$207,3*($E$18-2)+$C$4)/1000*365.25 -> 4.632374438e-06 | L168: =VLOOKUP($D168,Point_Sources_All!$A$6:$Y$207,3*($E$20-2)+$C$4)/1000*365.25 -> 0 | M168: =VLOOKUP($D168,Point_Sources_All!$A$6:$V$207,3*($E$19-2)+$C$4)/1000*365.25 -> 0
D169: 142 | E169: =VLOOKUP($D169,Background_All!$A$5:$D$206,$C$4,)/1000*365.25 -> 1.005168e-05 | F169: =VLOOKUP($D169,Point_Sources_All!$A$6:$V$207,3*($E$13-2)+$C$4)/1000*365.25 -> 0 | G169: =VLOOKUP($D169,Point_Sources_All!$A$6:$V$207,3*($E$14-2)+$C$4)/1000*365.25 -> 6.2289735e-05 | H169: =VLOOKUP($D169,Point_Sources_All!$A$6:$V$207,3*($E$15-2)+$C$4)/1000*365.25 -> 0 | I169: =VLOOKUP($D169,Point_Sources_All!$A$6:$V$207,3*($E$16-2)+$C$4)/1000*365.25 -> 0 | J169: =VLOOKUP($D169,Point_Sources_All!$A$6:$V$207,3*($E$17-2)+$C$4)/1000*365.25 -> 5.756157375e-07 | K169: =VLOOKUP($D169,Point_Sources_All!$A$6:$V$207,3*($E$18-2)+$C$4)/1000*365.25 -> 4.591770812e-06 | L169: =VLOOKUP($D169,Point_Sources_All!$A$6:$Y$207,3*($E$20-2)+$C$4)/1000*365.25 -> 0 | M169: =VLOOKUP($D169,Point_Sources_All!$A$6:$V$207,3*($E$19-2)+$C$4)/1000*365.25 -> 0
D170: 143 | E170: =VLOOKUP($D170,Background_All!$A$5:$D$206,$C$4,)/1000*365.25 -> 1.008878331e-05 | F170: =VLOOKUP($D170,Point_Sources_All!$A$6:$V$207,3*($E$13-2)+$C$4)/1000*365.25 -> 0 | G170: =VLOOKUP($D170,Point_Sources_All!$A$6:$V$207,3*($E$14-2)+$C$4)/1000*365.25 -> 6.2289735e-05 | H170: =VLOOKUP($D170,Point_Sources_All!$A$6:$V$207,3*($E$15-2)+$C$4)/1000*365.25 -> 0 | I170: =VLOOKUP($D170,Point_Sources_All!$A$6:$V$207,3*($E$16-2)+$C$4)/1000*365.25 -> 0 | J170: =VLOOKUP($D170,Point_Sources_All!$A$6:$V$207,3*($E$17-2)+$C$4)/1000*365.25 -> 5.773083669e-07 | K170: =VLOOKUP($D170,Point_Sources_All!$A$6:$V$207,3*($E$18-2)+$C$4)/1000*365.25 -> 4.329612625e-06 | L170: =VLOOKUP($D170,Point_Sources_All!$A$6:$Y$207,3*($E$20-2)+$C$4)/1000*365.25 -> 0 | M170: =VLOOKUP($D170,Point_Sources_All!$A$6:$V$207,3*($E$19-2)+$C$4)/1000*365.25 -> 0
D171: 144 | E171: =VLOOKUP($D171,Background_All!$A$5:$D$206,$C$4,)/1000*365.25 -> 1.008100653e-05 | F171: =VLOOKUP($D171,Point_Sources_All!$A$6:$V$207,3*($E$13-2)+$C$4)/1000*365.25 -> 0 | G171: =VLOOKUP($D171,Point_Sources_All!$A$6:$V$207,3*($E$14-2)+$C$4)/1000*365.25 -> 6.2289735e-05 | H171: =VLOOKUP($D171,Point_Sources_All!$A$6:$V$207,3*($E$15-2)+$C$4)/1000*365.25 -> 0 | I171: =VLOOKUP($D171,Point_Sources_All!$A$6:$V$207,3*($E$16-2)+$C$4)/1000*365.25 -> 0 | J171: =VLOOKUP($D171,Point_Sources_All!$A$6:$V$207,3*($E$17-2)+$C$4)/1000*365.25 -> 5.704690606e-07 | K171: =VLOOKUP($D171,Point_Sources_All!$A$6:$V$207,3*($E$18-2)+$C$4)/1000*365.25 -> 4.925335375e-06 | L171: =VLOOKUP($D171,Point_Sources_All!$A$6:$Y$207,3*($E$20-2)+$C$4)/1000*365.25 -> 0 | M171: =VLOOKUP($D171,Point_Sources_All!$A$6:$V$207,3*($E$19-2)+$C$4)/1000*365.25 -> 0
D172: 145 | E172: =VLOOKUP($D172,Background_All!$A$5:$D$206,$C$4,)/1000*365.25 -> 9.850466819e-06 | F172: =VLOOKUP($D172,Point_Sources_All!$A$6:$V$207,3*($E$13-2)+$C$4)/1000*365.25 -> 0 | G172: =VLOOKUP($D172,Point_Sources_All!$A$6:$V$207,3*($E$14-2)+$C$4)/1000*365.25 -> 6.2289735e-05 | H172: =VLOOKUP($D172,Point_Sources_All!$A$6:$V$207,3*($E$15-2)+$C$4)/1000*365.25 -> 0 | I172: =VLOOKUP($D172,Point_Sources_All!$A$6:$V$207,3*($E$16-2)+$C$4)/1000*365.25 -> 0 | J172: =VLOOKUP($D172,Point_Sources_All!$A$6:$V$207,3*($E$17-2)+$C$4)/1000*365.25 -> 5.619255588e-07 | K172: =VLOOKUP($D172,Point_Sources_All!$A$6:$V$207,3*($E$18-2)+$C$4)/1000*365.25 -> 4.617186125e-06 | L172: =VLOOKUP($D172,Point_Sources_All!$A$6:$Y$207,3*($E$20-2)+$C$4)/1000*365.25 -> 0 | M172: =VLOOKUP($D172,Point_Sources_All!$A$6:$V$207,3*($E$19-2)+$C$4)/1000*365.25 -> 0
D173: 146 | E173: =VLOOKUP($D173,Background_All!$A$5:$D$206,$C$4,)/1000*365.25 -> 1.053764512e-05 | F173: =VLOOKUP($D173,Point_Sources_All!$A$6:$V$207,3*($E$13-2)+$C$4)/1000*365.25 -> 0 | G173: =VLOOKUP($D173,Point_Sources_All!$A$6:$V$207,3*($E$14-2)+$C$4)/1000*365.25 -> 6.2289735e-05 | H173: =VLOOKUP($D173,Point_Sources_All!$A$6:$V$207,3*($E$15-2)+$C$4)/1000*365.25 -> 0 | I173: =VLOOKUP($D173,Point_Sources_All!$A$6:$V$207,3*($E$16-2)+$C$4)/1000*365.25 -> 0 | J173: =VLOOKUP($D173,Point_Sources_All!$A$6:$V$207,3*($E$17-2)+$C$4)/1000*365.25 -> 5.908238344e-07 | K173: =VLOOKUP($D173,Point_Sources_All!$A$6:$V$207,3*($E$18-2)+$C$4)/1000*365.25 -> 4.622451812e-06 | L173: =VLOOKUP($D173,Point_Sources_All!$A$6:$Y$207,3*($E$20-2)+$C$4)/1000*365.25 -> 0 | M173: =VLOOKUP($D173,Point_Sources_All!$A$6:$V$207,3*($E$19-2)+$C$4)/1000*365.25 -> 0
D174: 147 | E174: =VLOOKUP($D174,Background_All!$A$5:$D$206,$C$4,)/1000*365.25 -> 9.999531431e-06 | F174: =VLOOKUP($D174,Point_Sources_All!$A$6:$V$207,3*($E$13-2)+$C$4)/1000*365.25 -> 0 | G174: =VLOOKUP($D174,Point_Sources_All!$A$6:$V$207,3*($E$14-2)+$C$4)/1000*365.25 -> 6.2289735e-05 | H174: =VLOOKUP($D174,Point_Sources_All!$A$6:$V$207,3*($E$15-2)+$C$4)/1000*365.25 -> 0 | I174: =VLOOKUP($D174,Point_Sources_All!$A$6:$V$207,3*($E$16-2)+$C$4)/1000*365.25 -> 0 | J174: =VLOOKUP($D174,Point_Sources_All!$A$6:$V$207,3*($E$17-2)+$C$4)/1000*365.25 -> 5.751893081e-07 | K174: =VLOOKUP($D174,Point_Sources_All!$A$6:$V$207,3*($E$18-2)+$C$4)/1000*365.25 -> 4.289191625e-06 | L174: =VLOOKUP($D174,Point_Sources_All!$A$6:$Y$207,3*($E$20-2)+$C$4)/1000*365.25 -> 0 | M174: =VLOOKUP($D174,Point_Sources_All!$A$6:$V$207,3*($E$19-2)+$C$4)/1000*365.25 -> 0
D175: 148 | E175: =VLOOKUP($D175,Background_All!$A$5:$D$206,$C$4,)/1000*365.25 -> 9.824841487e-06 | F175: =VLOOKUP($D175,Point_Sources_All!$A$6:$V$207,3*($E$13-2)+$C$4)/1000*365.25 -> 0 | G175: =VLOOKUP($D175,Point_Sources_All!$A$6:$V$207,3*($E$14-2)+$C$4)/1000*365.25 -> 6.2289735e-05 | H175: =VLOOKUP($D175,Point_Sources_All!$A$6:$V$207,3*($E$15-2)+$C$4)/1000*365.25 -> 0 | I175: =VLOOKUP($D175,Point_Sources_All!$A$6:$V$207,3*($E$16-2)+$C$4)/1000*365.25 -> 0 | J175: =VLOOKUP($D175,Point_Sources_All!$A$6:$V$207,3*($E$17-2)+$C$4)/1000*365.25 -> 5.737149156e-07 | K175: =VLOOKUP($D175,Point_Sources_All!$A$6:$V$207,3*($E$18-2)+$C$4)/1000*365.25 -> 4.451758312e-06 | L175: =VLOOKUP($D175,Point_Sources_All!$A$6:$Y$207,3*($E$20-2)+$C$4)/1000*365.25 -> 0 | M175: =VLOOKUP($D175,Point_Sources_All!$A$6:$V$207,3*($E$19-2)+$C$4)/1000*365.25 -> 0
D176: 149 | E176: =VLOOKUP($D176,Background_All!$A$5:$D$206,$C$4,)/1000*365.25 -> 1.005393846e-05 | F176: =VLOOKUP($D176,Point_Sources_All!$A$6:$V$207,3*($E$13-2)+$C$4)/1000*365.25 -> 0 | G176: =VLOOKUP($D176,Point_Sources_All!$A$6:$V$207,3*($E$14-2)+$C$4)/1000*365.25 -> 6.2289735e-05 | H176: =VLOOKUP($D176,Point_Sources_All!$A$6:$V$207,3*($E$15-2)+$C$4)/1000*365.25 -> 0 | I176: =VLOOKUP($D176,Point_Sources_All!$A$6:$V$207,3*($E$16-2)+$C$4)/1000*365.25 -> 0 | J176: =VLOOKUP($D176,Point_Sources_All!$A$6:$V$207,3*($E$17-2)+$C$4)/1000*365.25 -> 5.766134788e-07 | K176: =VLOOKUP($D176,Point_Sources_All!$A$6:$V$207,3*($E$18-2)+$C$4)/1000*365.25 -> 4.518873e-06 | L176: =VLOOKUP($D176,Point_Sources_All!$A$6:$Y$207,3*($E$20-2)+$C$4)/1000*365.25 -> 0 | M176: =VLOOKUP($D176,Point_Sources_All!$A$6:$V$207,3*($E$19-2)+$C$4)/1000*365.25 -> 0
D177: 150 | E177: =VLOOKUP($D177,Background_All!$A$5:$D$206,$C$4,)/1000*365.25 -> 9.740891819e-06 | F177: =VLOOKUP($D177,Point_Sources_All!$A$6:$V$207,3*($E$13-2)+$C$4)/1000*365.25 -> 0 | G177: =VLOOKUP($D177,Point_Sources_All!$A$6:$V$207,3*($E$14-2)+$C$4)/1000*365.25 -> 6.2289735e-05 | H177: =VLOOKUP($D177,Point_Sources_All!$A$6:$V$207,3*($E$15-2)+$C$4)/1000*365.25 -> 0 | I177: =VLOOKUP($D177,Point_Sources_All!$A$6:$V$207,3*($E$16-2)+$C$4)/1000*365.25 -> 0 | J177: =VLOOKUP($D177,Point_Sources_All!$A$6:$V$207,3*($E$17-2)+$C$4)/1000*365.25 -> 5.720219819e-07 | K177: =VLOOKUP($D177,Point_Sources_All!$A$6:$V$207,3*($E$18-2)+$C$4)/1000*365.25 -> 4.5407393e-06 | L177: =VLOOKUP($D177,Point_Sources_All!$A$6:$Y$207,3*($E$20-2)+$C$4)/1000*365.25 -> 0 | M177: =VLOOKUP($D177,Point_Sources_All!$A$6:$V$207,3*($E$19-2)+$C$4)/1000*365.25 -> 0
D178: 151 | E178: =VLOOKUP($D178,Background_All!$A$5:$D$206,$C$4,)/1000*365.25 -> 1.040415842e-05 | F178: =VLOOKUP($D178,Point_Sources_All!$A$6:$V$207,3*($E$13-2)+$C$4)/1000*365.25 -> 0 | G178: =VLOOKUP($D178,Point_Sources_All!$A$6:$V$207,3*($E$14-2)+$C$4)/1000*365.25 -> 6.2289735e-05 | H178: =VLOOKUP($D178,Point_Sources_All!$A$6:$V$207,3*($E$15-2)+$C$4)/1000*365.25 -> 0 | I178: =VLOOKUP($D178,Point_Sources_All!$A$6:$V$207,3*($E$16-2)+$C$4)/1000*365.25 -> 0 | J178: =VLOOKUP($D178,Point_Sources_All!$A$6:$V$207,3*($E$17-2)+$C$4)/1000*365.25 -> 5.776419619e-07 | K178: =VLOOKUP($D178,Point_Sources_All!$A$6:$V$207,3*($E$18-2)+$C$4)/1000*365.25 -> 4.593475312e-06 | L178: =VLOOKUP($D178,Point_Sources_All!$A$6:$Y$207,3*($E$20-2)+$C$4)/1000*365.25 -> 0 | M178: =VLOOKUP($D178,Point_Sources_All!$A$6:$V$207,3*($E$19-2)+$C$4)/1000*365.25 -> 0
D179: 152 | E179: =VLOOKUP($D179,Background_All!$A$5:$D$206,$C$4,)/1000*365.25 -> 1.027050736e-05 | F179: =VLOOKUP($D179,Point_Sources_All!$A$6:$V$207,3*($E$13-2)+$C$4)/1000*365.25 -> 0 | G179: =VLOOKUP($D179,Point_Sources_All!$A$6:$V$207,3*($E$14-2)+$C$4)/1000*365.25 -> 6.2289735e-05 | H179: =VLOOKUP($D179,Point_Sources_All!$A$6:$V$207,3*($E$15-2)+$C$4)/1000*365.25 -> 0 | I179: =VLOOKUP($D179,Point_Sources_All!$A$6:$V$207,3*($E$16-2)+$C$4)/1000*365.25 -> 0 | J179: =VLOOKUP($D179,Point_Sources_All!$A$6:$V$207,3*($E$17-2)+$C$4)/1000*365.25 -> 5.865814556e-07 | K179: =VLOOKUP($D179,Point_Sources_All!$A$6:$V$207,3*($E$18-2)+$C$4)/1000*365.25 -> 4.744140937e-06 | L179: =VLOOKUP($D179,Point_Sources_All!$A$6:$Y$207,3*($E$20-2)+$C$4)/1000*365.25 -> 0 | M179: =VLOOKUP($D179,Point_Sources_All!$A$6:$V$207,3*($E$19-2)+$C$4)/1000*365.25 -> 0
D180: 153 | E180: =VLOOKUP($D180,Background_All!$A$5:$D$206,$C$4,)/1000*365.25 -> 9.752214569e-06 | F180: =VLOOKUP($D180,Point_Sources_All!$A$6:$V$207,3*($E$13-2)+$C$4)/1000*365.25 -> 0 | G180: =VLOOKUP($D180,Point_Sources_All!$A$6:$V$207,3*($E$14-2)+$C$4)/1000*365.25 -> 6.2289735e-05 | H180: =VLOOKUP($D180,Point_Sources_All!$A$6:$V$207,3*($E$15-2)+$C$4)/1000*365.25 -> 0 | I180: =VLOOKUP($D180,Point_Sources_All!$A$6:$V$207,3*($E$16-2)+$C$4)/1000*365.25 -> 0 | J180: =VLOOKUP($D180,Point_Sources_All!$A$6:$V$207,3*($E$17-2)+$C$4)/1000*365.25 -> 5.544817637e-07 | K180: =VLOOKUP($D180,Point_Sources_All!$A$6:$V$207,3*($E$18-2)+$C$4)/1000*365.25 -> 4.565564125e-06 | L180: =VLOOKUP($D180,Point_Sources_All!$A$6:$Y$207,3*($E$20-2)+$C$4)/1000*365.25 -> 0 | M180: =VLOOKUP($D180,Point_Sources_All!$A$6:$V$207,3*($E$19-2)+$C$4)/1000*365.25 -> 0
D181: 154 | E181: =VLOOKUP($D181,Background_All!$A$5:$D$206,$C$4,)/1000*365.25 -> 1.019907664e-05 | F181: =VLOOKUP($D181,Point_Sources_All!$A$6:$V$207,3*($E$13-2)+$C$4)/1000*365.25 -> 0 | G181: =VLOOKUP($D181,Point_Sources_All!$A$6:$V$207,3*($E$14-2)+$C$4)/1000*365.25 -> 6.2289735e-05 | H181: =VLOOKUP($D181,Point_Sources_All!$A$6:$V$207,3*($E$15-2)+$C$4)/1000*365.25 -> 0 | I181: =VLOOKUP($D181,Point_Sources_All!$A$6:$V$207,3*($E$16-2)+$C$4)/1000*365.25 -> 0 | J181: =VLOOKUP($D181,Point_Sources_All!$A$6:$V$207,3*($E$17-2)+$C$4)/1000*365.25 -> 5.982463231e-07 | K181: =VLOOKUP($D181,Point_Sources_All!$A$6:$V$207,3*($E$18-2)+$C$4)/1000*365.25 -> 4.538748687e-06 | L181: =VLOOKUP($D181,Point_Sources_All!$A$6:$Y$207,3*($E$20-2)+$C$4)/1000*365.25 -> 0 | M181: =VLOOKUP($D181,Point_Sources_All!$A$6:$V$207,3*($E$19-2)+$C$4)/1000*365.25 -> 0
D182: 155 | E182: =VLOOKUP($D182,Background_All!$A$5:$D$206,$C$4,)/1000*365.25 -> 1.039193777e-05 | F182: =VLOOKUP($D182,Point_Sources_All!$A$6:$V$207,3*($E$13-2)+$C$4)/1000*365.25 -> 0 | G182: =VLOOKUP($D182,Point_Sources_All!$A$6:$V$207,3*($E$14-2)+$C$4)/1000*365.25 -> 6.2289735e-05 | H182: =VLOOKUP($D182,Point_Sources_All!$A$6:$V$207,3*($E$15-2)+$C$4)/1000*365.25 -> 0 | I182: =VLOOKUP($D182,Point_Sources_All!$A$6:$V$207,3*($E$16-2)+$C$4)/1000*365.25 -> 0 | J182: =VLOOKUP($D182,Point_Sources_All!$A$6:$V$207,3*($E$17-2)+$C$4)/1000*365.25 -> 5.833836919e-07 | K182: =VLOOKUP($D182,Point_Sources_All!$A$6:$V$207,3*($E$18-2)+$C$4)/1000*365.25 -> 4.736622875e-06 | L182: =VLOOKUP($D182,Point_Sources_All!$A$6:$Y$207,3*($E$20-2)+$C$4)/1000*365.25 -> 0 | M182: =VLOOKUP($D182,Point_Sources_All!$A$6:$V$207,3*($E$19-2)+$C$4)/1000*365.25 -> 0
D183: 156 | E183: =VLOOKUP($D183,Background_All!$A$5:$D$206,$C$4,)/1000*365.25 -> 1.019384443e-05 | F183: =VLOOKUP($D183,Point_Sources_All!$A$6:$V$207,3*($E$13-2)+$C$4)/1000*365.25 -> 0 | G183: =VLOOKUP($D183,Point_Sources_All!$A$6:$V$207,3*($E$14-2)+$C$4)/1000*365.25 -> 6.2289735e-05 | H183: =VLOOKUP($D183,Point_Sources_All!$A$6:$V$207,3*($E$15-2)+$C$4)/1000*365.25 -> 0 | I183: =VLOOKUP($D183,Point_Sources_All!$A$6:$V$207,3*($E$16-2)+$C$4)/1000*365.25 -> 0 | J183: =VLOOKUP($D183,Point_Sources_All!$A$6:$V$207,3*($E$17-2)+$C$4)/1000*365.25 -> 5.839190875e-07 | K183: =VLOOKUP($D183,Point_Sources_All!$A$6:$V$207,3*($E$18-2)+$C$4)/1000*365.25 -> 4.576826e-06 | L183: =VLOOKUP($D183,Point_Sources_All!$A$6:$Y$207,3*($E$20-2)+$C$4)/1000*365.25 -> 0 | M183: =VLOOKUP($D183,Point_Sources_All!$A$6:$V$207,3*($E$19-2)+$C$4)/1000*365.25 -> 0
D184: 157 | E184: =VLOOKUP($D184,Background_All!$A$5:$D$206,$C$4,)/1000*365.25 -> 9.943830806e-06 | F184: =VLOOKUP($D184,Point_Sources_All!$A$6:$V$207,3*($E$13-2)+$C$4)/1000*365.25 -> 0 | G184: =VLOOKUP($D184,Point_Sources_All!$A$6:$V$207,3*($E$14-2)+$C$4)/1000*365.25 -> 6.2289735e-05 | H184: =VLOOKUP($D184,Point_Sources_All!$A$6:$V$207,3*($E$15-2)+$C$4)/1000*365.25 -> 0 | I184: =VLOOKUP($D184,Point_Sources_All!$A$6:$V$207,3*($E$16-2)+$C$4)/1000*365.25 -> 0 | J184: =VLOOKUP($D184,Point_Sources_All!$A$6:$V$207,3*($E$17-2)+$C$4)/1000*365.25 -> 5.683920056e-07 | K184: =VLOOKUP($D184,Point_Sources_All!$A$6:$V$207,3*($E$18-2)+$C$4)/1000*365.25 -> 4.49586225e-06 | L184: =VLOOKUP($D184,Point_Sources_All!$A$6:$Y$207,3*($E$20-2)+$C$4)/1000*365.25 -> 0 | M184: =VLOOKUP($D184,Point_Sources_All!$A$6:$V$207,3*($E$19-2)+$C$4)/1000*365.25 -> 0
D185: 158 | E185: =VLOOKUP($D185,Background_All!$A$5:$D$206,$C$4,)/1000*365.25 -> 9.873995006e-06 | F185: =VLOOKUP($D185,Point_Sources_All!$A$6:$V$207,3*($E$13-2)+$C$4)/1000*365.25 -> 0 | G185: =VLOOKUP($D185,Point_Sources_All!$A$6:$V$207,3*($E$14-2)+$C$4)/1000*365.25 -> 6.2289735e-05 | H185: =VLOOKUP($D185,Point_Sources_All!$A$6:$V$207,3*($E$15-2)+$C$4)/1000*365.25 -> 0 | I185: =VLOOKUP($D185,Point_Sources_All!$A$6:$V$207,3*($E$16-2)+$C$4)/1000*365.25 -> 0 | J185: =VLOOKUP($D185,Point_Sources_All!$A$6:$V$207,3*($E$17-2)+$C$4)/1000*365.25 -> 5.738552325e-07 | K185: =VLOOKUP($D185,Point_Sources_All!$A$6:$V$207,3*($E$18-2)+$C$4)/1000*365.25 -> 4.271994438e-06 | L185: =VLOOKUP($D185,Point_Sources_All!$A$6:$Y$207,3*($E$20-2)+$C$4)/1000*365.25 -> 0 | M185: =VLOOKUP($D185,Point_Sources_All!$A$6:$V$207,3*($E$19-2)+$C$4)/1000*365.25 -> 0
D186: 159 | E186: =VLOOKUP($D186,Background_All!$A$5:$D$206,$C$4,)/1000*365.25 -> 9.971242819e-06 | F186: =VLOOKUP($D186,Point_Sources_All!$A$6:$V$207,3*($E$13-2)+$C$4)/1000*365.25 -> 0 | G186: =VLOOKUP($D186,Point_Sources_All!$A$6:$V$207,3*($E$14-2)+$C$4)/1000*365.25 -> 6.2289735e-05 | H186: =VLOOKUP($D186,Point_Sources_All!$A$6:$V$207,3*($E$15-2)+$C$4)/1000*365.25 -> 0 | I186: =VLOOKUP($D186,Point_Sources_All!$A$6:$V$207,3*($E$16-2)+$C$4)/1000*365.25 -> 0 | J186: =VLOOKUP($D186,Point_Sources_All!$A$6:$V$207,3*($E$17-2)+$C$4)/1000*365.25 -> 5.778757219e-07 | K186: =VLOOKUP($D186,Point_Sources_All!$A$6:$V$207,3*($E$18-2)+$C$4)/1000*365.25 -> 4.312932875e-06 | L186: =VLOOKUP($D186,Point_Sources_All!$A$6:$Y$207,3*($E$20-2)+$C$4)/1000*365.25 -> 0 | M186: =VLOOKUP($D186,Point_Sources_All!$A$6:$V$207,3*($E$19-2)+$C$4)/1000*365.25 -> 0
D187: 160 | E187: =VLOOKUP($D187,Background_All!$A$5:$D$206,$C$4,)/1000*365.25 -> 1.001461626e-05 | F187: =VLOOKUP($D187,Point_Sources_All!$A$6:$V$207,3*($E$13-2)+$C$4)/1000*365.25 -> 0 | G187: =VLOOKUP($D187,Point_Sources_All!$A$6:$V$207,3*($E$14-2)+$C$4)/1000*365.25 -> 6.2289735e-05 | H187: =VLOOKUP($D187,Point_Sources_All!$A$6:$V$207,3*($E$15-2)+$C$4)/1000*365.25 -> 0 | I187: =VLOOKUP($D187,Point_Sources_All!$A$6:$V$207,3*($E$16-2)+$C$4)/1000*365.25 -> 0 | J187: =VLOOKUP($D187,Point_Sources_All!$A$6:$V$207,3*($E$17-2)+$C$4)/1000*365.25 -> 5.707880456e-07 | K187: =VLOOKUP($D187,Point_Sources_All!$A$6:$V$207,3*($E$18-2)+$C$4)/1000*365.25 -> 4.265906938e-06 | L187: =VLOOKUP($D187,Point_Sources_All!$A$6:$Y$207,3*($E$20-2)+$C$4)/1000*365.25 -> 0 | M187: =VLOOKUP($D187,Point_Sources_All!$A$6:$V$207,3*($E$19-2)+$C$4)/1000*365.25 -> 0
D188: 161 | E188: =VLOOKUP($D188,Background_All!$A$5:$D$206,$C$4,)/1000*365.25 -> 9.791615912e-06 | F188: =VLOOKUP($D188,Point_Sources_All!$A$6:$V$207,3*($E$13-2)+$C$4)/1000*365.25 -> 0 | G188: =VLOOKUP($D188,Point_Sources_All!$A$6:$V$207,3*($E$14-2)+$C$4)/1000*365.25 -> 6.2289735e-05 | H188: =VLOOKUP($D188,Point_Sources_All!$A$6:$V$207,3*($E$15-2)+$C$4)/1000*365.25 -> 0 | I188: =VLOOKUP($D188,Point_Sources_All!$A$6:$V$207,3*($E$16-2)+$C$4)/1000*365.25 -> 0 | J188: =VLOOKUP($D188,Point_Sources_All!$A$6:$V$207,3*($E$17-2)+$C$4)/1000*365.25 -> 5.624101237e-07 | K188: =VLOOKUP($D188,Point_Sources_All!$A$6:$V$207,3*($E$18-2)+$C$4)/1000*365.25 -> 4.266637438e-06 | L188: =VLOOKUP($D188,Point_Sources_All!$A$6:$Y$207,3*($E$20-2)+$C$4)/1000*365.25 -> 0 | M188: =VLOOKUP($D188,Point_Sources_All!$A$6:$V$207,3*($E$19-2)+$C$4)/1000*365.25 -> 0
D189: 162 | E189: =VLOOKUP($D189,Background_All!$A$5:$D$206,$C$4,)/1000*365.25 -> 1.013118579e-05 | F189: =VLOOKUP($D189,Point_Sources_All!$A$6:$V$207,3*($E$13-2)+$C$4)/1000*365.25 -> 0 | G189: =VLOOKUP($D189,Point_Sources_All!$A$6:$V$207,3*($E$14-2)+$C$4)/1000*365.25 -> 6.2289735e-05 | H189: =VLOOKUP($D189,Point_Sources_All!$A$6:$V$207,3*($E$15-2)+$C$4)/1000*365.25 -> 0 | I189: =VLOOKUP($D189,Point_Sources_All!$A$6:$V$207,3*($E$16-2)+$C$4)/1000*365.25 -> 0 | J189: =VLOOKUP($D189,Point_Sources_All!$A$6:$V$207,3*($E$17-2)+$C$4)/1000*365.25 -> 5.910040244e-07 | K189: =VLOOKUP($D189,Point_Sources_All!$A$6:$V$207,3*($E$18-2)+$C$4)/1000*365.25 -> 4.435778625e-06 | L189: =VLOOKUP($D189,Point_Sources_All!$A$6:$Y$207,3*($E$20-2)+$C$4)/1000*365.25 -> 0 | M189: =VLOOKUP($D189,Point_Sources_All!$A$6:$V$207,3*($E$19-2)+$C$4)/1000*365.25 -> 0
D190: 163 | E190: =VLOOKUP($D190,Background_All!$A$5:$D$206,$C$4,)/1000*365.25 -> 1.00918088e-05 | F190: =VLOOKUP($D190,Point_Sources_All!$A$6:$V$207,3*($E$13-2)+$C$4)/1000*365.25 -> 0 | G190: =VLOOKUP($D190,Point_Sources_All!$A$6:$V$207,3*($E$14-2)+$C$4)/1000*365.25 -> 6.2289735e-05 | H190: =VLOOKUP($D190,Point_Sources_All!$A$6:$V$207,3*($E$15-2)+$C$4)/1000*365.25 -> 0 | I190: =VLOOKUP($D190,Point_Sources_All!$A$6:$V$207,3*($E$16-2)+$C$4)/1000*365.25 -> 0 | J190: =VLOOKUP($D190,Point_Sources_All!$A$6:$V$207,3*($E$17-2)+$C$4)/1000*365.25 -> 5.772164456e-07 | K190: =VLOOKUP($D190,Point_Sources_All!$A$6:$V$207,3*($E$18-2)+$C$4)/1000*365.25 -> 4.6653139e-06 | L190: =VLOOKUP($D190,Point_Sources_All!$A$6:$Y$207,3*($E$20-2)+$C$4)/1000*365.25 -> 0 | M190: =VLOOKUP($D190,Point_Sources_All!$A$6:$V$207,3*($E$19-2)+$C$4)/1000*365.25 -> 0
D191: 164 | E191: =VLOOKUP($D191,Background_All!$A$5:$D$206,$C$4,)/1000*365.25 -> 9.772272881e-06 | F191: =VLOOKUP($D191,Point_Sources_All!$A$6:$V$207,3*($E$13-2)+$C$4)/1000*365.25 -> 0 | G191: =VLOOKUP($D191,Point_Sources_All!$A$6:$V$207,3*($E$14-2)+$C$4)/1000*365.25 -> 6.2289735e-05 | H191: =VLOOKUP($D191,Point_Sources_All!$A$6:$V$207,3*($E$15-2)+$C$4)/1000*365.25 -> 0 | I191: =VLOOKUP($D191,Point_Sources_All!$A$6:$V$207,3*($E$16-2)+$C$4)/1000*365.25 -> 0 | J191: =VLOOKUP($D191,Point_Sources_All!$A$6:$V$207,3*($E$17-2)+$C$4)/1000*365.25 -> 5.746590869e-07 | K191: =VLOOKUP($D191,Point_Sources_All!$A$6:$V$207,3*($E$18-2)+$C$4)/1000*365.25 -> 4.444027187e-06 | L191: =VLOOKUP($D191,Point_Sources_All!$A$6:$Y$207,3*($E$20-2)+$C$4)/1000*365.25 -> 0 | M191: =VLOOKUP($D191,Point_Sources_All!$A$6:$V$207,3*($E$19-2)+$C$4)/1000*365.25 -> 0
D192: 165 | E192: =VLOOKUP($D192,Background_All!$A$5:$D$206,$C$4,)/1000*365.25 -> 9.6958291e-06 | F192: =VLOOKUP($D192,Point_Sources_All!$A$6:$V$207,3*($E$13-2)+$C$4)/1000*365.25 -> 0 | G192: =VLOOKUP($D192,Point_Sources_All!$A$6:$V$207,3*($E$14-2)+$C$4)/1000*365.25 -> 6.2289735e-05 | H192: =VLOOKUP($D192,Point_Sources_All!$A$6:$V$207,3*($E$15-2)+$C$4)/1000*365.25 -> 0 | I192: =VLOOKUP($D192,Point_Sources_All!$A$6:$V$207,3*($E$16-2)+$C$4)/1000*365.25 -> 0 | J192: =VLOOKUP($D192,Point_Sources_All!$A$6:$V$207,3*($E$17-2)+$C$4)/1000*365.25 -> 5.659375256e-07 | K192: =VLOOKUP($D192,Point_Sources_All!$A$6:$V$207,3*($E$18-2)+$C$4)/1000*365.25 -> 4.467098812e-06 | L192: =VLOOKUP($D192,Point_Sources_All!$A$6:$Y$207,3*($E$20-2)+$C$4)/1000*365.25 -> 0 | M192: =VLOOKUP($D192,Point_Sources_All!$A$6:$V$207,3*($E$19-2)+$C$4)/1000*365.25 -> 0
D193: 166 | E193: =VLOOKUP($D193,Background_All!$A$5:$D$206,$C$4,)/1000*365.25 -> 1.065672271e-05 | F193: =VLOOKUP($D193,Point_Sources_All!$A$6:$V$207,3*($E$13-2)+$C$4)/1000*365.25 -> 0 | G193: =VLOOKUP($D193,Point_Sources_All!$A$6:$V$207,3*($E$14-2)+$C$4)/1000*365.25 -> 6.2289735e-05 | H193: =VLOOKUP($D193,Point_Sources_All!$A$6:$V$207,3*($E$15-2)+$C$4)/1000*365.25 -> 0 | I193: =VLOOKUP($D193,Point_Sources_All!$A$6:$V$207,3*($E$16-2)+$C$4)/1000*365.25 -> 0 | J193: =VLOOKUP($D193,Point_Sources_All!$A$6:$V$207,3*($E$17-2)+$C$4)/1000*365.25 -> 6.063892675e-07 | K193: =VLOOKUP($D193,Point_Sources_All!$A$6:$V$207,3*($E$18-2)+$C$4)/1000*365.25 -> 4.451393063e-06 | L193: =VLOOKUP($D193,Point_Sources_All!$A$6:$Y$207,3*($E$20-2)+$C$4)/1000*365.25 -> 0 | M193: =VLOOKUP($D193,Point_Sources_All!$A$6:$V$207,3*($E$19-2)+$C$4)/1000*365.25 -> 0
D194: 167 | E194: =VLOOKUP($D194,Background_All!$A$5:$D$206,$C$4,)/1000*365.25 -> 9.705094275e-06 | F194: =VLOOKUP($D194,Point_Sources_All!$A$6:$V$207,3*($E$13-2)+$C$4)/1000*365.25 -> 0 | G194: =VLOOKUP($D194,Point_Sources_All!$A$6:$V$207,3*($E$14-2)+$C$4)/1000*365.25 -> 6.2289735e-05 | H194: =VLOOKUP($D194,Point_Sources_All!$A$6:$V$207,3*($E$15-2)+$C$4)/1000*365.25 -> 0 | I194: =VLOOKUP($D194,Point_Sources_All!$A$6:$V$207,3*($E$16-2)+$C$4)/1000*365.25 -> 0 | J194: =VLOOKUP($D194,Point_Sources_All!$A$6:$V$207,3*($E$17-2)+$C$4)/1000*365.25 -> 5.613968594e-07 | K194: =VLOOKUP($D194,Point_Sources_All!$A$6:$V$207,3*($E$18-2)+$C$4)/1000*365.25 -> 4.29424425e-06 | L194: =VLOOKUP($D194,Point_Sources_All!$A$6:$Y$207,3*($E$20-2)+$C$4)/1000*365.25 -> 0 | M194: =VLOOKUP($D194,Point_Sources_All!$A$6:$V$207,3*($E$19-2)+$C$4)/1000*365.25 -> 0
D195: 168 | E195: =VLOOKUP($D195,Background_All!$A$5:$D$206,$C$4,)/1000*365.25 -> 1.025189179e-05 | F195: =VLOOKUP($D195,Point_Sources_All!$A$6:$V$207,3*($E$13-2)+$C$4)/1000*365.25 -> 0 | G195: =VLOOKUP($D195,Point_Sources_All!$A$6:$V$207,3*($E$14-2)+$C$4)/1000*365.25 -> 6.2289735e-05 | H195: =VLOOKUP($D195,Point_Sources_All!$A$6:$V$207,3*($E$15-2)+$C$4)/1000*365.25 -> 0 | I195: =VLOOKUP($D195,Point_Sources_All!$A$6:$V$207,3*($E$16-2)+$C$4)/1000*365.25 -> 0 | J195: =VLOOKUP($D195,Point_Sources_All!$A$6:$V$207,3*($E$17-2)+$C$4)/1000*365.25 -> 5.834144337e-07 | K195: =VLOOKUP($D195,Point_Sources_All!$A$6:$V$207,3*($E$18-2)+$C$4)/1000*365.25 -> 4.394140125e-06 | L195: =VLOOKUP($D195,Point_Sources_All!$A$6:$Y$207,3*($E$20-2)+$C$4)/1000*365.25 -> 0 | M195: =VLOOKUP($D195,Point_Sources_All!$A$6:$V$207,3*($E$19-2)+$C$4)/1000*365.25 -> 0
D196: 169 | E196: =VLOOKUP($D196,Background_All!$A$5:$D$206,$C$4,)/1000*365.25 -> 1.010021868e-05 | F196: =VLOOKUP($D196,Point_Sources_All!$A$6:$V$207,3*($E$13-2)+$C$4)/1000*365.25 -> 0 | G196: =VLOOKUP($D196,Point_Sources_All!$A$6:$V$207,3*($E$14-2)+$C$4)/1000*365.25 -> 6.2289735e-05 | H196: =VLOOKUP($D196,Point_Sources_All!$A$6:$V$207,3*($E$15-2)+$C$4)/1000*365.25 -> 0 | I196: =VLOOKUP($D196,Point_Sources_All!$A$6:$V$207,3*($E$16-2)+$C$4)/1000*365.25 -> 0 | J196: =VLOOKUP($D196,Point_Sources_All!$A$6:$V$207,3*($E$17-2)+$C$4)/1000*365.25 -> 5.896894288e-07 | K196: =VLOOKUP($D196,Point_Sources_All!$A$6:$V$207,3*($E$18-2)+$C$4)/1000*365.25 -> 4.04611775e-06 | L196: =VLOOKUP($D196,Point_Sources_All!$A$6:$Y$207,3*($E$20-2)+$C$4)/1000*365.25 -> 0 | M196: =VLOOKUP($D196,Point_Sources_All!$A$6:$V$207,3*($E$19-2)+$C$4)/1000*365.25 -> 0
D197: 170 | E197: =VLOOKUP($D197,Background_All!$A$5:$D$206,$C$4,)/1000*365.25 -> 9.503028844e-06 | F197: =VLOOKUP($D197,Point_Sources_All!$A$6:$V$207,3*($E$13-2)+$C$4)/1000*365.25 -> 0 | G197: =VLOOKUP($D197,Point_Sources_All!$A$6:$V$207,3*($E$14-2)+$C$4)/1000*365.25 -> 6.2289735e-05 | H197: =VLOOKUP($D197,Point_Sources_All!$A$6:$V$207,3*($E$15-2)+$C$4)/1000*365.25 -> 0 | I197: =VLOOKUP($D197,Point_Sources_All!$A$6:$V$207,3*($E$16-2)+$C$4)/1000*365.25 -> 0 | J197: =VLOOKUP($D197,Point_Sources_All!$A$6:$V$207,3*($E$17-2)+$C$4)/1000*365.25 -> 5.542029562e-07 | K197: =VLOOKUP($D197,Point_Sources_All!$A$6:$V$207,3*($E$18-2)+$C$4)/1000*365.25 -> 4.248527125e-06 | L197: =VLOOKUP($D197,Point_Sources_All!$A$6:$Y$207,3*($E$20-2)+$C$4)/1000*365.25 -> 0 | M197: =VLOOKUP($D197,Point_Sources_All!$A$6:$V$207,3*($E$19-2)+$C$4)/1000*365.25 -> 0
D198: 171 | E198: =VLOOKUP($D198,Background_All!$A$5:$D$206,$C$4,)/1000*365.25 -> 1.018390354e-05 | F198: =VLOOKUP($D198,Point_Sources_All!$A$6:$V$207,3*($E$13-2)+$C$4)/1000*365.25 -> 0 | G198: =VLOOKUP($D198,Point_Sources_All!$A$6:$V$207,3*($E$14-2)+$C$4)/1000*365.25 -> 6.2289735e-05 | H198: =VLOOKUP($D198,Point_Sources_All!$A$6:$V$207,3*($E$15-2)+$C$4)/1000*365.25 -> 0 | I198: =VLOOKUP($D198,Point_Sources_All!$A$6:$V$207,3*($E$16-2)+$C$4)/1000*365.25 -> 0 | J198: =VLOOKUP($D198,Point_Sources_All!$A$6:$V$207,3*($E$17-2)+$C$4)/1000*365.25 -> 5.913695787e-07 | K198: =VLOOKUP($D198,Point_Sources_All!$A$6:$V$207,3*($E$18-2)+$C$4)/1000*365.25 -> 4.61469025e-06 | L198: =VLOOKUP($D198,Point_Sources_All!$A$6:$Y$207,3*($E$20-2)+$C$4)/1000*365.25 -> 0 | M198: =VLOOKUP($D198,Point_Sources_All!$A$6:$V$207,3*($E$19-2)+$C$4)/1000*365.25 -> 0
D199: 172 | E199: =VLOOKUP($D199,Background_All!$A$5:$D$206,$C$4,)/1000*365.25 -> 1.005765488e-05 | F199: =VLOOKUP($D199,Point_Sources_All!$A$6:$V$207,3*($E$13-2)+$C$4)/1000*365.25 -> 0 | G199: =VLOOKUP($D199,Point_Sources_All!$A$6:$V$207,3*($E$14-2)+$C$4)/1000*365.25 -> 6.2289735e-05 | H199: =VLOOKUP($D199,Point_Sources_All!$A$6:$V$207,3*($E$15-2)+$C$4)/1000*365.25 -> 0 | I199: =VLOOKUP($D199,Point_Sources_All!$A$6:$V$207,3*($E$16-2)+$C$4)/1000*365.25 -> 0 | J199: =VLOOKUP($D199,Point_Sources_All!$A$6:$V$207,3*($E$17-2)+$C$4)/1000*365.25 -> 5.7293115e-07 | K199: =VLOOKUP($D199,Point_Sources_All!$A$6:$V$207,3*($E$18-2)+$C$4)/1000*365.25 -> 4.34172675e-06 | L199: =VLOOKUP($D199,Point_Sources_All!$A$6:$Y$207,3*($E$20-2)+$C$4)/1000*365.25 -> 0 | M199: =VLOOKUP($D199,Point_Sources_All!$A$6:$V$207,3*($E$19-2)+$C$4)/1000*365.25 -> 0
D200: 173 | E200: =VLOOKUP($D200,Background_All!$A$5:$D$206,$C$4,)/1000*365.25 -> 1.053696941e-05 | F200: =VLOOKUP($D200,Point_Sources_All!$A$6:$V$207,3*($E$13-2)+$C$4)/1000*365.25 -> 0 | G200: =VLOOKUP($D200,Point_Sources_All!$A$6:$V$207,3*($E$14-2)+$C$4)/1000*365.25 -> 6.2289735e-05 | H200: =VLOOKUP($D200,Point_Sources_All!$A$6:$V$207,3*($E$15-2)+$C$4)/1000*365.25 -> 0 | I200: =VLOOKUP($D200,Point_Sources_All!$A$6:$V$207,3*($E$16-2)+$C$4)/1000*365.25 -> 0 | J200: =VLOOKUP($D200,Point_Sources_All!$A$6:$V$207,3*($E$17-2)+$C$4)/1000*365.25 -> 5.979379913e-07 | K200: =VLOOKUP($D200,Point_Sources_All!$A$6:$V$207,3*($E$18-2)+$C$4)/1000*365.25 -> 4.580722e-06 | L200: =VLOOKUP($D200,Point_Sources_All!$A$6:$Y$207,3*($E$20-2)+$C$4)/1000*365.25 -> 0 | M200: =VLOOKUP($D200,Point_Sources_All!$A$6:$V$207,3*($E$19-2)+$C$4)/1000*365.25 -> 0
D201: 174 | E201: =VLOOKUP($D201,Background_All!$A$5:$D$206,$C$4,)/1000*365.25 -> 9.985314075e-06 | F201: =VLOOKUP($D201,Point_Sources_All!$A$6:$V$207,3*($E$13-2)+$C$4)/1000*365.25 -> 0 | G201: =VLOOKUP($D201,Point_Sources_All!$A$6:$V$207,3*($E$14-2)+$C$4)/1000*365.25 -> 6.2289735e-05 | H201: =VLOOKUP($D201,Point_Sources_All!$A$6:$V$207,3*($E$15-2)+$C$4)/1000*365.25 -> 0 | I201: =VLOOKUP($D201,Point_Sources_All!$A$6:$V$207,3*($E$16-2)+$C$4)/1000*365.25 -> 0 | J201: =VLOOKUP($D201,Point_Sources_All!$A$6:$V$207,3*($E$17-2)+$C$4)/1000*365.25 -> 5.703588769e-07 | K201: =VLOOKUP($D201,Point_Sources_All!$A$6:$V$207,3*($E$18-2)+$C$4)/1000*365.25 -> 4.515920563e-06 | L201: =VLOOKUP($D201,Point_Sources_All!$A$6:$Y$207,3*($E$20-2)+$C$4)/1000*365.25 -> 0 | M201: =VLOOKUP($D201,Point_Sources_All!$A$6:$V$207,3*($E$19-2)+$C$4)/1000*365.25 -> 0
D202: 175 | E202: =VLOOKUP($D202,Background_All!$A$5:$D$206,$C$4,)/1000*365.25 -> 1.020499369e-05 | F202: =VLOOKUP($D202,Point_Sources_All!$A$6:$V$207,3*($E$13-2)+$C$4)/1000*365.25 -> 0 | G202: =VLOOKUP($D202,Point_Sources_All!$A$6:$V$207,3*($E$14-2)+$C$4)/1000*365.25 -> 6.2289735e-05 | H202: =VLOOKUP($D202,Point_Sources_All!$A$6:$V$207,3*($E$15-2)+$C$4)/1000*365.25 -> 0 | I202: =VLOOKUP($D202,Point_Sources_All!$A$6:$V$207,3*($E$16-2)+$C$4)/1000*365.25 -> 0 | J202: =VLOOKUP($D202,Point_Sources_All!$A$6:$V$207,3*($E$17-2)+$C$4)/1000*365.25 -> 5.668649562e-07 | K202: =VLOOKUP($D202,Point_Sources_All!$A$6:$V$207,3*($E$18-2)+$C$4)/1000*365.25 -> 4.556280687e-06 | L202: =VLOOKUP($D202,Point_Sources_All!$A$6:$Y$207,3*($E$20-2)+$C$4)/1000*365.25 -> 0 | M202: =VLOOKUP($D202,Point_Sources_All!$A$6:$V$207,3*($E$19-2)+$C$4)/1000*365.25 -> 0
D203: 176 | E203: =VLOOKUP($D203,Background_All!$A$5:$D$206,$C$4,)/1000*365.25 -> 1.007868719e-05 | F203: =VLOOKUP($D203,Point_Sources_All!$A$6:$V$207,3*($E$13-2)+$C$4)/1000*365.25 -> 0 | G203: =VLOOKUP($D203,Point_Sources_All!$A$6:$V$207,3*($E$14-2)+$C$4)/1000*365.25 -> 6.2289735e-05 | H203: =VLOOKUP($D203,Point_Sources_All!$A$6:$V$207,3*($E$15-2)+$C$4)/1000*365.25 -> 0 | I203: =VLOOKUP($D203,Point_Sources_All!$A$6:$V$207,3*($E$16-2)+$C$4)/1000*365.25 -> 0 | J203: =VLOOKUP($D203,Point_Sources_All!$A$6:$V$207,3*($E$17-2)+$C$4)/1000*365.25 -> 5.915683356e-07 | K203: =VLOOKUP($D203,Point_Sources_All!$A$6:$V$207,3*($E$18-2)+$C$4)/1000*365.25 -> 4.604067563e-06 | L203: =VLOOKUP($D203,Point_Sources_All!$A$6:$Y$207,3*($E$20-2)+$C$4)/1000*365.25 -> 0 | M203: =VLOOKUP($D203,Point_Sources_All!$A$6:$V$207,3*($E$19-2)+$C$4)/1000*365.25 -> 0
D204: 177 | E204: =VLOOKUP($D204,Background_All!$A$5:$D$206,$C$4,)/1000*365.25 -> 1.020609248e-05 | F204: =VLOOKUP($D204,Point_Sources_All!$A$6:$V$207,3*($E$13-2)+$C$4)/1000*365.25 -> 0 | G204: =VLOOKUP($D204,Point_Sources_All!$A$6:$V$207,3*($E$14-2)+$C$4)/1000*365.25 -> 6.2289735e-05 | H204: =VLOOKUP($D204,Point_Sources_All!$A$6:$V$207,3*($E$15-2)+$C$4)/1000*365.25 -> 0 | I204: =VLOOKUP($D204,Point_Sources_All!$A$6:$V$207,3*($E$16-2)+$C$4)/1000*365.25 -> 0 | J204: =VLOOKUP($D204,Point_Sources_All!$A$6:$V$207,3*($E$17-2)+$C$4)/1000*365.25 -> 5.646996325e-07 | K204: =VLOOKUP($D204,Point_Sources_All!$A$6:$V$207,3*($E$18-2)+$C$4)/1000*365.25 -> 4.277808e-06 | L204: =VLOOKUP($D204,Point_Sources_All!$A$6:$Y$207,3*($E$20-2)+$C$4)/1000*365.25 -> 0 | M204: =VLOOKUP($D204,Point_Sources_All!$A$6:$V$207,3*($E$19-2)+$C$4)/1000*365.25 -> 0
D205: 178 | E205: =VLOOKUP($D205,Background_All!$A$5:$D$206,$C$4,)/1000*365.25 -> 1.00730106e-05 | F205: =VLOOKUP($D205,Point_Sources_All!$A$6:$V$207,3*($E$13-2)+$C$4)/1000*365.25 -> 0 | G205: =VLOOKUP($D205,Point_Sources_All!$A$6:$V$207,3*($E$14-2)+$C$4)/1000*365.25 -> 6.2289735e-05 | H205: =VLOOKUP($D205,Point_Sources_All!$A$6:$V$207,3*($E$15-2)+$C$4)/1000*365.25 -> 0 | I205: =VLOOKUP($D205,Point_Sources_All!$A$6:$V$207,3*($E$16-2)+$C$4)/1000*365.25 -> 0 | J205: =VLOOKUP($D205,Point_Sources_All!$A$6:$V$207,3*($E$17-2)+$C$4)/1000*365.25 -> 5.932332669e-07 | K205: =VLOOKUP($D205,Point_Sources_All!$A$6:$V$207,3*($E$18-2)+$C$4)/1000*365.25 -> 4.401201625e-06 | L205: =VLOOKUP($D205,Point_Sources_All!$A$6:$Y$207,3*($E$20-2)+$C$4)/1000*365.25 -> 0 | M205: =VLOOKUP($D205,Point_Sources_All!$A$6:$V$207,3*($E$19-2)+$C$4)/1000*365.25 -> 0
D206: 179 | E206: =VLOOKUP($D206,Background_All!$A$5:$D$206,$C$4,)/1000*365.25 -> 9.87579995e-06 | F206: =VLOOKUP($D206,Point_Sources_All!$A$6:$V$207,3*($E$13-2)+$C$4)/1000*365.25 -> 0 | G206: =VLOOKUP($D206,Point_Sources_All!$A$6:$V$207,3*($E$14-2)+$C$4)/1000*365.25 -> 6.2289735e-05 | H206: =VLOOKUP($D206,Point_Sources_All!$A$6:$V$207,3*($E$15-2)+$C$4)/1000*365.25 -> 0 | I206: =VLOOKUP($D206,Point_Sources_All!$A$6:$V$207,3*($E$16-2)+$C$4)/1000*365.25 -> 0 | J206: =VLOOKUP($D206,Point_Sources_All!$A$6:$V$207,3*($E$17-2)+$C$4)/1000*365.25 -> 5.605893525e-07 | K206: =VLOOKUP($D206,Point_Sources_All!$A$6:$V$207,3*($E$18-2)+$C$4)/1000*365.25 -> 4.20926275e-06 | L206: =VLOOKUP($D206,Point_Sources_All!$A$6:$Y$207,3*($E$20-2)+$C$4)/1000*365.25 -> 0 | M206: =VLOOKUP($D206,Point_Sources_All!$A$6:$V$207,3*($E$19-2)+$C$4)/1000*365.25 -> 0
D207: 180 | E207: =VLOOKUP($D207,Background_All!$A$5:$D$206,$C$4,)/1000*365.25 -> 1.027225447e-05 | F207: =VLOOKUP($D207,Point_Sources_All!$A$6:$V$207,3*($E$13-2)+$C$4)/1000*365.25 -> 0 | G207: =VLOOKUP($D207,Point_Sources_All!$A$6:$V$207,3*($E$14-2)+$C$4)/1000*365.25 -> 6.2289735e-05 | H207: =VLOOKUP($D207,Point_Sources_All!$A$6:$V$207,3*($E$15-2)+$C$4)/1000*365.25 -> 0 | I207: =VLOOKUP($D207,Point_Sources_All!$A$6:$V$207,3*($E$16-2)+$C$4)/1000*365.25 -> 0 | J207: =VLOOKUP($D207,Point_Sources_All!$A$6:$V$207,3*($E$17-2)+$C$4)/1000*365.25 -> 5.90772395e-07 | K207: =VLOOKUP($D207,Point_Sources_All!$A$6:$V$207,3*($E$18-2)+$C$4)/1000*365.25 -> 4.294396438e-06 | L207: =VLOOKUP($D207,Point_Sources_All!$A$6:$Y$207,3*($E$20-2)+$C$4)/1000*365.25 -> 0 | M207: =VLOOKUP($D207,Point_Sources_All!$A$6:$V$207,3*($E$19-2)+$C$4)/1000*365.25 -> 0
D208: 181 | E208: =VLOOKUP($D208,Background_All!$A$5:$D$206,$C$4,)/1000*365.25 -> 1.020578811e-05 | F208: =VLOOKUP($D208,Point_Sources_All!$A$6:$V$207,3*($E$13-2)+$C$4)/1000*365.25 -> 0 | G208: =VLOOKUP($D208,Point_Sources_All!$A$6:$V$207,3*($E$14-2)+$C$4)/1000*365.25 -> 6.2289735e-05 | H208: =VLOOKUP($D208,Point_Sources_All!$A$6:$V$207,3*($E$15-2)+$C$4)/1000*365.25 -> 0 | I208: =VLOOKUP($D208,Point_Sources_All!$A$6:$V$207,3*($E$16-2)+$C$4)/1000*365.25 -> 0 | J208: =VLOOKUP($D208,Point_Sources_All!$A$6:$V$207,3*($E$17-2)+$C$4)/1000*365.25 -> 5.880028869e-07 | K208: =VLOOKUP($D208,Point_Sources_All!$A$6:$V$207,3*($E$18-2)+$C$4)/1000*365.25 -> 4.605163313e-06 | L208: =VLOOKUP($D208,Point_Sources_All!$A$6:$Y$207,3*($E$20-2)+$C$4)/1000*365.25 -> 0 | M208: =VLOOKUP($D208,Point_Sources_All!$A$6:$V$207,3*($E$19-2)+$C$4)/1000*365.25 -> 0
D209: 182 | E209: =VLOOKUP($D209,Background_All!$A$5:$D$206,$C$4,)/1000*365.25 -> 9.909725588e-06 | F209: =VLOOKUP($D209,Point_Sources_All!$A$6:$V$207,3*($E$13-2)+$C$4)/1000*365.25 -> 0 | G209: =VLOOKUP($D209,Point_Sources_All!$A$6:$V$207,3*($E$14-2)+$C$4)/1000*365.25 -> 6.2289735e-05 | H209: =VLOOKUP($D209,Point_Sources_All!$A$6:$V$207,3*($E$15-2)+$C$4)/1000*365.25 -> 0 | I209: =VLOOKUP($D209,Point_Sources_All!$A$6:$V$207,3*($E$16-2)+$C$4)/1000*365.25 -> 0 | J209: =VLOOKUP($D209,Point_Sources_All!$A$6:$V$207,3*($E$17-2)+$C$4)/1000*365.25 -> 5.711237712e-07 | K209: =VLOOKUP($D209,Point_Sources_All!$A$6:$V$207,3*($E$18-2)+$C$4)/1000*365.25 -> 4.432887062e-06 | L209: =VLOOKUP($D209,Point_Sources_All!$A$6:$Y$207,3*($E$20-2)+$C$4)/1000*365.25 -> 0 | M209: =VLOOKUP($D209,Point_Sources_All!$A$6:$V$207,3*($E$19-2)+$C$4)/1000*365.25 -> 0
... 17 more rows

Sheet Background_All
B2: Pond
B3: Annual Watershed Loading
A4: Time | B4: P10 | C4: P50 | D4: P90
A5: 0 | B5: =AVERAGE(OFFSET(Natural2E!$C$10,12*$A5,(4*(PlotControl!$C$6-1)),12,1)) -> 5.3182475e-06 | C5: =AVERAGE(OFFSET(Natural2E!$D$10,12*$A5,(4*(PlotControl!$C$6-1)),12,1)) -> 2.223295833e-05 | D5: =AVERAGE(OFFSET(Natural2E!$E$10,12*$A5,(4*(PlotControl!$C$6-1)),12,1)) -> 7.522275e-05
A6: 1 | B6: =AVERAGE(OFFSET(Natural2E!$C$10,12*$A6,(4*(PlotControl!$C$6-1)),12,1)) -> 4.782910833e-06 | C6: =AVERAGE(OFFSET(Natural2E!$D$10,12*$A6,(4*(PlotControl!$C$6-1)),12,1)) -> 2.066083333e-05 | D6: =AVERAGE(OFFSET(Natural2E!$E$10,12*$A6,(4*(PlotControl!$C$6-1)),12,1)) -> 6.931430833e-05
A7: 2 | B7: =AVERAGE(OFFSET(Natural2E!$C$10,12*$A7,(4*(PlotControl!$C$6-1)),12,1)) -> 4.389636667e-06 | C7: =AVERAGE(OFFSET(Natural2E!$D$10,12*$A7,(4*(PlotControl!$C$6-1)),12,1)) -> 1.863330833e-05 | D7: =AVERAGE(OFFSET(Natural2E!$E$10,12*$A7,(4*(PlotControl!$C$6-1)),12,1)) -> 6.388625e-05
A8: 3 | B8: =AVERAGE(OFFSET(Natural2E!$C$10,12*$A8,(4*(PlotControl!$C$6-1)),12,1)) -> 3.7375725e-06 | C8: =AVERAGE(OFFSET(Natural2E!$D$10,12*$A8,(4*(PlotControl!$C$6-1)),12,1)) -> 1.616874167e-05 | D8: =AVERAGE(OFFSET(Natural2E!$E$10,12*$A8,(4*(PlotControl!$C$6-1)),12,1)) -> 5.4888875e-05
A9: 4 | B9: =AVERAGE(OFFSET(Natural2E!$C$10,12*$A9,(4*(PlotControl!$C$6-1)),12,1)) -> 3.2587925e-06 | C9: =AVERAGE(OFFSET(Natural2E!$D$10,12*$A9,(4*(PlotControl!$C$6-1)),12,1)) -> 1.3822825e-05 | D9: =AVERAGE(OFFSET(Natural2E!$E$10,12*$A9,(4*(PlotControl!$C$6-1)),12,1)) -> 4.8865525e-05
A10: 5 | B10: =AVERAGE(OFFSET(Natural2E!$C$10,12*$A10,(4*(PlotControl!$C$6-1)),12,1)) -> 2.9922075e-06 | C10: =AVERAGE(OFFSET(Natural2E!$D$10,12*$A10,(4*(PlotControl!$C$6-1)),12,1)) -> 1.288500833e-05 | D10: =AVERAGE(OFFSET(Natural2E!$E$10,12*$A10,(4*(PlotControl!$C$6-1)),12,1)) -> 4.6811025e-05
A11: 6 | B11: =AVERAGE(OFFSET(Natural2E!$C$10,12*$A11,(4*(PlotControl!$C$6-1)),12,1)) -> 2.8510025e-06 | C11: =AVERAGE(OFFSET(Natural2E!$D$10,12*$A11,(4*(PlotControl!$C$6-1)),12,1)) -> 1.163664167e-05 | D11: =AVERAGE(OFFSET(Natural2E!$E$10,12*$A11,(4*(PlotControl!$C$6-1)),12,1)) -> 3.868639167e-05
A13: 7 | B13: =AVERAGE(OFFSET(Natural1E!$C$10,12*$A13,(4*(PlotControl!$C$6-1)),12,1)) -> 1.316945e-05 | C13: =AVERAGE(OFFSET(Natural1E!$D$10,12*$A13,(4*(PlotControl!$C$6-1)),12,1)) -> 5.4574775e-05 | D13: =AVERAGE(OFFSET(Natural1E!$E$10,12*$A13,(4*(PlotControl!$C$6-1)),12,1)) -> 0.0001930834833
A14: 8 | B14: =AVERAGE(OFFSET(Natural1E!$C$10,12*$A14,(4*(PlotControl!$C$6-1)),12,1)) -> 1.292476667e-05 | C14: =AVERAGE(OFFSET(Natural1E!$D$10,12*$A14,(4*(PlotControl!$C$6-1)),12,1)) -> 5.4875625e-05 | D14: =AVERAGE(OFFSET(Natural1E!$E$10,12*$A14,(4*(PlotControl!$C$6-1)),12,1)) -> 0.0001750429083
A15: 9 | B15: =AVERAGE(OFFSET(Natural1E!$C$10,12*$A15,(4*(PlotControl!$C$6-1)),12,1)) -> 1.2101175e-05 | C15: =AVERAGE(OFFSET(Natural1E!$D$10,12*$A15,(4*(PlotControl!$C$6-1)),12,1)) -> 5.3255525e-05 | D15: =AVERAGE(OFFSET(Natural1E!$E$10,12*$A15,(4*(PlotControl!$C$6-1)),12,1)) -> 0.0001765359417
A16: 10 | B16: =AVERAGE(OFFSET(Natural1E!$C$10,12*$A16,(4*(PlotControl!$C$6-1)),12,1)) -> 1.184366667e-05 | C16: =AVERAGE(OFFSET(Natural1E!$D$10,12*$A16,(4*(PlotControl!$C$6-1)),12,1)) -> 4.960049167e-05 | D16: =AVERAGE(OFFSET(Natural1E!$E$10,12*$A16,(4*(PlotControl!$C$6-1)),12,1)) -> 0.0001649370417
A17: 11 | B17: =AVERAGE(OFFSET(Natural1E!$C$10,12*$A17,(4*(PlotControl!$C$6-1)),12,1)) -> 1.043376667e-05 | C17: =AVERAGE(OFFSET(Natural1E!$D$10,12*$A17,(4*(PlotControl!$C$6-1)),12,1)) -> 4.663950833e-05 | D17: =AVERAGE(OFFSET(Natural1E!$E$10,12*$A17,(4*(PlotControl!$C$6-1)),12,1)) -> 0.0001605643417
A18: 12 | B18: =AVERAGE(OFFSET(Natural1E!$C$10,12*$A18,(4*(PlotControl!$C$6-1)),12,1)) -> 1.025425e-05 | C18: =AVERAGE(OFFSET(Natural1E!$D$10,12*$A18,(4*(PlotControl!$C$6-1)),12,1)) -> 4.223453333e-05 | D18: =AVERAGE(OFFSET(Natural1E!$E$10,12*$A18,(4*(PlotControl!$C$6-1)),12,1)) -> 0.0001490376583
A19: 13 | B19: =AVERAGE(OFFSET(Natural1E!$C$10,12*$A19,(4*(PlotControl!$C$6-1)),12,1)) -> 9.477966667e-06 | C19: =AVERAGE(OFFSET(Natural1E!$D$10,12*$A19,(4*(PlotControl!$C$6-1)),12,1)) -> 4.168814167e-05 | D19: =AVERAGE(OFFSET(Natural1E!$E$10,12*$A19,(4*(PlotControl!$C$6-1)),12,1)) -> 0.0001406175083
A20: 14 | B20: =AVERAGE(OFFSET(Natural1E!$C$10,12*$A20,(4*(PlotControl!$C$6-1)),12,1)) -> 9.022608333e-06 | C20: =AVERAGE(OFFSET(Natural1E!$D$10,12*$A20,(4*(PlotControl!$C$6-1)),12,1)) -> 3.859234167e-05 | D20: =AVERAGE(OFFSET(Natural1E!$E$10,12*$A20,(4*(PlotControl!$C$6-1)),12,1)) -> 0.0001268365333
A21: 15 | B21: =AVERAGE(OFFSET(Natural1E!$C$10,12*$A21,(4*(PlotControl!$C$6-1)),12,1)) -> 9.714733333e-06 | C21: =AVERAGE(OFFSET(Natural1E!$D$10,12*$A21,(4*(PlotControl!$C$6-1)),12,1)) -> 3.667565833e-05 | D21: =AVERAGE(OFFSET(Natural1E!$E$10,12*$A21,(4*(PlotControl!$C$6-1)),12,1)) -> 0.0001254920583
A22: 16 | B22: =AVERAGE(OFFSET(Natural1E!$C$10,12*$A22,(4*(PlotControl!$C$6-1)),12,1)) -> 8.579466667e-06 | C22: =AVERAGE(OFFSET(Natural1E!$D$10,12*$A22,(4*(PlotControl!$C$6-1)),12,1)) -> 3.4153275e-05 | D22: =AVERAGE(OFFSET(Natural1E!$E$10,12*$A22,(4*(PlotControl!$C$6-1)),12,1)) -> 0.0001202202583
A23: 17 | B23: =AVERAGE(OFFSET(Natural1E!$C$10,12*$A23,(4*(PlotControl!$C$6-1)),12,1)) -> 7.784658333e-06 | C23: =AVERAGE(OFFSET(Natural1E!$D$10,12*$A23,(4*(PlotControl!$C$6-1)),12,1)) -> 3.210080833e-05 | D23: =AVERAGE(OFFSET(Natural1E!$E$10,12*$A23,(4*(PlotControl!$C$6-1)),12,1)) -> 0.0001164979833
A24: 18 | B24: =AVERAGE(OFFSET(Natural1E!$C$10,12*$A24,(4*(PlotControl!$C$6-1)),12,1)) -> 7.169366667e-06 | C24: =AVERAGE(OFFSET(Natural1E!$D$10,12*$A24,(4*(PlotControl!$C$6-1)),12,1)) -> 3.103941667e-05 | D24: =AVERAGE(OFFSET(Natural1E!$E$10,12*$A24,(4*(PlotControl!$C$6-1)),12,1)) -> 0.00010625065
A25: 19 | B25: =AVERAGE(OFFSET(Natural1E!$C$10,12*$A25,(4*(PlotControl!$C$6-1)),12,1)) -> 6.81655e-06 | C25: =AVERAGE(OFFSET(Natural1E!$D$10,12*$A25,(4*(PlotControl!$C$6-1)),12,1)) -> 3.000143333e-05 | D25: =AVERAGE(OFFSET(Natural1E!$E$10,12*$A25,(4*(PlotControl!$C$6-1)),12,1)) -> 0.0001059262333
A26: 20 | B26: =AVERAGE(OFFSET(Natural1E!$C$10,12*$A26,(4*(PlotControl!$C$6-1)),12,1)) -> 6.58257e-06 | C26: =AVERAGE(OFFSET(Natural1E!$D$10,12*$A26,(4*(PlotControl!$C$6-1)),12,1)) -> 2.727566667e-05 | D26: =AVERAGE(OFFSET(Natural1E!$E$10,12*$A26,(4*(PlotControl!$C$6-1)),12,1)) -> 9.525590833e-05
A27: 21 | B27: =AVERAGE(OFFSET(Natural1E!$C$10,12*$A27,(4*(PlotControl!$C$6-1)),12,1)) -> 6.320341667e-06 | C27: =AVERAGE(OFFSET(Natural1E!$D$10,12*$A27,(4*(PlotControl!$C$6-1)),12,1)) -> 2.700685e-05 | D27: =AVERAGE(OFFSET(Natural1E!$E$10,12*$A27,(4*(PlotControl!$C$6-1)),12,1)) -> 9.379184167e-05
A28: 22 | B28: =AVERAGE(OFFSET(Natural1E!$C$10,12*$A28,(4*(PlotControl!$C$6-1)),12,1)) -> 6.462275e-06 | C28: =AVERAGE(OFFSET(Natural1E!$D$10,12*$A28,(4*(PlotControl!$C$6-1)),12,1)) -> 2.719661667e-05 | D28: =AVERAGE(OFFSET(Natural1E!$E$10,12*$A28,(4*(PlotControl!$C$6-1)),12,1)) -> 9.257034167e-05
A29: 23 | B29: =AVERAGE(OFFSET(Natural1E!$C$10,12*$A29,(4*(PlotControl!$C$6-1)),12,1)) -> 7.325393333e-06 | C29: =AVERAGE(OFFSET(Natural1E!$D$10,12*$A29,(4*(PlotControl!$C$6-1)),12,1)) -> 2.896896667e-05 | D29: =AVERAGE(OFFSET(Natural1E!$E$10,12*$A29,(4*(PlotControl!$C$6-1)),12,1)) -> 9.344388333e-05
A30: 24 | B30: =AVERAGE(OFFSET(Natural1E!$C$10,12*$A30,(4*(PlotControl!$C$6-1)),12,1)) -> 6.599558333e-06 | C30: =AVERAGE(OFFSET(Natural1E!$D$10,12*$A30,(4*(PlotControl!$C$6-1)),12,1)) -> 2.7652725e-05 | D30: =AVERAGE(OFFSET(Natural1E!$E$10,12*$A30,(4*(PlotControl!$C$6-1)),12,1)) -> 9.632428333e-05
A31: 25 | B31: =AVERAGE(OFFSET(Natural1E!$C$10,12*$A31,(4*(PlotControl!$C$6-1)),12,1)) -> 7.080133333e-06 | C31: =AVERAGE(OFFSET(Natural1E!$D$10,12*$A31,(4*(PlotControl!$C$6-1)),12,1)) -> 2.767521667e-05 | D31: =AVERAGE(OFFSET(Natural1E!$E$10,12*$A31,(4*(PlotControl!$C$6-1)),12,1)) -> 9.751630833e-05
A32: 26 | B32: =AVERAGE(OFFSET(Natural1E!$C$10,12*$A32,(4*(PlotControl!$C$6-1)),12,1)) -> 6.340308333e-06 | C32: =AVERAGE(OFFSET(Natural1E!$D$10,12*$A32,(4*(PlotControl!$C$6-1)),12,1)) -> 2.780518333e-05 | D32: =AVERAGE(OFFSET(Natural1E!$E$10,12*$A32,(4*(PlotControl!$C$6-1)),12,1)) -> 9.227226667e-05
A33: 27 | B33: =AVERAGE(OFFSET(Natural1E!$C$10,12*$A33,(4*(PlotControl!$C$6-1)),12,1)) -> 7.058316667e-06 | C33: =AVERAGE(OFFSET(Natural1E!$D$10,12*$A33,(4*(PlotControl!$C$6-1)),12,1)) -> 2.665685e-05 | D33: =AVERAGE(OFFSET(Natural1E!$E$10,12*$A33,(4*(PlotControl!$C$6-1)),12,1)) -> 9.736830833e-05
A34: 28 | B34: =AVERAGE(OFFSET(Natural1E!$C$10,12*$A34,(4*(PlotControl!$C$6-1)),12,1)) -> 7.197775e-06 | C34: =AVERAGE(OFFSET(Natural1E!$D$10,12*$A34,(4*(PlotControl!$C$6-1)),12,1)) -> 2.782795833e-05 | D34: =AVERAGE(OFFSET(Natural1E!$E$10,12*$A34,(4*(PlotControl!$C$6-1)),12,1)) -> 9.39978e-05
A35: 29 | B35: =AVERAGE(OFFSET(Natural1E!$C$10,12*$A35,(4*(PlotControl!$C$6-1)),12,1)) -> 6.931884167e-06 | C35: =AVERAGE(OFFSET(Natural1E!$D$10,12*$A35,(4*(PlotControl!$C$6-1)),12,1)) -> 2.898293333e-05 | D35: =AVERAGE(OFFSET(Natural1E!$E$10,12*$A35,(4*(PlotControl!$C$6-1)),12,1)) -> 9.9855175e-05
A36: 30 | B36: =AVERAGE(OFFSET(Natural1E!$C$10,12*$A36,(4*(PlotControl!$C$6-1)),12,1)) -> 6.92675e-06 | C36: =AVERAGE(OFFSET(Natural1E!$D$10,12*$A36,(4*(PlotControl!$C$6-1)),12,1)) -> 2.850269167e-05 | D36: =AVERAGE(OFFSET(Natural1E!$E$10,12*$A36,(4*(PlotControl!$C$6-1)),12,1)) -> 9.455670833e-05
A37: 31 | B37: =AVERAGE(OFFSET(Natural1E!$C$10,12*$A37,(4*(PlotControl!$C$6-1)),12,1)) -> 7.115490833e-06 | C37: =AVERAGE(OFFSET(Natural1E!$D$10,12*$A37,(4*(PlotControl!$C$6-1)),12,1)) -> 2.827765e-05 | D37: =AVERAGE(OFFSET(Natural1E!$E$10,12*$A37,(4*(PlotControl!$C$6-1)),12,1)) -> 9.872933333e-05
A38: 32 | B38: =AVERAGE(OFFSET(Natural1E!$C$10,12*$A38,(4*(PlotControl!$C$6-1)),12,1)) -> 6.685058333e-06 | C38: =AVERAGE(OFFSET(Natural1E!$D$10,12*$A38,(4*(PlotControl!$C$6-1)),12,1)) -> 2.760866667e-05 | D38: =AVERAGE(OFFSET(Natural1E!$E$10,12*$A38,(4*(PlotControl!$C$6-1)),12,1)) -> 9.207981667e-05
A39: 33 | B39: =AVERAGE(OFFSET(Natural1E!$C$10,12*$A39,(4*(PlotControl!$C$6-1)),12,1)) -> 6.459759167e-06 | C39: =AVERAGE(OFFSET(Natural1E!$D$10,12*$A39,(4*(PlotControl!$C$6-1)),12,1)) -> 2.781305e-05 | D39: =AVERAGE(OFFSET(Natural1E!$E$10,12*$A39,(4*(PlotControl!$C$6-1)),12,1)) -> 9.636415e-05
A40: 34 | B40: =AVERAGE(OFFSET(Natural1E!$C$10,12*$A40,(4*(PlotControl!$C$6-1)),12,1)) -> 6.640508333e-06 | C40: =AVERAGE(OFFSET(Natural1E!$D$10,12*$A40,(4*(PlotControl!$C$6-1)),12,1)) -> 2.780011667e-05 | D40: =AVERAGE(OFFSET(Natural1E!$E$10,12*$A40,(4*(PlotControl!$C$6-1)),12,1)) -> 9.171685e-05
A41: 35 | B41: =AVERAGE(OFFSET(Natural1E!$C$10,12*$A41,(4*(PlotControl!$C$6-1)),12,1)) -> 6.6283e-06 | C41: =AVERAGE(OFFSET(Natural1E!$D$10,12*$A41,(4*(PlotControl!$C$6-1)),12,1)) -> 2.740645833e-05 | D41: =AVERAGE(OFFSET(Natural1E!$E$10,12*$A41,(4*(PlotControl!$C$6-1)),12,1)) -> 9.5028875e-05
A42: 36 | B42: =AVERAGE(OFFSET(Natural1E!$C$10,12*$A42,(4*(PlotControl!$C$6-1)),12,1)) -> 6.413423333e-06 | C42: =AVERAGE(OFFSET(Natural1E!$D$10,12*$A42,(4*(PlotControl!$C$6-1)),12,1)) -> 2.862190833e-05 | D42: =AVERAGE(OFFSET(Natural1E!$E$10,12*$A42,(4*(PlotControl!$C$6-1)),12,1)) -> 9.4775325e-05
A43: 37 | B43: =AVERAGE(OFFSET(Natural1E!$C$10,12*$A43,(4*(PlotControl!$C$6-1)),12,1)) -> 6.77755e-06 | C43: =AVERAGE(OFFSET(Natural1E!$D$10,12*$A43,(4*(PlotControl!$C$6-1)),12,1)) -> 2.757663333e-05 | D43: =AVERAGE(OFFSET(Natural1E!$E$10,12*$A43,(4*(PlotControl!$C$6-1)),12,1)) -> 9.631238333e-05
A44: 38 | B44: =AVERAGE(OFFSET(Natural1E!$C$10,12*$A44,(4*(PlotControl!$C$6-1)),12,1)) -> 6.4812925e-06 | C44: =AVERAGE(OFFSET(Natural1E!$D$10,12*$A44,(4*(PlotControl!$C$6-1)),12,1)) -> 2.7190675e-05 | D44: =AVERAGE(OFFSET(Natural1E!$E$10,12*$A44,(4*(PlotControl!$C$6-1)),12,1)) -> 9.428330833e-05
A45: 39 | B45: =AVERAGE(OFFSET(Natural1E!$C$10,12*$A45,(4*(PlotControl!$C$6-1)),12,1)) -> 6.809308333e-06 | C45: =AVERAGE(OFFSET(Natural1E!$D$10,12*$A45,(4*(PlotControl!$C$6-1)),12,1)) -> 2.788595e-05 | D45: =AVERAGE(OFFSET(Natural1E!$E$10,12*$A45,(4*(PlotControl!$C$6-1)),12,1)) -> 9.878515e-05
A46: 40 | B46: =AVERAGE(OFFSET(Natural1E!$C$10,12*$A46,(4*(PlotControl!$C$6-1)),12,1)) -> 6.678583333e-06 | C46: =AVERAGE(OFFSET(Natural1E!$D$10,12*$A46,(4*(PlotControl!$C$6-1)),12,1)) -> 2.762968333e-05 | D46: =AVERAGE(OFFSET(Natural1E!$E$10,12*$A46,(4*(PlotControl!$C$6-1)),12,1)) -> 9.283075833e-05
A47: 41 | B47: =AVERAGE(OFFSET(Natural1E!$C$10,12*$A47,(4*(PlotControl!$C$6-1)),12,1)) -> 6.211283333e-06 | C47: =AVERAGE(OFFSET(Natural1E!$D$10,12*$A47,(4*(PlotControl!$C$6-1)),12,1)) -> 2.703215833e-05 | D47: =AVERAGE(OFFSET(Natural1E!$E$10,12*$A47,(4*(PlotControl!$C$6-1)),12,1)) -> 9.851904167e-05
A48: 42 | B48: =AVERAGE(OFFSET(Natural1E!$C$10,12*$A48,(4*(PlotControl!$C$6-1)),12,1)) -> 6.9518e-06 | C48: =AVERAGE(OFFSET(Natural1E!$D$10,12*$A48,(4*(PlotControl!$C$6-1)),12,1)) -> 2.769676667e-05 | D48: =AVERAGE(OFFSET(Natural1E!$E$10,12*$A48,(4*(PlotControl!$C$6-1)),12,1)) -> 9.473096667e-05
A49: 43 | B49: =AVERAGE(OFFSET(Natural1E!$C$10,12*$A49,(4*(PlotControl!$C$6-1)),12,1)) -> 6.3517e-06 | C49: =AVERAGE(OFFSET(Natural1E!$D$10,12*$A49,(4*(PlotControl!$C$6-1)),12,1)) -> 2.6754075e-05 | D49: =AVERAGE(OFFSET(Natural1E!$E$10,12*$A49,(4*(PlotControl!$C$6-1)),12,1)) -> 9.470761667e-05
A50: 44 | B50: =AVERAGE(OFFSET(Natural1E!$C$10,12*$A50,(4*(PlotControl!$C$6-1)),12,1)) -> 7.01385e-06 | C50: =AVERAGE(OFFSET(Natural1E!$D$10,12*$A50,(4*(PlotControl!$C$6-1)),12,1)) -> 2.831205e-05 | D50: =AVERAGE(OFFSET(Natural1E!$E$10,12*$A50,(4*(PlotControl!$C$6-1)),12,1)) -> 9.484614167e-05
A51: 45 | B51: =AVERAGE(OFFSET(Natural1E!$C$10,12*$A51,(4*(PlotControl!$C$6-1)),12,1)) -> 6.4515875e-06 | C51: =AVERAGE(OFFSET(Natural1E!$D$10,12*$A51,(4*(PlotControl!$C$6-1)),12,1)) -> 2.7654775e-05 | D51: =AVERAGE(OFFSET(Natural1E!$E$10,12*$A51,(4*(PlotControl!$C$6-1)),12,1)) -> 9.196365e-05
A52: 46 | B52: =AVERAGE(OFFSET(Natural1E!$C$10,12*$A52,(4*(PlotControl!$C$6-1)),12,1)) -> 6.940230833e-06 | C52: =AVERAGE(OFFSET(Natural1E!$D$10,12*$A52,(4*(PlotControl!$C$6-1)),12,1)) -> 2.696305e-05 | D52: =AVERAGE(OFFSET(Natural1E!$E$10,12*$A52,(4*(PlotControl!$C$6-1)),12,1)) -> 9.150590833e-05
A53: 47 | B53: =AVERAGE(OFFSET(Natural1E!$C$10,12*$A53,(4*(PlotControl!$C$6-1)),12,1)) -> 6.822189167e-06 | C53: =AVERAGE(OFFSET(Natural1E!$D$10,12*$A53,(4*(PlotControl!$C$6-1)),12,1)) -> 2.80377e-05 | D53: =AVERAGE(OFFSET(Natural1E!$E$10,12*$A53,(4*(PlotControl!$C$6-1)),12,1)) -> 9.2606475e-05
A54: 48 | B54: =AVERAGE(OFFSET(Natural1E!$C$10,12*$A54,(4*(PlotControl!$C$6-1)),12,1)) -> 7.039175e-06 | C54: =AVERAGE(OFFSET(Natural1E!$D$10,12*$A54,(4*(PlotControl!$C$6-1)),12,1)) -> 2.878853333e-05 | D54: =AVERAGE(OFFSET(Natural1E!$E$10,12*$A54,(4*(PlotControl!$C$6-1)),12,1)) -> 0.0001012832417
A55: 49 | B55: =AVERAGE(OFFSET(Natural1E!$C$10,12*$A55,(4*(PlotControl!$C$6-1)),12,1)) -> 6.623075e-06 | C55: =AVERAGE(OFFSET(Natural1E!$D$10,12*$A55,(4*(PlotControl!$C$6-1)),12,1)) -> 2.727651667e-05 | D55: =AVERAGE(OFFSET(Natural1E!$E$10,12*$A55,(4*(PlotControl!$C$6-1)),12,1)) -> 9.095874167e-05
A56: 50 | B56: =AVERAGE(OFFSET(Natural1E!$C$10,12*$A56,(4*(PlotControl!$C$6-1)),12,1)) -> 6.513266667e-06 | C56: =AVERAGE(OFFSET(Natural1E!$D$10,12*$A56,(4*(PlotControl!$C$6-1)),12,1)) -> 2.851979167e-05 | D56: =AVERAGE(OFFSET(Natural1E!$E$10,12*$A56,(4*(PlotControl!$C$6-1)),12,1)) -> 9.929876667e-05
A57: 51 | B57: =AVERAGE(OFFSET(Natural1E!$C$10,12*$A57,(4*(PlotControl!$C$6-1)),12,1)) -> 6.585275e-06 | C57: =AVERAGE(OFFSET(Natural1E!$D$10,12*$A57,(4*(PlotControl!$C$6-1)),12,1)) -> 2.889758333e-05 | D57: =AVERAGE(OFFSET(Natural1E!$E$10,12*$A57,(4*(PlotControl!$C$6-1)),12,1)) -> 9.47106e-05
A58: 52 | B58: =AVERAGE(OFFSET(Natural1E!$C$10,12*$A58,(4*(PlotControl!$C$6-1)),12,1)) -> 6.577558333e-06 | C58: =AVERAGE(OFFSET(Natural1E!$D$10,12*$A58,(4*(PlotControl!$C$6-1)),12,1)) -> 2.877781667e-05 | D58: =AVERAGE(OFFSET(Natural1E!$E$10,12*$A58,(4*(PlotControl!$C$6-1)),12,1)) -> 9.5045775e-05
A59: 53 | B59: =AVERAGE(OFFSET(Natural1E!$C$10,12*$A59,(4*(PlotControl!$C$6-1)),12,1)) -> 6.931485e-06 | C59: =AVERAGE(OFFSET(Natural1E!$D$10,12*$A59,(4*(PlotControl!$C$6-1)),12,1)) -> 2.839721667e-05 | D59: =AVERAGE(OFFSET(Natural1E!$E$10,12*$A59,(4*(PlotControl!$C$6-1)),12,1)) -> 9.576975833e-05
A60: 54 | B60: =AVERAGE(OFFSET(Natural1E!$C$10,12*$A60,(4*(PlotControl!$C$6-1)),12,1)) -> 6.4564e-06 | C60: =AVERAGE(OFFSET(Natural1E!$D$10,12*$A60,(4*(PlotControl!$C$6-1)),12,1)) -> 2.754566667e-05 | D60: =AVERAGE(OFFSET(Natural1E!$E$10,12*$A60,(4*(PlotControl!$C$6-1)),12,1)) -> 9.051033333e-05
A61: 55 | B61: =AVERAGE(OFFSET(Natural1E!$C$10,12*$A61,(4*(PlotControl!$C$6-1)),12,1)) -> 6.048191667e-06 | C61: =AVERAGE(OFFSET(Natural1E!$D$10,12*$A61,(4*(PlotControl!$C$6-1)),12,1)) -> 2.912545833e-05 | D61: =AVERAGE(OFFSET(Natural1E!$E$10,12*$A61,(4*(PlotControl!$C$6-1)),12,1)) -> 9.810894167e-05
A62: 56 | B62: =AVERAGE(OFFSET(Natural1E!$C$10,12*$A62,(4*(PlotControl!$C$6-1)),12,1)) -> 6.391108333e-06 | C62: =AVERAGE(OFFSET(Natural1E!$D$10,12*$A62,(4*(PlotControl!$C$6-1)),12,1)) -> 2.676155833e-05 | D62: =AVERAGE(OFFSET(Natural1E!$E$10,12*$A62,(4*(PlotControl!$C$6-1)),12,1)) -> 9.619879167e-05
A63: 57 | B63: =AVERAGE(OFFSET(Natural1E!$C$10,12*$A63,(4*(PlotControl!$C$6-1)),12,1)) -> 6.55961e-06 | C63: =AVERAGE(OFFSET(Natural1E!$D$10,12*$A63,(4*(PlotControl!$C$6-1)),12,1)) -> 2.787163333e-05 | D63: =AVERAGE(OFFSET(Natural1E!$E$10,12*$A63,(4*(PlotControl!$C$6-1)),12,1)) -> 9.583810833e-05
A64: 58 | B64: =AVERAGE(OFFSET(Natural1E!$C$10,12*$A64,(4*(PlotControl!$C$6-1)),12,1)) -> 6.8270675e-06 | C64: =AVERAGE(OFFSET(Natural1E!$D$10,12*$A64,(4*(PlotControl!$C$6-1)),12,1)) -> 2.809585833e-05 | D64: =AVERAGE(OFFSET(Natural1E!$E$10,12*$A64,(4*(PlotControl!$C$6-1)),12,1)) -> 9.85436e-05
A65: 59 | B65: =AVERAGE(OFFSET(Natural1E!$C$10,12*$A65,(4*(PlotControl!$C$6-1)),12,1)) -> 6.3448e-06 | C65: =AVERAGE(OFFSET(Natural1E!$D$10,12*$A65,(4*(PlotControl!$C$6-1)),12,1)) -> 2.716280833e-05 | D65: =AVERAGE(OFFSET(Natural1E!$E$10,12*$A65,(4*(PlotControl!$C$6-1)),12,1)) -> 9.4229775e-05
A66: 60 | B66: =AVERAGE(OFFSET(Natural1E!$C$10,12*$A66,(4*(PlotControl!$C$6-1)),12,1)) -> 6.620285e-06 | C66: =AVERAGE(OFFSET(Natural1E!$D$10,12*$A66,(4*(PlotControl!$C$6-1)),12,1)) -> 2.861636667e-05 | D66: =AVERAGE(OFFSET(Natural1E!$E$10,12*$A66,(4*(PlotControl!$C$6-1)),12,1)) -> 0.0001011844083
A67: 61 | B67: =AVERAGE(OFFSET(Natural1E!$C$10,12*$A67,(4*(PlotControl!$C$6-1)),12,1)) -> 6.91225e-06 | C67: =AVERAGE(OFFSET(Natural1E!$D$10,12*$A67,(4*(PlotControl!$C$6-1)),12,1)) -> 2.801461667e-05 | D67: =AVERAGE(OFFSET(Natural1E!$E$10,12*$A67,(4*(PlotControl!$C$6-1)),12,1)) -> 9.745595e-05
A68: 62 | B68: =AVERAGE(OFFSET(Natural1E!$C$10,12*$A68,(4*(PlotControl!$C$6-1)),12,1)) -> 6.541374167e-06 | C68: =AVERAGE(OFFSET(Natural1E!$D$10,12*$A68,(4*(PlotControl!$C$6-1)),12,1)) -> 2.827319167e-05 | D68: =AVERAGE(OFFSET(Natural1E!$E$10,12*$A68,(4*(PlotControl!$C$6-1)),12,1)) -> 9.827465833e-05
A69: 63 | B69: =AVERAGE(OFFSET(Natural1E!$C$10,12*$A69,(4*(PlotControl!$C$6-1)),12,1)) -> 6.614883333e-06 | C69: =AVERAGE(OFFSET(Natural1E!$D$10,12*$A69,(4*(PlotControl!$C$6-1)),12,1)) -> 2.841775833e-05 | D69: =AVERAGE(OFFSET(Natural1E!$E$10,12*$A69,(4*(PlotControl!$C$6-1)),12,1)) -> 9.447778333e-05
A70: 64 | B70: =AVERAGE(OFFSET(Natural1E!$C$10,12*$A70,(4*(PlotControl!$C$6-1)),12,1)) -> 6.651588333e-06 | C70: =AVERAGE(OFFSET(Natural1E!$D$10,12*$A70,(4*(PlotControl!$C$6-1)),12,1)) -> 2.74176e-05 | D70: =AVERAGE(OFFSET(Natural1E!$E$10,12*$A70,(4*(PlotControl!$C$6-1)),12,1)) -> 9.7540325e-05
A71: 65 | B71: =AVERAGE(OFFSET(Natural1E!$C$10,12*$A71,(4*(PlotControl!$C$6-1)),12,1)) -> 6.663833333e-06 | C71: =AVERAGE(OFFSET(Natural1E!$D$10,12*$A71,(4*(PlotControl!$C$6-1)),12,1)) -> 2.70721e-05 | D71: =AVERAGE(OFFSET(Natural1E!$E$10,12*$A71,(4*(PlotControl!$C$6-1)),12,1)) -> 9.328190833e-05
A72: 66 | B72: =AVERAGE(OFFSET(Natural1E!$C$10,12*$A72,(4*(PlotControl!$C$6-1)),12,1)) -> 6.811191667e-06 | C72: =AVERAGE(OFFSET(Natural1E!$D$10,12*$A72,(4*(PlotControl!$C$6-1)),12,1)) -> 2.770598333e-05 | D72: =AVERAGE(OFFSET(Natural1E!$E$10,12*$A72,(4*(PlotControl!$C$6-1)),12,1)) -> 9.401865e-05
A73: 67 | B73: =AVERAGE(OFFSET(Natural1E!$C$10,12*$A73,(4*(PlotControl!$C$6-1)),12,1)) -> 6.380685833e-06 | C73: =AVERAGE(OFFSET(Natural1E!$D$10,12*$A73,(4*(PlotControl!$C$6-1)),12,1)) -> 2.7245375e-05 | D73: =AVERAGE(OFFSET(Natural1E!$E$10,12*$A73,(4*(PlotControl!$C$6-1)),12,1)) -> 9.400129167e-05
A74: 68 | B74: =AVERAGE(OFFSET(Natural1E!$C$10,12*$A74,(4*(PlotControl!$C$6-1)),12,1)) -> 6.925466667e-06 | C74: =AVERAGE(OFFSET(Natural1E!$D$10,12*$A74,(4*(PlotControl!$C$6-1)),12,1)) -> 2.7989675e-05 | D74: =AVERAGE(OFFSET(Natural1E!$E$10,12*$A74,(4*(PlotControl!$C$6-1)),12,1)) -> 9.5362325e-05
A75: 69 | B75: =AVERAGE(OFFSET(Natural1E!$C$10,12*$A75,(4*(PlotControl!$C$6-1)),12,1)) -> 6.335925e-06 | C75: =AVERAGE(OFFSET(Natural1E!$D$10,12*$A75,(4*(PlotControl!$C$6-1)),12,1)) -> 2.737649167e-05 | D75: =AVERAGE(OFFSET(Natural1E!$E$10,12*$A75,(4*(PlotControl!$C$6-1)),12,1)) -> 9.225935833e-05
A76: 70 | B76: =AVERAGE(OFFSET(Natural1E!$C$10,12*$A76,(4*(PlotControl!$C$6-1)),12,1)) -> 6.4700225e-06 | C76: =AVERAGE(OFFSET(Natural1E!$D$10,12*$A76,(4*(PlotControl!$C$6-1)),12,1)) -> 2.730109167e-05 | D76: =AVERAGE(OFFSET(Natural1E!$E$10,12*$A76,(4*(PlotControl!$C$6-1)),12,1)) -> 9.28069e-05
A77: 71 | B77: =AVERAGE(OFFSET(Natural1E!$C$10,12*$A77,(4*(PlotControl!$C$6-1)),12,1)) -> 6.2487325e-06 | C77: =AVERAGE(OFFSET(Natural1E!$D$10,12*$A77,(4*(PlotControl!$C$6-1)),12,1)) -> 2.750814167e-05 | D77: =AVERAGE(OFFSET(Natural1E!$E$10,12*$A77,(4*(PlotControl!$C$6-1)),12,1)) -> 9.761948333e-05
A78: 72 | B78: =AVERAGE(OFFSET(Natural1E!$C$10,12*$A78,(4*(PlotControl!$C$6-1)),12,1)) -> 6.419315833e-06 | C78: =AVERAGE(OFFSET(Natural1E!$D$10,12*$A78,(4*(PlotControl!$C$6-1)),12,1)) -> 2.797006667e-05 | D78: =AVERAGE(OFFSET(Natural1E!$E$10,12*$A78,(4*(PlotControl!$C$6-1)),12,1)) -> 9.490650833e-05
A79: 73 | B79: =AVERAGE(OFFSET(Natural1E!$C$10,12*$A79,(4*(PlotControl!$C$6-1)),12,1)) -> 6.396416667e-06 | C79: =AVERAGE(OFFSET(Natural1E!$D$10,12*$A79,(4*(PlotControl!$C$6-1)),12,1)) -> 2.646940833e-05 | D79: =AVERAGE(OFFSET(Natural1E!$E$10,12*$A79,(4*(PlotControl!$C$6-1)),12,1)) -> 9.120073333e-05
A80: 74 | B80: =AVERAGE(OFFSET(Natural1E!$C$10,12*$A80,(4*(PlotControl!$C$6-1)),12,1)) -> 6.531549167e-06 | C80: =AVERAGE(OFFSET(Natural1E!$D$10,12*$A80,(4*(PlotControl!$C$6-1)),12,1)) -> 2.749201667e-05 | D80: =AVERAGE(OFFSET(Natural1E!$E$10,12*$A80,(4*(PlotControl!$C$6-1)),12,1)) -> 9.822480833e-05
A81: 75 | B81: =AVERAGE(OFFSET(Natural1E!$C$10,12*$A81,(4*(PlotControl!$C$6-1)),12,1)) -> 6.60465e-06 | C81: =AVERAGE(OFFSET(Natural1E!$D$10,12*$A81,(4*(PlotControl!$C$6-1)),12,1)) -> 2.756630833e-05 | D81: =AVERAGE(OFFSET(Natural1E!$E$10,12*$A81,(4*(PlotControl!$C$6-1)),12,1)) -> 9.18761e-05
A82: 76 | B82: =AVERAGE(OFFSET(Natural1E!$C$10,12*$A82,(4*(PlotControl!$C$6-1)),12,1)) -> 6.491833333e-06 | C82: =AVERAGE(OFFSET(Natural1E!$D$10,12*$A82,(4*(PlotControl!$C$6-1)),12,1)) -> 2.6853875e-05 | D82: =AVERAGE(OFFSET(Natural1E!$E$10,12*$A82,(4*(PlotControl!$C$6-1)),12,1)) -> 9.6985975e-05
A83: 77 | B83: =AVERAGE(OFFSET(Natural1E!$C$10,12*$A83,(4*(PlotControl!$C$6-1)),12,1)) -> 6.283133333e-06 | C83: =AVERAGE(OFFSET(Natural1E!$D$10,12*$A83,(4*(PlotControl!$C$6-1)),12,1)) -> 2.741354167e-05 | D83: =AVERAGE(OFFSET(Natural1E!$E$10,12*$A83,(4*(PlotControl!$C$6-1)),12,1)) -> 9.557925833e-05
A84: 78 | B84: =AVERAGE(OFFSET(Natural1E!$C$10,12*$A84,(4*(PlotControl!$C$6-1)),12,1)) -> 6.3753875e-06 | C84: =AVERAGE(OFFSET(Natural1E!$D$10,12*$A84,(4*(PlotControl!$C$6-1)),12,1)) -> 2.684525e-05 | D84: =AVERAGE(OFFSET(Natural1E!$E$10,12*$A84,(4*(PlotControl!$C$6-1)),12,1)) -> 8.788405833e-05
A85: 79 | B85: =AVERAGE(OFFSET(Natural1E!$C$10,12*$A85,(4*(PlotControl!$C$6-1)),12,1)) -> 6.669916667e-06 | C85: =AVERAGE(OFFSET(Natural1E!$D$10,12*$A85,(4*(PlotControl!$C$6-1)),12,1)) -> 2.754991667e-05 | D85: =AVERAGE(OFFSET(Natural1E!$E$10,12*$A85,(4*(PlotControl!$C$6-1)),12,1)) -> 9.8813125e-05
A86: 80 | B86: =AVERAGE(OFFSET(Natural1E!$C$10,12*$A86,(4*(PlotControl!$C$6-1)),12,1)) -> 6.822191667e-06 | C86: =AVERAGE(OFFSET(Natural1E!$D$10,12*$A86,(4*(PlotControl!$C$6-1)),12,1)) -> 2.746880833e-05 | D86: =AVERAGE(OFFSET(Natural1E!$E$10,12*$A86,(4*(PlotControl!$C$6-1)),12,1)) -> 9.248041667e-05
A87: 81 | B87: =AVERAGE(OFFSET(Natural1E!$C$10,12*$A87,(4*(PlotControl!$C$6-1)),12,1)) -> 6.532641667e-06 | C87: =AVERAGE(OFFSET(Natural1E!$D$10,12*$A87,(4*(PlotControl!$C$6-1)),12,1)) -> 2.7704525e-05 | D87: =AVERAGE(OFFSET(Natural1E!$E$10,12*$A87,(4*(PlotControl!$C$6-1)),12,1)) -> 9.142526667e-05
A88: 82 | B88: =AVERAGE(OFFSET(Natural1E!$C$10,12*$A88,(4*(PlotControl!$C$6-1)),12,1)) -> 6.493425e-06 | C88: =AVERAGE(OFFSET(Natural1E!$D$10,12*$A88,(4*(PlotControl!$C$6-1)),12,1)) -> 2.78964e-05 | D88: =AVERAGE(OFFSET(Natural1E!$E$10,12*$A88,(4*(PlotControl!$C$6-1)),12,1)) -> 9.043969167e-05
A89: 83 | B89: =AVERAGE(OFFSET(Natural1E!$C$10,12*$A89,(4*(PlotControl!$C$6-1)),12,1)) -> 6.465548333e-06 | C89: =AVERAGE(OFFSET(Natural1E!$D$10,12*$A89,(4*(PlotControl!$C$6-1)),12,1)) -> 2.749383333e-05 | D89: =AVERAGE(OFFSET(Natural1E!$E$10,12*$A89,(4*(PlotControl!$C$6-1)),12,1)) -> 9.4943525e-05
A90: 84 | B90: =AVERAGE(OFFSET(Natural1E!$C$10,12*$A90,(4*(PlotControl!$C$6-1)),12,1)) -> 6.422351667e-06 | C90: =AVERAGE(OFFSET(Natural1E!$D$10,12*$A90,(4*(PlotControl!$C$6-1)),12,1)) -> 2.863206667e-05 | D90: =AVERAGE(OFFSET(Natural1E!$E$10,12*$A90,(4*(PlotControl!$C$6-1)),12,1)) -> 9.999806667e-05
A91: 85 | B91: =AVERAGE(OFFSET(Natural1E!$C$10,12*$A91,(4*(PlotControl!$C$6-1)),12,1)) -> 6.131401667e-06 | C91: =AVERAGE(OFFSET(Natural1E!$D$10,12*$A91,(4*(PlotControl!$C$6-1)),12,1)) -> 2.86899e-05 | D91: =AVERAGE(OFFSET(Natural1E!$E$10,12*$A91,(4*(PlotControl!$C$6-1)),12,1)) -> 9.8109225e-05
A92: 86 | B92: =AVERAGE(OFFSET(Natural1E!$C$10,12*$A92,(4*(PlotControl!$C$6-1)),12,1)) -> 6.958091667e-06 | C92: =AVERAGE(OFFSET(Natural1E!$D$10,12*$A92,(4*(PlotControl!$C$6-1)),12,1)) -> 2.645065833e-05 | D92: =AVERAGE(OFFSET(Natural1E!$E$10,12*$A92,(4*(PlotControl!$C$6-1)),12,1)) -> 9.729671667e-05
A93: 87 | B93: =AVERAGE(OFFSET(Natural1E!$C$10,12*$A93,(4*(PlotControl!$C$6-1)),12,1)) -> 6.916766667e-06 | C93: =AVERAGE(OFFSET(Natural1E!$D$10,12*$A93,(4*(PlotControl!$C$6-1)),12,1)) -> 2.71657e-05 | D93: =AVERAGE(OFFSET(Natural1E!$E$10,12*$A93,(4*(PlotControl!$C$6-1)),12,1)) -> 9.577326667e-05
A94: 88 | B94: =AVERAGE(OFFSET(Natural1E!$C$10,12*$A94,(4*(PlotControl!$C$6-1)),12,1)) -> 6.3897675e-06 | C94: =AVERAGE(OFFSET(Natural1E!$D$10,12*$A94,(4*(PlotControl!$C$6-1)),12,1)) -> 2.6614075e-05 | D94: =AVERAGE(OFFSET(Natural1E!$E$10,12*$A94,(4*(PlotControl!$C$6-1)),12,1)) -> 9.649991667e-05
A95: 89 | B95: =AVERAGE(OFFSET(Natural1E!$C$10,12*$A95,(4*(PlotControl!$C$6-1)),12,1)) -> 6.700733333e-06 | C95: =AVERAGE(OFFSET(Natural1E!$D$10,12*$A95,(4*(PlotControl!$C$6-1)),12,1)) -> 2.818385e-05 | D95: =AVERAGE(OFFSET(Natural1E!$E$10,12*$A95,(4*(PlotControl!$C$6-1)),12,1)) -> 9.119033333e-05
A96: 90 | B96: =AVERAGE(OFFSET(Natural1E!$C$10,12*$A96,(4*(PlotControl!$C$6-1)),12,1)) -> 6.548158333e-06 | C96: =AVERAGE(OFFSET(Natural1E!$D$10,12*$A96,(4*(PlotControl!$C$6-1)),12,1)) -> 2.812508333e-05 | D96: =AVERAGE(OFFSET(Natural1E!$E$10,12*$A96,(4*(PlotControl!$C$6-1)),12,1)) -> 9.422593333e-05
A97: 91 | B97: =AVERAGE(OFFSET(Natural1E!$C$10,12*$A97,(4*(PlotControl!$C$6-1)),12,1)) -> 6.72005e-06 | C97: =AVERAGE(OFFSET(Natural1E!$D$10,12*$A97,(4*(PlotControl!$C$6-1)),12,1)) -> 2.713903333e-05 | D97: =AVERAGE(OFFSET(Natural1E!$E$10,12*$A97,(4*(PlotControl!$C$6-1)),12,1)) -> 9.1828725e-05
A98: 92 | B98: =AVERAGE(OFFSET(Natural1E!$C$10,12*$A98,(4*(PlotControl!$C$6-1)),12,1)) -> 6.752333333e-06 | C98: =AVERAGE(OFFSET(Natural1E!$D$10,12*$A98,(4*(PlotControl!$C$6-1)),12,1)) -> 2.774881667e-05 | D98: =AVERAGE(OFFSET(Natural1E!$E$10,12*$A98,(4*(PlotControl!$C$6-1)),12,1)) -> 9.266825833e-05
A99: 93 | B99: =AVERAGE(OFFSET(Natural1E!$C$10,12*$A99,(4*(PlotControl!$C$6-1)),12,1)) -> 5.828035e-06 | C99: =AVERAGE(OFFSET(Natural1E!$D$10,12*$A99,(4*(PlotControl!$C$6-1)),12,1)) -> 2.715839167e-05 | D99: =AVERAGE(OFFSET(Natural1E!$E$10,12*$A99,(4*(PlotControl!$C$6-1)),12,1)) -> 9.534898333e-05
A100: 94 | B100: =AVERAGE(OFFSET(Natural1E!$C$10,12*$A100,(4*(PlotControl!$C$6-1)),12,1)) -> 6.859425e-06 | C100: =AVERAGE(OFFSET(Natural1E!$D$10,12*$A100,(4*(PlotControl!$C$6-1)),12,1)) -> 2.724965e-05 | D100: =AVERAGE(OFFSET(Natural1E!$E$10,12*$A100,(4*(PlotControl!$C$6-1)),12,1)) -> 9.6733525e-05
A101: 95 | B101: =AVERAGE(OFFSET(Natural1E!$C$10,12*$A101,(4*(PlotControl!$C$6-1)),12,1)) -> 6.424708333e-06 | C101: =AVERAGE(OFFSET(Natural1E!$D$10,12*$A101,(4*(PlotControl!$C$6-1)),12,1)) -> 2.6671875e-05 | D101: =AVERAGE(OFFSET(Natural1E!$E$10,12*$A101,(4*(PlotControl!$C$6-1)),12,1)) -> 9.490980833e-05
A102: 96 | B102: =AVERAGE(OFFSET(Natural1E!$C$10,12*$A102,(4*(PlotControl!$C$6-1)),12,1)) -> 6.64275e-06 | C102: =AVERAGE(OFFSET(Natural1E!$D$10,12*$A102,(4*(PlotControl!$C$6-1)),12,1)) -> 2.733856667e-05 | D102: =AVERAGE(OFFSET(Natural1E!$E$10,12*$A102,(4*(PlotControl!$C$6-1)),12,1)) -> 9.790919167e-05
A103: 97 | B103: =AVERAGE(OFFSET(Natural1E!$C$10,12*$A103,(4*(PlotControl!$C$6-1)),12,1)) -> 6.459709167e-06 | C103: =AVERAGE(OFFSET(Natural1E!$D$10,12*$A103,(4*(PlotControl!$C$6-1)),12,1)) -> 2.718833333e-05 | D103: =AVERAGE(OFFSET(Natural1E!$E$10,12*$A103,(4*(PlotControl!$C$6-1)),12,1)) -> 9.338461667e-05
A104: 98 | B104: =AVERAGE(OFFSET(Natural1E!$C$10,12*$A104,(4*(PlotControl!$C$6-1)),12,1)) -> 7.044239167e-06 | C104: =AVERAGE(OFFSET(Natural1E!$D$10,12*$A104,(4*(PlotControl!$C$6-1)),12,1)) -> 2.8219625e-05 | D104: =AVERAGE(OFFSET(Natural1E!$E$10,12*$A104,(4*(PlotControl!$C$6-1)),12,1)) -> 9.540950833e-05
A105: 99 | B105: =AVERAGE(OFFSET(Natural1E!$C$10,12*$A105,(4*(PlotControl!$C$6-1)),12,1)) -> 6.598130833e-06 | C105: =AVERAGE(OFFSET(Natural1E!$D$10,12*$A105,(4*(PlotControl!$C$6-1)),12,1)) -> 2.816601667e-05 | D105: =AVERAGE(OFFSET(Natural1E!$E$10,12*$A105,(4*(PlotControl!$C$6-1)),12,1)) -> 9.765061667e-05
A106: 100 | B106: =AVERAGE(OFFSET(Natural1E!$C$10,12*$A106,(4*(PlotControl!$C$6-1)),12,1)) -> 6.405733333e-06 | C106: =AVERAGE(OFFSET(Natural1E!$D$10,12*$A106,(4*(PlotControl!$C$6-1)),12,1)) -> 2.768844167e-05 | D106: =AVERAGE(OFFSET(Natural1E!$E$10,12*$A106,(4*(PlotControl!$C$6-1)),12,1)) -> 9.23584e-05
A107: 101 | B107: =AVERAGE(OFFSET(Natural1E!$C$10,12*$A107,(4*(PlotControl!$C$6-1)),12,1)) -> 6.875321667e-06 | C107: =AVERAGE(OFFSET(Natural1E!$D$10,12*$A107,(4*(PlotControl!$C$6-1)),12,1)) -> 2.7885425e-05 | D107: =AVERAGE(OFFSET(Natural1E!$E$10,12*$A107,(4*(PlotControl!$C$6-1)),12,1)) -> 9.461084167e-05
A108: 102 | B108: =AVERAGE(OFFSET(Natural1E!$C$10,12*$A108,(4*(PlotControl!$C$6-1)),12,1)) -> 6.731156667e-06 | C108: =AVERAGE(OFFSET(Natural1E!$D$10,12*$A108,(4*(PlotControl!$C$6-1)),12,1)) -> 2.752579167e-05 | D108: =AVERAGE(OFFSET(Natural1E!$E$10,12*$A108,(4*(PlotControl!$C$6-1)),12,1)) -> 9.680054167e-05
A109: 103 | B109: =AVERAGE(OFFSET(Natural1E!$C$10,12*$A109,(4*(PlotControl!$C$6-1)),12,1)) -> 6.638026667e-06 | C109: =AVERAGE(OFFSET(Natural1E!$D$10,12*$A109,(4*(PlotControl!$C$6-1)),12,1)) -> 2.791916667e-05 | D109: =AVERAGE(OFFSET(Natural1E!$E$10,12*$A109,(4*(PlotControl!$C$6-1)),12,1)) -> 9.733601667e-05
A110: 104 | B110: =AVERAGE(OFFSET(Natural1E!$C$10,12*$A110,(4*(PlotControl!$C$6-1)),12,1)) -> 6.745590833e-06 | C110: =AVERAGE(OFFSET(Natural1E!$D$10,12*$A110,(4*(PlotControl!$C$6-1)),12,1)) -> 2.890291667e-05 | D110: =AVERAGE(OFFSET(Natural1E!$E$10,12*$A110,(4*(PlotControl!$C$6-1)),12,1)) -> 9.1476225e-05
A111: 105 | B111: =AVERAGE(OFFSET(Natural1E!$C$10,12*$A111,(4*(PlotControl!$C$6-1)),12,1)) -> 6.394591667e-06 | C111: =AVERAGE(OFFSET(Natural1E!$D$10,12*$A111,(4*(PlotControl!$C$6-1)),12,1)) -> 2.884251667e-05 | D111: =AVERAGE(OFFSET(Natural1E!$E$10,12*$A111,(4*(PlotControl!$C$6-1)),12,1)) -> 9.513845e-05
A112: 106 | B112: =AVERAGE(OFFSET(Natural1E!$C$10,12*$A112,(4*(PlotControl!$C$6-1)),12,1)) -> 6.773158333e-06 | C112: =AVERAGE(OFFSET(Natural1E!$D$10,12*$A112,(4*(PlotControl!$C$6-1)),12,1)) -> 2.7711675e-05 | D112: =AVERAGE(OFFSET(Natural1E!$E$10,12*$A112,(4*(PlotControl!$C$6-1)),12,1)) -> 9.935488333e-05
A113: 107 | B113: =AVERAGE(OFFSET(Natural1E!$C$10,12*$A113,(4*(PlotControl!$C$6-1)),12,1)) -> 6.679689167e-06 | C113: =AVERAGE(OFFSET(Natural1E!$D$10,12*$A113,(4*(PlotControl!$C$6-1)),12,1)) -> 2.812160833e-05 | D113: =AVERAGE(OFFSET(Natural1E!$E$10,12*$A113,(4*(PlotControl!$C$6-1)),12,1)) -> 9.564709167e-05
A114: 108 | B114: =AVERAGE(OFFSET(Natural1E!$C$10,12*$A114,(4*(PlotControl!$C$6-1)),12,1)) -> 6.555533333e-06 | C114: =AVERAGE(OFFSET(Natural1E!$D$10,12*$A114,(4*(PlotControl!$C$6-1)),12,1)) -> 2.800168333e-05 | D114: =AVERAGE(OFFSET(Natural1E!$E$10,12*$A114,(4*(PlotControl!$C$6-1)),12,1)) -> 9.126016667e-05
A115: 109 | B115: =AVERAGE(OFFSET(Natural1E!$C$10,12*$A115,(4*(PlotControl!$C$6-1)),12,1)) -> 6.277358333e-06 | C115: =AVERAGE(OFFSET(Natural1E!$D$10,12*$A115,(4*(PlotControl!$C$6-1)),12,1)) -> 2.723749167e-05 | D115: =AVERAGE(OFFSET(Natural1E!$E$10,12*$A115,(4*(PlotControl!$C$6-1)),12,1)) -> 9.6536175e-05
A116: 110 | B116: =AVERAGE(OFFSET(Natural1E!$C$10,12*$A116,(4*(PlotControl!$C$6-1)),12,1)) -> 6.471441667e-06 | C116: =AVERAGE(OFFSET(Natural1E!$D$10,12*$A116,(4*(PlotControl!$C$6-1)),12,1)) -> 2.7436825e-05 | D116: =AVERAGE(OFFSET(Natural1E!$E$10,12*$A116,(4*(PlotControl!$C$6-1)),12,1)) -> 9.6227275e-05
A117: 111 | B117: =AVERAGE(OFFSET(Natural1E!$C$10,12*$A117,(4*(PlotControl!$C$6-1)),12,1)) -> 6.538495e-06 | C117: =AVERAGE(OFFSET(Natural1E!$D$10,12*$A117,(4*(PlotControl!$C$6-1)),12,1)) -> 2.765808333e-05 | D117: =AVERAGE(OFFSET(Natural1E!$E$10,12*$A117,(4*(PlotControl!$C$6-1)),12,1)) -> 9.524991667e-05
A118: 112 | B118: =AVERAGE(OFFSET(Natural1E!$C$10,12*$A118,(4*(PlotControl!$C$6-1)),12,1)) -> 6.7765875e-06 | C118: =AVERAGE(OFFSET(Natural1E!$D$10,12*$A118,(4*(PlotControl!$C$6-1)),12,1)) -> 2.702005e-05 | D118: =AVERAGE(OFFSET(Natural1E!$E$10,12*$A118,(4*(PlotControl!$C$6-1)),12,1)) -> 9.3768075e-05
A119: 113 | B119: =AVERAGE(OFFSET(Natural1E!$C$10,12*$A119,(4*(PlotControl!$C$6-1)),12,1)) -> 6.543391667e-06 | C119: =AVERAGE(OFFSET(Natural1E!$D$10,12*$A119,(4*(PlotControl!$C$6-1)),12,1)) -> 2.822910833e-05 | D119: =AVERAGE(OFFSET(Natural1E!$E$10,12*$A119,(4*(PlotControl!$C$6-1)),12,1)) -> 9.5456175e-05
A120: 114 | B120: =AVERAGE(OFFSET(Natural1E!$C$10,12*$A120,(4*(PlotControl!$C$6-1)),12,1)) -> 6.2429875e-06 | C120: =AVERAGE(OFFSET(Natural1E!$D$10,12*$A120,(4*(PlotControl!$C$6-1)),12,1)) -> 2.8566325e-05 | D120: =AVERAGE(OFFSET(Natural1E!$E$10,12*$A120,(4*(PlotControl!$C$6-1)),12,1)) -> 9.781226667e-05
A121: 115 | B121: =AVERAGE(OFFSET(Natural1E!$C$10,12*$A121,(4*(PlotControl!$C$6-1)),12,1)) -> 6.4129e-06 | C121: =AVERAGE(OFFSET(Natural1E!$D$10,12*$A121,(4*(PlotControl!$C$6-1)),12,1)) -> 2.650293333e-05 | D121: =AVERAGE(OFFSET(Natural1E!$E$10,12*$A121,(4*(PlotControl!$C$6-1)),12,1)) -> 9.294864167e-05
A122: 116 | B122: =AVERAGE(OFFSET(Natural1E!$C$10,12*$A122,(4*(PlotControl!$C$6-1)),12,1)) -> 6.740869167e-06 | C122: =AVERAGE(OFFSET(Natural1E!$D$10,12*$A122,(4*(PlotControl!$C$6-1)),12,1)) -> 2.8021e-05 | D122: =AVERAGE(OFFSET(Natural1E!$E$10,12*$A122,(4*(PlotControl!$C$6-1)),12,1)) -> 0.0001005747083
A123: 117 | B123: =AVERAGE(OFFSET(Natural1E!$C$10,12*$A123,(4*(PlotControl!$C$6-1)),12,1)) -> 6.369050833e-06 | C123: =AVERAGE(OFFSET(Natural1E!$D$10,12*$A123,(4*(PlotControl!$C$6-1)),12,1)) -> 2.687885833e-05 | D123: =AVERAGE(OFFSET(Natural1E!$E$10,12*$A123,(4*(PlotControl!$C$6-1)),12,1)) -> 9.810623333e-05
A124: 118 | B124: =AVERAGE(OFFSET(Natural1E!$C$10,12*$A124,(4*(PlotControl!$C$6-1)),12,1)) -> 6.566808333e-06 | C124: =AVERAGE(OFFSET(Natural1E!$D$10,12*$A124,(4*(PlotControl!$C$6-1)),12,1)) -> 2.697973333e-05 | D124: =AVERAGE(OFFSET(Natural1E!$E$10,12*$A124,(4*(PlotControl!$C$6-1)),12,1)) -> 9.244305e-05
A125: 119 | B125: =AVERAGE(OFFSET(Natural1E!$C$10,12*$A125,(4*(PlotControl!$C$6-1)),12,1)) -> 6.692691667e-06 | C125: =AVERAGE(OFFSET(Natural1E!$D$10,12*$A125,(4*(PlotControl!$C$6-1)),12,1)) -> 2.84264e-05 | D125: =AVERAGE(OFFSET(Natural1E!$E$10,12*$A125,(4*(PlotControl!$C$6-1)),12,1)) -> 9.45504e-05
A126: 120 | B126: =AVERAGE(OFFSET(Natural1E!$C$10,12*$A126,(4*(PlotControl!$C$6-1)),12,1)) -> 6.448816667e-06 | C126: =AVERAGE(OFFSET(Natural1E!$D$10,12*$A126,(4*(PlotControl!$C$6-1)),12,1)) -> 2.8777175e-05 | D126: =AVERAGE(OFFSET(Natural1E!$E$10,12*$A126,(4*(PlotControl!$C$6-1)),12,1)) -> 9.6890075e-05
A127: 121 | B127: =AVERAGE(OFFSET(Natural1E!$C$10,12*$A127,(4*(PlotControl!$C$6-1)),12,1)) -> 6.412651667e-06 | C127: =AVERAGE(OFFSET(Natural1E!$D$10,12*$A127,(4*(PlotControl!$C$6-1)),12,1)) -> 2.6773375e-05 | D127: =AVERAGE(OFFSET(Natural1E!$E$10,12*$A127,(4*(PlotControl!$C$6-1)),12,1)) -> 9.049531667e-05
A128: 122 | B128: =AVERAGE(OFFSET(Natural1E!$C$10,12*$A128,(4*(PlotControl!$C$6-1)),12,1)) -> 6.5071625e-06 | C128: =AVERAGE(OFFSET(Natural1E!$D$10,12*$A128,(4*(PlotControl!$C$6-1)),12,1)) -> 2.785368333e-05 | D128: =AVERAGE(OFFSET(Natural1E!$E$10,12*$A128,(4*(PlotControl!$C$6-1)),12,1)) -> 9.516525833e-05
A129: 123 | B129: =AVERAGE(OFFSET(Natural1E!$C$10,12*$A129,(4*(PlotControl!$C$6-1)),12,1)) -> 6.645831667e-06 | C129: =AVERAGE(OFFSET(Natural1E!$D$10,12*$A129,(4*(PlotControl!$C$6-1)),12,1)) -> 2.684253333e-05 | D129: =AVERAGE(OFFSET(Natural1E!$E$10,12*$A129,(4*(PlotControl!$C$6-1)),12,1)) -> 9.361448333e-05
A130: 124 | B130: =AVERAGE(OFFSET(Natural1E!$C$10,12*$A130,(4*(PlotControl!$C$6-1)),12,1)) -> 6.794475833e-06 | C130: =AVERAGE(OFFSET(Natural1E!$D$10,12*$A130,(4*(PlotControl!$C$6-1)),12,1)) -> 2.822689167e-05 | D130: =AVERAGE(OFFSET(Natural1E!$E$10,12*$A130,(4*(PlotControl!$C$6-1)),12,1)) -> 9.788211667e-05
A131: 125 | B131: =AVERAGE(OFFSET(Natural1E!$C$10,12*$A131,(4*(PlotControl!$C$6-1)),12,1)) -> 6.279085e-06 | C131: =AVERAGE(OFFSET(Natural1E!$D$10,12*$A131,(4*(PlotControl!$C$6-1)),12,1)) -> 2.6734925e-05 | D131: =AVERAGE(OFFSET(Natural1E!$E$10,12*$A131,(4*(PlotControl!$C$6-1)),12,1)) -> 9.661785e-05
A132: 126 | B132: =AVERAGE(OFFSET(Natural1E!$C$10,12*$A132,(4*(PlotControl!$C$6-1)),12,1)) -> 6.543978333e-06 | C132: =AVERAGE(OFFSET(Natural1E!$D$10,12*$A132,(4*(PlotControl!$C$6-1)),12,1)) -> 2.8331725e-05 | D132: =AVERAGE(OFFSET(Natural1E!$E$10,12*$A132,(4*(PlotControl!$C$6-1)),12,1)) -> 9.281903333e-05
A133: 127 | B133: =AVERAGE(OFFSET(Natural1E!$C$10,12*$A133,(4*(PlotControl!$C$6-1)),12,1)) -> 6.6694125e-06 | C133: =AVERAGE(OFFSET(Natural1E!$D$10,12*$A133,(4*(PlotControl!$C$6-1)),12,1)) -> 2.878720833e-05 | D133: =AVERAGE(OFFSET(Natural1E!$E$10,12*$A133,(4*(PlotControl!$C$6-1)),12,1)) -> 9.9275825e-05
A134: 128 | B134: =AVERAGE(OFFSET(Natural1E!$C$10,12*$A134,(4*(PlotControl!$C$6-1)),12,1)) -> 6.724333333e-06 | C134: =AVERAGE(OFFSET(Natural1E!$D$10,12*$A134,(4*(PlotControl!$C$6-1)),12,1)) -> 2.718645833e-05 | D134: =AVERAGE(OFFSET(Natural1E!$E$10,12*$A134,(4*(PlotControl!$C$6-1)),12,1)) -> 9.302113333e-05
A135: 129 | B135: =AVERAGE(OFFSET(Natural1E!$C$10,12*$A135,(4*(PlotControl!$C$6-1)),12,1)) -> 6.407516667e-06 | C135: =AVERAGE(OFFSET(Natural1E!$D$10,12*$A135,(4*(PlotControl!$C$6-1)),12,1)) -> 2.815024167e-05 | D135: =AVERAGE(OFFSET(Natural1E!$E$10,12*$A135,(4*(PlotControl!$C$6-1)),12,1)) -> 9.802874167e-05
A136: 130 | B136: =AVERAGE(OFFSET(Natural1E!$C$10,12*$A136,(4*(PlotControl!$C$6-1)),12,1)) -> 7.284511667e-06 | C136: =AVERAGE(OFFSET(Natural1E!$D$10,12*$A136,(4*(PlotControl!$C$6-1)),12,1)) -> 2.848684167e-05 | D136: =AVERAGE(OFFSET(Natural1E!$E$10,12*$A136,(4*(PlotControl!$C$6-1)),12,1)) -> 9.465895833e-05
A137: 131 | B137: =AVERAGE(OFFSET(Natural1E!$C$10,12*$A137,(4*(PlotControl!$C$6-1)),12,1)) -> 6.53275e-06 | C137: =AVERAGE(OFFSET(Natural1E!$D$10,12*$A137,(4*(PlotControl!$C$6-1)),12,1)) -> 2.7198725e-05 | D137: =AVERAGE(OFFSET(Natural1E!$E$10,12*$A137,(4*(PlotControl!$C$6-1)),12,1)) -> 9.260305e-05
A138: 132 | B138: =AVERAGE(OFFSET(Natural1E!$C$10,12*$A138,(4*(PlotControl!$C$6-1)),12,1)) -> 6.5784675e-06 | C138: =AVERAGE(OFFSET(Natural1E!$D$10,12*$A138,(4*(PlotControl!$C$6-1)),12,1)) -> 2.741315e-05 | D138: =AVERAGE(OFFSET(Natural1E!$E$10,12*$A138,(4*(PlotControl!$C$6-1)),12,1)) -> 9.444898333e-05
A139: 133 | B139: =AVERAGE(OFFSET(Natural1E!$C$10,12*$A139,(4*(PlotControl!$C$6-1)),12,1)) -> 6.401841667e-06 | C139: =AVERAGE(OFFSET(Natural1E!$D$10,12*$A139,(4*(PlotControl!$C$6-1)),12,1)) -> 2.829384167e-05 | D139: =AVERAGE(OFFSET(Natural1E!$E$10,12*$A139,(4*(PlotControl!$C$6-1)),12,1)) -> 9.216880833e-05
A140: 134 | B140: =AVERAGE(OFFSET(Natural1E!$C$10,12*$A140,(4*(PlotControl!$C$6-1)),12,1)) -> 6.375520833e-06 | C140: =AVERAGE(OFFSET(Natural1E!$D$10,12*$A140,(4*(PlotControl!$C$6-1)),12,1)) -> 2.808655e-05 | D140: =AVERAGE(OFFSET(Natural1E!$E$10,12*$A140,(4*(PlotControl!$C$6-1)),12,1)) -> 9.727573333e-05
A141: 135 | B141: =AVERAGE(OFFSET(Natural1E!$C$10,12*$A141,(4*(PlotControl!$C$6-1)),12,1)) -> 6.5728625e-06 | C141: =AVERAGE(OFFSET(Natural1E!$D$10,12*$A141,(4*(PlotControl!$C$6-1)),12,1)) -> 2.6996e-05 | D141: =AVERAGE(OFFSET(Natural1E!$E$10,12*$A141,(4*(PlotControl!$C$6-1)),12,1)) -> 9.893898333e-05
A142: 136 | B142: =AVERAGE(OFFSET(Natural1E!$C$10,12*$A142,(4*(PlotControl!$C$6-1)),12,1)) -> 6.931966667e-06 | C142: =AVERAGE(OFFSET(Natural1E!$D$10,12*$A142,(4*(PlotControl!$C$6-1)),12,1)) -> 2.867896667e-05 | D142: =AVERAGE(OFFSET(Natural1E!$E$10,12*$A142,(4*(PlotControl!$C$6-1)),12,1)) -> 0.0001010961167
A143: 137 | B143: =AVERAGE(OFFSET(Natural1E!$C$10,12*$A143,(4*(PlotControl!$C$6-1)),12,1)) -> 6.514741667e-06 | C143: =AVERAGE(OFFSET(Natural1E!$D$10,12*$A143,(4*(PlotControl!$C$6-1)),12,1)) -> 2.815514167e-05 | D143: =AVERAGE(OFFSET(Natural1E!$E$10,12*$A143,(4*(PlotControl!$C$6-1)),12,1)) -> 9.56934e-05
A144: 138 | B144: =AVERAGE(OFFSET(Natural1E!$C$10,12*$A144,(4*(PlotControl!$C$6-1)),12,1)) -> 6.446929167e-06 | C144: =AVERAGE(OFFSET(Natural1E!$D$10,12*$A144,(4*(PlotControl!$C$6-1)),12,1)) -> 2.67389e-05 | D144: =AVERAGE(OFFSET(Natural1E!$E$10,12*$A144,(4*(PlotControl!$C$6-1)),12,1)) -> 9.393625e-05
A145: 139 | B145: =AVERAGE(OFFSET(Natural1E!$C$10,12*$A145,(4*(PlotControl!$C$6-1)),12,1)) -> 6.993324167e-06 | C145: =AVERAGE(OFFSET(Natural1E!$D$10,12*$A145,(4*(PlotControl!$C$6-1)),12,1)) -> 2.744151667e-05 | D145: =AVERAGE(OFFSET(Natural1E!$E$10,12*$A145,(4*(PlotControl!$C$6-1)),12,1)) -> 9.428633333e-05
A146: 140 | B146: =AVERAGE(OFFSET(Natural1E!$C$10,12*$A146,(4*(PlotControl!$C$6-1)),12,1)) -> 6.529621667e-06 | C146: =AVERAGE(OFFSET(Natural1E!$D$10,12*$A146,(4*(PlotControl!$C$6-1)),12,1)) -> 2.73426e-05 | D146: =AVERAGE(OFFSET(Natural1E!$E$10,12*$A146,(4*(PlotControl!$C$6-1)),12,1)) -> 9.821373333e-05
A147: 141 | B147: =AVERAGE(OFFSET(Natural1E!$C$10,12*$A147,(4*(PlotControl!$C$6-1)),12,1)) -> 6.4371e-06 | C147: =AVERAGE(OFFSET(Natural1E!$D$10,12*$A147,(4*(PlotControl!$C$6-1)),12,1)) -> 2.7301725e-05 | D147: =AVERAGE(OFFSET(Natural1E!$E$10,12*$A147,(4*(PlotControl!$C$6-1)),12,1)) -> 9.762259167e-05
A148: 142 | B148: =AVERAGE(OFFSET(Natural1E!$C$10,12*$A148,(4*(PlotControl!$C$6-1)),12,1)) -> 6.445505e-06 | C148: =AVERAGE(OFFSET(Natural1E!$D$10,12*$A148,(4*(PlotControl!$C$6-1)),12,1)) -> 2.752e-05 | D148: =AVERAGE(OFFSET(Natural1E!$E$10,12*$A148,(4*(PlotControl!$C$6-1)),12,1)) -> 9.5002375e-05
A149: 143 | B149: =AVERAGE(OFFSET(Natural1E!$C$10,12*$A149,(4*(PlotControl!$C$6-1)),12,1)) -> 6.502191667e-06 | C149: =AVERAGE(OFFSET(Natural1E!$D$10,12*$A149,(4*(PlotControl!$C$6-1)),12,1)) -> 2.762158333e-05 | D149: =AVERAGE(OFFSET(Natural1E!$E$10,12*$A149,(4*(PlotControl!$C$6-1)),12,1)) -> 9.288365833e-05
A150: 144 | B150: =AVERAGE(OFFSET(Natural1E!$C$10,12*$A150,(4*(PlotControl!$C$6-1)),12,1)) -> 6.635666667e-06 | C150: =AVERAGE(OFFSET(Natural1E!$D$10,12*$A150,(4*(PlotControl!$C$6-1)),12,1)) -> 2.760029167e-05 | D150: =AVERAGE(OFFSET(Natural1E!$E$10,12*$A150,(4*(PlotControl!$C$6-1)),12,1)) -> 9.483175e-05
A151: 145 | B151: =AVERAGE(OFFSET(Natural1E!$C$10,12*$A151,(4*(PlotControl!$C$6-1)),12,1)) -> 6.575616667e-06 | C151: =AVERAGE(OFFSET(Natural1E!$D$10,12*$A151,(4*(PlotControl!$C$6-1)),12,1)) -> 2.696910833e-05 | D151: =AVERAGE(OFFSET(Natural1E!$E$10,12*$A151,(4*(PlotControl!$C$6-1)),12,1)) -> 9.172595e-05
A152: 146 | B152: =AVERAGE(OFFSET(Natural1E!$C$10,12*$A152,(4*(PlotControl!$C$6-1)),12,1)) -> 6.691408333e-06 | C152: =AVERAGE(OFFSET(Natural1E!$D$10,12*$A152,(4*(PlotControl!$C$6-1)),12,1)) -> 2.88505e-05 | D152: =AVERAGE(OFFSET(Natural1E!$E$10,12*$A152,(4*(PlotControl!$C$6-1)),12,1)) -> 9.708030833e-05
A153: 147 | B153: =AVERAGE(OFFSET(Natural1E!$C$10,12*$A153,(4*(PlotControl!$C$6-1)),12,1)) -> 6.8238275e-06 | C153: =AVERAGE(OFFSET(Natural1E!$D$10,12*$A153,(4*(PlotControl!$C$6-1)),12,1)) -> 2.7377225e-05 | D153: =AVERAGE(OFFSET(Natural1E!$E$10,12*$A153,(4*(PlotControl!$C$6-1)),12,1)) -> 9.1919725e-05
A154: 148 | B154: =AVERAGE(OFFSET(Natural1E!$C$10,12*$A154,(4*(PlotControl!$C$6-1)),12,1)) -> 6.314116667e-06 | C154: =AVERAGE(OFFSET(Natural1E!$D$10,12*$A154,(4*(PlotControl!$C$6-1)),12,1)) -> 2.689895e-05 | D154: =AVERAGE(OFFSET(Natural1E!$E$10,12*$A154,(4*(PlotControl!$C$6-1)),12,1)) -> 9.379395e-05
A155: 149 | B155: =AVERAGE(OFFSET(Natural1E!$C$10,12*$A155,(4*(PlotControl!$C$6-1)),12,1)) -> 6.47145e-06 | C155: =AVERAGE(OFFSET(Natural1E!$D$10,12*$A155,(4*(PlotControl!$C$6-1)),12,1)) -> 2.752618333e-05 | D155: =AVERAGE(OFFSET(Natural1E!$E$10,12*$A155,(4*(PlotControl!$C$6-1)),12,1)) -> 9.75636e-05
A156: 150 | B156: =AVERAGE(OFFSET(Natural1E!$C$10,12*$A156,(4*(PlotControl!$C$6-1)),12,1)) -> 6.350691667e-06 | C156: =AVERAGE(OFFSET(Natural1E!$D$10,12*$A156,(4*(PlotControl!$C$6-1)),12,1)) -> 2.666910833e-05 | D156: =AVERAGE(OFFSET(Natural1E!$E$10,12*$A156,(4*(PlotControl!$C$6-1)),12,1)) -> 9.4281825e-05
A157: 151 | B157: =AVERAGE(OFFSET(Natural1E!$C$10,12*$A157,(4*(PlotControl!$C$6-1)),12,1)) -> 6.648033333e-06 | C157: =AVERAGE(OFFSET(Natural1E!$D$10,12*$A157,(4*(PlotControl!$C$6-1)),12,1)) -> 2.848503333e-05 | D157: =AVERAGE(OFFSET(Natural1E!$E$10,12*$A157,(4*(PlotControl!$C$6-1)),12,1)) -> 9.674570833e-05
A158: 152 | B158: =AVERAGE(OFFSET(Natural1E!$C$10,12*$A158,(4*(PlotControl!$C$6-1)),12,1)) -> 6.9757e-06 | C158: =AVERAGE(OFFSET(Natural1E!$D$10,12*$A158,(4*(PlotControl!$C$6-1)),12,1)) -> 2.811911667e-05 | D158: =AVERAGE(OFFSET(Natural1E!$E$10,12*$A158,(4*(PlotControl!$C$6-1)),12,1)) -> 9.40784e-05
A159: 153 | B159: =AVERAGE(OFFSET(Natural1E!$C$10,12*$A159,(4*(PlotControl!$C$6-1)),12,1)) -> 6.4573e-06 | C159: =AVERAGE(OFFSET(Natural1E!$D$10,12*$A159,(4*(PlotControl!$C$6-1)),12,1)) -> 2.670010833e-05 | D159: =AVERAGE(OFFSET(Natural1E!$E$10,12*$A159,(4*(PlotControl!$C$6-1)),12,1)) -> 9.1158575e-05
A160: 154 | B160: =AVERAGE(OFFSET(Natural1E!$C$10,12*$A160,(4*(PlotControl!$C$6-1)),12,1)) -> 6.754598333e-06 | C160: =AVERAGE(OFFSET(Natural1E!$D$10,12*$A160,(4*(PlotControl!$C$6-1)),12,1)) -> 2.792355e-05 | D160: =AVERAGE(OFFSET(Natural1E!$E$10,12*$A160,(4*(PlotControl!$C$6-1)),12,1)) -> 9.80844e-05
A161: 155 | B161: =AVERAGE(OFFSET(Natural1E!$C$10,12*$A161,(4*(PlotControl!$C$6-1)),12,1)) -> 6.641133333e-06 | C161: =AVERAGE(OFFSET(Natural1E!$D$10,12*$A161,(4*(PlotControl!$C$6-1)),12,1)) -> 2.8451575e-05 | D161: =AVERAGE(OFFSET(Natural1E!$E$10,12*$A161,(4*(PlotControl!$C$6-1)),12,1)) -> 9.9622325e-05
A162: 156 | B162: =AVERAGE(OFFSET(Natural1E!$C$10,12*$A162,(4*(PlotControl!$C$6-1)),12,1)) -> 6.507616667e-06 | C162: =AVERAGE(OFFSET(Natural1E!$D$10,12*$A162,(4*(PlotControl!$C$6-1)),12,1)) -> 2.7909225e-05 | D162: =AVERAGE(OFFSET(Natural1E!$E$10,12*$A162,(4*(PlotControl!$C$6-1)),12,1)) -> 9.491031667e-05
A163: 157 | B163: =AVERAGE(OFFSET(Natural1E!$C$10,12*$A163,(4*(PlotControl!$C$6-1)),12,1)) -> 6.573816667e-06 | C163: =AVERAGE(OFFSET(Natural1E!$D$10,12*$A163,(4*(PlotControl!$C$6-1)),12,1)) -> 2.7224725e-05 | D163: =AVERAGE(OFFSET(Natural1E!$E$10,12*$A163,(4*(PlotControl!$C$6-1)),12,1)) -> 9.268784167e-05
A164: 158 | B164: =AVERAGE(OFFSET(Natural1E!$C$10,12*$A164,(4*(PlotControl!$C$6-1)),12,1)) -> 6.418666667e-06 | C164: =AVERAGE(OFFSET(Natural1E!$D$10,12*$A164,(4*(PlotControl!$C$6-1)),12,1)) -> 2.7033525e-05 | D164: =AVERAGE(OFFSET(Natural1E!$E$10,12*$A164,(4*(PlotControl!$C$6-1)),12,1)) -> 9.5480175e-05
A165: 159 | B165: =AVERAGE(OFFSET(Natural1E!$C$10,12*$A165,(4*(PlotControl!$C$6-1)),12,1)) -> 6.537049167e-06 | C165: =AVERAGE(OFFSET(Natural1E!$D$10,12*$A165,(4*(PlotControl!$C$6-1)),12,1)) -> 2.7299775e-05 | D165: =AVERAGE(OFFSET(Natural1E!$E$10,12*$A165,(4*(PlotControl!$C$6-1)),12,1)) -> 9.460370833e-05
A166: 160 | B166: =AVERAGE(OFFSET(Natural1E!$C$10,12*$A166,(4*(PlotControl!$C$6-1)),12,1)) -> 6.536891667e-06 | C166: =AVERAGE(OFFSET(Natural1E!$D$10,12*$A166,(4*(PlotControl!$C$6-1)),12,1)) -> 2.7418525e-05 | D166: =AVERAGE(OFFSET(Natural1E!$E$10,12*$A166,(4*(PlotControl!$C$6-1)),12,1)) -> 9.526826667e-05
A167: 161 | B167: =AVERAGE(OFFSET(Natural1E!$C$10,12*$A167,(4*(PlotControl!$C$6-1)),12,1)) -> 6.472216667e-06 | C167: =AVERAGE(OFFSET(Natural1E!$D$10,12*$A167,(4*(PlotControl!$C$6-1)),12,1)) -> 2.680798333e-05 | D167: =AVERAGE(OFFSET(Natural1E!$E$10,12*$A167,(4*(PlotControl!$C$6-1)),12,1)) -> 9.119735833e-05
A168: 162 | B168: =AVERAGE(OFFSET(Natural1E!$C$10,12*$A168,(4*(PlotControl!$C$6-1)),12,1)) -> 6.559754167e-06 | C168: =AVERAGE(OFFSET(Natural1E!$D$10,12*$A168,(4*(PlotControl!$C$6-1)),12,1)) -> 2.7737675e-05 | D168: =AVERAGE(OFFSET(Natural1E!$E$10,12*$A168,(4*(PlotControl!$C$6-1)),12,1)) -> 9.957314167e-05
A169: 163 | B169: =AVERAGE(OFFSET(Natural1E!$C$10,12*$A169,(4*(PlotControl!$C$6-1)),12,1)) -> 6.40917e-06 | C169: =AVERAGE(OFFSET(Natural1E!$D$10,12*$A169,(4*(PlotControl!$C$6-1)),12,1)) -> 2.762986667e-05 | D169: =AVERAGE(OFFSET(Natural1E!$E$10,12*$A169,(4*(PlotControl!$C$6-1)),12,1)) -> 9.648256667e-05
A170: 164 | B170: =AVERAGE(OFFSET(Natural1E!$C$10,12*$A170,(4*(PlotControl!$C$6-1)),12,1)) -> 6.963858333e-06 | C170: =AVERAGE(OFFSET(Natural1E!$D$10,12*$A170,(4*(PlotControl!$C$6-1)),12,1)) -> 2.6755025e-05 | D170: =AVERAGE(OFFSET(Natural1E!$E$10,12*$A170,(4*(PlotControl!$C$6-1)),12,1)) -> 9.600671667e-05
A171: 165 | B171: =AVERAGE(OFFSET(Natural1E!$C$10,12*$A171,(4*(PlotControl!$C$6-1)),12,1)) -> 6.604916667e-06 | C171: =AVERAGE(OFFSET(Natural1E!$D$10,12*$A171,(4*(PlotControl!$C$6-1)),12,1)) -> 2.654573333e-05 | D171: =AVERAGE(OFFSET(Natural1E!$E$10,12*$A171,(4*(PlotControl!$C$6-1)),12,1)) -> 9.11918e-05
A172: 166 | B172: =AVERAGE(OFFSET(Natural1E!$C$10,12*$A172,(4*(PlotControl!$C$6-1)),12,1)) -> 6.646843333e-06 | C172: =AVERAGE(OFFSET(Natural1E!$D$10,12*$A172,(4*(PlotControl!$C$6-1)),12,1)) -> 2.917651667e-05 | D172: =AVERAGE(OFFSET(Natural1E!$E$10,12*$A172,(4*(PlotControl!$C$6-1)),12,1)) -> 9.932481667e-05
A173: 167 | B173: =AVERAGE(OFFSET(Natural1E!$C$10,12*$A173,(4*(PlotControl!$C$6-1)),12,1)) -> 6.274631667e-06 | C173: =AVERAGE(OFFSET(Natural1E!$D$10,12*$A173,(4*(PlotControl!$C$6-1)),12,1)) -> 2.65711e-05 | D173: =AVERAGE(OFFSET(Natural1E!$E$10,12*$A173,(4*(PlotControl!$C$6-1)),12,1)) -> 9.530065833e-05
A174: 168 | B174: =AVERAGE(OFFSET(Natural1E!$C$10,12*$A174,(4*(PlotControl!$C$6-1)),12,1)) -> 7.052955833e-06 | C174: =AVERAGE(OFFSET(Natural1E!$D$10,12*$A174,(4*(PlotControl!$C$6-1)),12,1)) -> 2.806815e-05 | D174: =AVERAGE(OFFSET(Natural1E!$E$10,12*$A174,(4*(PlotControl!$C$6-1)),12,1)) -> 9.787748333e-05
A175: 169 | B175: =AVERAGE(OFFSET(Natural1E!$C$10,12*$A175,(4*(PlotControl!$C$6-1)),12,1)) -> 6.825175e-06 | C175: =AVERAGE(OFFSET(Natural1E!$D$10,12*$A175,(4*(PlotControl!$C$6-1)),12,1)) -> 2.765289167e-05 | D175: =AVERAGE(OFFSET(Natural1E!$E$10,12*$A175,(4*(PlotControl!$C$6-1)),12,1)) -> 9.76993e-05
A176: 170 | B176: =AVERAGE(OFFSET(Natural1E!$C$10,12*$A176,(4*(PlotControl!$C$6-1)),12,1)) -> 5.9438e-06 | C176: =AVERAGE(OFFSET(Natural1E!$D$10,12*$A176,(4*(PlotControl!$C$6-1)),12,1)) -> 2.6017875e-05 | D176: =AVERAGE(OFFSET(Natural1E!$E$10,12*$A176,(4*(PlotControl!$C$6-1)),12,1)) -> 9.3289425e-05
A177: 171 | B177: =AVERAGE(OFFSET(Natural1E!$C$10,12*$A177,(4*(PlotControl!$C$6-1)),12,1)) -> 6.965808333e-06 | C177: =AVERAGE(OFFSET(Natural1E!$D$10,12*$A177,(4*(PlotControl!$C$6-1)),12,1)) -> 2.788200833e-05 | D177: =AVERAGE(OFFSET(Natural1E!$E$10,12*$A177,(4*(PlotControl!$C$6-1)),12,1)) -> 9.70831e-05
A178: 172 | B178: =AVERAGE(OFFSET(Natural1E!$C$10,12*$A178,(4*(PlotControl!$C$6-1)),12,1)) -> 6.338615833e-06 | C178: =AVERAGE(OFFSET(Natural1E!$D$10,12*$A178,(4*(PlotControl!$C$6-1)),12,1)) -> 2.753635833e-05 | D178: =AVERAGE(OFFSET(Natural1E!$E$10,12*$A178,(4*(PlotControl!$C$6-1)),12,1)) -> 9.336620833e-05
A179: 173 | B179: =AVERAGE(OFFSET(Natural1E!$C$10,12*$A179,(4*(PlotControl!$C$6-1)),12,1)) -> 6.983414167e-06 | C179: =AVERAGE(OFFSET(Natural1E!$D$10,12*$A179,(4*(PlotControl!$C$6-1)),12,1)) -> 2.884865e-05 | D179: =AVERAGE(OFFSET(Natural1E!$E$10,12*$A179,(4*(PlotControl!$C$6-1)),12,1)) -> 9.733923333e-05
A180: 174 | B180: =AVERAGE(OFFSET(Natural1E!$C$10,12*$A180,(4*(PlotControl!$C$6-1)),12,1)) -> 6.243094167e-06 | C180: =AVERAGE(OFFSET(Natural1E!$D$10,12*$A180,(4*(PlotControl!$C$6-1)),12,1)) -> 2.73383e-05 | D180: =AVERAGE(OFFSET(Natural1E!$E$10,12*$A180,(4*(PlotControl!$C$6-1)),12,1)) -> 9.41457e-05
A181: 175 | B181: =AVERAGE(OFFSET(Natural1E!$C$10,12*$A181,(4*(PlotControl!$C$6-1)),12,1)) -> 6.84335e-06 | C181: =AVERAGE(OFFSET(Natural1E!$D$10,12*$A181,(4*(PlotControl!$C$6-1)),12,1)) -> 2.793975e-05 | D181: =AVERAGE(OFFSET(Natural1E!$E$10,12*$A181,(4*(PlotControl!$C$6-1)),12,1)) -> 9.3324975e-05
A182: 176 | B182: =AVERAGE(OFFSET(Natural1E!$C$10,12*$A182,(4*(PlotControl!$C$6-1)),12,1)) -> 6.757675e-06 | C182: =AVERAGE(OFFSET(Natural1E!$D$10,12*$A182,(4*(PlotControl!$C$6-1)),12,1)) -> 2.759394167e-05 | D182: =AVERAGE(OFFSET(Natural1E!$E$10,12*$A182,(4*(PlotControl!$C$6-1)),12,1)) -> 9.578560833e-05
A183: 177 | B183: =AVERAGE(OFFSET(Natural1E!$C$10,12*$A183,(4*(PlotControl!$C$6-1)),12,1)) -> 6.506731667e-06 | C183: =AVERAGE(OFFSET(Natural1E!$D$10,12*$A183,(4*(PlotControl!$C$6-1)),12,1)) -> 2.794275833e-05 | D183: =AVERAGE(OFFSET(Natural1E!$E$10,12*$A183,(4*(PlotControl!$C$6-1)),12,1)) -> 9.145026667e-05
A184: 178 | B184: =AVERAGE(OFFSET(Natural1E!$C$10,12*$A184,(4*(PlotControl!$C$6-1)),12,1)) -> 6.722666667e-06 | C184: =AVERAGE(OFFSET(Natural1E!$D$10,12*$A184,(4*(PlotControl!$C$6-1)),12,1)) -> 2.75784e-05 | D184: =AVERAGE(OFFSET(Natural1E!$E$10,12*$A184,(4*(PlotControl!$C$6-1)),12,1)) -> 9.5594025e-05
A185: 179 | B185: =AVERAGE(OFFSET(Natural1E!$C$10,12*$A185,(4*(PlotControl!$C$6-1)),12,1)) -> 6.377575e-06 | C185: =AVERAGE(OFFSET(Natural1E!$D$10,12*$A185,(4*(PlotControl!$C$6-1)),12,1)) -> 2.703846667e-05 | D185: =AVERAGE(OFFSET(Natural1E!$E$10,12*$A185,(4*(PlotControl!$C$6-1)),12,1)) -> 8.9776875e-05
A186: 180 | B186: =AVERAGE(OFFSET(Natural1E!$C$10,12*$A186,(4*(PlotControl!$C$6-1)),12,1)) -> 6.760925e-06 | C186: =AVERAGE(OFFSET(Natural1E!$D$10,12*$A186,(4*(PlotControl!$C$6-1)),12,1)) -> 2.81239e-05 | D186: =AVERAGE(OFFSET(Natural1E!$E$10,12*$A186,(4*(PlotControl!$C$6-1)),12,1)) -> 9.809621667e-05
A187: 181 | B187: =AVERAGE(OFFSET(Natural1E!$C$10,12*$A187,(4*(PlotControl!$C$6-1)),12,1)) -> 6.382316667e-06 | C187: =AVERAGE(OFFSET(Natural1E!$D$10,12*$A187,(4*(PlotControl!$C$6-1)),12,1)) -> 2.7941925e-05 | D187: =AVERAGE(OFFSET(Natural1E!$E$10,12*$A187,(4*(PlotControl!$C$6-1)),12,1)) -> 9.835751667e-05
A188: 182 | B188: =AVERAGE(OFFSET(Natural1E!$C$10,12*$A188,(4*(PlotControl!$C$6-1)),12,1)) -> 6.57785e-06 | C188: =AVERAGE(OFFSET(Natural1E!$D$10,12*$A188,(4*(PlotControl!$C$6-1)),12,1)) -> 2.713135e-05 | D188: =AVERAGE(OFFSET(Natural1E!$E$10,12*$A188,(4*(PlotControl!$C$6-1)),12,1)) -> 9.288675e-05
A189: 183 | B189: =AVERAGE(OFFSET(Natural1E!$C$10,12*$A189,(4*(PlotControl!$C$6-1)),12,1)) -> 6.13055e-06 | C189: =AVERAGE(OFFSET(Natural1E!$D$10,12*$A189,(4*(PlotControl!$C$6-1)),12,1)) -> 2.827786667e-05 | D189: =AVERAGE(OFFSET(Natural1E!$E$10,12*$A189,(4*(PlotControl!$C$6-1)),12,1)) -> 9.665753333e-05
A190: 184 | B190: =AVERAGE(OFFSET(Natural1E!$C$10,12*$A190,(4*(PlotControl!$C$6-1)),12,1)) -> 6.664808333e-06 | C190: =AVERAGE(OFFSET(Natural1E!$D$10,12*$A190,(4*(PlotControl!$C$6-1)),12,1)) -> 2.9352425e-05 | D190: =AVERAGE(OFFSET(Natural1E!$E$10,12*$A190,(4*(PlotControl!$C$6-1)),12,1)) -> 9.513215e-05
A191: 185 | B191: =AVERAGE(OFFSET(Natural1E!$C$10,12*$A191,(4*(PlotControl!$C$6-1)),12,1)) -> 6.792823333e-06 | C191: =AVERAGE(OFFSET(Natural1E!$D$10,12*$A191,(4*(PlotControl!$C$6-1)),12,1)) -> 2.772326667e-05 | D191: =AVERAGE(OFFSET(Natural1E!$E$10,12*$A191,(4*(PlotControl!$C$6-1)),12,1)) -> 9.706036667e-05
A192: 186 | B192: =AVERAGE(OFFSET(Natural1E!$C$10,12*$A192,(4*(PlotControl!$C$6-1)),12,1)) -> 6.2693875e-06 | C192: =AVERAGE(OFFSET(Natural1E!$D$10,12*$A192,(4*(PlotControl!$C$6-1)),12,1)) -> 2.628078333e-05 | D192: =AVERAGE(OFFSET(Natural1E!$E$10,12*$A192,(4*(PlotControl!$C$6-1)),12,1)) -> 9.2065e-05
A193: 187 | B193: =AVERAGE(OFFSET(Natural1E!$C$10,12*$A193,(4*(PlotControl!$C$6-1)),12,1)) -> 6.287891667e-06 | C193: =AVERAGE(OFFSET(Natural1E!$D$10,12*$A193,(4*(PlotControl!$C$6-1)),12,1)) -> 2.640530833e-05 | D193: =AVERAGE(OFFSET(Natural1E!$E$10,12*$A193,(4*(PlotControl!$C$6-1)),12,1)) -> 0.0001009605417
A194: 188 | B194: =AVERAGE(OFFSET(Natural1E!$C$10,12*$A194,(4*(PlotControl!$C$6-1)),12,1)) -> 6.937883333e-06 | C194: =AVERAGE(OFFSET(Natural1E!$D$10,12*$A194,(4*(PlotControl!$C$6-1)),12,1)) -> 2.70889e-05 | D194: =AVERAGE(OFFSET(Natural1E!$E$10,12*$A194,(4*(PlotControl!$C$6-1)),12,1)) -> 9.836580833e-05
A195: 189 | B195: =AVERAGE(OFFSET(Natural1E!$C$10,12*$A195,(4*(PlotControl!$C$6-1)),12,1)) -> 6.8063e-06 | C195: =AVERAGE(OFFSET(Natural1E!$D$10,12*$A195,(4*(PlotControl!$C$6-1)),12,1)) -> 2.8765325e-05 | D195: =AVERAGE(OFFSET(Natural1E!$E$10,12*$A195,(4*(PlotControl!$C$6-1)),12,1)) -> 9.5787025e-05
A196: 190 | B196: =AVERAGE(OFFSET(Natural1E!$C$10,12*$A196,(4*(PlotControl!$C$6-1)),12,1)) -> 6.6036e-06 | C196: =AVERAGE(OFFSET(Natural1E!$D$10,12*$A196,(4*(PlotControl!$C$6-1)),12,1)) -> 2.739291667e-05 | D196: =AVERAGE(OFFSET(Natural1E!$E$10,12*$A196,(4*(PlotControl!$C$6-1)),12,1)) -> 9.282498333e-05
A197: 191 | B197: =AVERAGE(OFFSET(Natural1E!$C$10,12*$A197,(4*(PlotControl!$C$6-1)),12,1)) -> 6.590275e-06 | C197: =AVERAGE(OFFSET(Natural1E!$D$10,12*$A197,(4*(PlotControl!$C$6-1)),12,1)) -> 2.737609167e-05 | D197: =AVERAGE(OFFSET(Natural1E!$E$10,12*$A197,(4*(PlotControl!$C$6-1)),12,1)) -> 9.990931667e-05
A198: 192 | B198: =AVERAGE(OFFSET(Natural1E!$C$10,12*$A198,(4*(PlotControl!$C$6-1)),12,1)) -> 6.944428333e-06 | C198: =AVERAGE(OFFSET(Natural1E!$D$10,12*$A198,(4*(PlotControl!$C$6-1)),12,1)) -> 2.650919167e-05 | D198: =AVERAGE(OFFSET(Natural1E!$E$10,12*$A198,(4*(PlotControl!$C$6-1)),12,1)) -> 9.443535833e-05
A199: 193 | B199: =AVERAGE(OFFSET(Natural1E!$C$10,12*$A199,(4*(PlotControl!$C$6-1)),12,1)) -> 5.9588675e-06 | C199: =AVERAGE(OFFSET(Natural1E!$D$10,12*$A199,(4*(PlotControl!$C$6-1)),12,1)) -> 2.655915833e-05 | D199: =AVERAGE(OFFSET(Natural1E!$E$10,12*$A199,(4*(PlotControl!$C$6-1)),12,1)) -> 9.680620833e-05
A200: 194 | B200: =AVERAGE(OFFSET(Natural1E!$C$10,12*$A200,(4*(PlotControl!$C$6-1)),12,1)) -> 6.47005e-06 | C200: =AVERAGE(OFFSET(Natural1E!$D$10,12*$A200,(4*(PlotControl!$C$6-1)),12,1)) -> 2.782299167e-05 | D200: =AVERAGE(OFFSET(Natural1E!$E$10,12*$A200,(4*(PlotControl!$C$6-1)),12,1)) -> 9.506841667e-05
A201: 195 | B201: =AVERAGE(OFFSET(Natural1E!$C$10,12*$A201,(4*(PlotControl!$C$6-1)),12,1)) -> 6.216074167e-06 | C201: =AVERAGE(OFFSET(Natural1E!$D$10,12*$A201,(4*(PlotControl!$C$6-1)),12,1)) -> 2.675650833e-05 | D201: =AVERAGE(OFFSET(Natural1E!$E$10,12*$A201,(4*(PlotControl!$C$6-1)),12,1)) -> 9.3549175e-05
A202: 196 | B202: =AVERAGE(OFFSET(Natural1E!$C$10,12*$A202,(4*(PlotControl!$C$6-1)),12,1)) -> 6.228939167e-06 | C202: =AVERAGE(OFFSET(Natural1E!$D$10,12*$A202,(4*(PlotControl!$C$6-1)),12,1)) -> 2.754788333e-05 | D202: =AVERAGE(OFFSET(Natural1E!$E$10,12*$A202,(4*(PlotControl!$C$6-1)),12,1)) -> 9.690351667e-05
... 4 more rows

Sheet Point_Sources_All
A1: 1 | B1: =A1+1 -> 2 | C1: =B1+1 -> 3 | D1: =C1+1 -> 4 | E1: 5 | F1: 6 | G1: 7 | H1: 8 | I1: 9 | J1: 10 | K1: 11 | L1: 12 | M1: 13 | N1: 14 | O1: 15 | P1: 16 | T1: =P1+1 -> 17 | U1: 18 | V1: 19
B2: Values shown for constituent selected on PlotControl tab, years 0-6 from Pond 2E (except south toe), years >7 from Pond 1E
B3: =PlotControl!$B$13 -> Mine Site Loading | E3: =PlotControl!$B$14 -> Beach Weathering | H3: =PlotControl!$B$15 -> Ore / Reagent | K3: =PlotControl!$B$16 -> Colby Lake | N3: =PlotControl!$B$17 -> Untreated Toe Water | Q3: =PlotControl!$B$18 -> Blended Water | T3: =PlotControl!$B$19 -> Filter Backwash (to 1E) | W3: Sewage Treatment Plant
A5: Time | B5: P10 | C5: P50 | D5: P90 | E5: P10 | F5: P50 | G5: P90 | H5: P10 | I5: P50 | J5: P90 | K5: P10 | L5: P50 | M5: P90 | N5: P10 | O5: P50 | P5: P90 | Q5: P10 | R5: P50 | S5: P90 | T5: P10 | U5: P50 | V5: P90 | W5: P10 | X5: P50 | Y5: P90
A6: 0 | B6: =AVERAGE(OFFSET(Mine2E!$C$10,12*$A6,(4*(PlotControl!$C$6-1)),12,1)) -> 0.002121616667 | C6: =AVERAGE(OFFSET(Mine2E!$D$10,12*$A6,(4*(PlotControl!$C$6-1)),12,1)) -> 0.00261 | D6: =AVERAGE(OFFSET(Mine2E!$E$10,12*$A6,(4*(PlotControl!$C$6-1)),12,1)) -> 0.003138766667 | E6: =AVERAGE(OFFSET(Natural2E!$DG$10,12*$A6,(4*(PlotControl!$C$6-1)),12,1)) -> 3.5002e-05 | F6: =AVERAGE(OFFSET(Natural2E!$DH$10,12*$A6,(4*(PlotControl!$C$6-1)),12,1)) -> 3.5002e-05 | G6: =AVERAGE(OFFSET(Natural2E!$DI$10,12*$A6,(4*(PlotControl!$C$6-1)),12,1)) -> 3.5002e-05 | H6: =AVERAGE(OFFSET(Plant2E!$C$10,12*$A6,(4*(PlotControl!$C$6-1)),12,1)) -> 0.000993225 | I6: =AVERAGE(OFFSET(Plant2E!$D$10,12*$A6,(4*(PlotControl!$C$6-1)),12,1)) -> 0.002923866667 | J6: =AVERAGE(OFFSET(Plant2E!$E$10,12*$A6,(4*(PlotControl!$C$6-1)),12,1)) -> 0.006738416667 | K6: =AVERAGE(OFFSET(Plant2E!$DG$10,12*$A6,(4*(PlotControl!$C$6-1)),12,1)) -> 0.0004955849417 | L6: =AVERAGE(OFFSET(Plant2E!$DH$10,12*$A6,(4*(PlotControl!$C$6-1)),12,1)) -> 0.0008550291667 | M6: =AVERAGE(OFFSET(Plant2E!$DI$10,12*$A6,(4*(PlotControl!$C$6-1)),12,1)) -> 0.001171775833 | N6: =AVERAGE(OFFSET(Contain2E!$C$10,12*$A6,(4*(PlotControl!$C$6-1)),12,1)) + AVERAGE(OFFSET(Contain2E!$DG$10,12*$A6,(4*(PlotControl!$C$6-1)),12,1)) -> 0.0005167015186 | O6: =AVERAGE(OFFSET(Contain2E!$D$10,12*$A6,(4*(PlotControl!$C$6-1)),12,1)) + AVERAGE(OFFSET(Contain2E!$DH$10,12*$A6,(4*(PlotControl!$C$6-1)),12,1)) -> 0.0005421924569 | P6: =AVERAGE(OFFSET(Contain2E!$E$10,12*$A6,(4*(PlotControl!$C$6-1)),12,1)) + AVERAGE(OFFSET(Contain2E!$DI$10,12*$A6,(4*(PlotControl!$C$6-1)),12,1)) -> 0.0006053954974 | Q6: =AVERAGE(OFFSET(WWTP1E!$C$10,12*$A6,(4*(PlotControl!$C$6-1)),12,1)) -> 0 | R6: =AVERAGE(OFFSET(WWTP1E!$D$10,12*$A6,(4*(PlotControl!$C$6-1)),12,1)) -> 0 | S6: =AVERAGE(OFFSET(WWTP1E!$E$10,12*$A6,(4*(PlotControl!$C$6-1)),12,1)) -> 0 | T6: =AVERAGE(OFFSET(WWTP1E!$DG$10,12*$A6,(4*(PlotControl!$C$6-1)),12,1)) -> 5.102983333e-05 | U6: =AVERAGE(OFFSET(WWTP1E!$DH$10,12*$A6,(4*(PlotControl!$C$6-1)),12,1)) -> 5.150533333e-05 | V6: =AVERAGE(OFFSET(WWTP1E!$DI$10,12*$A6,(4*(PlotControl!$C$6-1)),12,1)) -> 5.290166667e-05 | W6: =AVERAGE(OFFSET(Plant2E!$HK$10,12*$A6,(4*(PlotControl!$C$6-1)),12,1)) -> 2.911166667e-06 | X6: =AVERAGE(OFFSET(Plant2E!$HL$10,12*$A6,(4*(PlotControl!$C$6-1)),12,1)) -> 7.763333333e-06 | Y6: =AVERAGE(OFFSET(Plant2E!$HM$10,12*$A6,(4*(PlotControl!$C$6-1)),12,1)) -> 2.426016667e-05 | Z6: NOTE: Years 0-6 (noted in orange) from Pond 2E for all locations except the south toe. Years >7 (yellow) from Pond 1E for all locations.
A7: 1 | B7: =AVERAGE(OFFSET(Mine2E!$C$10,12*$A7,(4*(PlotControl!$C$6-1)),12,1)) -> 0.002416733333 | C7: =AVERAGE(OFFSET(Mine2E!$D$10,12*$A7,(4*(PlotControl!$C$6-1)),12,1)) -> 0.003226075 | D7: =AVERAGE(OFFSET(Mine2E!$E$10,12*$A7,(4*(PlotControl!$C$6-1)),12,1)) -> 0.0041763 | E7: =AVERAGE(OFFSET(Natural2E!$DG$10,12*$A7,(4*(PlotControl!$C$6-1)),12,1)) -> 3.792958333e-05 | F7: =AVERAGE(OFFSET(Natural2E!$DH$10,12*$A7,(4*(PlotControl!$C$6-1)),12,1)) -> 3.792958333e-05 | G7: =AVERAGE(OFFSET(Natural2E!$DI$10,12*$A7,(4*(PlotControl!$C$6-1)),12,1)) -> 3.792958333e-05 | H7: =AVERAGE(OFFSET(Plant2E!$C$10,12*$A7,(4*(PlotControl!$C$6-1)),12,1)) -> 0.00105415 | I7: =AVERAGE(OFFSET(Plant2E!$D$10,12*$A7,(4*(PlotControl!$C$6-1)),12,1)) -> 0.002945091667 | J7: =AVERAGE(OFFSET(Plant2E!$E$10,12*$A7,(4*(PlotControl!$C$6-1)),12,1)) -> 0.006413883333 | K7: =AVERAGE(OFFSET(Plant2E!$DG$10,12*$A7,(4*(PlotControl!$C$6-1)),12,1)) -> 7.705839167e-05 | L7: =AVERAGE(OFFSET(Plant2E!$DH$10,12*$A7,(4*(PlotControl!$C$6-1)),12,1)) -> 0.0004389225 | M7: =AVERAGE(OFFSET(Plant2E!$DI$10,12*$A7,(4*(PlotControl!$C$6-1)),12,1)) -> 0.0007685275 | N7: =AVERAGE(OFFSET(Contain2E!$C$10,12*$A7,(4*(PlotControl!$C$6-1)),12,1)) + AVERAGE(OFFSET(Contain2E!$DG$10,12*$A7,(4*(PlotControl!$C$6-1)),12,1)) -> 0.0005701606188 | O7: =AVERAGE(OFFSET(Contain2E!$D$10,12*$A7,(4*(PlotControl!$C$6-1)),12,1)) + AVERAGE(OFFSET(Contain2E!$DH$10,12*$A7,(4*(PlotControl!$C$6-1)),12,1)) -> 0.0005993273193 | P7: =AVERAGE(OFFSET(Contain2E!$E$10,12*$A7,(4*(PlotControl!$C$6-1)),12,1)) + AVERAGE(OFFSET(Contain2E!$DI$10,12*$A7,(4*(PlotControl!$C$6-1)),12,1)) -> 0.0006628702448 | Q7: =AVERAGE(OFFSET(WWTP1E!$C$10,12*$A7,(4*(PlotControl!$C$6-1)),12,1)) -> 0 | R7: =AVERAGE(OFFSET(WWTP1E!$D$10,12*$A7,(4*(PlotControl!$C$6-1)),12,1)) -> 0 | S7: =AVERAGE(OFFSET(WWTP1E!$E$10,12*$A7,(4*(PlotControl!$C$6-1)),12,1)) -> 0 | T7: =AVERAGE(OFFSET(WWTP1E!$DG$10,12*$A7,(4*(PlotControl!$C$6-1)),12,1)) -> 6.19035e-05 | U7: =AVERAGE(OFFSET(WWTP1E!$DH$10,12*$A7,(4*(PlotControl!$C$6-1)),12,1)) -> 6.246216667e-05 | V7: =AVERAGE(OFFSET(WWTP1E!$DI$10,12*$A7,(4*(PlotControl!$C$6-1)),12,1)) -> 6.419333333e-05 | W7: =AVERAGE(OFFSET(Plant2E!$HK$10,12*$A7,(4*(PlotControl!$C$6-1)),12,1)) -> 2.911166667e-06 | X7: =AVERAGE(OFFSET(Plant2E!$HL$10,12*$A7,(4*(PlotControl!$C$6-1)),12,1)) -> 9.704166667e-06 | Y7: =AVERAGE(OFFSET(Plant2E!$HM$10,12*$A7,(4*(PlotControl!$C$6-1)),12,1)) -> 2.426016667e-05
A8: 2 | B8: =AVERAGE(OFFSET(Mine2E!$C$10,12*$A8,(4*(PlotControl!$C$6-1)),12,1)) -> 0.0033486 | C8: =AVERAGE(OFFSET(Mine2E!$D$10,12*$A8,(4*(PlotControl!$C$6-1)),12,1)) -> 0.004102266667 | D8: =AVERAGE(OFFSET(Mine2E!$E$10,12*$A8,(4*(PlotControl!$C$6-1)),12,1)) -> 0.004905941667 | E8: =AVERAGE(OFFSET(Natural2E!$DG$10,12*$A8,(4*(PlotControl!$C$6-1)),12,1)) -> 3.754175e-05 | F8: =AVERAGE(OFFSET(Natural2E!$DH$10,12*$A8,(4*(PlotControl!$C$6-1)),12,1)) -> 3.754175e-05 | G8: =AVERAGE(OFFSET(Natural2E!$DI$10,12*$A8,(4*(PlotControl!$C$6-1)),12,1)) -> 3.754175e-05 | H8: =AVERAGE(OFFSET(Plant2E!$C$10,12*$A8,(4*(PlotControl!$C$6-1)),12,1)) -> 0.0009948266667 | I8: =AVERAGE(OFFSET(Plant2E!$D$10,12*$A8,(4*(PlotControl!$C$6-1)),12,1)) -> 0.002916425 | J8: =AVERAGE(OFFSET(Plant2E!$E$10,12*$A8,(4*(PlotControl!$C$6-1)),12,1)) -> 0.006603708333 | K8: =AVERAGE(OFFSET(Plant2E!$DG$10,12*$A8,(4*(PlotControl!$C$6-1)),12,1)) -> 6.210233333e-05 | L8: =AVERAGE(OFFSET(Plant2E!$DH$10,12*$A8,(4*(PlotControl!$C$6-1)),12,1)) -> 0.0004167233333 | M8: =AVERAGE(OFFSET(Plant2E!$DI$10,12*$A8,(4*(PlotControl!$C$6-1)),12,1)) -> 0.0007582358333 | N8: =AVERAGE(OFFSET(Contain2E!$C$10,12*$A8,(4*(PlotControl!$C$6-1)),12,1)) + AVERAGE(OFFSET(Contain2E!$DG$10,12*$A8,(4*(PlotControl!$C$6-1)),12,1)) -> 0.0005725315123 | O8: =AVERAGE(OFFSET(Contain2E!$D$10,12*$A8,(4*(PlotControl!$C$6-1)),12,1)) + AVERAGE(OFFSET(Contain2E!$DH$10,12*$A8,(4*(PlotControl!$C$6-1)),12,1)) -> 0.0006042197918 | P8: =AVERAGE(OFFSET(Contain2E!$E$10,12*$A8,(4*(PlotControl!$C$6-1)),12,1)) + AVERAGE(OFFSET(Contain2E!$DI$10,12*$A8,(4*(PlotControl!$C$6-1)),12,1)) -> 0.0006682635598 | Q8: =AVERAGE(OFFSET(WWTP1E!$C$10,12*$A8,(4*(PlotControl!$C$6-1)),12,1)) -> 0 | R8: =AVERAGE(OFFSET(WWTP1E!$D$10,12*$A8,(4*(PlotControl!$C$6-1)),12,1)) -> 0 | S8: =AVERAGE(OFFSET(WWTP1E!$E$10,12*$A8,(4*(PlotControl!$C$6-1)),12,1)) -> 0 | T8: =AVERAGE(OFFSET(WWTP1E!$DG$10,12*$A8,(4*(PlotControl!$C$6-1)),12,1)) -> 6.160783333e-05 | U8: =AVERAGE(OFFSET(WWTP1E!$DH$10,12*$A8,(4*(PlotControl!$C$6-1)),12,1)) -> 6.221258333e-05 | V8: =AVERAGE(OFFSET(WWTP1E!$DI$10,12*$A8,(4*(PlotControl!$C$6-1)),12,1)) -> 6.435766667e-05 | W8: =AVERAGE(OFFSET(Plant2E!$HK$10,12*$A8,(4*(PlotControl!$C$6-1)),12,1)) -> 2.911166667e-06 | X8: =AVERAGE(OFFSET(Plant2E!$HL$10,12*$A8,(4*(PlotControl!$C$6-1)),12,1)) -> 9.704166667e-06 | Y8: =AVERAGE(OFFSET(Plant2E!$HM$10,12*$A8,(4*(PlotControl!$C$6-1)),12,1)) -> 2.426016667e-05
A9: 3 | B9: =AVERAGE(OFFSET(Mine2E!$C$10,12*$A9,(4*(PlotControl!$C$6-1)),12,1)) -> 0.004138025 | C9: =AVERAGE(OFFSET(Mine2E!$D$10,12*$A9,(4*(PlotControl!$C$6-1)),12,1)) -> 0.004945933333 | D9: =AVERAGE(OFFSET(Mine2E!$E$10,12*$A9,(4*(PlotControl!$C$6-1)),12,1)) -> 0.005754925 | E9: =AVERAGE(OFFSET(Natural2E!$DG$10,12*$A9,(4*(PlotControl!$C$6-1)),12,1)) -> 3.701116667e-05 | F9: =AVERAGE(OFFSET(Natural2E!$DH$10,12*$A9,(4*(PlotControl!$C$6-1)),12,1)) -> 3.701116667e-05 | G9: =AVERAGE(OFFSET(Natural2E!$DI$10,12*$A9,(4*(PlotControl!$C$6-1)),12,1)) -> 3.701116667e-05 | H9: =AVERAGE(OFFSET(Plant2E!$C$10,12*$A9,(4*(PlotControl!$C$6-1)),12,1)) -> 0.00102465 | I9: =AVERAGE(OFFSET(Plant2E!$D$10,12*$A9,(4*(PlotControl!$C$6-1)),12,1)) -> 0.0029534 | J9: =AVERAGE(OFFSET(Plant2E!$E$10,12*$A9,(4*(PlotControl!$C$6-1)),12,1)) -> 0.006926183333 | K9: =AVERAGE(OFFSET(Plant2E!$DG$10,12*$A9,(4*(PlotControl!$C$6-1)),12,1)) -> 5.337255833e-05 | L9: =AVERAGE(OFFSET(Plant2E!$DH$10,12*$A9,(4*(PlotControl!$C$6-1)),12,1)) -> 0.0003819666667 | M9: =AVERAGE(OFFSET(Plant2E!$DI$10,12*$A9,(4*(PlotControl!$C$6-1)),12,1)) -> 0.0007253316667 | N9: =AVERAGE(OFFSET(Contain2E!$C$10,12*$A9,(4*(PlotControl!$C$6-1)),12,1)) + AVERAGE(OFFSET(Contain2E!$DG$10,12*$A9,(4*(PlotControl!$C$6-1)),12,1)) -> 0.0005738490029 | O9: =AVERAGE(OFFSET(Contain2E!$D$10,12*$A9,(4*(PlotControl!$C$6-1)),12,1)) + AVERAGE(OFFSET(Contain2E!$DH$10,12*$A9,(4*(PlotControl!$C$6-1)),12,1)) -> 0.0006096923464 | P9: =AVERAGE(OFFSET(Contain2E!$E$10,12*$A9,(4*(PlotControl!$C$6-1)),12,1)) + AVERAGE(OFFSET(Contain2E!$DI$10,12*$A9,(4*(PlotControl!$C$6-1)),12,1)) -> 0.0006735596467 | Q9: =AVERAGE(OFFSET(WWTP1E!$C$10,12*$A9,(4*(PlotControl!$C$6-1)),12,1)) -> 0 | R9: =AVERAGE(OFFSET(WWTP1E!$D$10,12*$A9,(4*(PlotControl!$C$6-1)),12,1)) -> 0 | S9: =AVERAGE(OFFSET(WWTP1E!$E$10,12*$A9,(4*(PlotControl!$C$6-1)),12,1)) -> 0 | T9: =AVERAGE(OFFSET(WWTP1E!$DG$10,12*$A9,(4*(PlotControl!$C$6-1)),12,1)) -> 6.1259e-05 | U9: =AVERAGE(OFFSET(WWTP1E!$DH$10,12*$A9,(4*(PlotControl!$C$6-1)),12,1)) -> 6.208791667e-05 | V9: =AVERAGE(OFFSET(WWTP1E!$DI$10,12*$A9,(4*(PlotControl!$C$6-1)),12,1)) -> 6.449983333e-05 | W9: =AVERAGE(OFFSET(Plant2E!$HK$10,12*$A9,(4*(PlotControl!$C$6-1)),12,1)) -> 2.911166667e-06 | X9: =AVERAGE(OFFSET(Plant2E!$HL$10,12*$A9,(4*(PlotControl!$C$6-1)),12,1)) -> 9.704166667e-06 | Y9: =AVERAGE(OFFSET(Plant2E!$HM$10,12*$A9,(4*(PlotControl!$C$6-1)),12,1)) -> 2.426016667e-05
A10: 4 | B10: =AVERAGE(OFFSET(Mine2E!$C$10,12*$A10,(4*(PlotControl!$C$6-1)),12,1)) -> 0.004764225 | C10: =AVERAGE(OFFSET(Mine2E!$D$10,12*$A10,(4*(PlotControl!$C$6-1)),12,1)) -> 0.005659291667 | D10: =AVERAGE(OFFSET(Mine2E!$E$10,12*$A10,(4*(PlotControl!$C$6-1)),12,1)) -> 0.006628258333 | E10: =AVERAGE(OFFSET(Natural2E!$DG$10,12*$A10,(4*(PlotControl!$C$6-1)),12,1)) -> 3.644958333e-05 | F10: =AVERAGE(OFFSET(Natural2E!$DH$10,12*$A10,(4*(PlotControl!$C$6-1)),12,1)) -> 3.644958333e-05 | G10: =AVERAGE(OFFSET(Natural2E!$DI$10,12*$A10,(4*(PlotControl!$C$6-1)),12,1)) -> 3.644958333e-05 | H10: =AVERAGE(OFFSET(Plant2E!$C$10,12*$A10,(4*(PlotControl!$C$6-1)),12,1)) -> 0.00102225 | I10: =AVERAGE(OFFSET(Plant2E!$D$10,12*$A10,(4*(PlotControl!$C$6-1)),12,1)) -> 0.002976541667 | J10: =AVERAGE(OFFSET(Plant2E!$E$10,12*$A10,(4*(PlotControl!$C$6-1)),12,1)) -> 0.006829858333 | K10: =AVERAGE(OFFSET(Plant2E!$DG$10,12*$A10,(4*(PlotControl!$C$6-1)),12,1)) -> 3.921498333e-05 | L10: =AVERAGE(OFFSET(Plant2E!$DH$10,12*$A10,(4*(PlotControl!$C$6-1)),12,1)) -> 0.0003679666667 | M10: =AVERAGE(OFFSET(Plant2E!$DI$10,12*$A10,(4*(PlotControl!$C$6-1)),12,1)) -> 0.0006961116667 | N10: =AVERAGE(OFFSET(Contain2E!$C$10,12*$A10,(4*(PlotControl!$C$6-1)),12,1)) + AVERAGE(OFFSET(Contain2E!$DG$10,12*$A10,(4*(PlotControl!$C$6-1)),12,1)) -> 0.0005405170115 | O10: =AVERAGE(OFFSET(Contain2E!$D$10,12*$A10,(4*(PlotControl!$C$6-1)),12,1)) + AVERAGE(OFFSET(Contain2E!$DH$10,12*$A10,(4*(PlotControl!$C$6-1)),12,1)) -> 0.0005755404969 | P10: =AVERAGE(OFFSET(Contain2E!$E$10,12*$A10,(4*(PlotControl!$C$6-1)),12,1)) + AVERAGE(OFFSET(Contain2E!$DI$10,12*$A10,(4*(PlotControl!$C$6-1)),12,1)) -> 0.0006414565017 | Q10: =AVERAGE(OFFSET(WWTP1E!$C$10,12*$A10,(4*(PlotControl!$C$6-1)),12,1)) -> 0 | R10: =AVERAGE(OFFSET(WWTP1E!$D$10,12*$A10,(4*(PlotControl!$C$6-1)),12,1)) -> 0 | S10: =AVERAGE(OFFSET(WWTP1E!$E$10,12*$A10,(4*(PlotControl!$C$6-1)),12,1)) -> 0 | T10: =AVERAGE(OFFSET(WWTP1E!$DG$10,12*$A10,(4*(PlotControl!$C$6-1)),12,1)) -> 7.213616667e-05 | U10: =AVERAGE(OFFSET(WWTP1E!$DH$10,12*$A10,(4*(PlotControl!$C$6-1)),12,1)) -> 7.370425e-05 | V10: =AVERAGE(OFFSET(WWTP1E!$DI$10,12*$A10,(4*(PlotControl!$C$6-1)),12,1)) -> 7.661641667e-05 | W10: =AVERAGE(OFFSET(Plant2E!$HK$10,12*$A10,(4*(PlotControl!$C$6-1)),12,1)) -> 2.911166667e-06 | X10: =AVERAGE(OFFSET(Plant2E!$HL$10,12*$A10,(4*(PlotControl!$C$6-1)),12,1)) -> 1.018933333e-05 | Y10: =AVERAGE(OFFSET(Plant2E!$HM$10,12*$A10,(4*(PlotControl!$C$6-1)),12,1)) -> 2.426016667e-05
A11: 5 | B11: =AVERAGE(OFFSET(Mine2E!$C$10,12*$A11,(4*(PlotControl!$C$6-1)),12,1)) -> 0.004802258333 | C11: =AVERAGE(OFFSET(Mine2E!$D$10,12*$A11,(4*(PlotControl!$C$6-1)),12,1)) -> 0.006037666667 | D11: =AVERAGE(OFFSET(Mine2E!$E$10,12*$A11,(4*(PlotControl!$C$6-1)),12,1)) -> 0.007400325 | E11: =AVERAGE(OFFSET(Natural2E!$DG$10,12*$A11,(4*(PlotControl!$C$6-1)),12,1)) -> 3.585141667e-05 | F11: =AVERAGE(OFFSET(Natural2E!$DH$10,12*$A11,(4*(PlotControl!$C$6-1)),12,1)) -> 3.585141667e-05 | G11: =AVERAGE(OFFSET(Natural2E!$DI$10,12*$A11,(4*(PlotControl!$C$6-1)),12,1)) -> 3.585141667e-05 | H11: =AVERAGE(OFFSET(Plant2E!$C$10,12*$A11,(4*(PlotControl!$C$6-1)),12,1)) -> 0.001048183333 | I11: =AVERAGE(OFFSET(Plant2E!$D$10,12*$A11,(4*(PlotControl!$C$6-1)),12,1)) -> 0.00296555 | J11: =AVERAGE(OFFSET(Plant2E!$E$10,12*$A11,(4*(PlotControl!$C$6-1)),12,1)) -> 0.006495141667 | K11: =AVERAGE(OFFSET(Plant2E!$DG$10,12*$A11,(4*(PlotControl!$C$6-1)),12,1)) -> 1.826995e-05 | L11: =AVERAGE(OFFSET(Plant2E!$DH$10,12*$A11,(4*(PlotControl!$C$6-1)),12,1)) -> 0.0003232093333 | M11: =AVERAGE(OFFSET(Plant2E!$DI$10,12*$A11,(4*(PlotControl!$C$6-1)),12,1)) -> 0.0006875175 | N11: =AVERAGE(OFFSET(Contain2E!$C$10,12*$A11,(4*(PlotControl!$C$6-1)),12,1)) + AVERAGE(OFFSET(Contain2E!$DG$10,12*$A11,(4*(PlotControl!$C$6-1)),12,1)) -> 0.0004997004005 | O11: =AVERAGE(OFFSET(Contain2E!$D$10,12*$A11,(4*(PlotControl!$C$6-1)),12,1)) + AVERAGE(OFFSET(Contain2E!$DH$10,12*$A11,(4*(PlotControl!$C$6-1)),12,1)) -> 0.0005464432489 | P11: =AVERAGE(OFFSET(Contain2E!$E$10,12*$A11,(4*(PlotControl!$C$6-1)),12,1)) + AVERAGE(OFFSET(Contain2E!$DI$10,12*$A11,(4*(PlotControl!$C$6-1)),12,1)) -> 0.0006275236717 | Q11: =AVERAGE(OFFSET(WWTP1E!$C$10,12*$A11,(4*(PlotControl!$C$6-1)),12,1)) -> 0 | R11: =AVERAGE(OFFSET(WWTP1E!$D$10,12*$A11,(4*(PlotControl!$C$6-1)),12,1)) -> 0 | S11: =AVERAGE(OFFSET(WWTP1E!$E$10,12*$A11,(4*(PlotControl!$C$6-1)),12,1)) -> 0 | T11: =AVERAGE(OFFSET(WWTP1E!$DG$10,12*$A11,(4*(PlotControl!$C$6-1)),12,1)) -> 0.0001075155833 | U11: =AVERAGE(OFFSET(WWTP1E!$DH$10,12*$A11,(4*(PlotControl!$C$6-1)),12,1)) -> 0.0001106701667 | V11: =AVERAGE(OFFSET(WWTP1E!$DI$10,12*$A11,(4*(PlotControl!$C$6-1)),12,1)) -> 0.0001145745 | W11: =AVERAGE(OFFSET(Plant2E!$HK$10,12*$A11,(4*(PlotControl!$C$6-1)),12,1)) -> 2.911166667e-06 | X11: =AVERAGE(OFFSET(Plant2E!$HL$10,12*$A11,(4*(PlotControl!$C$6-1)),12,1)) -> 1.06745e-05 | Y11: =AVERAGE(OFFSET(Plant2E!$HM$10,12*$A11,(4*(PlotControl!$C$6-1)),12,1)) -> 2.426016667e-05
A12: 6 | B12: =AVERAGE(OFFSET(Mine2E!$C$10,12*$A12,(4*(PlotControl!$C$6-1)),12,1)) -> 0.005955291667 | C12: =AVERAGE(OFFSET(Mine2E!$D$10,12*$A12,(4*(PlotControl!$C$6-1)),12,1)) -> 0.00716925 | D12: =AVERAGE(OFFSET(Mine2E!$E$10,12*$A12,(4*(PlotControl!$C$6-1)),12,1)) -> 0.008484816667 | E12: =AVERAGE(OFFSET(Natural2E!$DG$10,12*$A12,(4*(PlotControl!$C$6-1)),12,1)) -> 3.511591667e-05 | F12: =AVERAGE(OFFSET(Natural2E!$DH$10,12*$A12,(4*(PlotControl!$C$6-1)),12,1)) -> 3.511591667e-05 | G12: =AVERAGE(OFFSET(Natural2E!$DI$10,12*$A12,(4*(PlotControl!$C$6-1)),12,1)) -> 3.511591667e-05 | H12: =AVERAGE(OFFSET(Plant2E!$C$10,12*$A12,(4*(PlotControl!$C$6-1)),12,1)) -> 0.001040166667 | I12: =AVERAGE(OFFSET(Plant2E!$D$10,12*$A12,(4*(PlotControl!$C$6-1)),12,1)) -> 0.002896841667 | J12: =AVERAGE(OFFSET(Plant2E!$E$10,12*$A12,(4*(PlotControl!$C$6-1)),12,1)) -> 0.006874366667 | K12: =AVERAGE(OFFSET(Plant2E!$DG$10,12*$A12,(4*(PlotControl!$C$6-1)),12,1)) -> 1.482725e-06 | L12: =AVERAGE(OFFSET(Plant2E!$DH$10,12*$A12,(4*(PlotControl!$C$6-1)),12,1)) -> 0.0002005267583 | M12: =AVERAGE(OFFSET(Plant2E!$DI$10,12*$A12,(4*(PlotControl!$C$6-1)),12,1)) -> 0.0005762591667 | N12: =AVERAGE(OFFSET(Contain2E!$C$10,12*$A12,(4*(PlotControl!$C$6-1)),12,1)) + AVERAGE(OFFSET(Contain2E!$DG$10,12*$A12,(4*(PlotControl!$C$6-1)),12,1)) -> 0.0005768208729 | O12: =AVERAGE(OFFSET(Contain2E!$D$10,12*$A12,(4*(PlotControl!$C$6-1)),12,1)) + AVERAGE(OFFSET(Contain2E!$DH$10,12*$A12,(4*(PlotControl!$C$6-1)),12,1)) -> 0.0007223056782 | P12: =AVERAGE(OFFSET(Contain2E!$E$10,12*$A12,(4*(PlotControl!$C$6-1)),12,1)) + AVERAGE(OFFSET(Contain2E!$DI$10,12*$A12,(4*(PlotControl!$C$6-1)),12,1)) -> 0.00091801728 | Q12: =AVERAGE(OFFSET(WWTP1E!$C$10,12*$A12,(4*(PlotControl!$C$6-1)),12,1)) -> 0 | R12: =AVERAGE(OFFSET(WWTP1E!$D$10,12*$A12,(4*(PlotControl!$C$6-1)),12,1)) -> 0 | S12: =AVERAGE(OFFSET(WWTP1E!$E$10,12*$A12,(4*(PlotControl!$C$6-1)),12,1)) -> 0 | T12: =AVERAGE(OFFSET(WWTP1E!$DG$10,12*$A12,(4*(PlotControl!$C$6-1)),12,1)) -> 0.0001472883333 | U12: =AVERAGE(OFFSET(WWTP1E!$DH$10,12*$A12,(4*(PlotControl!$C$6-1)),12,1)) -> 0.0001523975 | V12: =AVERAGE(OFFSET(WWTP1E!$DI$10,12*$A12,(4*(PlotControl!$C$6-1)),12,1)) -> 0.0001582191667 | W12: =AVERAGE(OFFSET(Plant2E!$HK$10,12*$A12,(4*(PlotControl!$C$6-1)),12,1)) -> 2.911166667e-06 | X12: =AVERAGE(OFFSET(Plant2E!$HL$10,12*$A12,(4*(PlotControl!$C$6-1)),12,1)) -> 1.018933333e-05 | Y12: =AVERAGE(OFFSET(Plant2E!$HM$10,12*$A12,(4*(PlotControl!$C$6-1)),12,1)) -> 2.426016667e-05
A14: 7 | B14: =AVERAGE(OFFSET(Mine1E!$C$10,12*$A14,(4*(PlotControl!$C$6-1)),12,1)) -> 0.005297191667 | C14: =AVERAGE(OFFSET(Mine1E!$D$10,12*$A14,(4*(PlotControl!$C$6-1)),12,1)) -> 0.006266108333 | D14: =AVERAGE(OFFSET(Mine1E!$E$10,12*$A14,(4*(PlotControl!$C$6-1)),12,1)) -> 0.007212008333 | E14: =AVERAGE(OFFSET(Natural1E!$DG$10,12*$A14,(4*(PlotControl!$C$6-1)),12,1)) -> 7.562658333e-05 | F14: =AVERAGE(OFFSET(Natural1E!$DH$10,12*$A14,(4*(PlotControl!$C$6-1)),12,1)) -> 7.562658333e-05 | G14: =AVERAGE(OFFSET(Natural1E!$DI$10,12*$A14,(4*(PlotControl!$C$6-1)),12,1)) -> 7.572183333e-05 | H14: =AVERAGE(OFFSET(Plant1E!$C$10,12*$A14,(4*(PlotControl!$C$6-1)),12,1)) -> 0.0009215083333 | I14: =AVERAGE(OFFSET(Plant1E!$D$10,12*$A14,(4*(PlotControl!$C$6-1)),12,1)) -> 0.002737866667 | J14: =AVERAGE(OFFSET(Plant1E!$E$10,12*$A14,(4*(PlotControl!$C$6-1)),12,1)) -> 0.0061318 | K14: =AVERAGE(OFFSET(Plant1E!$DG$10,12*$A14,(4*(PlotControl!$C$6-1)),12,1)) -> 1.331216667e-06 | L14: =AVERAGE(OFFSET(Plant1E!$DH$10,12*$A14,(4*(PlotControl!$C$6-1)),12,1)) -> 5.897569167e-05 | M14: =AVERAGE(OFFSET(Plant1E!$DI$10,12*$A14,(4*(PlotControl!$C$6-1)),12,1)) -> 0.0003466647917 | N14: =AVERAGE(OFFSET(Contain1E!$C$10,12*$A14,(4*(PlotControl!$C$6-1)),12,1)) + AVERAGE(OFFSET(Contain1E!$DG$10,12*$A14,(4*(PlotControl!$C$6-1)),12,1)) -> 0.0003910068458 | O14: =AVERAGE(OFFSET(Contain1E!$D$10,12*$A14,(4*(PlotControl!$C$6-1)),12,1)) + AVERAGE(OFFSET(Contain1E!$DH$10,12*$A14,(4*(PlotControl!$C$6-1)),12,1)) -> 0.0008209477408 | P14: =AVERAGE(OFFSET(Contain1E!$E$10,12*$A14,(4*(PlotControl!$C$6-1)),12,1)) + AVERAGE(OFFSET(Contain1E!$DI$10,12*$A14,(4*(PlotControl!$C$6-1)),12,1)) -> 0.001233347048 | Q14: =AVERAGE(OFFSET(WWTP1E!$C$10,12*$A14,(4*(PlotControl!$C$6-1)),12,1)) -> 0 | R14: =AVERAGE(OFFSET(WWTP1E!$D$10,12*$A14,(4*(PlotControl!$C$6-1)),12,1)) -> 0 | S14: =AVERAGE(OFFSET(WWTP1E!$E$10,12*$A14,(4*(PlotControl!$C$6-1)),12,1)) -> 0 | T14: =AVERAGE(OFFSET(WWTP1E!$DG$10,12*$A14,(4*(PlotControl!$C$6-1)),12,1)) -> 0.0001508541667 | U14: =AVERAGE(OFFSET(WWTP1E!$DH$10,12*$A14,(4*(PlotControl!$C$6-1)),12,1)) -> 0.0001675208333 | V14: =AVERAGE(OFFSET(WWTP1E!$DI$10,12*$A14,(4*(PlotControl!$C$6-1)),12,1)) -> 0.0002057983333 | W14: =AVERAGE(OFFSET(Plant1E!$HK$10,12*$A14,(4*(PlotControl!$C$6-1)),12,1)) -> 2.911166667e-06 | X14: =AVERAGE(OFFSET(Plant1E!$HL$10,12*$A14,(4*(PlotControl!$C$6-1)),12,1)) -> 1.018933333e-05 | Y14: =AVERAGE(OFFSET(Plant1E!$HM$10,12*$A14,(4*(PlotControl!$C$6-1)),12,1)) -> 2.426016667e-05
A15: 8 | B15: =AVERAGE(OFFSET(Mine1E!$C$10,12*$A15,(4*(PlotControl!$C$6-1)),12,1)) -> 0.007280908333 | C15: =AVERAGE(OFFSET(Mine1E!$D$10,12*$A15,(4*(PlotControl!$C$6-1)),12,1)) -> 0.008596091667 | D15: =AVERAGE(OFFSET(Mine1E!$E$10,12*$A15,(4*(PlotControl!$C$6-1)),12,1)) -> 0.009933875 | E15: =AVERAGE(OFFSET(Natural1E!$DG$10,12*$A15,(4*(PlotControl!$C$6-1)),12,1)) -> 8.161908333e-05 | F15: =AVERAGE(OFFSET(Natural1E!$DH$10,12*$A15,(4*(PlotControl!$C$6-1)),12,1)) -> 8.165091667e-05 | G15: =AVERAGE(OFFSET(Natural1E!$DI$10,12*$A15,(4*(PlotControl!$C$6-1)),12,1)) -> 8.165091667e-05 | H15: =AVERAGE(OFFSET(Plant1E!$C$10,12*$A15,(4*(PlotControl!$C$6-1)),12,1)) -> 0.0010646 | I15: =AVERAGE(OFFSET(Plant1E!$D$10,12*$A15,(4*(PlotControl!$C$6-1)),12,1)) -> 0.002890933333 | J15: =AVERAGE(OFFSET(Plant1E!$E$10,12*$A15,(4*(PlotControl!$C$6-1)),12,1)) -> 0.006518125 | K15: =AVERAGE(OFFSET(Plant1E!$DG$10,12*$A15,(4*(PlotControl!$C$6-1)),12,1)) -> 1.428941667e-06 | L15: =AVERAGE(OFFSET(Plant1E!$DH$10,12*$A15,(4*(PlotControl!$C$6-1)),12,1)) -> 1.482866667e-06 | M15: =AVERAGE(OFFSET(Plant1E!$DI$10,12*$A15,(4*(PlotControl!$C$6-1)),12,1)) -> 8.915811667e-05 | N15: =AVERAGE(OFFSET(Contain1E!$C$10,12*$A15,(4*(PlotControl!$C$6-1)),12,1)) + AVERAGE(OFFSET(Contain1E!$DG$10,12*$A15,(4*(PlotControl!$C$6-1)),12,1)) -> 0.000319681575 | O15: =AVERAGE(OFFSET(Contain1E!$D$10,12*$A15,(4*(PlotControl!$C$6-1)),12,1)) + AVERAGE(OFFSET(Contain1E!$DH$10,12*$A15,(4*(PlotControl!$C$6-1)),12,1)) -> 0.0008196338567 | P15: =AVERAGE(OFFSET(Contain1E!$E$10,12*$A15,(4*(PlotControl!$C$6-1)),12,1)) + AVERAGE(OFFSET(Contain1E!$DI$10,12*$A15,(4*(PlotControl!$C$6-1)),12,1)) -> 0.001495112318 | Q15: =AVERAGE(OFFSET(WWTP1E!$C$10,12*$A15,(4*(PlotControl!$C$6-1)),12,1)) -> 0 | R15: =AVERAGE(OFFSET(WWTP1E!$D$10,12*$A15,(4*(PlotControl!$C$6-1)),12,1)) -> 0 | S15: =AVERAGE(OFFSET(WWTP1E!$E$10,12*$A15,(4*(PlotControl!$C$6-1)),12,1)) -> 0 | T15: =AVERAGE(OFFSET(WWTP1E!$DG$10,12*$A15,(4*(PlotControl!$C$6-1)),12,1)) -> 0.0001388108333 | U15: =AVERAGE(OFFSET(WWTP1E!$DH$10,12*$A15,(4*(PlotControl!$C$6-1)),12,1)) -> 0.0001756183333 | V15: =AVERAGE(OFFSET(WWTP1E!$DI$10,12*$A15,(4*(PlotControl!$C$6-1)),12,1)) -> 0.000215275 | W15: =AVERAGE(OFFSET(Plant1E!$HK$10,12*$A15,(4*(PlotControl!$C$6-1)),12,1)) -> 2.911166667e-06 | X15: =AVERAGE(OFFSET(Plant1E!$HL$10,12*$A15,(4*(PlotControl!$C$6-1)),12,1)) -> 1.06745e-05 | Y15: =AVERAGE(OFFSET(Plant1E!$HM$10,12*$A15,(4*(PlotControl!$C$6-1)),12,1)) -> 2.426016667e-05
A16: 9 | B16: =AVERAGE(OFFSET(Mine1E!$C$10,12*$A16,(4*(PlotControl!$C$6-1)),12,1)) -> 0.007963483333 | C16: =AVERAGE(OFFSET(Mine1E!$D$10,12*$A16,(4*(PlotControl!$C$6-1)),12,1)) -> 0.009473741667 | D16: =AVERAGE(OFFSET(Mine1E!$E$10,12*$A16,(4*(PlotControl!$C$6-1)),12,1)) -> 0.01093016667 | E16: =AVERAGE(OFFSET(Natural1E!$DG$10,12*$A16,(4*(PlotControl!$C$6-1)),12,1)) -> 8.288808333e-05 | F16: =AVERAGE(OFFSET(Natural1E!$DH$10,12*$A16,(4*(PlotControl!$C$6-1)),12,1)) -> 8.335841667e-05 | G16: =AVERAGE(OFFSET(Natural1E!$DI$10,12*$A16,(4*(PlotControl!$C$6-1)),12,1)) -> 8.335841667e-05 | H16: =AVERAGE(OFFSET(Plant1E!$C$10,12*$A16,(4*(PlotControl!$C$6-1)),12,1)) -> 0.001026866667 | I16: =AVERAGE(OFFSET(Plant1E!$D$10,12*$A16,(4*(PlotControl!$C$6-1)),12,1)) -> 0.002915408333 | J16: =AVERAGE(OFFSET(Plant1E!$E$10,12*$A16,(4*(PlotControl!$C$6-1)),12,1)) -> 0.006855666667 | K16: =AVERAGE(OFFSET(Plant1E!$DG$10,12*$A16,(4*(PlotControl!$C$6-1)),12,1)) -> 1.419575e-06 | L16: =AVERAGE(OFFSET(Plant1E!$DH$10,12*$A16,(4*(PlotControl!$C$6-1)),12,1)) -> 1.47915e-06 | M16: =AVERAGE(OFFSET(Plant1E!$DI$10,12*$A16,(4*(PlotControl!$C$6-1)),12,1)) -> 3.019781667e-05 | N16: =AVERAGE(OFFSET(Contain1E!$C$10,12*$A16,(4*(PlotControl!$C$6-1)),12,1)) + AVERAGE(OFFSET(Contain1E!$DG$10,12*$A16,(4*(PlotControl!$C$6-1)),12,1)) -> 0.00025285163 | O16: =AVERAGE(OFFSET(Contain1E!$D$10,12*$A16,(4*(PlotControl!$C$6-1)),12,1)) + AVERAGE(OFFSET(Contain1E!$DH$10,12*$A16,(4*(PlotControl!$C$6-1)),12,1)) -> 0.00077129485 | P16: =AVERAGE(OFFSET(Contain1E!$E$10,12*$A16,(4*(PlotControl!$C$6-1)),12,1)) + AVERAGE(OFFSET(Contain1E!$DI$10,12*$A16,(4*(PlotControl!$C$6-1)),12,1)) -> 0.001414277227 | Q16: =AVERAGE(OFFSET(WWTP1E!$C$10,12*$A16,(4*(PlotControl!$C$6-1)),12,1)) -> 0 | R16: =AVERAGE(OFFSET(WWTP1E!$D$10,12*$A16,(4*(PlotControl!$C$6-1)),12,1)) -> 0 | S16: =AVERAGE(OFFSET(WWTP1E!$E$10,12*$A16,(4*(PlotControl!$C$6-1)),12,1)) -> 0 | T16: =AVERAGE(OFFSET(WWTP1E!$DG$10,12*$A16,(4*(PlotControl!$C$6-1)),12,1)) -> 0.0001332766667 | U16: =AVERAGE(OFFSET(WWTP1E!$DH$10,12*$A16,(4*(PlotControl!$C$6-1)),12,1)) -> 0.0001686991667 | V16: =AVERAGE(OFFSET(WWTP1E!$DI$10,12*$A16,(4*(PlotControl!$C$6-1)),12,1)) -> 0.0002060841667 | W16: =AVERAGE(OFFSET(Plant1E!$HK$10,12*$A16,(4*(PlotControl!$C$6-1)),12,1)) -> 2.911166667e-06 | X16: =AVERAGE(OFFSET(Plant1E!$HL$10,12*$A16,(4*(PlotControl!$C$6-1)),12,1)) -> 1.06745e-05 | Y16: =AVERAGE(OFFSET(Plant1E!$HM$10,12*$A16,(4*(PlotControl!$C$6-1)),12,1)) -> 2.426016667e-05
A17: 10 | B17: =AVERAGE(OFFSET(Mine1E!$C$10,12*$A17,(4*(PlotControl!$C$6-1)),12,1)) -> 0.006451166667 | C17: =AVERAGE(OFFSET(Mine1E!$D$10,12*$A17,(4*(PlotControl!$C$6-1)),12,1)) -> 0.008003333333 | D17: =AVERAGE(OFFSET(Mine1E!$E$10,12*$A17,(4*(PlotControl!$C$6-1)),12,1)) -> 0.009580133333 | E17: =AVERAGE(OFFSET(Natural1E!$DG$10,12*$A17,(4*(PlotControl!$C$6-1)),12,1)) -> 8.406316667e-05 | F17: =AVERAGE(OFFSET(Natural1E!$DH$10,12*$A17,(4*(PlotControl!$C$6-1)),12,1)) -> 8.433216667e-05 | G17: =AVERAGE(OFFSET(Natural1E!$DI$10,12*$A17,(4*(PlotControl!$C$6-1)),12,1)) -> 8.433216667e-05 | H17: =AVERAGE(OFFSET(Plant1E!$C$10,12*$A17,(4*(PlotControl!$C$6-1)),12,1)) -> 0.001069241667 | I17: =AVERAGE(OFFSET(Plant1E!$D$10,12*$A17,(4*(PlotControl!$C$6-1)),12,1)) -> 0.002948225 | J17: =AVERAGE(OFFSET(Plant1E!$E$10,12*$A17,(4*(PlotControl!$C$6-1)),12,1)) -> 0.006731608333 | K17: =AVERAGE(OFFSET(Plant1E!$DG$10,12*$A17,(4*(PlotControl!$C$6-1)),12,1)) -> 1.422108333e-06 | L17: =AVERAGE(OFFSET(Plant1E!$DH$10,12*$A17,(4*(PlotControl!$C$6-1)),12,1)) -> 1.478275e-06 | M17: =AVERAGE(OFFSET(Plant1E!$DI$10,12*$A17,(4*(PlotControl!$C$6-1)),12,1)) -> 6.655056667e-05 | N17: =AVERAGE(OFFSET(Contain1E!$C$10,12*$A17,(4*(PlotControl!$C$6-1)),12,1)) + AVERAGE(OFFSET(Contain1E!$DG$10,12*$A17,(4*(PlotControl!$C$6-1)),12,1)) -> 0.0003913804083 | O17: =AVERAGE(OFFSET(Contain1E!$D$10,12*$A17,(4*(PlotControl!$C$6-1)),12,1)) + AVERAGE(OFFSET(Contain1E!$DH$10,12*$A17,(4*(PlotControl!$C$6-1)),12,1)) -> 0.001003445562 | P17: =AVERAGE(OFFSET(Contain1E!$E$10,12*$A17,(4*(PlotControl!$C$6-1)),12,1)) + AVERAGE(OFFSET(Contain1E!$DI$10,12*$A17,(4*(PlotControl!$C$6-1)),12,1)) -> 0.001653632103 | Q17: =AVERAGE(OFFSET(WWTP1E!$C$10,12*$A17,(4*(PlotControl!$C$6-1)),12,1)) -> 0 | R17: =AVERAGE(OFFSET(WWTP1E!$D$10,12*$A17,(4*(PlotControl!$C$6-1)),12,1)) -> 0 | S17: =AVERAGE(OFFSET(WWTP1E!$E$10,12*$A17,(4*(PlotControl!$C$6-1)),12,1)) -> 0 | T17: =AVERAGE(OFFSET(WWTP1E!$DG$10,12*$A17,(4*(PlotControl!$C$6-1)),12,1)) -> 0.00011558925 | U17: =AVERAGE(OFFSET(WWTP1E!$DH$10,12*$A17,(4*(PlotControl!$C$6-1)),12,1)) -> 0.0001498016667 | V17: =AVERAGE(OFFSET(WWTP1E!$DI$10,12*$A17,(4*(PlotControl!$C$6-1)),12,1)) -> 0.0001909175 | W17: =AVERAGE(OFFSET(Plant1E!$HK$10,12*$A17,(4*(PlotControl!$C$6-1)),12,1)) -> 2.911166667e-06 | X17: =AVERAGE(OFFSET(Plant1E!$HL$10,12*$A17,(4*(PlotControl!$C$6-1)),12,1)) -> 9.704166667e-06 | Y17: =AVERAGE(OFFSET(Plant1E!$HM$10,12*$A17,(4*(PlotControl!$C$6-1)),12,1)) -> 2.426016667e-05
A18: 11 | B18: =AVERAGE(OFFSET(Mine1E!$C$10,12*$A18,(4*(PlotControl!$C$6-1)),12,1)) -> 0.006572625 | C18: =AVERAGE(OFFSET(Mine1E!$D$10,12*$A18,(4*(PlotControl!$C$6-1)),12,1)) -> 0.008184925 | D18: =AVERAGE(OFFSET(Mine1E!$E$10,12*$A18,(4*(PlotControl!$C$6-1)),12,1)) -> 0.0097702 | E18: =AVERAGE(OFFSET(Natural1E!$DG$10,12*$A18,(4*(PlotControl!$C$6-1)),12,1)) -> 8.430783333e-05 | F18: =AVERAGE(OFFSET(Natural1E!$DH$10,12*$A18,(4*(PlotControl!$C$6-1)),12,1)) -> 8.444575e-05 | G18: =AVERAGE(OFFSET(Natural1E!$DI$10,12*$A18,(4*(PlotControl!$C$6-1)),12,1)) -> 8.444575e-05 | H18: =AVERAGE(OFFSET(Plant1E!$C$10,12*$A18,(4*(PlotControl!$C$6-1)),12,1)) -> 0.00103675 | I18: =AVERAGE(OFFSET(Plant1E!$D$10,12*$A18,(4*(PlotControl!$C$6-1)),12,1)) -> 0.002894166667 | J18: =AVERAGE(OFFSET(Plant1E!$E$10,12*$A18,(4*(PlotControl!$C$6-1)),12,1)) -> 0.006704891667 | K18: =AVERAGE(OFFSET(Plant1E!$DG$10,12*$A18,(4*(PlotControl!$C$6-1)),12,1)) -> 1.421758333e-06 | L18: =AVERAGE(OFFSET(Plant1E!$DH$10,12*$A18,(4*(PlotControl!$C$6-1)),12,1)) -> 1.483166667e-06 | M18: =AVERAGE(OFFSET(Plant1E!$DI$10,12*$A18,(4*(PlotControl!$C$6-1)),12,1)) -> 7.19828e-05 | N18: =AVERAGE(OFFSET(Contain1E!$C$10,12*$A18,(4*(PlotControl!$C$6-1)),12,1)) + AVERAGE(OFFSET(Contain1E!$DG$10,12*$A18,(4*(PlotControl!$C$6-1)),12,1)) -> 0.00038720985 | O18: =AVERAGE(OFFSET(Contain1E!$D$10,12*$A18,(4*(PlotControl!$C$6-1)),12,1)) + AVERAGE(OFFSET(Contain1E!$DH$10,12*$A18,(4*(PlotControl!$C$6-1)),12,1)) -> 0.0009920606167 | P18: =AVERAGE(OFFSET(Contain1E!$E$10,12*$A18,(4*(PlotControl!$C$6-1)),12,1)) + AVERAGE(OFFSET(Contain1E!$DI$10,12*$A18,(4*(PlotControl!$C$6-1)),12,1)) -> 0.001652872275 | Q18: =AVERAGE(OFFSET(WWTP1E!$C$10,12*$A18,(4*(PlotControl!$C$6-1)),12,1)) -> 0 | R18: =AVERAGE(OFFSET(WWTP1E!$D$10,12*$A18,(4*(PlotControl!$C$6-1)),12,1)) -> 0 | S18: =AVERAGE(OFFSET(WWTP1E!$E$10,12*$A18,(4*(PlotControl!$C$6-1)),12,1)) -> 0 | T18: =AVERAGE(OFFSET(WWTP1E!$DG$10,12*$A18,(4*(PlotControl!$C$6-1)),12,1)) -> 0.0001119715833 | U18: =AVERAGE(OFFSET(WWTP1E!$DH$10,12*$A18,(4*(PlotControl!$C$6-1)),12,1)) -> 0.0001459408333 | V18: =AVERAGE(OFFSET(WWTP1E!$DI$10,12*$A18,(4*(PlotControl!$C$6-1)),12,1)) -> 0.0001863333333 | W18: =AVERAGE(OFFSET(Plant1E!$HK$10,12*$A18,(4*(PlotControl!$C$6-1)),12,1)) -> 2.911166667e-06 | X18: =AVERAGE(OFFSET(Plant1E!$HL$10,12*$A18,(4*(PlotControl!$C$6-1)),12,1)) -> 1.06745e-05 | Y18: =AVERAGE(OFFSET(Plant1E!$HM$10,12*$A18,(4*(PlotControl!$C$6-1)),12,1)) -> 2.426016667e-05
A19: 12 | B19: =AVERAGE(OFFSET(Mine1E!$C$10,12*$A19,(4*(PlotControl!$C$6-1)),12,1)) -> 0.007353733333 | C19: =AVERAGE(OFFSET(Mine1E!$D$10,12*$A19,(4*(PlotControl!$C$6-1)),12,1)) -> 0.008458866667 | D19: =AVERAGE(OFFSET(Mine1E!$E$10,12*$A19,(4*(PlotControl!$C$6-1)),12,1)) -> 0.009538391667 | E19: =AVERAGE(OFFSET(Natural1E!$DG$10,12*$A19,(4*(PlotControl!$C$6-1)),12,1)) -> 8.4521e-05 | F19: =AVERAGE(OFFSET(Natural1E!$DH$10,12*$A19,(4*(PlotControl!$C$6-1)),12,1)) -> 8.455583333e-05 | G19: =AVERAGE(OFFSET(Natural1E!$DI$10,12*$A19,(4*(PlotControl!$C$6-1)),12,1)) -> 8.455583333e-05 | H19: =AVERAGE(OFFSET(Plant1E!$C$10,12*$A19,(4*(PlotControl!$C$6-1)),12,1)) -> 0.001011291667 | I19: =AVERAGE(OFFSET(Plant1E!$D$10,12*$A19,(4*(PlotControl!$C$6-1)),12,1)) -> 0.002940075 | J19: =AVERAGE(OFFSET(Plant1E!$E$10,12*$A19,(4*(PlotControl!$C$6-1)),12,1)) -> 0.006782075 | K19: =AVERAGE(OFFSET(Plant1E!$DG$10,12*$A19,(4*(PlotControl!$C$6-1)),12,1)) -> 1.42805e-06 | L19: =AVERAGE(OFFSET(Plant1E!$DH$10,12*$A19,(4*(PlotControl!$C$6-1)),12,1)) -> 1.482591667e-06 | M19: =AVERAGE(OFFSET(Plant1E!$DI$10,12*$A19,(4*(PlotControl!$C$6-1)),12,1)) -> 8.146371667e-05 | N19: =AVERAGE(OFFSET(Contain1E!$C$10,12*$A19,(4*(PlotControl!$C$6-1)),12,1)) + AVERAGE(OFFSET(Contain1E!$DG$10,12*$A19,(4*(PlotControl!$C$6-1)),12,1)) -> 0.0004127957667 | O19: =AVERAGE(OFFSET(Contain1E!$D$10,12*$A19,(4*(PlotControl!$C$6-1)),12,1)) + AVERAGE(OFFSET(Contain1E!$DH$10,12*$A19,(4*(PlotControl!$C$6-1)),12,1)) -> 0.000941778725 | P19: =AVERAGE(OFFSET(Contain1E!$E$10,12*$A19,(4*(PlotControl!$C$6-1)),12,1)) + AVERAGE(OFFSET(Contain1E!$DI$10,12*$A19,(4*(PlotControl!$C$6-1)),12,1)) -> 0.001493183225 | Q19: =AVERAGE(OFFSET(WWTP1E!$C$10,12*$A19,(4*(PlotControl!$C$6-1)),12,1)) -> 0 | R19: =AVERAGE(OFFSET(WWTP1E!$D$10,12*$A19,(4*(PlotControl!$C$6-1)),12,1)) -> 0 | S19: =AVERAGE(OFFSET(WWTP1E!$E$10,12*$A19,(4*(PlotControl!$C$6-1)),12,1)) -> 0 | T19: =AVERAGE(OFFSET(WWTP1E!$DG$10,12*$A19,(4*(PlotControl!$C$6-1)),12,1)) -> 0.0001098348333 | U19: =AVERAGE(OFFSET(WWTP1E!$DH$10,12*$A19,(4*(PlotControl!$C$6-1)),12,1)) -> 0.00014077 | V19: =AVERAGE(OFFSET(WWTP1E!$DI$10,12*$A19,(4*(PlotControl!$C$6-1)),12,1)) -> 0.0001780583333 | W19: =AVERAGE(OFFSET(Plant1E!$HK$10,12*$A19,(4*(PlotControl!$C$6-1)),12,1)) -> 2.911166667e-06 | X19: =AVERAGE(OFFSET(Plant1E!$HL$10,12*$A19,(4*(PlotControl!$C$6-1)),12,1)) -> 1.018933333e-05 | Y19: =AVERAGE(OFFSET(Plant1E!$HM$10,12*$A19,(4*(PlotControl!$C$6-1)),12,1)) -> 2.426016667e-05
A20: 13 | B20: =AVERAGE(OFFSET(Mine1E!$C$10,12*$A20,(4*(PlotControl!$C$6-1)),12,1)) -> 0.008229091667 | C20: =AVERAGE(OFFSET(Mine1E!$D$10,12*$A20,(4*(PlotControl!$C$6-1)),12,1)) -> 0.009727741667 | D20: =AVERAGE(OFFSET(Mine1E!$E$10,12*$A20,(4*(PlotControl!$C$6-1)),12,1)) -> 0.0112053 | E20: =AVERAGE(OFFSET(Natural1E!$DG$10,12*$A20,(4*(PlotControl!$C$6-1)),12,1)) -> 8.45955e-05 | F20: =AVERAGE(OFFSET(Natural1E!$DH$10,12*$A20,(4*(PlotControl!$C$6-1)),12,1)) -> 8.466316667e-05 | G20: =AVERAGE(OFFSET(Natural1E!$DI$10,12*$A20,(4*(PlotControl!$C$6-1)),12,1)) -> 8.466316667e-05 | H20: =AVERAGE(OFFSET(Plant1E!$C$10,12*$A20,(4*(PlotControl!$C$6-1)),12,1)) -> 0.0009818666667 | I20: =AVERAGE(OFFSET(Plant1E!$D$10,12*$A20,(4*(PlotControl!$C$6-1)),12,1)) -> 0.002926075 | J20: =AVERAGE(OFFSET(Plant1E!$E$10,12*$A20,(4*(PlotControl!$C$6-1)),12,1)) -> 0.00662725 | K20: =AVERAGE(OFFSET(Plant1E!$DG$10,12*$A20,(4*(PlotControl!$C$6-1)),12,1)) -> 1.421533333e-06 | L20: =AVERAGE(OFFSET(Plant1E!$DH$10,12*$A20,(4*(PlotControl!$C$6-1)),12,1)) -> 1.484458333e-06 | M20: =AVERAGE(OFFSET(Plant1E!$DI$10,12*$A20,(4*(PlotControl!$C$6-1)),12,1)) -> 8.197249167e-05 | N20: =AVERAGE(OFFSET(Contain1E!$C$10,12*$A20,(4*(PlotControl!$C$6-1)),12,1)) + AVERAGE(OFFSET(Contain1E!$DG$10,12*$A20,(4*(PlotControl!$C$6-1)),12,1)) -> 0.0002433883333 | O20: =AVERAGE(OFFSET(Contain1E!$D$10,12*$A20,(4*(PlotControl!$C$6-1)),12,1)) + AVERAGE(OFFSET(Contain1E!$DH$10,12*$A20,(4*(PlotControl!$C$6-1)),12,1)) -> 0.000784861 | P20: =AVERAGE(OFFSET(Contain1E!$E$10,12*$A20,(4*(PlotControl!$C$6-1)),12,1)) + AVERAGE(OFFSET(Contain1E!$DI$10,12*$A20,(4*(PlotControl!$C$6-1)),12,1)) -> 0.001362257083 | Q20: =AVERAGE(OFFSET(WWTP1E!$C$10,12*$A20,(4*(PlotControl!$C$6-1)),12,1)) -> 0 | R20: =AVERAGE(OFFSET(WWTP1E!$D$10,12*$A20,(4*(PlotControl!$C$6-1)),12,1)) -> 0 | S20: =AVERAGE(OFFSET(WWTP1E!$E$10,12*$A20,(4*(PlotControl!$C$6-1)),12,1)) -> 0 | T20: =AVERAGE(OFFSET(WWTP1E!$DG$10,12*$A20,(4*(PlotControl!$C$6-1)),12,1)) -> 0.00011099275 | U20: =AVERAGE(OFFSET(WWTP1E!$DH$10,12*$A20,(4*(PlotControl!$C$6-1)),12,1)) -> 0.0001400933333 | V20: =AVERAGE(OFFSET(WWTP1E!$DI$10,12*$A20,(4*(PlotControl!$C$6-1)),12,1)) -> 0.000177785 | W20: =AVERAGE(OFFSET(Plant1E!$HK$10,12*$A20,(4*(PlotControl!$C$6-1)),12,1)) -> 2.911166667e-06 | X20: =AVERAGE(OFFSET(Plant1E!$HL$10,12*$A20,(4*(PlotControl!$C$6-1)),12,1)) -> 1.018933333e-05 | Y20: =AVERAGE(OFFSET(Plant1E!$HM$10,12*$A20,(4*(PlotControl!$C$6-1)),12,1)) -> 2.426016667e-05
A21: 14 | B21: =AVERAGE(OFFSET(Mine1E!$C$10,12*$A21,(4*(PlotControl!$C$6-1)),12,1)) -> 0.008041791667 | C21: =AVERAGE(OFFSET(Mine1E!$D$10,12*$A21,(4*(PlotControl!$C$6-1)),12,1)) -> 0.009334958333 | D21: =AVERAGE(OFFSET(Mine1E!$E$10,12*$A21,(4*(PlotControl!$C$6-1)),12,1)) -> 0.01049733333 | E21: =AVERAGE(OFFSET(Natural1E!$DG$10,12*$A21,(4*(PlotControl!$C$6-1)),12,1)) -> 8.516575e-05 | F21: =AVERAGE(OFFSET(Natural1E!$DH$10,12*$A21,(4*(PlotControl!$C$6-1)),12,1)) -> 8.528866667e-05 | G21: =AVERAGE(OFFSET(Natural1E!$DI$10,12*$A21,(4*(PlotControl!$C$6-1)),12,1)) -> 8.528866667e-05 | H21: =AVERAGE(OFFSET(Plant1E!$C$10,12*$A21,(4*(PlotControl!$C$6-1)),12,1)) -> 0.001028208333 | I21: =AVERAGE(OFFSET(Plant1E!$D$10,12*$A21,(4*(PlotControl!$C$6-1)),12,1)) -> 0.003009225 | J21: =AVERAGE(OFFSET(Plant1E!$E$10,12*$A21,(4*(PlotControl!$C$6-1)),12,1)) -> 0.006721108333 | K21: =AVERAGE(OFFSET(Plant1E!$DG$10,12*$A21,(4*(PlotControl!$C$6-1)),12,1)) -> 1.429983333e-06 | L21: =AVERAGE(OFFSET(Plant1E!$DH$10,12*$A21,(4*(PlotControl!$C$6-1)),12,1)) -> 2.03565e-06 | M21: =AVERAGE(OFFSET(Plant1E!$DI$10,12*$A21,(4*(PlotControl!$C$6-1)),12,1)) -> 0.000134272675 | N21: =AVERAGE(OFFSET(Contain1E!$C$10,12*$A21,(4*(PlotControl!$C$6-1)),12,1)) + AVERAGE(OFFSET(Contain1E!$DG$10,12*$A21,(4*(PlotControl!$C$6-1)),12,1)) -> 0.0002594856667 | O21: =AVERAGE(OFFSET(Contain1E!$D$10,12*$A21,(4*(PlotControl!$C$6-1)),12,1)) + AVERAGE(OFFSET(Contain1E!$DH$10,12*$A21,(4*(PlotControl!$C$6-1)),12,1)) -> 0.0008040296667 | P21: =AVERAGE(OFFSET(Contain1E!$E$10,12*$A21,(4*(PlotControl!$C$6-1)),12,1)) + AVERAGE(OFFSET(Contain1E!$DI$10,12*$A21,(4*(PlotControl!$C$6-1)),12,1)) -> 0.001316488833 | Q21: =AVERAGE(OFFSET(WWTP1E!$C$10,12*$A21,(4*(PlotControl!$C$6-1)),12,1)) -> 0 | R21: =AVERAGE(OFFSET(WWTP1E!$D$10,12*$A21,(4*(PlotControl!$C$6-1)),12,1)) -> 0 | S21: =AVERAGE(OFFSET(WWTP1E!$E$10,12*$A21,(4*(PlotControl!$C$6-1)),12,1)) -> 0 | T21: =AVERAGE(OFFSET(WWTP1E!$DG$10,12*$A21,(4*(PlotControl!$C$6-1)),12,1)) -> 0.0001068448333 | U21: =AVERAGE(OFFSET(WWTP1E!$DH$10,12*$A21,(4*(PlotControl!$C$6-1)),12,1)) -> 0.0001327125 | V21: =AVERAGE(OFFSET(WWTP1E!$DI$10,12*$A21,(4*(PlotControl!$C$6-1)),12,1)) -> 0.0001707091667 | W21: =AVERAGE(OFFSET(Plant1E!$HK$10,12*$A21,(4*(PlotControl!$C$6-1)),12,1)) -> 2.911166667e-06 | X21: =AVERAGE(OFFSET(Plant1E!$HL$10,12*$A21,(4*(PlotControl!$C$6-1)),12,1)) -> 9.704166667e-06 | Y21: =AVERAGE(OFFSET(Plant1E!$HM$10,12*$A21,(4*(PlotControl!$C$6-1)),12,1)) -> 2.426016667e-05
A22: 15 | B22: =AVERAGE(OFFSET(Mine1E!$C$10,12*$A22,(4*(PlotControl!$C$6-1)),12,1)) -> 0.00132829 | C22: =AVERAGE(OFFSET(Mine1E!$D$10,12*$A22,(4*(PlotControl!$C$6-1)),12,1)) -> 0.001534590833 | D22: =AVERAGE(OFFSET(Mine1E!$E$10,12*$A22,(4*(PlotControl!$C$6-1)),12,1)) -> 0.001730745833 | E22: =AVERAGE(OFFSET(Natural1E!$DG$10,12*$A22,(4*(PlotControl!$C$6-1)),12,1)) -> 8.6484e-05 | F22: =AVERAGE(OFFSET(Natural1E!$DH$10,12*$A22,(4*(PlotControl!$C$6-1)),12,1)) -> 8.652291667e-05 | G22: =AVERAGE(OFFSET(Natural1E!$DI$10,12*$A22,(4*(PlotControl!$C$6-1)),12,1)) -> 8.652291667e-05 | H22: =AVERAGE(OFFSET(Plant1E!$C$10,12*$A22,(4*(PlotControl!$C$6-1)),12,1)) -> 0.0009808883333 | I22: =AVERAGE(OFFSET(Plant1E!$D$10,12*$A22,(4*(PlotControl!$C$6-1)),12,1)) -> 0.002901091667 | J22: =AVERAGE(OFFSET(Plant1E!$E$10,12*$A22,(4*(PlotControl!$C$6-1)),12,1)) -> 0.006684933333 | K22: =AVERAGE(OFFSET(Plant1E!$DG$10,12*$A22,(4*(PlotControl!$C$6-1)),12,1)) -> 0.0001001170583 | L22: =AVERAGE(OFFSET(Plant1E!$DH$10,12*$A22,(4*(PlotControl!$C$6-1)),12,1)) -> 0.000439515 | M22: =AVERAGE(OFFSET(Plant1E!$DI$10,12*$A22,(4*(PlotControl!$C$6-1)),12,1)) -> 0.0008003991667 | N22: =AVERAGE(OFFSET(Contain1E!$C$10,12*$A22,(4*(PlotControl!$C$6-1)),12,1)) + AVERAGE(OFFSET(Contain1E!$DG$10,12*$A22,(4*(PlotControl!$C$6-1)),12,1)) -> 0.0009890201667 | O22: =AVERAGE(OFFSET(Contain1E!$D$10,12*$A22,(4*(PlotControl!$C$6-1)),12,1)) + AVERAGE(OFFSET(Contain1E!$DH$10,12*$A22,(4*(PlotControl!$C$6-1)),12,1)) -> 0.00127876575 | P22: =AVERAGE(OFFSET(Contain1E!$E$10,12*$A22,(4*(PlotControl!$C$6-1)),12,1)) + AVERAGE(OFFSET(Contain1E!$DI$10,12*$A22,(4*(PlotControl!$C$6-1)),12,1)) -> 0.001691581583 | Q22: =AVERAGE(OFFSET(WWTP1E!$C$10,12*$A22,(4*(PlotControl!$C$6-1)),12,1)) -> 0 | R22: =AVERAGE(OFFSET(WWTP1E!$D$10,12*$A22,(4*(PlotControl!$C$6-1)),12,1)) -> 0 | S22: =AVERAGE(OFFSET(WWTP1E!$E$10,12*$A22,(4*(PlotControl!$C$6-1)),12,1)) -> 0 | T22: =AVERAGE(OFFSET(WWTP1E!$DG$10,12*$A22,(4*(PlotControl!$C$6-1)),12,1)) -> 9.731666667e-05 | U22: =AVERAGE(OFFSET(WWTP1E!$DH$10,12*$A22,(4*(PlotControl!$C$6-1)),12,1)) -> 0.0001034365 | V22: =AVERAGE(OFFSET(WWTP1E!$DI$10,12*$A22,(4*(PlotControl!$C$6-1)),12,1)) -> 0.0001137758333 | W22: =AVERAGE(OFFSET(Plant1E!$HK$10,12*$A22,(4*(PlotControl!$C$6-1)),12,1)) -> 2.911166667e-06 | X22: =AVERAGE(OFFSET(Plant1E!$HL$10,12*$A22,(4*(PlotControl!$C$6-1)),12,1)) -> 9.704166667e-06 | Y22: =AVERAGE(OFFSET(Plant1E!$HM$10,12*$A22,(4*(PlotControl!$C$6-1)),12,1)) -> 2.426016667e-05
A23: 16 | B23: =AVERAGE(OFFSET(Mine1E!$C$10,12*$A23,(4*(PlotControl!$C$6-1)),12,1)) -> 6.08375e-05 | C23: =AVERAGE(OFFSET(Mine1E!$D$10,12*$A23,(4*(PlotControl!$C$6-1)),12,1)) -> 6.847416667e-05 | D23: =AVERAGE(OFFSET(Mine1E!$E$10,12*$A23,(4*(PlotControl!$C$6-1)),12,1)) -> 7.751583333e-05 | E23: =AVERAGE(OFFSET(Natural1E!$DG$10,12*$A23,(4*(PlotControl!$C$6-1)),12,1)) -> 8.775766667e-05 | F23: =AVERAGE(OFFSET(Natural1E!$DH$10,12*$A23,(4*(PlotControl!$C$6-1)),12,1)) -> 8.775766667e-05 | G23: =AVERAGE(OFFSET(Natural1E!$DI$10,12*$A23,(4*(PlotControl!$C$6-1)),12,1)) -> 8.775766667e-05 | H23: =AVERAGE(OFFSET(Plant1E!$C$10,12*$A23,(4*(PlotControl!$C$6-1)),12,1)) -> 0.00102305 | I23: =AVERAGE(OFFSET(Plant1E!$D$10,12*$A23,(4*(PlotControl!$C$6-1)),12,1)) -> 0.002919108333 | J23: =AVERAGE(OFFSET(Plant1E!$E$10,12*$A23,(4*(PlotControl!$C$6-1)),12,1)) -> 0.006976983333 | K23: =AVERAGE(OFFSET(Plant1E!$DG$10,12*$A23,(4*(PlotControl!$C$6-1)),12,1)) -> 0.0001258572583 | L23: =AVERAGE(OFFSET(Plant1E!$DH$10,12*$A23,(4*(PlotControl!$C$6-1)),12,1)) -> 0.0005282466667 | M23: =AVERAGE(OFFSET(Plant1E!$DI$10,12*$A23,(4*(PlotControl!$C$6-1)),12,1)) -> 0.0008809241667 | N23: =AVERAGE(OFFSET(Contain1E!$C$10,12*$A23,(4*(PlotControl!$C$6-1)),12,1)) + AVERAGE(OFFSET(Contain1E!$DG$10,12*$A23,(4*(PlotControl!$C$6-1)),12,1)) -> 0.0010838225 | O23: =AVERAGE(OFFSET(Contain1E!$D$10,12*$A23,(4*(PlotControl!$C$6-1)),12,1)) + AVERAGE(OFFSET(Contain1E!$DH$10,12*$A23,(4*(PlotControl!$C$6-1)),12,1)) -> 0.001360029167 | P23: =AVERAGE(OFFSET(Contain1E!$E$10,12*$A23,(4*(PlotControl!$C$6-1)),12,1)) + AVERAGE(OFFSET(Contain1E!$DI$10,12*$A23,(4*(PlotControl!$C$6-1)),12,1)) -> 0.001790838333 | Q23: =AVERAGE(OFFSET(WWTP1E!$C$10,12*$A23,(4*(PlotControl!$C$6-1)),12,1)) -> 0 | R23: =AVERAGE(OFFSET(WWTP1E!$D$10,12*$A23,(4*(PlotControl!$C$6-1)),12,1)) -> 0 | S23: =AVERAGE(OFFSET(WWTP1E!$E$10,12*$A23,(4*(PlotControl!$C$6-1)),12,1)) -> 0 | T23: =AVERAGE(OFFSET(WWTP1E!$DG$10,12*$A23,(4*(PlotControl!$C$6-1)),12,1)) -> 9.406975e-05 | U23: =AVERAGE(OFFSET(WWTP1E!$DH$10,12*$A23,(4*(PlotControl!$C$6-1)),12,1)) -> 9.705133333e-05 | V23: =AVERAGE(OFFSET(WWTP1E!$DI$10,12*$A23,(4*(PlotControl!$C$6-1)),12,1)) -> 0.00010299175 | W23: =AVERAGE(OFFSET(Plant1E!$HK$10,12*$A23,(4*(PlotControl!$C$6-1)),12,1)) -> 2.911166667e-06 | X23: =AVERAGE(OFFSET(Plant1E!$HL$10,12*$A23,(4*(PlotControl!$C$6-1)),12,1)) -> 9.704166667e-06 | Y23: =AVERAGE(OFFSET(Plant1E!$HM$10,12*$A23,(4*(PlotControl!$C$6-1)),12,1)) -> 2.426016667e-05
A24: 17 | B24: =AVERAGE(OFFSET(Mine1E!$C$10,12*$A24,(4*(PlotControl!$C$6-1)),12,1)) -> 0.0001991508333 | C24: =AVERAGE(OFFSET(Mine1E!$D$10,12*$A24,(4*(PlotControl!$C$6-1)),12,1)) -> 0.0007118158333 | D24: =AVERAGE(OFFSET(Mine1E!$E$10,12*$A24,(4*(PlotControl!$C$6-1)),12,1)) -> 0.001323558333 | E24: =AVERAGE(OFFSET(Natural1E!$DG$10,12*$A24,(4*(PlotControl!$C$6-1)),12,1)) -> 8.898825e-05 | F24: =AVERAGE(OFFSET(Natural1E!$DH$10,12*$A24,(4*(PlotControl!$C$6-1)),12,1)) -> 8.898825e-05 | G24: =AVERAGE(OFFSET(Natural1E!$DI$10,12*$A24,(4*(PlotControl!$C$6-1)),12,1)) -> 8.898825e-05 | H24: =AVERAGE(OFFSET(Plant1E!$C$10,12*$A24,(4*(PlotControl!$C$6-1)),12,1)) -> 0.0009821141667 | I24: =AVERAGE(OFFSET(Plant1E!$D$10,12*$A24,(4*(PlotControl!$C$6-1)),12,1)) -> 0.002879025 | J24: =AVERAGE(OFFSET(Plant1E!$E$10,12*$A24,(4*(PlotControl!$C$6-1)),12,1)) -> 0.006842033333 | K24: =AVERAGE(OFFSET(Plant1E!$DG$10,12*$A24,(4*(PlotControl!$C$6-1)),12,1)) -> 6.76416e-05 | L24: =AVERAGE(OFFSET(Plant1E!$DH$10,12*$A24,(4*(PlotControl!$C$6-1)),12,1)) -> 0.0004171283333 | M24: =AVERAGE(OFFSET(Plant1E!$DI$10,12*$A24,(4*(PlotControl!$C$6-1)),12,1)) -> 0.0007509775 | N24: =AVERAGE(OFFSET(Contain1E!$C$10,12*$A24,(4*(PlotControl!$C$6-1)),12,1)) + AVERAGE(OFFSET(Contain1E!$DG$10,12*$A24,(4*(PlotControl!$C$6-1)),12,1)) -> 0.001083318333 | O24: =AVERAGE(OFFSET(Contain1E!$D$10,12*$A24,(4*(PlotControl!$C$6-1)),12,1)) + AVERAGE(OFFSET(Contain1E!$DH$10,12*$A24,(4*(PlotControl!$C$6-1)),12,1)) -> 0.0013819925 | P24: =AVERAGE(OFFSET(Contain1E!$E$10,12*$A24,(4*(PlotControl!$C$6-1)),12,1)) + AVERAGE(OFFSET(Contain1E!$DI$10,12*$A24,(4*(PlotControl!$C$6-1)),12,1)) -> 0.001813579167 | Q24: =AVERAGE(OFFSET(WWTP1E!$C$10,12*$A24,(4*(PlotControl!$C$6-1)),12,1)) -> 0 | R24: =AVERAGE(OFFSET(WWTP1E!$D$10,12*$A24,(4*(PlotControl!$C$6-1)),12,1)) -> 0 | S24: =AVERAGE(OFFSET(WWTP1E!$E$10,12*$A24,(4*(PlotControl!$C$6-1)),12,1)) -> 0 | T24: =AVERAGE(OFFSET(WWTP1E!$DG$10,12*$A24,(4*(PlotControl!$C$6-1)),12,1)) -> 9.224675e-05 | U24: =AVERAGE(OFFSET(WWTP1E!$DH$10,12*$A24,(4*(PlotControl!$C$6-1)),12,1)) -> 9.505191667e-05 | V24: =AVERAGE(OFFSET(WWTP1E!$DI$10,12*$A24,(4*(PlotControl!$C$6-1)),12,1)) -> 0.00010167125 | W24: =AVERAGE(OFFSET(Plant1E!$HK$10,12*$A24,(4*(PlotControl!$C$6-1)),12,1)) -> 2.911166667e-06 | X24: =AVERAGE(OFFSET(Plant1E!$HL$10,12*$A24,(4*(PlotControl!$C$6-1)),12,1)) -> 9.704166667e-06 | Y24: =AVERAGE(OFFSET(Plant1E!$HM$10,12*$A24,(4*(PlotControl!$C$6-1)),12,1)) -> 2.426016667e-05
A25: 18 | B25: =AVERAGE(OFFSET(Mine1E!$C$10,12*$A25,(4*(PlotControl!$C$6-1)),12,1)) -> 0.0006591858333 | C25: =AVERAGE(OFFSET(Mine1E!$D$10,12*$A25,(4*(PlotControl!$C$6-1)),12,1)) -> 0.001492159167 | D25: =AVERAGE(OFFSET(Mine1E!$E$10,12*$A25,(4*(PlotControl!$C$6-1)),12,1)) -> 0.002435091667 | E25: =AVERAGE(OFFSET(Natural1E!$DG$10,12*$A25,(4*(PlotControl!$C$6-1)),12,1)) -> 0.0001479961667 | F25: =AVERAGE(OFFSET(Natural1E!$DH$10,12*$A25,(4*(PlotControl!$C$6-1)),12,1)) -> 0.000151272 | G25: =AVERAGE(OFFSET(Natural1E!$DI$10,12*$A25,(4*(PlotControl!$C$6-1)),12,1)) -> 0.0001535986667 | H25: =AVERAGE(OFFSET(Plant1E!$C$10,12*$A25,(4*(PlotControl!$C$6-1)),12,1)) -> 0.001033666667 | I25: =AVERAGE(OFFSET(Plant1E!$D$10,12*$A25,(4*(PlotControl!$C$6-1)),12,1)) -> 0.002850925 | J25: =AVERAGE(OFFSET(Plant1E!$E$10,12*$A25,(4*(PlotControl!$C$6-1)),12,1)) -> 0.006640558333 | K25: =AVERAGE(OFFSET(Plant1E!$DG$10,12*$A25,(4*(PlotControl!$C$6-1)),12,1)) -> 1.444608333e-06 | L25: =AVERAGE(OFFSET(Plant1E!$DH$10,12*$A25,(4*(PlotControl!$C$6-1)),12,1)) -> 5.306455833e-05 | M25: =AVERAGE(OFFSET(Plant1E!$DI$10,12*$A25,(4*(PlotControl!$C$6-1)),12,1)) -> 0.0002654246417 | N25: =AVERAGE(OFFSET(Contain1E!$C$10,12*$A25,(4*(PlotControl!$C$6-1)),12,1)) + AVERAGE(OFFSET(Contain1E!$DG$10,12*$A25,(4*(PlotControl!$C$6-1)),12,1)) -> 0.0004543613333 | O25: =AVERAGE(OFFSET(Contain1E!$D$10,12*$A25,(4*(PlotControl!$C$6-1)),12,1)) + AVERAGE(OFFSET(Contain1E!$DH$10,12*$A25,(4*(PlotControl!$C$6-1)),12,1)) -> 0.0007786621667 | P25: =AVERAGE(OFFSET(Contain1E!$E$10,12*$A25,(4*(PlotControl!$C$6-1)),12,1)) + AVERAGE(OFFSET(Contain1E!$DI$10,12*$A25,(4*(PlotControl!$C$6-1)),12,1)) -> 0.001236016667 | Q25: =AVERAGE(OFFSET(WWTP1E!$C$10,12*$A25,(4*(PlotControl!$C$6-1)),12,1)) -> 0 | R25: =AVERAGE(OFFSET(WWTP1E!$D$10,12*$A25,(4*(PlotControl!$C$6-1)),12,1)) -> 0 | S25: =AVERAGE(OFFSET(WWTP1E!$E$10,12*$A25,(4*(PlotControl!$C$6-1)),12,1)) -> 0 | T25: =AVERAGE(OFFSET(WWTP1E!$DG$10,12*$A25,(4*(PlotControl!$C$6-1)),12,1)) -> 0.0001077794167 | U25: =AVERAGE(OFFSET(WWTP1E!$DH$10,12*$A25,(4*(PlotControl!$C$6-1)),12,1)) -> 0.0001257879167 | V25: =AVERAGE(OFFSET(WWTP1E!$DI$10,12*$A25,(4*(PlotControl!$C$6-1)),12,1)) -> 0.0001518141667 | W25: =AVERAGE(OFFSET(Plant1E!$HK$10,12*$A25,(4*(PlotControl!$C$6-1)),12,1)) -> 2.911166667e-06 | X25: =AVERAGE(OFFSET(Plant1E!$HL$10,12*$A25,(4*(PlotControl!$C$6-1)),12,1)) -> 8.73375e-06 | Y25: =AVERAGE(OFFSET(Plant1E!$HM$10,12*$A25,(4*(PlotControl!$C$6-1)),12,1)) -> 2.426016667e-05
A26: 19 | B26: =AVERAGE(OFFSET(Mine1E!$C$10,12*$A26,(4*(PlotControl!$C$6-1)),12,1)) -> 0.0004312966667 | C26: =AVERAGE(OFFSET(Mine1E!$D$10,12*$A26,(4*(PlotControl!$C$6-1)),12,1)) -> 0.001093991667 | D26: =AVERAGE(OFFSET(Mine1E!$E$10,12*$A26,(4*(PlotControl!$C$6-1)),12,1)) -> 0.001761491667 | E26: =AVERAGE(OFFSET(Natural1E!$DG$10,12*$A26,(4*(PlotControl!$C$6-1)),12,1)) -> 0.000169015 | F26: =AVERAGE(OFFSET(Natural1E!$DH$10,12*$A26,(4*(PlotControl!$C$6-1)),12,1)) -> 0.000169015 | G26: =AVERAGE(OFFSET(Natural1E!$DI$10,12*$A26,(4*(PlotControl!$C$6-1)),12,1)) -> 0.000169015 | H26: =AVERAGE(OFFSET(Plant1E!$C$10,12*$A26,(4*(PlotControl!$C$6-1)),12,1)) -> 0.00101895 | I26: =AVERAGE(OFFSET(Plant1E!$D$10,12*$A26,(4*(PlotControl!$C$6-1)),12,1)) -> 0.002945916667 | J26: =AVERAGE(OFFSET(Plant1E!$E$10,12*$A26,(4*(PlotControl!$C$6-1)),12,1)) -> 0.006779483333 | K26: =AVERAGE(OFFSET(Plant1E!$DG$10,12*$A26,(4*(PlotControl!$C$6-1)),12,1)) -> 2.451958333e-06 | L26: =AVERAGE(OFFSET(Plant1E!$DH$10,12*$A26,(4*(PlotControl!$C$6-1)),12,1)) -> 0.0001517168083 | M26: =AVERAGE(OFFSET(Plant1E!$DI$10,12*$A26,(4*(PlotControl!$C$6-1)),12,1)) -> 0.000487925 | N26: =AVERAGE(OFFSET(Contain1E!$C$10,12*$A26,(4*(PlotControl!$C$6-1)),12,1)) + AVERAGE(OFFSET(Contain1E!$DG$10,12*$A26,(4*(PlotControl!$C$6-1)),12,1)) -> 0.0009998591667 | O26: =AVERAGE(OFFSET(Contain1E!$D$10,12*$A26,(4*(PlotControl!$C$6-1)),12,1)) + AVERAGE(OFFSET(Contain1E!$DH$10,12*$A26,(4*(PlotControl!$C$6-1)),12,1)) -> 0.001351484167 | P26: =AVERAGE(OFFSET(Contain1E!$E$10,12*$A26,(4*(PlotControl!$C$6-1)),12,1)) + AVERAGE(OFFSET(Contain1E!$DI$10,12*$A26,(4*(PlotControl!$C$6-1)),12,1)) -> 0.001881684167 | Q26: =AVERAGE(OFFSET(WWTP1E!$C$10,12*$A26,(4*(PlotControl!$C$6-1)),12,1)) -> 0 | R26: =AVERAGE(OFFSET(WWTP1E!$D$10,12*$A26,(4*(PlotControl!$C$6-1)),12,1)) -> 0 | S26: =AVERAGE(OFFSET(WWTP1E!$E$10,12*$A26,(4*(PlotControl!$C$6-1)),12,1)) -> 0 | T26: =AVERAGE(OFFSET(WWTP1E!$DG$10,12*$A26,(4*(PlotControl!$C$6-1)),12,1)) -> 9.088325e-05 | U26: =AVERAGE(OFFSET(WWTP1E!$DH$10,12*$A26,(4*(PlotControl!$C$6-1)),12,1)) -> 9.480366667e-05 | V26: =AVERAGE(OFFSET(WWTP1E!$DI$10,12*$A26,(4*(PlotControl!$C$6-1)),12,1)) -> 0.0001117870833 | W26: =AVERAGE(OFFSET(Plant1E!$HK$10,12*$A26,(4*(PlotControl!$C$6-1)),12,1)) -> 2.911166667e-06 | X26: =AVERAGE(OFFSET(Plant1E!$HL$10,12*$A26,(4*(PlotControl!$C$6-1)),12,1)) -> 1.06745e-05 | Y26: =AVERAGE(OFFSET(Plant1E!$HM$10,12*$A26,(4*(PlotControl!$C$6-1)),12,1)) -> 2.426016667e-05
A27: 20 | B27: =AVERAGE(OFFSET(Mine1E!$C$10,12*$A27,(4*(PlotControl!$C$6-1)),12,1)) -> 0 | C27: =AVERAGE(OFFSET(Mine1E!$D$10,12*$A27,(4*(PlotControl!$C$6-1)),12,1)) -> 0 | D27: =AVERAGE(OFFSET(Mine1E!$E$10,12*$A27,(4*(PlotControl!$C$6-1)),12,1)) -> 0 | E27: =AVERAGE(OFFSET(Natural1E!$DG$10,12*$A27,(4*(PlotControl!$C$6-1)),12,1)) -> 0.000170955 | F27: =AVERAGE(OFFSET(Natural1E!$DH$10,12*$A27,(4*(PlotControl!$C$6-1)),12,1)) -> 0.000170955 | G27: =AVERAGE(OFFSET(Natural1E!$DI$10,12*$A27,(4*(PlotControl!$C$6-1)),12,1)) -> 0.000170955 | H27: =AVERAGE(OFFSET(Plant1E!$C$10,12*$A27,(4*(PlotControl!$C$6-1)),12,1)) -> 0 | I27: =AVERAGE(OFFSET(Plant1E!$D$10,12*$A27,(4*(PlotControl!$C$6-1)),12,1)) -> 0 | J27: =AVERAGE(OFFSET(Plant1E!$E$10,12*$A27,(4*(PlotControl!$C$6-1)),12,1)) -> 0 | K27: =AVERAGE(OFFSET(Plant1E!$DG$10,12*$A27,(4*(PlotControl!$C$6-1)),12,1)) -> 0 | L27: =AVERAGE(OFFSET(Plant1E!$DH$10,12*$A27,(4*(PlotControl!$C$6-1)),12,1)) -> 0 | M27: =AVERAGE(OFFSET(Plant1E!$DI$10,12*$A27,(4*(PlotControl!$C$6-1)),12,1)) -> 0 | N27: =AVERAGE(OFFSET(Contain1E!$C$10,12*$A27,(4*(PlotControl!$C$6-1)),12,1)) + AVERAGE(OFFSET(Contain1E!$DG$10,12*$A27,(4*(PlotControl!$C$6-1)),12,1)) -> 0.0002320733333 | O27: =AVERAGE(OFFSET(Contain1E!$D$10,12*$A27,(4*(PlotControl!$C$6-1)),12,1)) + AVERAGE(OFFSET(Contain1E!$DH$10,12*$A27,(4*(PlotControl!$C$6-1)),12,1)) -> 0.00028617 | P27: =AVERAGE(OFFSET(Contain1E!$E$10,12*$A27,(4*(PlotControl!$C$6-1)),12,1)) + AVERAGE(OFFSET(Contain1E!$DI$10,12*$A27,(4*(PlotControl!$C$6-1)),12,1)) -> 0.0003643191667 | Q27: =AVERAGE(OFFSET(WWTP1E!$C$10,12*$A27,(4*(PlotControl!$C$6-1)),12,1)) -> 0 | R27: =AVERAGE(OFFSET(WWTP1E!$D$10,12*$A27,(4*(PlotControl!$C$6-1)),12,1)) -> 4.507916667e-06 | S27: =AVERAGE(OFFSET(WWTP1E!$E$10,12*$A27,(4*(PlotControl!$C$6-1)),12,1)) -> 5.412283333e-05 | T27: =AVERAGE(OFFSET(WWTP1E!$DG$10,12*$A27,(4*(PlotControl!$C$6-1)),12,1)) -> 0.0001456904167 | U27: =AVERAGE(OFFSET(WWTP1E!$DH$10,12*$A27,(4*(PlotControl!$C$6-1)),12,1)) -> 0.000156452 | V27: =AVERAGE(OFFSET(WWTP1E!$DI$10,12*$A27,(4*(PlotControl!$C$6-1)),12,1)) -> 0.000171275 | W27: =AVERAGE(OFFSET(Plant1E!$HK$10,12*$A27,(4*(PlotControl!$C$6-1)),12,1)) -> 0 | X27: =AVERAGE(OFFSET(Plant1E!$HL$10,12*$A27,(4*(PlotControl!$C$6-1)),12,1)) -> 0 | Y27: =AVERAGE(OFFSET(Plant1E!$HM$10,12*$A27,(4*(PlotControl!$C$6-1)),12,1)) -> 0
A28: 21 | B28: =AVERAGE(OFFSET(Mine1E!$C$10,12*$A28,(4*(PlotControl!$C$6-1)),12,1)) -> 0 | C28: =AVERAGE(OFFSET(Mine1E!$D$10,12*$A28,(4*(PlotControl!$C$6-1)),12,1)) -> 0 | D28: =AVERAGE(OFFSET(Mine1E!$E$10,12*$A28,(4*(PlotControl!$C$6-1)),12,1)) -> 0 | E28: =AVERAGE(OFFSET(Natural1E!$DG$10,12*$A28,(4*(PlotControl!$C$6-1)),12,1)) -> 0.000171855 | F28: =AVERAGE(OFFSET(Natural1E!$DH$10,12*$A28,(4*(PlotControl!$C$6-1)),12,1)) -> 0.000171855 | G28: =AVERAGE(OFFSET(Natural1E!$DI$10,12*$A28,(4*(PlotControl!$C$6-1)),12,1)) -> 0.000171855 | H28: =AVERAGE(OFFSET(Plant1E!$C$10,12*$A28,(4*(PlotControl!$C$6-1)),12,1)) -> 0 | I28: =AVERAGE(OFFSET(Plant1E!$D$10,12*$A28,(4*(PlotControl!$C$6-1)),12,1)) -> 0 | J28: =AVERAGE(OFFSET(Plant1E!$E$10,12*$A28,(4*(PlotControl!$C$6-1)),12,1)) -> 0 | K28: =AVERAGE(OFFSET(Plant1E!$DG$10,12*$A28,(4*(PlotControl!$C$6-1)),12,1)) -> 0 | L28: =AVERAGE(OFFSET(Plant1E!$DH$10,12*$A28,(4*(PlotControl!$C$6-1)),12,1)) -> 0 | M28: =AVERAGE(OFFSET(Plant1E!$DI$10,12*$A28,(4*(PlotControl!$C$6-1)),12,1)) -> 0 | N28: =AVERAGE(OFFSET(Contain1E!$C$10,12*$A28,(4*(PlotControl!$C$6-1)),12,1)) + AVERAGE(OFFSET(Contain1E!$DG$10,12*$A28,(4*(PlotControl!$C$6-1)),12,1)) -> 0.0001928108333 | O28: =AVERAGE(OFFSET(Contain1E!$D$10,12*$A28,(4*(PlotControl!$C$6-1)),12,1)) + AVERAGE(OFFSET(Contain1E!$DH$10,12*$A28,(4*(PlotControl!$C$6-1)),12,1)) -> 0.0002242266667 | P28: =AVERAGE(OFFSET(Contain1E!$E$10,12*$A28,(4*(PlotControl!$C$6-1)),12,1)) + AVERAGE(OFFSET(Contain1E!$DI$10,12*$A28,(4*(PlotControl!$C$6-1)),12,1)) -> 0.00025999 | Q28: =AVERAGE(OFFSET(WWTP1E!$C$10,12*$A28,(4*(PlotControl!$C$6-1)),12,1)) -> 0 | R28: =AVERAGE(OFFSET(WWTP1E!$D$10,12*$A28,(4*(PlotControl!$C$6-1)),12,1)) -> 1.832416667e-06 | S28: =AVERAGE(OFFSET(WWTP1E!$E$10,12*$A28,(4*(PlotControl!$C$6-1)),12,1)) -> 4.409676667e-05 | T28: =AVERAGE(OFFSET(WWTP1E!$DG$10,12*$A28,(4*(PlotControl!$C$6-1)),12,1)) -> 0.0001466583333 | U28: =AVERAGE(OFFSET(WWTP1E!$DH$10,12*$A28,(4*(PlotControl!$C$6-1)),12,1)) -> 0.0001579208333 | V28: =AVERAGE(OFFSET(WWTP1E!$DI$10,12*$A28,(4*(PlotControl!$C$6-1)),12,1)) -> 0.0001743575 | W28: =AVERAGE(OFFSET(Plant1E!$HK$10,12*$A28,(4*(PlotControl!$C$6-1)),12,1)) -> 0 | X28: =AVERAGE(OFFSET(Plant1E!$HL$10,12*$A28,(4*(PlotControl!$C$6-1)),12,1)) -> 0 | Y28: =AVERAGE(OFFSET(Plant1E!$HM$10,12*$A28,(4*(PlotControl!$C$6-1)),12,1)) -> 0
A29: 22 | B29: =AVERAGE(OFFSET(Mine1E!$C$10,12*$A29,(4*(PlotControl!$C$6-1)),12,1)) -> 0 | C29: =AVERAGE(OFFSET(Mine1E!$D$10,12*$A29,(4*(PlotControl!$C$6-1)),12,1)) -> 0 | D29: =AVERAGE(OFFSET(Mine1E!$E$10,12*$A29,(4*(PlotControl!$C$6-1)),12,1)) -> 0 | E29: =AVERAGE(OFFSET(Natural1E!$DG$10,12*$A29,(4*(PlotControl!$C$6-1)),12,1)) -> 0.0001727591667 | F29: =AVERAGE(OFFSET(Natural1E!$DH$10,12*$A29,(4*(PlotControl!$C$6-1)),12,1)) -> 0.0001727591667 | G29: =AVERAGE(OFFSET(Natural1E!$DI$10,12*$A29,(4*(PlotControl!$C$6-1)),12,1)) -> 0.0001727591667 | H29: =AVERAGE(OFFSET(Plant1E!$C$10,12*$A29,(4*(PlotControl!$C$6-1)),12,1)) -> 0 | I29: =AVERAGE(OFFSET(Plant1E!$D$10,12*$A29,(4*(PlotControl!$C$6-1)),12,1)) -> 0 | J29: =AVERAGE(OFFSET(Plant1E!$E$10,12*$A29,(4*(PlotControl!$C$6-1)),12,1)) -> 0 | K29: =AVERAGE(OFFSET(Plant1E!$DG$10,12*$A29,(4*(PlotControl!$C$6-1)),12,1)) -> 0 | L29: =AVERAGE(OFFSET(Plant1E!$DH$10,12*$A29,(4*(PlotControl!$C$6-1)),12,1)) -> 0 | M29: =AVERAGE(OFFSET(Plant1E!$DI$10,12*$A29,(4*(PlotControl!$C$6-1)),12,1)) -> 0 | N29: =AVERAGE(OFFSET(Contain1E!$C$10,12*$A29,(4*(PlotControl!$C$6-1)),12,1)) + AVERAGE(OFFSET(Contain1E!$DG$10,12*$A29,(4*(PlotControl!$C$6-1)),12,1)) -> 0.0002135733333 | O29: =AVERAGE(OFFSET(Contain1E!$D$10,12*$A29,(4*(PlotControl!$C$6-1)),12,1)) + AVERAGE(OFFSET(Contain1E!$DH$10,12*$A29,(4*(PlotControl!$C$6-1)),12,1)) -> 0.0002461183333 | P29: =AVERAGE(OFFSET(Contain1E!$E$10,12*$A29,(4*(PlotControl!$C$6-1)),12,1)) + AVERAGE(OFFSET(Contain1E!$DI$10,12*$A29,(4*(PlotControl!$C$6-1)),12,1)) -> 0.0002799766667 | Q29: =AVERAGE(OFFSET(WWTP1E!$C$10,12*$A29,(4*(PlotControl!$C$6-1)),12,1)) -> 0 | R29: =AVERAGE(OFFSET(WWTP1E!$D$10,12*$A29,(4*(PlotControl!$C$6-1)),12,1)) -> 1.45225e-06 | S29: =AVERAGE(OFFSET(WWTP1E!$E$10,12*$A29,(4*(PlotControl!$C$6-1)),12,1)) -> 4.099126083e-05 | T29: =AVERAGE(OFFSET(WWTP1E!$DG$10,12*$A29,(4*(PlotControl!$C$6-1)),12,1)) -> 0.0001444358333 | U29: =AVERAGE(OFFSET(WWTP1E!$DH$10,12*$A29,(4*(PlotControl!$C$6-1)),12,1)) -> 0.0001550458333 | V29: =AVERAGE(OFFSET(WWTP1E!$DI$10,12*$A29,(4*(PlotControl!$C$6-1)),12,1)) -> 0.0001727858333 | W29: =AVERAGE(OFFSET(Plant1E!$HK$10,12*$A29,(4*(PlotControl!$C$6-1)),12,1)) -> 0 | X29: =AVERAGE(OFFSET(Plant1E!$HL$10,12*$A29,(4*(PlotControl!$C$6-1)),12,1)) -> 0 | Y29: =AVERAGE(OFFSET(Plant1E!$HM$10,12*$A29,(4*(PlotControl!$C$6-1)),12,1)) -> 0
A30: 23 | B30: =AVERAGE(OFFSET(Mine1E!$C$10,12*$A30,(4*(PlotControl!$C$6-1)),12,1)) -> 0 | C30: =AVERAGE(OFFSET(Mine1E!$D$10,12*$A30,(4*(PlotControl!$C$6-1)),12,1)) -> 0 | D30: =AVERAGE(OFFSET(Mine1E!$E$10,12*$A30,(4*(PlotControl!$C$6-1)),12,1)) -> 0 | E30: =AVERAGE(OFFSET(Natural1E!$DG$10,12*$A30,(4*(PlotControl!$C$6-1)),12,1)) -> 0.0001736641667 | F30: =AVERAGE(OFFSET(Natural1E!$DH$10,12*$A30,(4*(PlotControl!$C$6-1)),12,1)) -> 0.0001736641667 | G30: =AVERAGE(OFFSET(Natural1E!$DI$10,12*$A30,(4*(PlotControl!$C$6-1)),12,1)) -> 0.0001736641667 | H30: =AVERAGE(OFFSET(Plant1E!$C$10,12*$A30,(4*(PlotControl!$C$6-1)),12,1)) -> 0 | I30: =AVERAGE(OFFSET(Plant1E!$D$10,12*$A30,(4*(PlotControl!$C$6-1)),12,1)) -> 0 | J30: =AVERAGE(OFFSET(Plant1E!$E$10,12*$A30,(4*(PlotControl!$C$6-1)),12,1)) -> 0 | K30: =AVERAGE(OFFSET(Plant1E!$DG$10,12*$A30,(4*(PlotControl!$C$6-1)),12,1)) -> 0 | L30: =AVERAGE(OFFSET(Plant1E!$DH$10,12*$A30,(4*(PlotControl!$C$6-1)),12,1)) -> 0 | M30: =AVERAGE(OFFSET(Plant1E!$DI$10,12*$A30,(4*(PlotControl!$C$6-1)),12,1)) -> 0 | N30: =AVERAGE(OFFSET(Contain1E!$C$10,12*$A30,(4*(PlotControl!$C$6-1)),12,1)) + AVERAGE(OFFSET(Contain1E!$DG$10,12*$A30,(4*(PlotControl!$C$6-1)),12,1)) -> 0.0002395058333 | O30: =AVERAGE(OFFSET(Contain1E!$D$10,12*$A30,(4*(PlotControl!$C$6-1)),12,1)) + AVERAGE(OFFSET(Contain1E!$DH$10,12*$A30,(4*(PlotControl!$C$6-1)),12,1)) -> 0.0002743725 | P30: =AVERAGE(OFFSET(Contain1E!$E$10,12*$A30,(4*(PlotControl!$C$6-1)),12,1)) + AVERAGE(OFFSET(Contain1E!$DI$10,12*$A30,(4*(PlotControl!$C$6-1)),12,1)) -> 0.0003063041667 | Q30: =AVERAGE(OFFSET(WWTP1E!$C$10,12*$A30,(4*(PlotControl!$C$6-1)),12,1)) -> 0 | R30: =AVERAGE(OFFSET(WWTP1E!$D$10,12*$A30,(4*(PlotControl!$C$6-1)),12,1)) -> 1.254166667e-06 | S30: =AVERAGE(OFFSET(WWTP1E!$E$10,12*$A30,(4*(PlotControl!$C$6-1)),12,1)) -> 4.514075e-05 | T30: =AVERAGE(OFFSET(WWTP1E!$DG$10,12*$A30,(4*(PlotControl!$C$6-1)),12,1)) -> 0.000140975 | U30: =AVERAGE(OFFSET(WWTP1E!$DH$10,12*$A30,(4*(PlotControl!$C$6-1)),12,1)) -> 0.000151545 | V30: =AVERAGE(OFFSET(WWTP1E!$DI$10,12*$A30,(4*(PlotControl!$C$6-1)),12,1)) -> 0.0001705058333 | W30: =AVERAGE(OFFSET(Plant1E!$HK$10,12*$A30,(4*(PlotControl!$C$6-1)),12,1)) -> 0 | X30: =AVERAGE(OFFSET(Plant1E!$HL$10,12*$A30,(4*(PlotControl!$C$6-1)),12,1)) -> 0 | Y30: =AVERAGE(OFFSET(Plant1E!$HM$10,12*$A30,(4*(PlotControl!$C$6-1)),12,1)) -> 0
A31: 24 | B31: =AVERAGE(OFFSET(Mine1E!$C$10,12*$A31,(4*(PlotControl!$C$6-1)),12,1)) -> 0 | C31: =AVERAGE(OFFSET(Mine1E!$D$10,12*$A31,(4*(PlotControl!$C$6-1)),12,1)) -> 0 | D31: =AVERAGE(OFFSET(Mine1E!$E$10,12*$A31,(4*(PlotControl!$C$6-1)),12,1)) -> 0 | E31: =AVERAGE(OFFSET(Natural1E!$DG$10,12*$A31,(4*(PlotControl!$C$6-1)),12,1)) -> 0.0001745725 | F31: =AVERAGE(OFFSET(Natural1E!$DH$10,12*$A31,(4*(PlotControl!$C$6-1)),12,1)) -> 0.0001745725 | G31: =AVERAGE(OFFSET(Natural1E!$DI$10,12*$A31,(4*(PlotControl!$C$6-1)),12,1)) -> 0.0001745725 | H31: =AVERAGE(OFFSET(Plant1E!$C$10,12*$A31,(4*(PlotControl!$C$6-1)),12,1)) -> 0 | I31: =AVERAGE(OFFSET(Plant1E!$D$10,12*$A31,(4*(PlotControl!$C$6-1)),12,1)) -> 0 | J31: =AVERAGE(OFFSET(Plant1E!$E$10,12*$A31,(4*(PlotControl!$C$6-1)),12,1)) -> 0 | K31: =AVERAGE(OFFSET(Plant1E!$DG$10,12*$A31,(4*(PlotControl!$C$6-1)),12,1)) -> 0 | L31: =AVERAGE(OFFSET(Plant1E!$DH$10,12*$A31,(4*(PlotControl!$C$6-1)),12,1)) -> 0 | M31: =AVERAGE(OFFSET(Plant1E!$DI$10,12*$A31,(4*(PlotControl!$C$6-1)),12,1)) -> 0 | N31: =AVERAGE(OFFSET(Contain1E!$C$10,12*$A31,(4*(PlotControl!$C$6-1)),12,1)) + AVERAGE(OFFSET(Contain1E!$DG$10,12*$A31,(4*(PlotControl!$C$6-1)),12,1)) -> 0.0002744591667 | O31: =AVERAGE(OFFSET(Contain1E!$D$10,12*$A31,(4*(PlotControl!$C$6-1)),12,1)) + AVERAGE(OFFSET(Contain1E!$DH$10,12*$A31,(4*(PlotControl!$C$6-1)),12,1)) -> 0.0003131408333 | P31: =AVERAGE(OFFSET(Contain1E!$E$10,12*$A31,(4*(PlotControl!$C$6-1)),12,1)) + AVERAGE(OFFSET(Contain1E!$DI$10,12*$A31,(4*(PlotControl!$C$6-1)),12,1)) -> 0.0003532908333 | Q31: =AVERAGE(OFFSET(WWTP1E!$C$10,12*$A31,(4*(PlotControl!$C$6-1)),12,1)) -> 0 | R31: =AVERAGE(OFFSET(WWTP1E!$D$10,12*$A31,(4*(PlotControl!$C$6-1)),12,1)) -> 1.87425e-06 | S31: =AVERAGE(OFFSET(WWTP1E!$E$10,12*$A31,(4*(PlotControl!$C$6-1)),12,1)) -> 5.074586667e-05 | T31: =AVERAGE(OFFSET(WWTP1E!$DG$10,12*$A31,(4*(PlotControl!$C$6-1)),12,1)) -> 0.0001373858333 | U31: =AVERAGE(OFFSET(WWTP1E!$DH$10,12*$A31,(4*(PlotControl!$C$6-1)),12,1)) -> 0.0001477183333 | V31: =AVERAGE(OFFSET(WWTP1E!$DI$10,12*$A31,(4*(PlotControl!$C$6-1)),12,1)) -> 0.0001678383333 | W31: =AVERAGE(OFFSET(Plant1E!$HK$10,12*$A31,(4*(PlotControl!$C$6-1)),12,1)) -> 0 | X31: =AVERAGE(OFFSET(Plant1E!$HL$10,12*$A31,(4*(PlotControl!$C$6-1)),12,1)) -> 0 | Y31: =AVERAGE(OFFSET(Plant1E!$HM$10,12*$A31,(4*(PlotControl!$C$6-1)),12,1)) -> 0
A32: 25 | B32: =AVERAGE(OFFSET(Mine1E!$C$10,12*$A32,(4*(PlotControl!$C$6-1)),12,1)) -> 0 | C32: =AVERAGE(OFFSET(Mine1E!$D$10,12*$A32,(4*(PlotControl!$C$6-1)),12,1)) -> 0 | D32: =AVERAGE(OFFSET(Mine1E!$E$10,12*$A32,(4*(PlotControl!$C$6-1)),12,1)) -> 0 | E32: =AVERAGE(OFFSET(Natural1E!$DG$10,12*$A32,(4*(PlotControl!$C$6-1)),12,1)) -> 0.0001754816667 | F32: =AVERAGE(OFFSET(Natural1E!$DH$10,12*$A32,(4*(PlotControl!$C$6-1)),12,1)) -> 0.0001754816667 | G32: =AVERAGE(OFFSET(Natural1E!$DI$10,12*$A32,(4*(PlotControl!$C$6-1)),12,1)) -> 0.0001754816667 | H32: =AVERAGE(OFFSET(Plant1E!$C$10,12*$A32,(4*(PlotControl!$C$6-1)),12,1)) -> 0 | I32: =AVERAGE(OFFSET(Plant1E!$D$10,12*$A32,(4*(PlotControl!$C$6-1)),12,1)) -> 0 | J32: =AVERAGE(OFFSET(Plant1E!$E$10,12*$A32,(4*(PlotControl!$C$6-1)),12,1)) -> 0 | K32: =AVERAGE(OFFSET(Plant1E!$DG$10,12*$A32,(4*(PlotControl!$C$6-1)),12,1)) -> 0 | L32: =AVERAGE(OFFSET(Plant1E!$DH$10,12*$A32,(4*(PlotControl!$C$6-1)),12,1)) -> 0 | M32: =AVERAGE(OFFSET(Plant1E!$DI$10,12*$A32,(4*(PlotControl!$C$6-1)),12,1)) -> 0 | N32: =AVERAGE(OFFSET(Contain1E!$C$10,12*$A32,(4*(PlotControl!$C$6-1)),12,1)) + AVERAGE(OFFSET(Contain1E!$DG$10,12*$A32,(4*(PlotControl!$C$6-1)),12,1)) -> 0.0002919491667 | O32: =AVERAGE(OFFSET(Contain1E!$D$10,12*$A32,(4*(PlotControl!$C$6-1)),12,1)) + AVERAGE(OFFSET(Contain1E!$DH$10,12*$A32,(4*(PlotControl!$C$6-1)),12,1)) -> 0.0003356458333 | P32: =AVERAGE(OFFSET(Contain1E!$E$10,12*$A32,(4*(PlotControl!$C$6-1)),12,1)) + AVERAGE(OFFSET(Contain1E!$DI$10,12*$A32,(4*(PlotControl!$C$6-1)),12,1)) -> 0.00038696 | Q32: =AVERAGE(OFFSET(WWTP1E!$C$10,12*$A32,(4*(PlotControl!$C$6-1)),12,1)) -> 0 | R32: =AVERAGE(OFFSET(WWTP1E!$D$10,12*$A32,(4*(PlotControl!$C$6-1)),12,1)) -> 1.113733333e-05 | S32: =AVERAGE(OFFSET(WWTP1E!$E$10,12*$A32,(4*(PlotControl!$C$6-1)),12,1)) -> 8.647029167e-05 | T32: =AVERAGE(OFFSET(WWTP1E!$DG$10,12*$A32,(4*(PlotControl!$C$6-1)),12,1)) -> 0.0001323208333 | U32: =AVERAGE(OFFSET(WWTP1E!$DH$10,12*$A32,(4*(PlotControl!$C$6-1)),12,1)) -> 0.0001420575 | V32: =AVERAGE(OFFSET(WWTP1E!$DI$10,12*$A32,(4*(PlotControl!$C$6-1)),12,1)) -> 0.000166115 | W32: =AVERAGE(OFFSET(Plant1E!$HK$10,12*$A32,(4*(PlotControl!$C$6-1)),12,1)) -> 0 | X32: =AVERAGE(OFFSET(Plant1E!$HL$10,12*$A32,(4*(PlotControl!$C$6-1)),12,1)) -> 0 | Y32: =AVERAGE(OFFSET(Plant1E!$HM$10,12*$A32,(4*(PlotControl!$C$6-1)),12,1)) -> 0
A33: 26 | B33: =AVERAGE(OFFSET(Mine1E!$C$10,12*$A33,(4*(PlotControl!$C$6-1)),12,1)) -> 0 | C33: =AVERAGE(OFFSET(Mine1E!$D$10,12*$A33,(4*(PlotControl!$C$6-1)),12,1)) -> 0 | D33: =AVERAGE(OFFSET(Mine1E!$E$10,12*$A33,(4*(PlotControl!$C$6-1)),12,1)) -> 0 | E33: =AVERAGE(OFFSET(Natural1E!$DG$10,12*$A33,(4*(PlotControl!$C$6-1)),12,1)) -> 0.0001763941667 | F33: =AVERAGE(OFFSET(Natural1E!$DH$10,12*$A33,(4*(PlotControl!$C$6-1)),12,1)) -> 0.0001763941667 | G33: =AVERAGE(OFFSET(Natural1E!$DI$10,12*$A33,(4*(PlotControl!$C$6-1)),12,1)) -> 0.0001763941667 | H33: =AVERAGE(OFFSET(Plant1E!$C$10,12*$A33,(4*(PlotControl!$C$6-1)),12,1)) -> 0 | I33: =AVERAGE(OFFSET(Plant1E!$D$10,12*$A33,(4*(PlotControl!$C$6-1)),12,1)) -> 0 | J33: =AVERAGE(OFFSET(Plant1E!$E$10,12*$A33,(4*(PlotControl!$C$6-1)),12,1)) -> 0 | K33: =AVERAGE(OFFSET(Plant1E!$DG$10,12*$A33,(4*(PlotControl!$C$6-1)),12,1)) -> 0 | L33: =AVERAGE(OFFSET(Plant1E!$DH$10,12*$A33,(4*(PlotControl!$C$6-1)),12,1)) -> 0 | M33: =AVERAGE(OFFSET(Plant1E!$DI$10,12*$A33,(4*(PlotControl!$C$6-1)),12,1)) -> 0 | N33: =AVERAGE(OFFSET(Contain1E!$C$10,12*$A33,(4*(PlotControl!$C$6-1)),12,1)) + AVERAGE(OFFSET(Contain1E!$DG$10,12*$A33,(4*(PlotControl!$C$6-1)),12,1)) -> 0.0002611691667 | O33: =AVERAGE(OFFSET(Contain1E!$D$10,12*$A33,(4*(PlotControl!$C$6-1)),12,1)) + AVERAGE(OFFSET(Contain1E!$DH$10,12*$A33,(4*(PlotControl!$C$6-1)),12,1)) -> 0.0003015983333 | P33: =AVERAGE(OFFSET(Contain1E!$E$10,12*$A33,(4*(PlotControl!$C$6-1)),12,1)) + AVERAGE(OFFSET(Contain1E!$DI$10,12*$A33,(4*(PlotControl!$C$6-1)),12,1)) -> 0.0003523308333 | Q33: =AVERAGE(OFFSET(WWTP1E!$C$10,12*$A33,(4*(PlotControl!$C$6-1)),12,1)) -> 1.260208333e-05 | R33: =AVERAGE(OFFSET(WWTP1E!$D$10,12*$A33,(4*(PlotControl!$C$6-1)),12,1)) -> 7.970866667e-05 | S33: =AVERAGE(OFFSET(WWTP1E!$E$10,12*$A33,(4*(PlotControl!$C$6-1)),12,1)) -> 0.0002580094167 | T33: =AVERAGE(OFFSET(WWTP1E!$DG$10,12*$A33,(4*(PlotControl!$C$6-1)),12,1)) -> 0.000122965 | U33: =AVERAGE(OFFSET(WWTP1E!$DH$10,12*$A33,(4*(PlotControl!$C$6-1)),12,1)) -> 0.0001335791667 | V33: =AVERAGE(OFFSET(WWTP1E!$DI$10,12*$A33,(4*(PlotControl!$C$6-1)),12,1)) -> 0.0001599916667 | W33: =AVERAGE(OFFSET(Plant1E!$HK$10,12*$A33,(4*(PlotControl!$C$6-1)),12,1)) -> 0 | X33: =AVERAGE(OFFSET(Plant1E!$HL$10,12*$A33,(4*(PlotControl!$C$6-1)),12,1)) -> 0 | Y33: =AVERAGE(OFFSET(Plant1E!$HM$10,12*$A33,(4*(PlotControl!$C$6-1)),12,1)) -> 0
A34: 27 | B34: =AVERAGE(OFFSET(Mine1E!$C$10,12*$A34,(4*(PlotControl!$C$6-1)),12,1)) -> 0 | C34: =AVERAGE(OFFSET(Mine1E!$D$10,12*$A34,(4*(PlotControl!$C$6-1)),12,1)) -> 0 | D34: =AVERAGE(OFFSET(Mine1E!$E$10,12*$A34,(4*(PlotControl!$C$6-1)),12,1)) -> 0 | E34: =AVERAGE(OFFSET(Natural1E!$DG$10,12*$A34,(4*(PlotControl!$C$6-1)),12,1)) -> 0.0001773066667 | F34: =AVERAGE(OFFSET(Natural1E!$DH$10,12*$A34,(4*(PlotControl!$C$6-1)),12,1)) -> 0.0001773066667 | G34: =AVERAGE(OFFSET(Natural1E!$DI$10,12*$A34,(4*(PlotControl!$C$6-1)),12,1)) -> 0.0001773066667 | H34: =AVERAGE(OFFSET(Plant1E!$C$10,12*$A34,(4*(PlotControl!$C$6-1)),12,1)) -> 0 | I34: =AVERAGE(OFFSET(Plant1E!$D$10,12*$A34,(4*(PlotControl!$C$6-1)),12,1)) -> 0 | J34: =AVERAGE(OFFSET(Plant1E!$E$10,12*$A34,(4*(PlotControl!$C$6-1)),12,1)) -> 0 | K34: =AVERAGE(OFFSET(Plant1E!$DG$10,12*$A34,(4*(PlotControl!$C$6-1)),12,1)) -> 0 | L34: =AVERAGE(OFFSET(Plant1E!$DH$10,12*$A34,(4*(PlotControl!$C$6-1)),12,1)) -> 0 | M34: =AVERAGE(OFFSET(Plant1E!$DI$10,12*$A34,(4*(PlotControl!$C$6-1)),12,1)) -> 0 | N34: =AVERAGE(OFFSET(Contain1E!$C$10,12*$A34,(4*(PlotControl!$C$6-1)),12,1)) + AVERAGE(OFFSET(Contain1E!$DG$10,12*$A34,(4*(PlotControl!$C$6-1)),12,1)) -> 0.00020075 | O34: =AVERAGE(OFFSET(Contain1E!$D$10,12*$A34,(4*(PlotControl!$C$6-1)),12,1)) + AVERAGE(OFFSET(Contain1E!$DH$10,12*$A34,(4*(PlotControl!$C$6-1)),12,1)) -> 0.0002279216667 | P34: =AVERAGE(OFFSET(Contain1E!$E$10,12*$A34,(4*(PlotControl!$C$6-1)),12,1)) + AVERAGE(OFFSET(Contain1E!$DI$10,12*$A34,(4*(PlotControl!$C$6-1)),12,1)) -> 0.0002646083333 | Q34: =AVERAGE(OFFSET(WWTP1E!$C$10,12*$A34,(4*(PlotControl!$C$6-1)),12,1)) -> 0.000115205 | R34: =AVERAGE(OFFSET(WWTP1E!$D$10,12*$A34,(4*(PlotControl!$C$6-1)),12,1)) -> 0.0002432759167 | S34: =AVERAGE(OFFSET(WWTP1E!$E$10,12*$A34,(4*(PlotControl!$C$6-1)),12,1)) -> 0.000490096 | T34: =AVERAGE(OFFSET(WWTP1E!$DG$10,12*$A34,(4*(PlotControl!$C$6-1)),12,1)) -> 0.0001125283333 | U34: =AVERAGE(OFFSET(WWTP1E!$DH$10,12*$A34,(4*(PlotControl!$C$6-1)),12,1)) -> 0.0001236708333 | V34: =AVERAGE(OFFSET(WWTP1E!$DI$10,12*$A34,(4*(PlotControl!$C$6-1)),12,1)) -> 0.0001540925 | W34: =AVERAGE(OFFSET(Plant1E!$HK$10,12*$A34,(4*(PlotControl!$C$6-1)),12,1)) -> 0 | X34: =AVERAGE(OFFSET(Plant1E!$HL$10,12*$A34,(4*(PlotControl!$C$6-1)),12,1)) -> 0 | Y34: =AVERAGE(OFFSET(Plant1E!$HM$10,12*$A34,(4*(PlotControl!$C$6-1)),12,1)) -> 0
A35: 28 | B35: =AVERAGE(OFFSET(Mine1E!$C$10,12*$A35,(4*(PlotControl!$C$6-1)),12,1)) -> 0 | C35: =AVERAGE(OFFSET(Mine1E!$D$10,12*$A35,(4*(PlotControl!$C$6-1)),12,1)) -> 0 | D35: =AVERAGE(OFFSET(Mine1E!$E$10,12*$A35,(4*(PlotControl!$C$6-1)),12,1)) -> 0 | E35: =AVERAGE(OFFSET(Natural1E!$DG$10,12*$A35,(4*(PlotControl!$C$6-1)),12,1)) -> 0.0001782208333 | F35: =AVERAGE(OFFSET(Natural1E!$DH$10,12*$A35,(4*(PlotControl!$C$6-1)),12,1)) -> 0.0001782208333 | G35: =AVERAGE(OFFSET(Natural1E!$DI$10,12*$A35,(4*(PlotControl!$C$6-1)),12,1)) -> 0.0001782208333 | H35: =AVERAGE(OFFSET(Plant1E!$C$10,12*$A35,(4*(PlotControl!$C$6-1)),12,1)) -> 0 | I35: =AVERAGE(OFFSET(Plant1E!$D$10,12*$A35,(4*(PlotControl!$C$6-1)),12,1)) -> 0 | J35: =AVERAGE(OFFSET(Plant1E!$E$10,12*$A35,(4*(PlotControl!$C$6-1)),12,1)) -> 0 | K35: =AVERAGE(OFFSET(Plant1E!$DG$10,12*$A35,(4*(PlotControl!$C$6-1)),12,1)) -> 0 | L35: =AVERAGE(OFFSET(Plant1E!$DH$10,12*$A35,(4*(PlotControl!$C$6-1)),12,1)) -> 0 | M35: =AVERAGE(OFFSET(Plant1E!$DI$10,12*$A35,(4*(PlotControl!$C$6-1)),12,1)) -> 0 | N35: =AVERAGE(OFFSET(Contain1E!$C$10,12*$A35,(4*(PlotControl!$C$6-1)),12,1)) + AVERAGE(OFFSET(Contain1E!$DG$10,12*$A35,(4*(PlotControl!$C$6-1)),12,1)) -> 0.0001468083333 | O35: =AVERAGE(OFFSET(Contain1E!$D$10,12*$A35,(4*(PlotControl!$C$6-1)),12,1)) + AVERAGE(OFFSET(Contain1E!$DH$10,12*$A35,(4*(PlotControl!$C$6-1)),12,1)) -> 0.0001627866667 | P35: =AVERAGE(OFFSET(Contain1E!$E$10,12*$A35,(4*(PlotControl!$C$6-1)),12,1)) + AVERAGE(OFFSET(Contain1E!$DI$10,12*$A35,(4*(PlotControl!$C$6-1)),12,1)) -> 0.0001832841667 | Q35: =AVERAGE(OFFSET(WWTP1E!$C$10,12*$A35,(4*(PlotControl!$C$6-1)),12,1)) -> 0.0002112483333 | R35: =AVERAGE(OFFSET(WWTP1E!$D$10,12*$A35,(4*(PlotControl!$C$6-1)),12,1)) -> 0.0003879941667 | S35: =AVERAGE(OFFSET(WWTP1E!$E$10,12*$A35,(4*(PlotControl!$C$6-1)),12,1)) -> 0.0007103625 | T35: =AVERAGE(OFFSET(WWTP1E!$DG$10,12*$A35,(4*(PlotControl!$C$6-1)),12,1)) -> 0.0001036278333 | U35: =AVERAGE(OFFSET(WWTP1E!$DH$10,12*$A35,(4*(PlotControl!$C$6-1)),12,1)) -> 0.0001151241667 | V35: =AVERAGE(OFFSET(WWTP1E!$DI$10,12*$A35,(4*(PlotControl!$C$6-1)),12,1)) -> 0.000147995 | W35: =AVERAGE(OFFSET(Plant1E!$HK$10,12*$A35,(4*(PlotControl!$C$6-1)),12,1)) -> 0 | X35: =AVERAGE(OFFSET(Plant1E!$HL$10,12*$A35,(4*(PlotControl!$C$6-1)),12,1)) -> 0 | Y35: =AVERAGE(OFFSET(Plant1E!$HM$10,12*$A35,(4*(PlotControl!$C$6-1)),12,1)) -> 0
A36: 29 | B36: =AVERAGE(OFFSET(Mine1E!$C$10,12*$A36,(4*(PlotControl!$C$6-1)),12,1)) -> 0 | C36: =AVERAGE(OFFSET(Mine1E!$D$10,12*$A36,(4*(PlotControl!$C$6-1)),12,1)) -> 0 | D36: =AVERAGE(OFFSET(Mine1E!$E$10,12*$A36,(4*(PlotControl!$C$6-1)),12,1)) -> 0 | E36: =AVERAGE(OFFSET(Natural1E!$DG$10,12*$A36,(4*(PlotControl!$C$6-1)),12,1)) -> 0.0001791383333 | F36: =AVERAGE(OFFSET(Natural1E!$DH$10,12*$A36,(4*(PlotControl!$C$6-1)),12,1)) -> 0.0001791383333 | G36: =AVERAGE(OFFSET(Natural1E!$DI$10,12*$A36,(4*(PlotControl!$C$6-1)),12,1)) -> 0.0001791441667 | H36: =AVERAGE(OFFSET(Plant1E!$C$10,12*$A36,(4*(PlotControl!$C$6-1)),12,1)) -> 0 | I36: =AVERAGE(OFFSET(Plant1E!$D$10,12*$A36,(4*(PlotControl!$C$6-1)),12,1)) -> 0 | J36: =AVERAGE(OFFSET(Plant1E!$E$10,12*$A36,(4*(PlotControl!$C$6-1)),12,1)) -> 0 | K36: =AVERAGE(OFFSET(Plant1E!$DG$10,12*$A36,(4*(PlotControl!$C$6-1)),12,1)) -> 0 | L36: =AVERAGE(OFFSET(Plant1E!$DH$10,12*$A36,(4*(PlotControl!$C$6-1)),12,1)) -> 0 | M36: =AVERAGE(OFFSET(Plant1E!$DI$10,12*$A36,(4*(PlotControl!$C$6-1)),12,1)) -> 0 | N36: =AVERAGE(OFFSET(Contain1E!$C$10,12*$A36,(4*(PlotControl!$C$6-1)),12,1)) + AVERAGE(OFFSET(Contain1E!$DG$10,12*$A36,(4*(PlotControl!$C$6-1)),12,1)) -> 0.0001163783333 | O36: =AVERAGE(OFFSET(Contain1E!$D$10,12*$A36,(4*(PlotControl!$C$6-1)),12,1)) + AVERAGE(OFFSET(Contain1E!$DH$10,12*$A36,(4*(PlotControl!$C$6-1)),12,1)) -> 0.0001258475 | P36: =AVERAGE(OFFSET(Contain1E!$E$10,12*$A36,(4*(PlotControl!$C$6-1)),12,1)) + AVERAGE(OFFSET(Contain1E!$DI$10,12*$A36,(4*(PlotControl!$C$6-1)),12,1)) -> 0.0001366116667 | Q36: =AVERAGE(OFFSET(WWTP1E!$C$10,12*$A36,(4*(PlotControl!$C$6-1)),12,1)) -> 0.00025183525 | R36: =AVERAGE(OFFSET(WWTP1E!$D$10,12*$A36,(4*(PlotControl!$C$6-1)),12,1)) -> 0.0004501474167 | S36: =AVERAGE(OFFSET(WWTP1E!$E$10,12*$A36,(4*(PlotControl!$C$6-1)),12,1)) -> 0.0007887983333 | T36: =AVERAGE(OFFSET(WWTP1E!$DG$10,12*$A36,(4*(PlotControl!$C$6-1)),12,1)) -> 9.730966667e-05 | U36: =AVERAGE(OFFSET(WWTP1E!$DH$10,12*$A36,(4*(PlotControl!$C$6-1)),12,1)) -> 0.0001092475 | V36: =AVERAGE(OFFSET(WWTP1E!$DI$10,12*$A36,(4*(PlotControl!$C$6-1)),12,1)) -> 0.0001439608333 | W36: =AVERAGE(OFFSET(Plant1E!$HK$10,12*$A36,(4*(PlotControl!$C$6-1)),12,1)) -> 0 | X36: =AVERAGE(OFFSET(Plant1E!$HL$10,12*$A36,(4*(PlotControl!$C$6-1)),12,1)) -> 0 | Y36: =AVERAGE(OFFSET(Plant1E!$HM$10,12*$A36,(4*(PlotControl!$C$6-1)),12,1)) -> 0
A37: 30 | B37: =AVERAGE(OFFSET(Mine1E!$C$10,12*$A37,(4*(PlotControl!$C$6-1)),12,1)) -> 0 | C37: =AVERAGE(OFFSET(Mine1E!$D$10,12*$A37,(4*(PlotControl!$C$6-1)),12,1)) -> 0 | D37: =AVERAGE(OFFSET(Mine1E!$E$10,12*$A37,(4*(PlotControl!$C$6-1)),12,1)) -> 0 | E37: =AVERAGE(OFFSET(Natural1E!$DG$10,12*$A37,(4*(PlotControl!$C$6-1)),12,1)) -> 0.0001793558333 | F37: =AVERAGE(OFFSET(Natural1E!$DH$10,12*$A37,(4*(PlotControl!$C$6-1)),12,1)) -> 0.0001793558333 | G37: =AVERAGE(OFFSET(Natural1E!$DI$10,12*$A37,(4*(PlotControl!$C$6-1)),12,1)) -> 0.0001793591667 | H37: =AVERAGE(OFFSET(Plant1E!$C$10,12*$A37,(4*(PlotControl!$C$6-1)),12,1)) -> 0 | I37: =AVERAGE(OFFSET(Plant1E!$D$10,12*$A37,(4*(PlotControl!$C$6-1)),12,1)) -> 0 | J37: =AVERAGE(OFFSET(Plant1E!$E$10,12*$A37,(4*(PlotControl!$C$6-1)),12,1)) -> 0 | K37: =AVERAGE(OFFSET(Plant1E!$DG$10,12*$A37,(4*(PlotControl!$C$6-1)),12,1)) -> 0 | L37: =AVERAGE(OFFSET(Plant1E!$DH$10,12*$A37,(4*(PlotControl!$C$6-1)),12,1)) -> 0 | M37: =AVERAGE(OFFSET(Plant1E!$DI$10,12*$A37,(4*(PlotControl!$C$6-1)),12,1)) -> 0 | N37: =AVERAGE(OFFSET(Contain1E!$C$10,12*$A37,(4*(PlotControl!$C$6-1)),12,1)) + AVERAGE(OFFSET(Contain1E!$DG$10,12*$A37,(4*(PlotControl!$C$6-1)),12,1)) -> 0.0001022555 | O37: =AVERAGE(OFFSET(Contain1E!$D$10,12*$A37,(4*(PlotControl!$C$6-1)),12,1)) + AVERAGE(OFFSET(Contain1E!$DH$10,12*$A37,(4*(PlotControl!$C$6-1)),12,1)) -> 0.0001094175 | P37: =AVERAGE(OFFSET(Contain1E!$E$10,12*$A37,(4*(PlotControl!$C$6-1)),12,1)) + AVERAGE(OFFSET(Contain1E!$DI$10,12*$A37,(4*(PlotControl!$C$6-1)),12,1)) -> 0.0001173775 | Q37: =AVERAGE(OFFSET(WWTP1E!$C$10,12*$A37,(4*(PlotControl!$C$6-1)),12,1)) -> 0.0002377665417 | R37: =AVERAGE(OFFSET(WWTP1E!$D$10,12*$A37,(4*(PlotControl!$C$6-1)),12,1)) -> 0.0004065658333 | S37: =AVERAGE(OFFSET(WWTP1E!$E$10,12*$A37,(4*(PlotControl!$C$6-1)),12,1)) -> 0.0007066191667 | T37: =AVERAGE(OFFSET(WWTP1E!$DG$10,12*$A37,(4*(PlotControl!$C$6-1)),12,1)) -> 9.321808333e-05 | U37: =AVERAGE(OFFSET(WWTP1E!$DH$10,12*$A37,(4*(PlotControl!$C$6-1)),12,1)) -> 0.0001052275 | V37: =AVERAGE(OFFSET(WWTP1E!$DI$10,12*$A37,(4*(PlotControl!$C$6-1)),12,1)) -> 0.000140525 | W37: =AVERAGE(OFFSET(Plant1E!$HK$10,12*$A37,(4*(PlotControl!$C$6-1)),12,1)) -> 0 | X37: =AVERAGE(OFFSET(Plant1E!$HL$10,12*$A37,(4*(PlotControl!$C$6-1)),12,1)) -> 0 | Y37: =AVERAGE(OFFSET(Plant1E!$HM$10,12*$A37,(4*(PlotControl!$C$6-1)),12,1)) -> 0
A38: 31 | B38: =AVERAGE(OFFSET(Mine1E!$C$10,12*$A38,(4*(PlotControl!$C$6-1)),12,1)) -> 0 | C38: =AVERAGE(OFFSET(Mine1E!$D$10,12*$A38,(4*(PlotControl!$C$6-1)),12,1)) -> 0 | D38: =AVERAGE(OFFSET(Mine1E!$E$10,12*$A38,(4*(PlotControl!$C$6-1)),12,1)) -> 0 | E38: =AVERAGE(OFFSET(Natural1E!$DG$10,12*$A38,(4*(PlotControl!$C$6-1)),12,1)) -> 0.00017845 | F38: =AVERAGE(OFFSET(Natural1E!$DH$10,12*$A38,(4*(PlotControl!$C$6-1)),12,1)) -> 0.00017845 | G38: =AVERAGE(OFFSET(Natural1E!$DI$10,12*$A38,(4*(PlotControl!$C$6-1)),12,1)) -> 0.00017845 | H38: =AVERAGE(OFFSET(Plant1E!$C$10,12*$A38,(4*(PlotControl!$C$6-1)),12,1)) -> 0 | I38: =AVERAGE(OFFSET(Plant1E!$D$10,12*$A38,(4*(PlotControl!$C$6-1)),12,1)) -> 0 | J38: =AVERAGE(OFFSET(Plant1E!$E$10,12*$A38,(4*(PlotControl!$C$6-1)),12,1)) -> 0 | K38: =AVERAGE(OFFSET(Plant1E!$DG$10,12*$A38,(4*(PlotControl!$C$6-1)),12,1)) -> 0 | L38: =AVERAGE(OFFSET(Plant1E!$DH$10,12*$A38,(4*(PlotControl!$C$6-1)),12,1)) -> 0 | M38: =AVERAGE(OFFSET(Plant1E!$DI$10,12*$A38,(4*(PlotControl!$C$6-1)),12,1)) -> 0 | N38: =AVERAGE(OFFSET(Contain1E!$C$10,12*$A38,(4*(PlotControl!$C$6-1)),12,1)) + AVERAGE(OFFSET(Contain1E!$DG$10,12*$A38,(4*(PlotControl!$C$6-1)),12,1)) -> 9.673858333e-05 | O38: =AVERAGE(OFFSET(Contain1E!$D$10,12*$A38,(4*(PlotControl!$C$6-1)),12,1)) + AVERAGE(OFFSET(Contain1E!$DH$10,12*$A38,(4*(PlotControl!$C$6-1)),12,1)) -> 0.00010320275 | P38: =AVERAGE(OFFSET(Contain1E!$E$10,12*$A38,(4*(PlotControl!$C$6-1)),12,1)) + AVERAGE(OFFSET(Contain1E!$DI$10,12*$A38,(4*(PlotControl!$C$6-1)),12,1)) -> 0.0001111433333 | Q38: =AVERAGE(OFFSET(WWTP1E!$C$10,12*$A38,(4*(PlotControl!$C$6-1)),12,1)) -> 0.0002128241667 | R38: =AVERAGE(OFFSET(WWTP1E!$D$10,12*$A38,(4*(PlotControl!$C$6-1)),12,1)) -> 0.0003918935833 | S38: =AVERAGE(OFFSET(WWTP1E!$E$10,12*$A38,(4*(PlotControl!$C$6-1)),12,1)) -> 0.0006907683333 | T38: =AVERAGE(OFFSET(WWTP1E!$DG$10,12*$A38,(4*(PlotControl!$C$6-1)),12,1)) -> 9.009891667e-05 | U38: =AVERAGE(OFFSET(WWTP1E!$DH$10,12*$A38,(4*(PlotControl!$C$6-1)),12,1)) -> 0.0001028109167 | V38: =AVERAGE(OFFSET(WWTP1E!$DI$10,12*$A38,(4*(PlotControl!$C$6-1)),12,1)) -> 0.0001379575 | W38: =AVERAGE(OFFSET(Plant1E!$HK$10,12*$A38,(4*(PlotControl!$C$6-1)),12,1)) -> 0 | X38: =AVERAGE(OFFSET(Plant1E!$HL$10,12*$A38,(4*(PlotControl!$C$6-1)),12,1)) -> 0 | Y38: =AVERAGE(OFFSET(Plant1E!$HM$10,12*$A38,(4*(PlotControl!$C$6-1)),12,1)) -> 0
A39: 32 | B39: =AVERAGE(OFFSET(Mine1E!$C$10,12*$A39,(4*(PlotControl!$C$6-1)),12,1)) -> 0 | C39: =AVERAGE(OFFSET(Mine1E!$D$10,12*$A39,(4*(PlotControl!$C$6-1)),12,1)) -> 0 | D39: =AVERAGE(OFFSET(Mine1E!$E$10,12*$A39,(4*(PlotControl!$C$6-1)),12,1)) -> 0 | E39: =AVERAGE(OFFSET(Natural1E!$DG$10,12*$A39,(4*(PlotControl!$C$6-1)),12,1)) -> 0.000177535 | F39: =AVERAGE(OFFSET(Natural1E!$DH$10,12*$A39,(4*(PlotControl!$C$6-1)),12,1)) -> 0.000177535 | G39: =AVERAGE(OFFSET(Natural1E!$DI$10,12*$A39,(4*(PlotControl!$C$6-1)),12,1)) -> 0.000177535 | H39: =AVERAGE(OFFSET(Plant1E!$C$10,12*$A39,(4*(PlotControl!$C$6-1)),12,1)) -> 0 | I39: =AVERAGE(OFFSET(Plant1E!$D$10,12*$A39,(4*(PlotControl!$C$6-1)),12,1)) -> 0 | J39: =AVERAGE(OFFSET(Plant1E!$E$10,12*$A39,(4*(PlotControl!$C$6-1)),12,1)) -> 0 | K39: =AVERAGE(OFFSET(Plant1E!$DG$10,12*$A39,(4*(PlotControl!$C$6-1)),12,1)) -> 0 | L39: =AVERAGE(OFFSET(Plant1E!$DH$10,12*$A39,(4*(PlotControl!$C$6-1)),12,1)) -> 0 | M39: =AVERAGE(OFFSET(Plant1E!$DI$10,12*$A39,(4*(PlotControl!$C$6-1)),12,1)) -> 0 | N39: =AVERAGE(OFFSET(Contain1E!$C$10,12*$A39,(4*(PlotControl!$C$6-1)),12,1)) + AVERAGE(OFFSET(Contain1E!$DG$10,12*$A39,(4*(PlotControl!$C$6-1)),12,1)) -> 9.426691667e-05 | O39: =AVERAGE(OFFSET(Contain1E!$D$10,12*$A39,(4*(PlotControl!$C$6-1)),12,1)) + AVERAGE(OFFSET(Contain1E!$DH$10,12*$A39,(4*(PlotControl!$C$6-1)),12,1)) -> 0.0001002660833 | P39: =AVERAGE(OFFSET(Contain1E!$E$10,12*$A39,(4*(PlotControl!$C$6-1)),12,1)) + AVERAGE(OFFSET(Contain1E!$DI$10,12*$A39,(4*(PlotControl!$C$6-1)),12,1)) -> 0.00010775 | Q39: =AVERAGE(OFFSET(WWTP1E!$C$10,12*$A39,(4*(PlotControl!$C$6-1)),12,1)) -> 0.000206601 | R39: =AVERAGE(OFFSET(WWTP1E!$D$10,12*$A39,(4*(PlotControl!$C$6-1)),12,1)) -> 0.00037835 | S39: =AVERAGE(OFFSET(WWTP1E!$E$10,12*$A39,(4*(PlotControl!$C$6-1)),12,1)) -> 0.0006581375 | T39: =AVERAGE(OFFSET(WWTP1E!$DG$10,12*$A39,(4*(PlotControl!$C$6-1)),12,1)) -> 8.812591667e-05 | U39: =AVERAGE(OFFSET(WWTP1E!$DH$10,12*$A39,(4*(PlotControl!$C$6-1)),12,1)) -> 0.0001012453333 | V39: =AVERAGE(OFFSET(WWTP1E!$DI$10,12*$A39,(4*(PlotControl!$C$6-1)),12,1)) -> 0.0001372133333 | W39: =AVERAGE(OFFSET(Plant1E!$HK$10,12*$A39,(4*(PlotControl!$C$6-1)),12,1)) -> 0 | X39: =AVERAGE(OFFSET(Plant1E!$HL$10,12*$A39,(4*(PlotControl!$C$6-1)),12,1)) -> 0 | Y39: =AVERAGE(OFFSET(Plant1E!$HM$10,12*$A39,(4*(PlotControl!$C$6-1)),12,1)) -> 0
